Workbook

Sheet Data1 (hidden)
A1: All inclusive rows | F1: Options in this RFA | I1: Macro:
I2: Sub InsertHeaderandFooterForAllSheets()
A3: Program the Print Header and Footer for All Tabs: | B3: (Start by putting cursor in blank cell; Select Developer, Macros, InsertHeaderandFooterForAllSheets, Run) | I3: Dim HeaderText As Range
A4: Exhibit A to RFA 2022-202 Housing Credit Financing For Affordable Housing Developments Located In Broward, Duval, Hillsborough, Orange, Palm Beach, And Pinellas Counties | I4: Set HeaderText = Application.Selection
I5: HeaderText = Range("Data1!$A$4").Value
A6: Print Left Footer for All Tabs: | C6: Exhibit A to RFA 2022-202 Housing Credit Financing For Affordable Housing Developments Located In Broward, Duval, Hillsborough, Orange, Palm Beach, And Pinellas Counties | I6: Dim FooterText As Range
A7: RFA 2022-202 | B7: ® ® ® ® ® ® ® ® ® ® ® | F7: =DS_TabLeftFooter -> RFA 2022-202 | I7: Set FooterText = Application.Selection
I8: LeftFooterText = Range("Data1!$A$7").Value
A9: Application Deadline | E9: 2022-12-29 | I9: For Each mysheet In Application.ActiveWorkbook.Worksheets
I10: mysheet.PageSetup.LeftHeader = ""
A11: All Inclusive List - Demographics (Demo) | B11: In RFA? | C11: Sequence | D11: Sort | E11: 4.A.2. | F11: <select one> | I11: mysheet.PageSetup.CenterHeader = "&B&14&K7030A0" & HeaderText & ""
A12: Family | B12: 1 | C12: =IF(B12<>1,"",SUM(B$12:B12)) -> 1 | D12: 1 | F12: =IF(COUNTA($A$12:$A12)<=MAX(DS_Demo_Sequence)=TRUE,LOOKUP(COUNTA($A$12:$A12),DS_Demo_Sequence,DS_Demo_DataNames),"") -> Family | I12: mysheet.PageSetup.RightHeader = ""
A13: Elderly Non-ALF | B13: 1 | C13: =IF(B13<>1,"",SUM(B$12:B13)) -> 2 | D13: 2 | F13: =IF(COUNTA($A$12:$A13)<=MAX(DS_Demo_Sequence)=TRUE,LOOKUP(COUNTA($A$12:$A13),DS_Demo_Sequence,DS_Demo_DataNames),"") -> Elderly Non-ALF | I13: mysheet.PageSetup.LeftFooter = LeftFooterText
A14: Elderly ALF | B14: 1 | C14: =IF(B14<>1,"",SUM(B$12:B14)) -> 3 | D14: 3 | F14: =IF(COUNTA($A$12:$A14)<=MAX(DS_Demo_Sequence)=TRUE,LOOKUP(COUNTA($A$12:$A14),DS_Demo_Sequence,DS_Demo_DataNames),"") -> Elderly ALF | I14: mysheet.PageSetup.CenterFooter = ""
A15: Elderly (Elderly Transformative Preservation) | C15: =IF(B15<>1,"",SUM(B$12:B15)) ->  | D15: 4 | F15: =IF(COUNTA($A$12:$A15)<=MAX(DS_Demo_Sequence)=TRUE,LOOKUP(COUNTA($A$12:$A15),DS_Demo_Sequence,DS_Demo_DataNames),"") ->  | I15: mysheet.PageSetup.RightFooter = "&K000000'&A' worksheet tab: Page &P of &N"
A16: Farmworker/Commercial Fish Worker | C16: =IF(B16<>1,"",SUM(B$12:B16)) ->  | D16: 5 | F16: =IF(COUNTA($A$12:$A16)<=MAX(DS_Demo_Sequence)=TRUE,LOOKUP(COUNTA($A$12:$A16),DS_Demo_Sequence,DS_Demo_DataNames),"") ->  | I16: mysheet.PageSetup.LeftMargin = Application.InchesToPoints(0.7)
A17: Homeless | C17: =IF(B17<>1,"",SUM(B$12:B17)) ->  | D17: 6 | F17: =IF(COUNTA($A$12:$A17)<=MAX(DS_Demo_Sequence)=TRUE,LOOKUP(COUNTA($A$12:$A17),DS_Demo_Sequence,DS_Demo_DataNames),"") ->  | I17: mysheet.PageSetup.RightMargin = Application.InchesToPoints(0.7)
A18: Persons with a Disabiling Condition | C18: =IF(B18<>1,"",SUM(B$12:B18)) ->  | D18: 7 | F18: =IF(COUNTA($A$12:$A18)<=MAX(DS_Demo_Sequence)=TRUE,LOOKUP(COUNTA($A$12:$A18),DS_Demo_Sequence,DS_Demo_DataNames),"") ->  | I18: mysheet.PageSetup.TopMargin = Application.InchesToPoints(0.75)
A19: Persons with Developmental Disabilities | C19: =IF(B19<>1,"",SUM(B$12:B19)) ->  | D19: 8 | F19: =IF(COUNTA($A$12:$A19)<=MAX(DS_Demo_Sequence)=TRUE,LOOKUP(COUNTA($A$12:$A19),DS_Demo_Sequence,DS_Demo_DataNames),"") ->  | I19: mysheet.PageSetup.BottomMargin = Application.InchesToPoints(0.75)
A20: Persons with Special Needs | C20: =IF(B20<>1,"",SUM(B$12:B20)) ->  | D20: 9 | F20: =IF(COUNTA($A$12:$A20)<=MAX(DS_Demo_Sequence)=TRUE,LOOKUP(COUNTA($A$12:$A20),DS_Demo_Sequence,DS_Demo_DataNames),"") ->  | I20: mysheet.PageSetup.HeaderMargin = Application.InchesToPoints(0.3)
A21: Workforce | C21: =IF(B21<>1,"",SUM(B$12:B21)) ->  | D21: 10 | F21: =IF(COUNTA($A$12:$A21)<=MAX(DS_Demo_Sequence)=TRUE,LOOKUP(COUNTA($A$12:$A21),DS_Demo_Sequence,DS_Demo_DataNames),"") ->  | I21: mysheet.PageSetup.FooterMargin = Application.InchesToPoints(0.3)
I22: mysheet.PageSetup.PrintHeadings = False
A23: Check Box Reference Cells | E23: 4.A.2.a.&b. | I23: mysheet.PageSetup.PrintGridlines = False
A24: (a) Select the Minimum Set-Aside Commitment for … | I24: mysheet.PageSetup.PrintComments = xlPrintSheetEnd
A25: (1) Less than 80% PSN | B25: FALSE | I25: mysheet.PageSetup.PrintQuality = 600
A26: (2) At least 80% PSN | B26: FALSE | I26: mysheet.PageSetup.CenterHorizontally = False
A27: (b) Select at least one box from options (1) through (5) below that … | I27: mysheet.PageSetup.CenterVertically = False
A28: (1) DC that does or will impair | B28: FALSE | I28: mysheet.PageSetup.Orientation = xlPortrait
A29: (2) Receives benefits from SSDI, SSI or Veterans' | B29: FALSE | I29: mysheet.PageSetup.Draft = False
A30: (3) DC that does not or will not impair | B30: FALSE | I30: mysheet.PageSetup.PaperSize = xlPaperLetter
A31: (4) Aging out of Foster Care | B31: FALSE | I31: mysheet.PageSetup.FirstPageNumber = xlAutomatic
A32: (5) Survivors of domestic violence | B32: FALSE | I32: mysheet.PageSetup.Order = xlDownThenOver
I33: mysheet.PageSetup.BlackAndWhite = False
A34: All Inclusive List - Dev. Exp. Programs (DevExpProgs) | B34: In RFA? | C34: Sequence | D34: Sort | E34: 4.A.3.b.(3)(a) | F34: <select one> | I34: mysheet.PageSetup.Zoom = 80
A35: Housing Credits | B35: 1 | C35: =IF(B35<>1,"",SUM(B$35:B35)) -> 1 | D35: 1 | F35: =IF(COUNTA($A35:$A$35)<=MAX(DS_DevExpProgs_Sequence)=TRUE,LOOKUP(COUNTA($A35:$A$35),DS_DevExpProgs_Sequence,DS_DevExpProgs_DataNames),"") -> Housing Credits | I35: Next
A36: Tax-Exempt Bonds | B36: 1 | C36: =IF(B36<>1,"",SUM(B$35:B36)) -> 2 | D36: 2 | F36: =IF(COUNTA($A$35:$A36)<=MAX(DS_DevExpProgs_Sequence)=TRUE,LOOKUP(COUNTA($A$35:$A36),DS_DevExpProgs_Sequence,DS_DevExpProgs_DataNames),"") -> Tax-Exempt Bonds | I36: End Sub
A37: HOME | B37: 1 | C37: =IF(B37<>1,"",SUM(B$35:B37)) -> 3 | D37: 3 | F37: =IF(COUNTA($A$35:$A37)<=MAX(DS_DevExpProgs_Sequence)=TRUE,LOOKUP(COUNTA($A$35:$A37),DS_DevExpProgs_Sequence,DS_DevExpProgs_DataNames),"") -> HOME
A38: CDBG-DR | B38: 1 | C38: =IF(B38<>1,"",SUM(B$35:B38)) -> 4 | D38: 4 | F38: =IF(COUNTA($A$35:$A38)<=MAX(DS_DevExpProgs_Sequence)=TRUE,LOOKUP(COUNTA($A$35:$A38),DS_DevExpProgs_Sequence,DS_DevExpProgs_DataNames),"") -> CDBG-DR
A39: NHTF | B39: 1 | C39: =IF(B39<>1,"",SUM(B$35:B39)) -> 5 | D39: 5 | F39: =IF(COUNTA($A$35:$A39)<=MAX(DS_DevExpProgs_Sequence)=TRUE,LOOKUP(COUNTA($A$35:$A39),DS_DevExpProgs_Sequence,DS_DevExpProgs_DataNames),"") -> NHTF
A40: HUD First Mortgage | B40: 1 | C40: =IF(B40<>1,"",SUM(B$35:B40)) -> 6 | D40: 6 | F40: =IF(COUNTA($A$35:$A40)<=MAX(DS_DevExpProgs_Sequence)=TRUE,LOOKUP(COUNTA($A$35:$A40),DS_DevExpProgs_Sequence,DS_DevExpProgs_DataNames),"") -> HUD First Mortgage
A41: Exchange | C41: =IF(B41<>1,"",SUM(B$35:B41)) ->  | D41: 7 | F41: =IF(COUNTA($A$35:$A41)<=MAX(DS_DevExpProgs_Sequence)=TRUE,LOOKUP(COUNTA($A$35:$A41),DS_DevExpProgs_Sequence,DS_DevExpProgs_DataNames),"") -> USDA RD 514/516
A42: TCAP | C42: =IF(B42<>1,"",SUM(B$35:B42)) ->  | D42: 8 | F42: =IF(COUNTA($A$35:$A42)<=MAX(DS_DevExpProgs_Sequence)=TRUE,LOOKUP(COUNTA($A$35:$A42),DS_DevExpProgs_Sequence,DS_DevExpProgs_DataNames),"") -> USDA RD 515
A43: FDIC | C43: =IF(B43<>1,"",SUM(B$35:B43)) ->  | D43: 9 | F43: =IF(COUNTA($A$35:$A43)<=MAX(DS_DevExpProgs_Sequence)=TRUE,LOOKUP(COUNTA($A$35:$A43),DS_DevExpProgs_Sequence,DS_DevExpProgs_DataNames),"") -> USDA RD 538
A44: FHLB | C44: =IF(B44<>1,"",SUM(B$35:B44)) ->  | D44: 10 | F44: =IF(COUNTA($A$35:$A44)<=MAX(DS_DevExpProgs_Sequence)=TRUE,LOOKUP(COUNTA($A$35:$A44),DS_DevExpProgs_Sequence,DS_DevExpProgs_DataNames),"") -> Grant
A45: AHP | C45: =IF(B45<>1,"",SUM(B$35:B45)) ->  | D45: 11 | F45: =IF(COUNTA($A$35:$A45)<=MAX(DS_DevExpProgs_Sequence)=TRUE,LOOKUP(COUNTA($A$35:$A45),DS_DevExpProgs_Sequence,DS_DevExpProgs_DataNames),"") -> RRLP
A46: USDA RD 514/516 | B46: 1 | C46: =IF(B46<>1,"",SUM(B$35:B46)) -> 7 | D46: 12 | F46: =IF(COUNTA($A$35:$A46)<=MAX(DS_DevExpProgs_Sequence)=TRUE,LOOKUP(COUNTA($A$35:$A46),DS_DevExpProgs_Sequence,DS_DevExpProgs_DataNames),"") -> SAIL
A47: USDA RD 515 | B47: 1 | C47: =IF(B47<>1,"",SUM(B$35:B47)) -> 8 | D47: 13 | F47: =IF(COUNTA($A$35:$A47)<=MAX(DS_DevExpProgs_Sequence)=TRUE,LOOKUP(COUNTA($A$35:$A47),DS_DevExpProgs_Sequence,DS_DevExpProgs_DataNames),"") -> Workforce
A48: USDA RD 538 | B48: 1 | C48: =IF(B48<>1,"",SUM(B$35:B48)) -> 9 | D48: 14 | F48: =IF(COUNTA($A$35:$A48)<=MAX(DS_DevExpProgs_Sequence)=TRUE,LOOKUP(COUNTA($A$35:$A48),DS_DevExpProgs_Sequence,DS_DevExpProgs_DataNames),"") -> Other
A49: CWHIP | C49: =IF(B49<>1,"",SUM(B$35:B49)) ->  | D49: 15 | F49: =IF(COUNTA($A$35:$A49)<=MAX(DS_DevExpProgs_Sequence)=TRUE,LOOKUP(COUNTA($A$35:$A49),DS_DevExpProgs_Sequence,DS_DevExpProgs_DataNames),"") -> 
A50: CWHLP | C50: =IF(B50<>1,"",SUM(B$35:B50)) ->  | D50: 16 | F50: =IF(COUNTA($A$35:$A50)<=MAX(DS_DevExpProgs_Sequence)=TRUE,LOOKUP(COUNTA($A$35:$A50),DS_DevExpProgs_Sequence,DS_DevExpProgs_DataNames),"") -> 
A51: EHCL | C51: =IF(B51<>1,"",SUM(B$35:B51)) ->  | D51: 17 | F51: =IF(COUNTA($A$35:$A51)<=MAX(DS_DevExpProgs_Sequence)=TRUE,LOOKUP(COUNTA($A$35:$A51),DS_DevExpProgs_Sequence,DS_DevExpProgs_DataNames),"") -> 
A52: ELI | C52: =IF(B52<>1,"",SUM(B$35:B52)) ->  | D52: 18 | F52: =IF(COUNTA($A$35:$A52)<=MAX(DS_DevExpProgs_Sequence)=TRUE,LOOKUP(COUNTA($A$35:$A52),DS_DevExpProgs_Sequence,DS_DevExpProgs_DataNames),"") -> 
A53: FAF | C53: =IF(B53<>1,"",SUM(B$35:B53)) ->  | D53: 19 | F53: =IF(COUNTA($A$35:$A53)<=MAX(DS_DevExpProgs_Sequence)=TRUE,LOOKUP(COUNTA($A$35:$A53),DS_DevExpProgs_Sequence,DS_DevExpProgs_DataNames),"") -> 
A54: Grant | B54: 1 | C54: =IF(B54<>1,"",SUM(B$35:B54)) -> 10 | D54: 20 | F54: =IF(COUNTA($A$35:$A54)<=MAX(DS_DevExpProgs_Sequence)=TRUE,LOOKUP(COUNTA($A$35:$A54),DS_DevExpProgs_Sequence,DS_DevExpProgs_DataNames),"") -> 
A55: HHRP | C55: =IF(B55<>1,"",SUM(B$35:B55)) ->  | D55: 21 | F55: =IF(COUNTA($A$35:$A55)<=MAX(DS_DevExpProgs_Sequence)=TRUE,LOOKUP(COUNTA($A$35:$A55),DS_DevExpProgs_Sequence,DS_DevExpProgs_DataNames),"") -> 
A56: Legislative Appropriation | C56: =IF(B56<>1,"",SUM(B$35:B56)) ->  | D56: 22 | F56: =IF(COUNTA($A$35:$A56)<=MAX(DS_DevExpProgs_Sequence)=TRUE,LOOKUP(COUNTA($A$35:$A56),DS_DevExpProgs_Sequence,DS_DevExpProgs_DataNames),"") -> 
A57: PLP | C57: =IF(B57<>1,"",SUM(B$35:B57)) ->  | D57: 23 | F57: =IF(COUNTA($A$35:$A57)<=MAX(DS_DevExpProgs_Sequence)=TRUE,LOOKUP(COUNTA($A$35:$A57),DS_DevExpProgs_Sequence,DS_DevExpProgs_DataNames),"") -> 
A58: RRLP | B58: 1 | C58: =IF(B58<>1,"",SUM(B$35:B58)) -> 11 | D58: 24 | F58: =IF(COUNTA($A$35:$A58)<=MAX(DS_DevExpProgs_Sequence)=TRUE,LOOKUP(COUNTA($A$35:$A58),DS_DevExpProgs_Sequence,DS_DevExpProgs_DataNames),"") -> 
A59: SAIL | B59: 1 | C59: =IF(B59<>1,"",SUM(B$35:B59)) -> 12 | D59: 25 | F59: =IF(COUNTA($A$35:$A59)<=MAX(DS_DevExpProgs_Sequence)=TRUE,LOOKUP(COUNTA($A$35:$A59),DS_DevExpProgs_Sequence,DS_DevExpProgs_DataNames),"") -> 
A60: SB 1852 NMS | C60: =IF(B60<>1,"",SUM(B$35:B60)) ->  | D60: 26 | F60: =IF(COUNTA($A$35:$A60)<=MAX(DS_DevExpProgs_Sequence)=TRUE,LOOKUP(COUNTA($A$35:$A60),DS_DevExpProgs_Sequence,DS_DevExpProgs_DataNames),"") -> 
A61: SHADP | C61: =IF(B61<>1,"",SUM(B$35:B61)) ->  | D61: 27 | F61: =IF(COUNTA($A$35:$A61)<=MAX(DS_DevExpProgs_Sequence)=TRUE,LOOKUP(COUNTA($A$35:$A61),DS_DevExpProgs_Sequence,DS_DevExpProgs_DataNames),"") -> 
A62: SHIP | C62: =IF(B62<>1,"",SUM(B$35:B62)) ->  | D62: 28 | F62: =IF(COUNTA($A$35:$A62)<=MAX(DS_DevExpProgs_Sequence)=TRUE,LOOKUP(COUNTA($A$35:$A62),DS_DevExpProgs_Sequence,DS_DevExpProgs_DataNames),"") -> 
A63: Surtax | C63: =IF(B63<>1,"",SUM(B$35:B63)) ->  | D63: 29 | F63: =IF(COUNTA($A$35:$A63)<=MAX(DS_DevExpProgs_Sequence)=TRUE,LOOKUP(COUNTA($A$35:$A63),DS_DevExpProgs_Sequence,DS_DevExpProgs_DataNames),"") -> 
A64: Workforce | B64: 1 | C64: =IF(B64<>1,"",SUM(B$35:B64)) -> 13 | D64: 30 | F64: =IF(COUNTA($A$35:$A64)<=MAX(DS_DevExpProgs_Sequence)=TRUE,LOOKUP(COUNTA($A$35:$A64),DS_DevExpProgs_Sequence,DS_DevExpProgs_DataNames),"") -> 
A65: Other | B65: 1 | C65: =IF(B65<>1,"",SUM(B$35:B65)) -> 14 | D65: 31 | F65: =IF(COUNTA($A$35:$A65)<=MAX(DS_DevExpProgs_Sequence)=TRUE,LOOKUP(COUNTA($A$35:$A65),DS_DevExpProgs_Sequence,DS_DevExpProgs_DataNames),"") -> 
A66: Required Davis-Bacon | C66: =IF(B66<>1,"",SUM(B$35:B66)) ->  | D66: 32 | F66: =IF(COUNTA($A$35:$A66)<=MAX(DS_DevExpProgs_Sequence)=TRUE,LOOKUP(COUNTA($A$35:$A66),DS_DevExpProgs_Sequence,DS_DevExpProgs_DataNames),"") -> 
A68: Developer Experience Variables | E68: 4.A.3.b.(3)(a) | F68: <select one>
A69: # of affordable housing developments to list | E69: 3 | F69: Percentage
A70: Initial Date for Developer Experience | E70: 2002-01-01 | F70: Number
A71: # of Developments to meet Initial Date Requirement | E71: 2
A72: Funding Program Requirement | E72: Housing Credits
A73: Initial Date for Funding Program Requirement | E73: 2012-01-01
A74: # of Developments to meet minimum Program Requirement | E74: 1
A75: Minimum total number of units %, or | E75: 0.5
A76: Minimum total number of units # | E76: 12
A77: Is minimum % or minimum # used in RFA? | E77: Percentage
A78: # of Developments to meet minimum units | E78: 1
A80: All Inclusive List - Priority (Priority) | B80: In RFA? | C80: Sequence | D80: Sort | E80: 4.A.3.c.(3) | F80: <select one>
A81: Priority I | B81: 1 | C81: =IF(B81<>1,"",SUM(B$81:B81)) -> 1 | D81: 1 | F81: =IF(COUNTA($A$81:$A81)<=MAX(DS_Priority_Sequence)=TRUE,LOOKUP(COUNTA($A$81:$A81),DS_Priority_Sequence,DS_Priority_DataNames),"") -> Priority I
A82: Priority II | B82: 1 | C82: =IF(B82<>1,"",SUM(B$81:B82)) -> 2 | D82: 2 | F82: =IF(COUNTA($A$81:$A82)<=MAX(DS_Priority_Sequence)=TRUE,LOOKUP(COUNTA($A$81:$A82),DS_Priority_Sequence,DS_Priority_DataNames),"") -> Priority II
A84: All Inclusive List - States (States) | B84: In RFA? | C84: Sequence | D84: Sort | E84: 4.A.3.d. & e. | F84: <select one>
A85: AK | B85: 1 | C85: =IF(B85<>1,"",SUM(B$85:B85)) -> 1 | D85: 1 | F85: =IF(COUNTA($A$85:$A85)<=MAX(DS_States_Sequence)=TRUE,LOOKUP(COUNTA($A$85:$A85),DS_States_Sequence,DS_States_DataNames),"") -> AK
A86: AL | B86: 1 | C86: =IF(B86<>1,"",SUM(B$85:B86)) -> 2 | D86: 2 | F86: =IF(COUNTA($A$85:$A86)<=MAX(DS_States_Sequence)=TRUE,LOOKUP(COUNTA($A$85:$A86),DS_States_Sequence,DS_States_DataNames),"") -> AL
A87: AR | B87: 1 | C87: =IF(B87<>1,"",SUM(B$85:B87)) -> 3 | D87: 3 | F87: =IF(COUNTA($A$85:$A87)<=MAX(DS_States_Sequence)=TRUE,LOOKUP(COUNTA($A$85:$A87),DS_States_Sequence,DS_States_DataNames),"") -> AR
A88: AZ | B88: 1 | C88: =IF(B88<>1,"",SUM(B$85:B88)) -> 4 | D88: 4 | F88: =IF(COUNTA($A$85:$A88)<=MAX(DS_States_Sequence)=TRUE,LOOKUP(COUNTA($A$85:$A88),DS_States_Sequence,DS_States_DataNames),"") -> AZ
A89: CA | B89: 1 | C89: =IF(B89<>1,"",SUM(B$85:B89)) -> 5 | D89: 5 | F89: =IF(COUNTA($A$85:$A89)<=MAX(DS_States_Sequence)=TRUE,LOOKUP(COUNTA($A$85:$A89),DS_States_Sequence,DS_States_DataNames),"") -> CA
A90: CO | B90: 1 | C90: =IF(B90<>1,"",SUM(B$85:B90)) -> 6 | D90: 6 | F90: =IF(COUNTA($A$85:$A90)<=MAX(DS_States_Sequence)=TRUE,LOOKUP(COUNTA($A$85:$A90),DS_States_Sequence,DS_States_DataNames),"") -> CO
A91: CT | B91: 1 | C91: =IF(B91<>1,"",SUM(B$85:B91)) -> 7 | D91: 7 | F91: =IF(COUNTA($A$85:$A91)<=MAX(DS_States_Sequence)=TRUE,LOOKUP(COUNTA($A$85:$A91),DS_States_Sequence,DS_States_DataNames),"") -> CT
A92: DC | B92: 1 | C92: =IF(B92<>1,"",SUM(B$85:B92)) -> 8 | D92: 8 | F92: =IF(COUNTA($A$85:$A92)<=MAX(DS_States_Sequence)=TRUE,LOOKUP(COUNTA($A$85:$A92),DS_States_Sequence,DS_States_DataNames),"") -> DC
A93: DE | B93: 1 | C93: =IF(B93<>1,"",SUM(B$85:B93)) -> 9 | D93: 9 | F93: =IF(COUNTA($A$85:$A93)<=MAX(DS_States_Sequence)=TRUE,LOOKUP(COUNTA($A$85:$A93),DS_States_Sequence,DS_States_DataNames),"") -> DE
A94: FL | B94: 1 | C94: =IF(B94<>1,"",SUM(B$85:B94)) -> 10 | D94: 10 | F94: =IF(COUNTA($A$85:$A94)<=MAX(DS_States_Sequence)=TRUE,LOOKUP(COUNTA($A$85:$A94),DS_States_Sequence,DS_States_DataNames),"") -> FL
A95: GA | B95: 1 | C95: =IF(B95<>1,"",SUM(B$85:B95)) -> 11 | D95: 11 | F95: =IF(COUNTA($A$85:$A95)<=MAX(DS_States_Sequence)=TRUE,LOOKUP(COUNTA($A$85:$A95),DS_States_Sequence,DS_States_DataNames),"") -> GA
A96: HI | B96: 1 | C96: =IF(B96<>1,"",SUM(B$85:B96)) -> 12 | D96: 12 | F96: =IF(COUNTA($A$85:$A96)<=MAX(DS_States_Sequence)=TRUE,LOOKUP(COUNTA($A$85:$A96),DS_States_Sequence,DS_States_DataNames),"") -> HI
A97: IA | B97: 1 | C97: =IF(B97<>1,"",SUM(B$85:B97)) -> 13 | D97: 13 | F97: =IF(COUNTA($A$85:$A97)<=MAX(DS_States_Sequence)=TRUE,LOOKUP(COUNTA($A$85:$A97),DS_States_Sequence,DS_States_DataNames),"") -> IA
A98: ID | B98: 1 | C98: =IF(B98<>1,"",SUM(B$85:B98)) -> 14 | D98: 14 | F98: =IF(COUNTA($A$85:$A98)<=MAX(DS_States_Sequence)=TRUE,LOOKUP(COUNTA($A$85:$A98),DS_States_Sequence,DS_States_DataNames),"") -> ID
A99: IL | B99: 1 | C99: =IF(B99<>1,"",SUM(B$85:B99)) -> 15 | D99: 15 | F99: =IF(COUNTA($A$85:$A99)<=MAX(DS_States_Sequence)=TRUE,LOOKUP(COUNTA($A$85:$A99),DS_States_Sequence,DS_States_DataNames),"") -> IL
A100: IN | B100: 1 | C100: =IF(B100<>1,"",SUM(B$85:B100)) -> 16 | D100: 16 | F100: =IF(COUNTA($A$85:$A100)<=MAX(DS_States_Sequence)=TRUE,LOOKUP(COUNTA($A$85:$A100),DS_States_Sequence,DS_States_DataNames),"") -> IN
A101: KS | B101: 1 | C101: =IF(B101<>1,"",SUM(B$85:B101)) -> 17 | D101: 17 | F101: =IF(COUNTA($A$85:$A101)<=MAX(DS_States_Sequence)=TRUE,LOOKUP(COUNTA($A$85:$A101),DS_States_Sequence,DS_States_DataNames),"") -> KS
A102: KY | B102: 1 | C102: =IF(B102<>1,"",SUM(B$85:B102)) -> 18 | D102: 18 | F102: =IF(COUNTA($A$85:$A102)<=MAX(DS_States_Sequence)=TRUE,LOOKUP(COUNTA($A$85:$A102),DS_States_Sequence,DS_States_DataNames),"") -> KY
A103: LA | B103: 1 | C103: =IF(B103<>1,"",SUM(B$85:B103)) -> 19 | D103: 19 | F103: =IF(COUNTA($A$85:$A103)<=MAX(DS_States_Sequence)=TRUE,LOOKUP(COUNTA($A$85:$A103),DS_States_Sequence,DS_States_DataNames),"") -> LA
A104: MA | B104: 1 | C104: =IF(B104<>1,"",SUM(B$85:B104)) -> 20 | D104: 20 | F104: =IF(COUNTA($A$85:$A104)<=MAX(DS_States_Sequence)=TRUE,LOOKUP(COUNTA($A$85:$A104),DS_States_Sequence,DS_States_DataNames),"") -> MA
A105: MD | B105: 1 | C105: =IF(B105<>1,"",SUM(B$85:B105)) -> 21 | D105: 21 | F105: =IF(COUNTA($A$85:$A105)<=MAX(DS_States_Sequence)=TRUE,LOOKUP(COUNTA($A$85:$A105),DS_States_Sequence,DS_States_DataNames),"") -> MD
A106: ME | B106: 1 | C106: =IF(B106<>1,"",SUM(B$85:B106)) -> 22 | D106: 22 | F106: =IF(COUNTA($A$85:$A106)<=MAX(DS_States_Sequence)=TRUE,LOOKUP(COUNTA($A$85:$A106),DS_States_Sequence,DS_States_DataNames),"") -> ME
A107: MI | B107: 1 | C107: =IF(B107<>1,"",SUM(B$85:B107)) -> 23 | D107: 23 | F107: =IF(COUNTA($A$85:$A107)<=MAX(DS_States_Sequence)=TRUE,LOOKUP(COUNTA($A$85:$A107),DS_States_Sequence,DS_States_DataNames),"") -> MI
A108: MN | B108: 1 | C108: =IF(B108<>1,"",SUM(B$85:B108)) -> 24 | D108: 24 | F108: =IF(COUNTA($A$85:$A108)<=MAX(DS_States_Sequence)=TRUE,LOOKUP(COUNTA($A$85:$A108),DS_States_Sequence,DS_States_DataNames),"") -> MN
A109: MO | B109: 1 | C109: =IF(B109<>1,"",SUM(B$85:B109)) -> 25 | D109: 25 | F109: =IF(COUNTA($A$85:$A109)<=MAX(DS_States_Sequence)=TRUE,LOOKUP(COUNTA($A$85:$A109),DS_States_Sequence,DS_States_DataNames),"") -> MO
A110: MS | B110: 1 | C110: =IF(B110<>1,"",SUM(B$85:B110)) -> 26 | D110: 26 | F110: =IF(COUNTA($A$85:$A110)<=MAX(DS_States_Sequence)=TRUE,LOOKUP(COUNTA($A$85:$A110),DS_States_Sequence,DS_States_DataNames),"") -> MS
A111: MT | B111: 1 | C111: =IF(B111<>1,"",SUM(B$85:B111)) -> 27 | D111: 27 | F111: =IF(COUNTA($A$85:$A111)<=MAX(DS_States_Sequence)=TRUE,LOOKUP(COUNTA($A$85:$A111),DS_States_Sequence,DS_States_DataNames),"") -> MT
A112: NC | B112: 1 | C112: =IF(B112<>1,"",SUM(B$85:B112)) -> 28 | D112: 28 | F112: =IF(COUNTA($A$85:$A112)<=MAX(DS_States_Sequence)=TRUE,LOOKUP(COUNTA($A$85:$A112),DS_States_Sequence,DS_States_DataNames),"") -> NC
A113: ND | B113: 1 | C113: =IF(B113<>1,"",SUM(B$85:B113)) -> 29 | D113: 29 | F113: =IF(COUNTA($A$85:$A113)<=MAX(DS_States_Sequence)=TRUE,LOOKUP(COUNTA($A$85:$A113),DS_States_Sequence,DS_States_DataNames),"") -> ND
A114: NE | B114: 1 | C114: =IF(B114<>1,"",SUM(B$85:B114)) -> 30 | D114: 30 | F114: =IF(COUNTA($A$85:$A114)<=MAX(DS_States_Sequence)=TRUE,LOOKUP(COUNTA($A$85:$A114),DS_States_Sequence,DS_States_DataNames),"") -> NE
A115: NH | B115: 1 | C115: =IF(B115<>1,"",SUM(B$85:B115)) -> 31 | D115: 31 | F115: =IF(COUNTA($A$85:$A115)<=MAX(DS_States_Sequence)=TRUE,LOOKUP(COUNTA($A$85:$A115),DS_States_Sequence,DS_States_DataNames),"") -> NH
A116: NJ | B116: 1 | C116: =IF(B116<>1,"",SUM(B$85:B116)) -> 32 | D116: 32 | F116: =IF(COUNTA($A$85:$A116)<=MAX(DS_States_Sequence)=TRUE,LOOKUP(COUNTA($A$85:$A116),DS_States_Sequence,DS_States_DataNames),"") -> NJ
A117: NM | B117: 1 | C117: =IF(B117<>1,"",SUM(B$85:B117)) -> 33 | D117: 33 | F117: =IF(COUNTA($A$85:$A117)<=MAX(DS_States_Sequence)=TRUE,LOOKUP(COUNTA($A$85:$A117),DS_States_Sequence,DS_States_DataNames),"") -> NM
A118: NV | B118: 1 | C118: =IF(B118<>1,"",SUM(B$85:B118)) -> 34 | D118: 34 | F118: =IF(COUNTA($A$85:$A118)<=MAX(DS_States_Sequence)=TRUE,LOOKUP(COUNTA($A$85:$A118),DS_States_Sequence,DS_States_DataNames),"") -> NV
A119: NY | B119: 1 | C119: =IF(B119<>1,"",SUM(B$85:B119)) -> 35 | D119: 35 | F119: =IF(COUNTA($A$85:$A119)<=MAX(DS_States_Sequence)=TRUE,LOOKUP(COUNTA($A$85:$A119),DS_States_Sequence,DS_States_DataNames),"") -> NY
A120: OH | B120: 1 | C120: =IF(B120<>1,"",SUM(B$85:B120)) -> 36 | D120: 36 | F120: =IF(COUNTA($A$85:$A120)<=MAX(DS_States_Sequence)=TRUE,LOOKUP(COUNTA($A$85:$A120),DS_States_Sequence,DS_States_DataNames),"") -> OH
A121: OK | B121: 1 | C121: =IF(B121<>1,"",SUM(B$85:B121)) -> 37 | D121: 37 | F121: =IF(COUNTA($A$85:$A121)<=MAX(DS_States_Sequence)=TRUE,LOOKUP(COUNTA($A$85:$A121),DS_States_Sequence,DS_States_DataNames),"") -> OK
A122: OR | B122: 1 | C122: =IF(B122<>1,"",SUM(B$85:B122)) -> 38 | D122: 38 | F122: =IF(COUNTA($A$85:$A122)<=MAX(DS_States_Sequence)=TRUE,LOOKUP(COUNTA($A$85:$A122),DS_States_Sequence,DS_States_DataNames),"") -> OR
A123: PA | B123: 1 | C123: =IF(B123<>1,"",SUM(B$85:B123)) -> 39 | D123: 39 | F123: =IF(COUNTA($A$85:$A123)<=MAX(DS_States_Sequence)=TRUE,LOOKUP(COUNTA($A$85:$A123),DS_States_Sequence,DS_States_DataNames),"") -> PA
A124: RI | B124: 1 | C124: =IF(B124<>1,"",SUM(B$85:B124)) -> 40 | D124: 40 | F124: =IF(COUNTA($A$85:$A124)<=MAX(DS_States_Sequence)=TRUE,LOOKUP(COUNTA($A$85:$A124),DS_States_Sequence,DS_States_DataNames),"") -> RI
A125: SC | B125: 1 | C125: =IF(B125<>1,"",SUM(B$85:B125)) -> 41 | D125: 41 | F125: =IF(COUNTA($A$85:$A125)<=MAX(DS_States_Sequence)=TRUE,LOOKUP(COUNTA($A$85:$A125),DS_States_Sequence,DS_States_DataNames),"") -> SC
A126: SD | B126: 1 | C126: =IF(B126<>1,"",SUM(B$85:B126)) -> 42 | D126: 42 | F126: =IF(COUNTA($A$85:$A126)<=MAX(DS_States_Sequence)=TRUE,LOOKUP(COUNTA($A$85:$A126),DS_States_Sequence,DS_States_DataNames),"") -> SD
A127: TN | B127: 1 | C127: =IF(B127<>1,"",SUM(B$85:B127)) -> 43 | D127: 43 | F127: =IF(COUNTA($A$85:$A127)<=MAX(DS_States_Sequence)=TRUE,LOOKUP(COUNTA($A$85:$A127),DS_States_Sequence,DS_States_DataNames),"") -> TN
A128: TX | B128: 1 | C128: =IF(B128<>1,"",SUM(B$85:B128)) -> 44 | D128: 44 | F128: =IF(COUNTA($A$85:$A128)<=MAX(DS_States_Sequence)=TRUE,LOOKUP(COUNTA($A$85:$A128),DS_States_Sequence,DS_States_DataNames),"") -> TX
A129: UT | B129: 1 | C129: =IF(B129<>1,"",SUM(B$85:B129)) -> 45 | D129: 45 | F129: =IF(COUNTA($A$85:$A129)<=MAX(DS_States_Sequence)=TRUE,LOOKUP(COUNTA($A$85:$A129),DS_States_Sequence,DS_States_DataNames),"") -> UT
A130: VA | B130: 1 | C130: =IF(B130<>1,"",SUM(B$85:B130)) -> 46 | D130: 46 | F130: =IF(COUNTA($A$85:$A130)<=MAX(DS_States_Sequence)=TRUE,LOOKUP(COUNTA($A$85:$A130),DS_States_Sequence,DS_States_DataNames),"") -> VA
A131: VT | B131: 1 | C131: =IF(B131<>1,"",SUM(B$85:B131)) -> 47 | D131: 47 | F131: =IF(COUNTA($A$85:$A131)<=MAX(DS_States_Sequence)=TRUE,LOOKUP(COUNTA($A$85:$A131),DS_States_Sequence,DS_States_DataNames),"") -> VT
A132: WA | B132: 1 | C132: =IF(B132<>1,"",SUM(B$85:B132)) -> 48 | D132: 48 | F132: =IF(COUNTA($A$85:$A132)<=MAX(DS_States_Sequence)=TRUE,LOOKUP(COUNTA($A$85:$A132),DS_States_Sequence,DS_States_DataNames),"") -> WA
A133: WI | B133: 1 | C133: =IF(B133<>1,"",SUM(B$85:B133)) -> 49 | D133: 49 | F133: =IF(COUNTA($A$85:$A133)<=MAX(DS_States_Sequence)=TRUE,LOOKUP(COUNTA($A$85:$A133),DS_States_Sequence,DS_States_DataNames),"") -> WI
A134: WV | B134: 1 | C134: =IF(B134<>1,"",SUM(B$85:B134)) -> 50 | D134: 50 | F134: =IF(COUNTA($A$85:$A134)<=MAX(DS_States_Sequence)=TRUE,LOOKUP(COUNTA($A$85:$A134),DS_States_Sequence,DS_States_DataNames),"") -> WV
A135: WY | B135: 1 | C135: =IF(B135<>1,"",SUM(B$85:B135)) -> 51 | D135: 51 | F135: =IF(COUNTA($A$85:$A135)<=MAX(DS_States_Sequence)=TRUE,LOOKUP(COUNTA($A$85:$A135),DS_States_Sequence,DS_States_DataNames),"") -> WY
A137: Management Experience Variables (Only menu is incorporated) | E137: 4.A.3.d.(2) | F137: <select one>
A138: # of affordable housing developments to list | D138: not automated -> | E138: 2 | F138: Currently Managing
A139: Minimum total number of units % | D139: not automated -> | E139: 0.5 | F139: Formerly Managed
A140: # of developments needed with min. total # of units % criteria | D140: not automated -> | E140: 1
A141: Min # of Years each | D141: not automated -> | E141: 2
A143: Contact Names | E143: 4.A.3.e.
A144: Authorized Principal Representative contact information | F144: =IF(Authorized_Contact_Middle_Initial<>"",CONCATENATE(Authorized_Contact_First_Name," ",Authorized_Contact_Middle_Initial," ",Authorized_Contact_Last_Name),CONCATENATE(Authorized_Contact_First_Name," ",Authorized_Contact_Last_Name)) -> 
A145: Operational Contact Person Information | F145: =IF(Operational_Contact_Middle_Initial<>"",CONCATENATE(Operational_Contact_First_Name," ",Operational_Contact_Middle_Initial," ",Operational_Contact_Last_Name),CONCATENATE(Operational_Contact_First_Name," ",Operational_Contact_Last_Name)) -> 
A147: All Inclusive List - Development Category (DevCat) | B147: In RFA? | C147: Sequence | D147: Sort | E147: 4.A.4.b.(1) | F147: <select one> | G147: Individual notes used to create an all-inclusive note below, as needed:
A148: New Construction | B148: 1 | C148: =IF(B148<>1,"",SUM(B$148:B148)) -> 1 | D148: 1 | F148: =IF(COUNTA($A$148:$A148)<=MAX(DS_DevCat_Sequence)=TRUE,LOOKUP(COUNTA($A$148:$A148),DS_DevCat_Sequence,DS_DevCat_DataNames),"") -> New Construction | G148: Note (1): | H148: Applicant still needs to select a Development Category at Section 4.A.4.b.(1) above.
A149: Rehabilitation | B149: 1 | C149: =IF(B149<>1,"",SUM(B$148:B149)) -> 2 | D149: 2 | F149: =IF(COUNTA($A$148:$A149)<=MAX(DS_DevCat_Sequence)=TRUE,LOOKUP(COUNTA($A$148:$A149),DS_DevCat_Sequence,DS_DevCat_DataNames),"") -> Rehabilitation | G149: Note (2): | H149: ="Applicant still needs to enter Total Units in Section 4.A.6.a. in the '"&MID(CELL("filename",'Units, Set-Asides, Bldgs'!$A$1),FIND("]",CELL("filename",'Units, Set-Asides, Bldgs'!$A$1))+1,255)&"' worksheet tab. " -> Applicant still needs to enter Total Units in Section 4.A.6.a. in the 'Units, Set-Asides, Bldgs' worksheet tab.
A150: Acquisition and Rehabilitation | B150: 1 | C150: =IF(B150<>1,"",SUM(B$148:B150)) -> 3 | D150: 3 | F150: =IF(COUNTA($A$148:$A150)<=MAX(DS_DevCat_Sequence)=TRUE,LOOKUP(COUNTA($A$148:$A150),DS_DevCat_Sequence,DS_DevCat_DataNames),"") -> Acquisition and Rehabilitation | G150: Note (3): | H150: ="Applicant still needs to complete the Unit Characteristics chart in Section 4.A.4."&'Proposed Development Info'!A52&". below. " -> Applicant still needs to complete the Unit Characteristics chart in Section 4.A.4.d. below.
A151: Redevelopment | B151: 1 | C151: =IF(B151<>1,"",SUM(B$148:B151)) -> 4 | D151: 4 | F151: =IF(COUNTA($A$148:$A151)<=MAX(DS_DevCat_Sequence)=TRUE,LOOKUP(COUNTA($A$148:$A151),DS_DevCat_Sequence,DS_DevCat_DataNames),"") -> Redevelopment | G151: Note (4): | H151: ="Applicant still needs to enter Development Costs in the '"&MID(CELL("filename",'Pro Forma'!$A$1),FIND("]",CELL("filename",'Pro Forma'!$A$1))+1,255)&"' worksheet tab. This calculation uses the Pro Forma amounts in column 1 ('HC ELIGIBLE COSTS')"&" for 'B. TOTAL ACQUISITION COSTS OF EXISTING DEVELOPMENT (excluding land)' [cell H182], 'C. DEVELOPMENT COSTS' [cell H184], and 'Developer Fee on Non-Acquisition Costs' [cell H190]. " -> Applicant still needs to enter Development Costs in the 'Pro Forma' worksheet tab. This calculation uses the Pro Forma amounts in column 1 ('HC ELIGIBLE COSTS') for 'B. TOTAL ACQUISITION COSTS OF EXISTING DEVELOPMENT (excluding land)' [cell H182], 'C. DEVELOPMENT COSTS' [cell H184], and 'Developer Fee on Non-Acquisition Costs' [cell H190].
A152: Acquisition and Redevelopment | B152: 1 | C152: =IF(B152<>1,"",SUM(B$148:B152)) -> 5 | D152: 5 | E152: Menu Tracking | F152: =IF(COUNTA($A$148:$A152)<=MAX(DS_DevCat_Sequence)=TRUE,LOOKUP(COUNTA($A$148:$A152),DS_DevCat_Sequence,DS_DevCat_DataNames),"") -> Acquisition and Redevelopment | G152: Note (5): | H152: ="Applicant still needs to enter Development Costs in the '"&MID(CELL("filename",'Pro Forma'!$A$1),FIND("]",CELL("filename",'Pro Forma'!$A$1))+1,255)&"' worksheet tab. This calculation uses the Pro Forma amounts in column 1 ('HC ELIGIBLE COSTS')"&" for 'B. TOTAL ACQUISITION COSTS OF EXISTING DEVELOPMENT (excluding land)' [cell H182] and 'Developer Fee on Acquisition Costs' [cell H188]. " -> Applicant still needs to enter Development Costs in the 'Pro Forma' worksheet tab. This calculation uses the Pro Forma amounts in column 1 ('HC ELIGIBLE COSTS') for 'B. TOTAL ACQUISITION COSTS OF EXISTING DEVELOPMENT (excluding land)' [cell H182] and 'Developer Fee on Acquisition Costs' [cell H188].
A153: Preservation | C153: =IF(B153<>1,"",SUM(B$148:B153)) ->  | D153: 6 | E153: =IF(OR(IFERROR(MATCH("Rehabilitation",DS_DevCat_DDMenu,0),0)>0,IFERROR(MATCH("Acquisition and Rehabilitation",DS_DevCat_DDMenu,0),0)>0),2,0) -> 2 | F153: =IF(COUNTA($A$148:$A153)<=MAX(DS_DevCat_Sequence)=TRUE,LOOKUP(COUNTA($A$148:$A153),DS_DevCat_Sequence,DS_DevCat_DataNames),"") ->  | G153: Note (6): | H153: ="Applicant still needs to select a Housing Credit Set-Aside Commitment at Section 4.A.6.d.(1) in the '"&MID(CELL("filename",'Units, Set-Asides, Bldgs'!$A$1),FIND("]",CELL("filename",'Units, Set-Asides, Bldgs'!$A$1))+1,255)&"' worksheet tab. " -> Applicant still needs to select a Housing Credit Set-Aside Commitment at Section 4.A.6.d.(1) in the 'Units, Set-Asides, Bldgs' worksheet tab.
A154: Acquisition and Preservation | C154: =IF(B154<>1,"",SUM(B$148:B154)) ->  | D154: 7 | E154: =IF(OR(IFERROR(MATCH("Preservation",DS_DevCat_DDMenu,0),0)>0,IFERROR(MATCH("Acquisition and Preservation",DS_DevCat_DDMenu,0),0)>0),1,0) -> 0 | F154: =IF(COUNTA($A$148:$A154)<=MAX(DS_DevCat_Sequence)=TRUE,LOOKUP(COUNTA($A$148:$A154),DS_DevCat_Sequence,DS_DevCat_DataNames),"") -> 
A156: Development Category Qualifying Criteria and Verification
A157: New Construction:
A158: (a) Minimum Unit Requirement | B158: 0.5 | D158: Units must be classified as New Construction or Redevelopment
A159: (a) Number of new construction units | B159: =SUM('Proposed Development Info'!H$57:H$65) -> 0
A160: (a) Qualifying Unit Measure | B160: =IF(AND(Development_Category="<select one>",Total_Units=0,total_units_in_unit_desc_chart<Total_Units),"(1) (2) (3)",IF(AND(Development_Category="<select one>",Total_Units=0),"(1) (2)",IF(AND(Development_Category="<select one>",total_units_in_unit_desc_chart<Total_Units),"(1) (3)",IF(AND(Total_Units=0,total_units_in_unit_desc_chart<Total_Units),"(2) (3)",IF(Development_Category="<select one>","(1)",IF(Total_Units=0,"(2)",IF(total_units_in_unit_desc_chart<Total_Units,"(3)",SUM('Proposed Development Info'!$H$57:$H$65)/Total_Units))))))) -> (1) (2) | D160: of the Units are New Construction | G160: =IF($B160="(1) (2) (3)",$H$148&" "&$H$149&" "&$H$150,IF($B160="(1) (2)",$H$148&" "&$H$149,IF($B160="(1) (3)",$H$148&" "&$H$150,IF($B160="(2) (3)",$H$149&" "&$H$150,IF($B160="(1)",$H$148,IF($B160="(2)",$H$149,IF($B160="(3)",$H$150,""))))))) -> Applicant still needs to select a Development Category at Section 4.A.4.b.(1) above. Applicant still needs to enter Total Units in Section 4.A.6.a. in the 'Units, Set-Asides, Bldgs' worksheet tab.
A161: (a) Meets the Minimum Unit Requirement | B161: =IF(Development_Category="New Construction",IF(LEFT(Data1!B160,1)="(","TBD",IF(Data1!B160>=B158,"Yes","No")),"NA") -> NA | D161: 1,2,3
A162: Codes for the Notes | B162: =IF(Development_Category="<select one>","(1)","")&IF(Total_Units=0,"(2)","")&IF(OR(total_units_in_unit_desc_chart=0,total_units_in_unit_desc_chart<Total_Units),"(3)","") -> (1)(2)(3) | D162: 1,2,3 | G162: =IF(IFERROR(FIND("(1)",$B162)>0,0)>0,$H$148,"")&IF(IFERROR(FIND("(2)",$B162)>0,0)>0,$H$149,"")&IF(IFERROR(FIND("(3)",$B162)>0,0)>0,$H$150,"")&IF(IFERROR(FIND("(4)",$B162)>0,0)>0,$H$151,"")&IF(IFERROR(FIND("(5)",$B162)>0,0)>0,$H$152,"")&IF(IFERROR(FIND("(6)",$B162)>0,0)>0,$H$153,"This area intentionally left blank.") -> Applicant still needs to select a Development Category at Section 4.A.4.b.(1) above.Applicant still needs to enter Total Units in Section 4.A.6.a. in the 'Units, Set-Asides, Bldgs' worksheet tab. Applicant still needs to complete the Unit Characteristics chart in Section 4.A.4.d. below. This area intentionally left blank.
A164: Redevelopment: | G164: ="If the Development Category is "&IF(OR(Development_Category="Preservation",Development_Category="Acquisition and Preservation"),"Preservation","Redevelopment")&" (with or without Acquisition), provide the Qualification Letter from HUD or RD, dated within "&IF(OR(Development_Category="Preservation",Development_Category="Acquisition and Preservation"),"six","twelve")&" months of Application Deadline which includes the criteria lised in 4.A.4.b.(2)"&IF(OR(Development_Category="Preservation",Development_Category="Acquisition and Preservation"),"(e)","(c)(iii)")&" as Attachment 6?" -> If the Development Category is Redevelopment (with or without Acquisition), provide the Qualification Letter from HUD or RD, dated within twelve months of Application Deadline which includes the criteria lised in 4.A.4.b.(2)(c)(iii) as Attachment 6? | O164: <select one> | Q164: =IF(OR(Development_Category="Redevelopment",Development_Category="Acquisition and Redevelopment",Development_Category="Preservation",Development_Category="Acquisition and Preservation"),T164,0) -> 0 | R164: =IF(AND(Q164<>0,AND(Data1!K164<>"<select one>",Data1!K164<>"")),Q164,0) -> 0 | S164: =CHOOSE(Q164+1,"Not to be included in this RFA","A REQUIRED input field for this RFA","An OPTIONAL input field for this RFA") -> Not to be included in this RFA | T164: 1
A165: (i) Minimum Unit Requirement | B165: 0.5 | D165: Units must be classified as New Construction or Redevelopment
A166: (i) Number of new construction units | B166: =SUM('Proposed Development Info'!H$57:H$65) -> 0
A167: (i) Qualifying Unit Measure | B167: =IF(AND(Development_Category="<select one>",Total_Units=0,total_units_in_unit_desc_chart<Total_Units),"(1) (2) (3)",IF(AND(Development_Category="<select one>",Total_Units=0),"(1) (2)",IF(AND(Development_Category="<select one>",total_units_in_unit_desc_chart<Total_Units),"(1) (3)",IF(AND(Total_Units=0,total_units_in_unit_desc_chart<Total_Units),"(2) (3)",IF(Development_Category="<select one>","(1)",IF(Total_Units=0,"(2)",IF(total_units_in_unit_desc_chart<Total_Units,"(3)",SUM('Proposed Development Info'!$H$57:$H$65)/Total_Units))))))) -> (1) (2) | D167: of the Units are New Construction | G167: =IF($B167="(1) (2) (3)",$H$148&" "&$H$149&" "&$H$150,IF($B167="(1) (2)",$H$148&" "&$H$149,IF($B167="(1) (3)",$H$148&" "&$H$150,IF($B167="(2) (3)",$H$149&" "&$H$150,IF($B167="(1)",$H$148,IF($B167="(2)",$H$149,IF($B167="(3)",$H$150,""))))))) -> Applicant still needs to select a Development Category at Section 4.A.4.b.(1) above. Applicant still needs to enter Total Units in Section 4.A.6.a. in the 'Units, Set-Asides, Bldgs' worksheet tab.
A168: (i) Meets the Minimum Unit Requirement | B168: =IF(OR(Development_Category="Redevelopment",Development_Category="Acquisition and Redevelopment"),IF(LEFT(Data1!B167,1)="(","TBD",IF(Data1!B167>=B165,"Yes","No")),"NA") -> NA | D168: 1,2,3
A169: =" (ii) Meets the Rule Definition (67-"&IF(Funding!L$157=1,"21","48")&".002) for Redevelopment?" -> (ii) Meets the Rule Definition (67-48.002) for Redevelopment? | B169: =IF(OR(Development_Category="Redevelopment",Development_Category="Acquisition and Redevelopment"),IF(DS_DevCat_Rule_Def="Yes","Yes",IF(DS_DevCat_Rule_Def="No","No","Need Response at 4.A.4.b.(2)")),"Not a Redevelopment development") -> Not a Redevelopment development
A170: (iii) Provided the Qualification Letter | B170: =IF(OR(Development_Category="Redevelopment",Development_Category="Acquisition and Redevelopment"),IF(DS_DevCat_Qual_Letter="Yes","Yes",IF(DS_DevCat_Qual_Letter="No","No","Need Response at 4.A.4.b.(2)")),"NA") -> NA
A171: Codes for the Notes | B171: =IF(Development_Category="<select one>","(1)","")&IF(Total_Units=0,"(2)","")&IF(total_units_in_unit_desc_chart<Total_Units,"(3)","") -> (1)(2) | D171: 1,2,3 | G171: =IF(IFERROR(FIND("(1)",$B171)>0,0)>0,$H$148,"")&IF(IFERROR(FIND("(2)",$B171)>0,0)>0,$H$149,"")&IF(IFERROR(FIND("(3)",$B171)>0,0)>0,$H$150,"")&IF(IFERROR(FIND("(4)",$B171)>0,0)>0,$H$151,"")&IF(IFERROR(FIND("(5)",$B171)>0,0)>0,$H$152,"")&IF(IFERROR(FIND("(6)",$B171)>0,0)>0,$H$153,"This area intentionally left blank.") -> Applicant still needs to select a Development Category at Section 4.A.4.b.(1) above.Applicant still needs to enter Total Units in Section 4.A.6.a. in the 'Units, Set-Asides, Bldgs' worksheet tab. This area intentionally left blank.
A173: Preservation: | G173: If the Development Category is Preservation (with or without Acquisition), is the existing affordable housing development at least 75 percent occupied as of the Application Deadline? | O173: <select one> | Q173: =IF(OR(Development_Category="Preservation",Development_Category="Acquisition and Preservation"),T173,0) -> 0 | R173: =IF(AND(Q173<>0,AND(Data1!K173<>"<select one>",Data1!K173<>"")),Q173,0) -> 0 | S173: =CHOOSE(Q173+1,"Not to be included in this RFA","A REQUIRED input field for this RFA","An OPTIONAL input field for this RFA") -> Not to be included in this RFA | T173: 1
A174: (a) Minimum Unit Requirement | B174: 0.5 | D174: Units must be classified as New Construction or Redevelopment
A175: (a) Number of new construction units | B175: =SUM('Proposed Development Info'!H$57:H$65) -> 0
A176: (a) Qualifying Unit Measure | B176: =IF(AND(Development_Category="<select one>",Total_Units=0,total_units_in_unit_desc_chart<Total_Units),"(1) (2) (3)",IF(AND(Development_Category="<select one>",Total_Units=0),"(1) (2)",IF(AND(Development_Category="<select one>",total_units_in_unit_desc_chart<Total_Units),"(1) (3)",IF(AND(Total_Units=0,total_units_in_unit_desc_chart<Total_Units),"(2) (3)",IF(Development_Category="<select one>","(1)",IF(Total_Units=0,"(2)",IF(total_units_in_unit_desc_chart<Total_Units,"(3)",SUM('Proposed Development Info'!$H$57:$H$65)/Total_Units))))))) -> (1) (2) | D176: of the Units are New Construction | G176: =IF($B176="(1) (2) (3)",$H$148&" "&$H$149&" "&$H$150,IF($B176="(1) (2)",$H$148&" "&$H$149,IF($B176="(1) (3)",$H$148&" "&$H$150,IF($B176="(2) (3)",$H$149&" "&$H$150,IF($B176="(1)",$H$148,IF($B176="(2)",$H$149,IF($B176="(3)",$H$150,""))))))) -> Applicant still needs to select a Development Category at Section 4.A.4.b.(1) above. Applicant still needs to enter Total Units in Section 4.A.6.a. in the 'Units, Set-Asides, Bldgs' worksheet tab.
A177: (a) Meets the Minimum Unit Requirement | B177: =IF(OR(Development_Category="Preservation",Development_Category="Acquisition and Preservation"),IF(LEFT(Data1!B176,1)="(","TBD",IF(Data1!B176<B174,"Yes","No")),"NA") -> NA | D177: 1,2,3
A178: =" (b) Meets the Rule Definition (67-"&IF(Funding!L$157=1,"21","48")&".002) for Preservation & Rehab?" -> (b) Meets the Rule Definition (67-48.002) for Preservation & Rehab? | B178: =IF(OR(Development_Category="Preservation",Development_Category="Acquisition and Preservation"),IF(Data1!O$196="Yes","Yes",IF(Data1!O$196="No","No","Need Response at 4.A.4.b.(2)")),"Not a Preservation development") -> Not a Preservation development
A179: (c)(i) Minimuim Rehabilitation Expenditures | B179: 0.2 | D179: of adjusted basis of acquired building
A180: (c)(i) Rehabilitation Expenditures | B180: =IF(AND(Development_Category="<select one>",N(Development_Cost_eligible)-N(Acquisition_eligible)+N(Developer_fee_non_acq_eligible)=0),"(1) (4)",IF(Development_Category="<select one>","(1)",IF(N(Development_Cost_eligible)-N(Acquisition_eligible)+N(Developer_fee_non_acq_eligible)=0,"(4)",N(Development_Cost_eligible)-N(Acquisition_eligible)+N(Developer_fee_non_acq_eligible)))) -> (1) (4) | D180: 1,4
A181: (c)(i) Adjusted Basis of Acquired Building | B181: =IF(N('Pro Forma'!H$182)=0,"(5)",'Pro Forma'!H$182+'Pro Forma'!H$188) -> (5) | D181: 5
A182: =" (c)(i) "&TEXT(B179,"0%")&" of adjusted basis of acquired building" -> (c)(i) 20% of adjusted basis of acquired building | B182: =ROUND(IF(LEFT(B181,1)="(",0,B181)*B179,2) -> 0
A183: (c)(i) Ratio of Rehab Exp to 20% of Adj Basis | B183: =IF(OR(LEFT(B180,1)="(",LEFT(B181,1)="("),IF(IFERROR(FIND("(1)",B180)>0,0)>0,"(1)","")&IF(IFERROR(FIND("(4)",B180)>0,0)>0,"(4)","")&IF(IFERROR(FIND("(5)",B181)>0,0)>0,"(5)",""),B180/B182) -> (1)(4)(5) | D183: 1,4,5 | G183: =IF($B183="(1) (4) (5)",$H$148&" "&$H$151&" "&$H$152,IF($B183="(1) (4)",$H$148&" "&$H$151,IF($B183="(1) (5)",$H$148&" "&$H$152,IF($B183="(4) (5)",$H$151&" "&$H$152,IF($B183="(1)",$H$148,IF($B183="(4)",$H$151,IF($B183="(5)",$H$152,""))))))) -> 
A184: (c)(i) Meets the Rehab Expenditure requirement? | B184: =IF(OR(Development_Category="Preservation",Development_Category="Acquisition and Preservation"),IF(AND(IF(LEFT(Data1!B180,1)="(",0,Data1!B180)>0,IF(LEFT(Data1!B180,1)="(",0,Data1!B180)>=B182),"Yes","No"),"NA") -> NA
A185: (c)(ii) Minimum Qualified Basis of Rehabilitatin Expenditures | B185: 25000 | D185: per low-income unit
A186: (c)(ii) Qualifying Basis Boost Factor | B186: =IF(Name_of_proposed_Development="",1,IF(Development_Category="<select one>","(1)",IF(OR(AND(Multiphase_subsequent<>"Yes",App_number_first_phase<>""),AND(Small_Area_DDA="Yes",SADDA_ZCTA_1<>""),AND(DDA_nonmetro="Yes",DDA_nonmetro_name=County),AND(QCT="Yes",QCT_number<>""),AND(Geo_Area_of_Opp_boost="Yes",GAO_Number1<>""),LGAO_Number="Yes",PHA_Area_of_Opp_boost="Yes"),1.3,1))) -> 1 | D186: 1,
A187: (c)(ii) Total Set-Aside Percentage | B187: =IF(Name_of_proposed_Development="","",IF(AND(Development_Category="<select one>",Minimum_SetAside_per_Sec_42="<select one>"),"(1) (6)",IF(Development_Category="<select one>","(1)",IF(Minimum_SetAside_per_Sec_42="<select one>","(6)",IF(Minimum_SetAside_per_Sec_42="Average Income Test",AIT_HC_SA_Percent,NonAIT_HC_SA_Percent))))) ->  | D187: 1,6
A188: (c)(ii) Number of HC Set-Aside Units | B188: =IF(Name_of_proposed_Development="","",IF(AND(Development_Category="<select one>",Minimum_SetAside_per_Sec_42="<select one>"),"(1) (6)",IF(Development_Category="<select one>","(1)",IF(Minimum_SetAside_per_Sec_42="<select one>","(6)",IF(Minimum_SetAside_per_Sec_42="Average Income Test",total_HC_units_avg_inc,total_HC_units_NonAIT))))) ->  | D188: 1,6
A189: (c)(ii) Qualified Basis of Rehabilitatin Expenditures | B189: =IF(AND(Development_Category="<select one>",N(Development_Cost_eligible)-N(Acquisition_eligible)+N(Developer_fee_non_acq_eligible)=0,Minimum_SetAside_per_Sec_42="<select one>"),"(1) (4) (6)",IF(AND(Development_Category="<select one>",N(Development_Cost_eligible)-N(Acquisition_eligible)+N(Developer_fee_non_acq_eligible)=0),"(1) (4)",IF(AND(Development_Category="<select one>",Minimum_SetAside_per_Sec_42="<select one>"),"(1) (6)",IF(AND(N(Development_Cost_eligible)-N(Acquisition_eligible)+N(Developer_fee_non_acq_eligible)=0,Minimum_SetAside_per_Sec_42="<select one>"),"(4) (6)",IF(Development_Category="<select one>","(1)",IF(N(Development_Cost_eligible)-N(Acquisition_eligible)+N(Developer_fee_non_acq_eligible)=0,"(4)",IF(Minimum_SetAside_per_Sec_42="<select one>","(6)",IF(OR(AND(Funding!$L$164<>0,Multiphase_subsequent="Yes"),AND(Funding!$L$169<>0,Small_Area_DDA="Yes"),AND(Funding!$L$177<>0,DDA_nonmetro="Yes"),AND(Funding!$L$182<>0,QCT="Yes"),AND(Funding!$L$191<>0,Geo_Area_of_Opp_boost="Yes"),AND(Funding!$L$200<>0,Funding!E$200="Yes"),AND(Funding!$L$203<>0,Funding!E$203="Yes")),1.3,1)*B180*MAX(N(B187),0)))))))) -> (1) (4) (6) | D189: 1,4,6
A190: (c)(ii) Qualified Basis of Rehabilitatin Expenditures Per HC Unit | B190: =IF(LEFT(B189,1)="(",B189,IF(MAX('Units, Set-Asides, Bldgs'!F$31,total_HC_units_avg_inc)=0,0,B189/MAX('Units, Set-Asides, Bldgs'!F$31,total_HC_units_avg_inc))) -> (1) (4) (6) | G190: =IF($B189="(1) (4) (6)",$H$148&" "&$H$151&" "&$H$153,IF($B189="(1) (4)",$H$148&" "&$H$151,IF($B189="(1) (6)",$H$148&" "&$H$153,IF($B189="(4) (6)",$H$151&" "&$H$153,IF($B189="(1)",$H$148,IF($B189="(4)",$H$151,IF($B189="(6)",$H$153,""))))))) -> Applicant still needs to select a Development Category at Section 4.A.4.b.(1) above. Applicant still needs to enter Development Costs in the 'Pro Forma' worksheet tab. This calculation uses the Pro Forma amounts in column 1 ('HC ELIGIBLE COSTS') for 'B. TOTAL ACQUISITION COSTS OF EXISTING DEVELOPMENT (excluding land)' [cell H182], 'C. DEVELOPMENT COSTS' [cell H184], and 'Developer Fee on Non-Acquisition Costs' [cell H190]. Applicant still needs to select a Housing Credit Set-Aside Commitment at Section 4.A.6.d.(1) in the 'Units, Set-Asides, Bldgs' worksheet tab.
A191: (c)(ii) Meets the Qualified Basis requirement? | B191: =IF(OR(Development_Category="Preservation",Development_Category="Acquisition and Preservation"),IF(IF(LEFT(Data1!B190,1)="(",0,Data1!B190)>=B185,"Yes","No"),"NA") -> NA
A192: (d) Meets the minimum occupancy rate for existing development? | B192: =IF(OR(Development_Category="Preservation",Development_Category="Acquisition and Preservation"),IF(Data1!O$173="Yes","Yes",IF(Data1!O$173="No","No","Need Response at 4.A.4.b.(2)")),"NA") -> NA
A193: (e) Provided the Qualification Letter | B193: =IF(OR(Development_Category="Preservation",Development_Category="Acquisition and Preservation"),IF(Data1!O$164="Yes","Yes",IF(Data1!O$164="No","No","Need Response at 4.A.4.b.(2)")),"NA") -> NA
A194: Codes for the Notes | B194: =IF(Development_Category="<select one>","(1)","")&IF(Total_Units=0,"(2)","")&IF(total_units_in_unit_desc_chart<Total_Units,"(3)","")&IF(N(Development_Cost_eligible)-N(Acquisition_eligible)+N(Developer_fee_non_acq_eligible)=0,"(4)","")&IF(Minimum_SetAside_per_Sec_42="<select one>","(6)","") -> (1)(2)(4)(6) | D194: 1,2,3,4,5,6 | G194: =IF(IFERROR(FIND("(1)",$B194)>0,0)>0,$H$148,"")&IF(IFERROR(FIND("(2)",$B194)>0,0)>0,$H$149,"")&IF(IFERROR(FIND("(3)",$B194)>0,0)>0,$H$150,"")&IF(IFERROR(FIND("(4)",$B194)>0,0)>0,$H$151,"")&IF(IFERROR(FIND("(5)",$B194)>0,0)>0,$H$152,"")&IF(IFERROR(FIND("(6)",$B194)>0,0)>0,$H$153,"This area intentionally left blank.") -> Applicant still needs to select a Development Category at Section 4.A.4.b.(1) above.Applicant still needs to enter Total Units in Section 4.A.6.a. in the 'Units, Set-Asides, Bldgs' worksheet tab. Applicant still needs to enter Development Costs in the 'Pro Forma' worksheet tab. This calculation uses the Pro Forma amounts in column 1 ('HC ELIGIBLE COSTS') for 'B. TOTAL ACQUISITION COSTS OF EXISTING DEVELOPMENT (excluding land)' [cell H182], 'C. DEVELOPMENT COSTS' [cell H184], and 'Developer Fee on Non-Acquisition Costs' [cell H190]. Applicant still needs to select a Housing Credit Set-Aside Commitment at Section 4.A.6.d.(1) in the 'Units, Set-Asides, Bldgs' worksheet tab.
A196: Rehabilitation: | G196: ="If the Development Category is "&IF(OR(Development_Category="Preservation",Development_Category="Acquisition and Preservation"),"Preservation",IF(OR(Development_Category="Redevelopment",Development_Category="Acquisition and Redevelopment"),"Redevelopment","Rehabilitation"))&" (with or without Acquisition), does the Development meet the definition of "&IF(OR(Development_Category="Preservation",Development_Category="Acquisition and Preservation"),"Preservation and Rehabilitation",IF(OR(Development_Category="Rehabilitation",Development_Category="Acquisition and Rehabilitation"),"Rehabilitation","Redevelopment"))&" in Rule Chapter 67.48.002, F.A.C.?" -> If the Development Category is Rehabilitation (with or without Acquisition), does the Development meet the definition of Redevelopment in Rule Chapter 67.48.002, F.A.C.? | O196: <select one> | Q196: =IF(OR(Development_Category="Rehabilitation",Development_Category="Acquisition and Rehabilitation",Development_Category="Redevelopment",Development_Category="Acquisition and Redevelopment",Development_Category="Preservation",Development_Category="Acquisition and Preservation"),T196,0) -> 0 | R196: =IF(AND(Q196<>0,AND(Data1!K196<>"<select one>",Data1!K196<>"")),Q196,0) -> 0 | S196: =CHOOSE(Q196+1,"Not to be included in this RFA","A REQUIRED input field for this RFA","An OPTIONAL input field for this RFA") -> Not to be included in this RFA | T196: 1
A197: (i) Minimum Unit Requirement | B197: 0.5 | D197: Units must be classified as New Construction or Redevelopment
A198: (i) Number of new construction units | B198: =SUM('Proposed Development Info'!H$57:H$65) -> 0
A199: (i) Qualifying Unit Measure | B199: =IF(AND(Development_Category="<select one>",Total_Units=0,total_units_in_unit_desc_chart<Total_Units),"(1) (2) (3)",IF(AND(Development_Category="<select one>",Total_Units=0),"(1) (2)",IF(AND(Development_Category="<select one>",total_units_in_unit_desc_chart<Total_Units),"(1) (3)",IF(AND(Total_Units=0,total_units_in_unit_desc_chart<Total_Units),"(2) (3)",IF(Development_Category="<select one>","(1)",IF(Total_Units=0,"(2)",IF(total_units_in_unit_desc_chart<Total_Units,"(3)",SUM('Proposed Development Info'!$H$57:$H$65)/Total_Units))))))) -> (1) (2) | D199: of the Units are New Construction | G199: =IF($B199="(1) (2) (3)",$H$148&" "&$H$149&" "&$H$150,IF($B199="(1) (2)",$H$148&" "&$H$149,IF($B199="(1) (3)",$H$148&" "&$H$150,IF($B199="(2) (3)",$H$149&" "&$H$150,IF($B199="(1)",$H$148,IF($B199="(2)",$H$149,IF($B199="(3)",$H$150,""))))))) -> Applicant still needs to select a Development Category at Section 4.A.4.b.(1) above. Applicant still needs to enter Total Units in Section 4.A.6.a. in the 'Units, Set-Asides, Bldgs' worksheet tab.
A200: (i) Meets the Minimum Unit Requirement | B200: =IF(OR(Development_Category="Rehabilitation",Development_Category="Acquisition and Rehabilitation"),IF(LEFT(Data1!B199,1)="(","TBD",IF(Data1!B199<B197,"Yes","No")),"NA") -> NA | D200: 1,2,3
A201: =" (ii) Meets the Rule Definition (67-"&IF(Funding!L$157=1,"21","48")&".002) for Rehabilitation?" -> (ii) Meets the Rule Definition (67-48.002) for Rehabilitation? | B201: =IF(OR(Development_Category="Rehabilitation",Development_Category="Acquisition and Rehabilitation"),IF(Data1!O$196="Yes","Yes",IF(Data1!O$196="No","No","Need Response at 4.A.4.b.(2)")),"Not a Rehabilitation development") -> Not a Rehabilitation development
A202: (iii)(A) Minimuim Rehabilitation Expenditures | B202: 0.2 | D202: of adjusted basis of acquired building
A203: (iii)(A) Rehabilitation Expenditures | B203: =IF(AND(Development_Category="<select one>",N(Development_Cost_eligible)-N(Acquisition_eligible)+N(Developer_fee_non_acq_eligible)=0),"(1) (4)",IF(Development_Category="<select one>","(1)",IF(N(Development_Cost_eligible)-N(Acquisition_eligible)+N(Developer_fee_non_acq_eligible)=0,"(4)",N(Development_Cost_eligible)-N(Acquisition_eligible)+N(Developer_fee_non_acq_eligible)))) -> (1) (4) | D203: 1,4
A204: (iii)(A) Adjusted Basis of Acquired Building | B204: =IF(N('Pro Forma'!H$182)=0,"(5)",'Pro Forma'!H$182+'Pro Forma'!H$188) -> (5) | D204: 5
A205: =" (iii)(A) "&TEXT(B202,"0%")&" of adjusted basis of acquired building" -> (iii)(A) 20% of adjusted basis of acquired building | B205: =ROUND(IF(LEFT(B204,1)="(",0,B204)*B202,2) -> 0
A206: (iii)(A) Ratio of Rehab Exp to 20% of Adj Basis | B206: =IF(OR(LEFT(B203,1)="(",LEFT(B204,1)="("),IF(IFERROR(FIND("(1)",B203)>0,0)>0,"(1)","")&IF(IFERROR(FIND("(4)",B203)>0,0)>0,"(4)","")&IF(IFERROR(FIND("(5)",B204)>0,0)>0,"(5)",""),B203/B205) -> (1)(4)(5) | D206: 1,4,5 | G206: =IF($B206="(1) (4) (5)",$H$148&" "&$H$151&" "&$H$152,IF($B206="(1) (4)",$H$148&" "&$H$151,IF($B206="(1) (5)",$H$148&" "&$H$152,IF($B206="(4) (5)",$H$151&" "&$H$152,IF($B206="(1)",$H$148,IF($B206="(4)",$H$151,IF($B206="(5)",$H$152,""))))))) -> 
A207: (iii)(A) Meets the Rehab Expenditure requirement? | B207: =IF(OR(Development_Category="Rehabilitation",Development_Category="Acquisition and Rehabilitation"),IF(AND(IF(LEFT(Data1!B203,1)="(",0,Data1!B203)>0,IF(LEFT(Data1!B203,1)="(",0,Data1!B203)>=B205),"Yes","No"),"NA") -> NA
A208: (iii)(B) Minimum Qualified Basis of Rehabilitatin Expenditures | B208: 25000 | D208: per low-income unit
A209: (iii)(B) Qualifying Basis Boost Factor | B209: =IF(Name_of_proposed_Development="",1,IF(Development_Category="<select one>","(1)",IF(OR(AND(Multiphase_subsequent<>"Yes",App_number_first_phase<>""),AND(Small_Area_DDA="Yes",SADDA_ZCTA_1<>""),AND(DDA_nonmetro="Yes",DDA_nonmetro_name=County),AND(QCT="Yes",QCT_number<>""),AND(Geo_Area_of_Opp_boost="Yes",GAO_Number1<>""),LGAO_Number="Yes",PHA_Area_of_Opp_boost="Yes"),1.3,1))) -> 1 | D209: 1,
A210: (iii)(B) Total Set-Aside Percentage | B210: =IF(Name_of_proposed_Development="","",IF(AND(Development_Category="<select one>",Minimum_SetAside_per_Sec_42="<select one>"),"(1) (6)",IF(Development_Category="<select one>","(1)",IF(Minimum_SetAside_per_Sec_42="<select one>","(6)",IF(Minimum_SetAside_per_Sec_42="Average Income Test",AIT_HC_SA_Percent,NonAIT_HC_SA_Percent))))) ->  | D210: 1,6
... 396 more rows

Sheet Data2 (hidden)
A1: Development Finance Data Tab:
A3: Automating Funding Tab to Pro Forma Tab
B4: FHFC Sources | D4: Original Request Amounts | F4: Source Label | G4: Max Rqst Amts | I4: Adjusted Request Amounts | Q4: Adjusted Sources
A5: =IF(B5="Workforce",1,IF(B5="SAIL",2,IF(B5="ELI",3,IF(B5="HOME",4,IF(B5="HOME-ARP",5,IF(B5="Grant",6,IF(B5="NHTF",7,IF(B5="TBD",8,"")))))))) ->  | B5: =IF(N(Workforce_Request_Amount)>0,"Workforce",IF(N(SAIL_Request_Amount)>0,"SAIL",IF(N(ELI_Request_Amount)>0,"ELI",IF(N(HOME_Request_Amount)>0,"HOME",IF(N(HOME_ARP_Request_Amount)>0,"HOME-ARP",IF(N(Grant_Request_Amount)>0,"Grant",IF(N(NHTF_Request_Amount)>0,"NHTF",IF(N(TBD_Request_Amount)>0,"TBD","")))))))) ->  | D5: =CHOOSE(N(A5)+1,"",N(Workforce_Request_Amount),N(SAIL_Request_Amount),N(ELI_Request_Amount),N(HOME_Request_Amount),N(HOME_ARP_Request_Amount),N(Grant_Request_Amount),N(NHTF_Request_Amount),N(TBD_Request_Amount),"") ->  | F5: =CHOOSE(N(A5)+1,"Enter request on Funding Tab","FHFC - Workforce","FHFC - SAIL","FHFC - SAIL ELI","FHFC - HOME","FHFC - HOME-ARP","FHFC - Grant","FHFC - NHTF","FHFC - TBD","") -> Enter request on Funding Tab | G5: =CHOOSE(N(A5)+1,"",N(Max_Workforce),N(Max_SAIL),N(Max_ELI),N(Max_HOME),N(Max_ARP),N(Max_Grant),N(Max_NHTF),N(Max_TBD),"") ->  | I5: =IF(N(DS_FHFC_Source_1_Amt)>N(DS_FHFC_Source_1_Max_Amt),"The "&TEXT(DS_FHFC_Source_1_Name,"0")&" request amount has been adjusted to the Maximum of "&TEXT(N(DS_FHFC_Source_1_Max_Amt),"$#,##0")&".","") ->  | Q5: =IF(N(DS_FHFC_Source_1_Amt)>N(DS_FHFC_Source_1_Max_Amt),DS_FHFC_Source_1_Label,"") -> 
A6: =IF(B6="Workforce",1,IF(B6="SAIL",2,IF(B6="ELI",3,IF(B6="HOME",4,IF(B6="HOME-ARP",5,IF(B6="Grant",6,IF(B6="NHTF",7,IF(B6="TBD",8,"")))))))) ->  | B6: =CHOOSE(N(A5)+1,"",IF(N(SAIL_Request_Amount)>0,"SAIL",IF(N(ELI_Request_Amount)>0,"ELI",IF(N(HOME_Request_Amount)>0,"HOME",IF(N(HOME_ARP_Request_Amount)>0,"HOME-ARP",IF(N(Grant_Request_Amount)>0,"Grant",IF(N(NHTF_Request_Amount)>0,"NHTF",IF(N(TBD_Request_Amount)>0,"TBD",""))))))),IF(N(ELI_Request_Amount)>0,"ELI",IF(N(HOME_Request_Amount)>0,"HOME",IF(N(HOME_ARP_Request_Amount)>0,"HOME-ARP",IF(N(Grant_Request_Amount)>0,"Grant",IF(N(NHTF_Request_Amount)>0,"NHTF",IF(N(TBD_Request_Amount)>0,"TBD","")))))),IF(N(HOME_Request_Amount)>0,"HOME",IF(N(HOME_ARP_Request_Amount)>0,"HOME-ARP",IF(N(Grant_Request_Amount)>0,"Grant",IF(N(NHTF_Request_Amount)>0,"NHTF",IF(N(TBD_Request_Amount)>0,"TBD",""))))),IF(N(HOME_ARP_Request_Amount)>0,"HOME-ARP",IF(N(Grant_Request_Amount)>0,"Grant",IF(N(NHTF_Request_Amount)>0,"NHTF",IF(N(TBD_Request_Amount)>0,"TBD","")))),IF(N(Grant_Request_Amount)>0,"Grant",IF(N(NHTF_Request_Amount)>0,"NHTF",IF(N(TBD_Request_Amount)>0,"TBD",""))),IF(N(NHTF_Request_Amount)>0,"NHTF",IF(N(TBD_Request_Amount)>0,"TBD","")),IF(N(TBD_Request_Amount)>0,"TBD",""),"") ->  | D6: =CHOOSE(N(A6)+1,"",N(Workforce_Request_Amount),N(SAIL_Request_Amount),N(ELI_Request_Amount),N(HOME_Request_Amount),N(HOME_ARP_Request_Amount),N(Grant_Request_Amount),N(NHTF_Request_Amount),N(TBD_Request_Amount),"") ->  | F6: =CHOOSE(N(A6)+1,"Enter request on Funding Tab","FHFC - Workforce","FHFC - SAIL","FHFC - SAIL ELI","FHFC - HOME","FHFC - HOME-ARP","FHFC - Grant","FHFC - NHTF","FHFC - TBD","") -> Enter request on Funding Tab | G6: =CHOOSE(N(A6)+1,"",N(Max_Workforce),N(Max_SAIL),N(Max_ELI),N(Max_HOME),N(Max_ARP),N(Max_Grant),N(Max_NHTF),N(Max_TBD),"") ->  | I6: =IF(N(DS_FHFC_Source_2_Amt)>N(DS_FHFC_Source_2_Max_Amt),"The "&TEXT(DS_FHFC_Source_2_Name,"0")&" request amount has been adjusted to the Maximum of "&TEXT(N(DS_FHFC_Source_2_Max_Amt),"$#,##0")&".","") ->  | Q6: =IF(N(DS_FHFC_Source_2_Amt)>N(DS_FHFC_Source_2_Max_Amt),DS_FHFC_Source_2_Label,"") -> 
B7: =CHOOSE(N(A6)+1,"",IF(N(SAIL_Request_Amount)>0,"SAIL",IF(N(ELI_Request_Amount)>0,"ELI",IF(N(HOME_Request_Amount)>0,"HOME",IF(N(HOME_ARP_Request_Amount)>0,"HOME-ARP",IF(N(Grant_Request_Amount)>0,"Grant",IF(N(NHTF_Request_Amount)>0,"NHTF",IF(N(TBD_Request_Amount)>0,"TBD",""))))))),IF(N(ELI_Request_Amount)>0,"ELI",IF(N(HOME_Request_Amount)>0,"HOME",IF(N(HOME_ARP_Request_Amount)>0,"HOME-ARP",IF(N(Grant_Request_Amount)>0,"Grant",IF(N(NHTF_Request_Amount)>0,"NHTF",IF(N(TBD_Request_Amount)>0,"TBD","")))))),IF(N(HOME_Request_Amount)>0,"HOME",IF(N(HOME_ARP_Request_Amount)>0,"HOME-ARP",IF(N(Grant_Request_Amount)>0,"Grant",IF(N(NHTF_Request_Amount)>0,"NHTF",IF(N(TBD_Request_Amount)>0,"TBD",""))))),IF(N(HOME_ARP_Request_Amount)>0,"HOME-ARP",IF(N(Grant_Request_Amount)>0,"Grant",IF(N(NHTF_Request_Amount)>0,"NHTF",IF(N(TBD_Request_Amount)>0,"TBD","")))),IF(N(Grant_Request_Amount)>0,"Grant",IF(N(NHTF_Request_Amount)>0,"NHTF",IF(N(TBD_Request_Amount)>0,"TBD",""))),IF(N(NHTF_Request_Amount)>0,"NHTF",IF(N(TBD_Request_Amount)>0,"TBD","")),IF(N(TBD_Request_Amount)>0,"TBD",""),"") ->  | D7: =CHOOSE(N(A7)+1,"",N(Workforce_Request_Amount),N(SAIL_Request_Amount),N(ELI_Request_Amount),N(HOME_Request_Amount),N(HOME_ARP_Request_Amount),N(Grant_Request_Amount),N(NHTF_Request_Amount),N(TBD_Request_Amount),"") ->  | F7: =CHOOSE(N(A7)+1,"Enter request on Funding Tab","FHFC - Workforce","FHFC - SAIL","FHFC - SAIL ELI","FHFC - HOME","FHFC - HOME-ARP","FHFC - Grant","FHFC - NHTF","FHFC - TBD","") -> Enter request on Funding Tab | G7: =CHOOSE(N(A7)+1,"",N(Max_Workforce),N(Max_SAIL),N(Max_ELI),N(Max_HOME),N(Max_ARP),N(Max_Grant),N(Max_NHTF),N(Max_TBD),"") ->  | I7: =IF(N(DS_FHFC_Source_3_Amt)>N(DS_FHFC_Source_3_Max_Amt),"The "&TEXT(DS_FHFC_Source_3_Name,"0")&" request amount has been adjusted to the Maximum of "&TEXT(N(DS_FHFC_Source_3_Max_Amt),"$#,##0")&".","") ->  | Q7: =IF(N(DS_FHFC_Source_3_Amt)>N(DS_FHFC_Source_3_Max_Amt),DS_FHFC_Source_3_Label,"") -> 
B8: =CHOOSE(N(A7)+1,"",IF(N(SAIL_Request_Amount)>0,"SAIL",IF(N(ELI_Request_Amount)>0,"ELI",IF(N(HOME_Request_Amount)>0,"HOME",IF(N(HOME_ARP_Request_Amount)>0,"HOME-ARP",IF(N(Grant_Request_Amount)>0,"Grant",IF(N(NHTF_Request_Amount)>0,"NHTF",IF(N(TBD_Request_Amount)>0,"TBD",""))))))),IF(N(ELI_Request_Amount)>0,"ELI",IF(N(HOME_Request_Amount)>0,"HOME",IF(N(HOME_ARP_Request_Amount)>0,"HOME-ARP",IF(N(Grant_Request_Amount)>0,"Grant",IF(N(NHTF_Request_Amount)>0,"NHTF",IF(N(TBD_Request_Amount)>0,"TBD","")))))),IF(N(HOME_Request_Amount)>0,"HOME",IF(N(HOME_ARP_Request_Amount)>0,"HOME-ARP",IF(N(Grant_Request_Amount)>0,"Grant",IF(N(NHTF_Request_Amount)>0,"NHTF",IF(N(TBD_Request_Amount)>0,"TBD",""))))),IF(N(HOME_ARP_Request_Amount)>0,"HOME-ARP",IF(N(Grant_Request_Amount)>0,"Grant",IF(N(NHTF_Request_Amount)>0,"NHTF",IF(N(TBD_Request_Amount)>0,"TBD","")))),IF(N(Grant_Request_Amount)>0,"Grant",IF(N(NHTF_Request_Amount)>0,"NHTF",IF(N(TBD_Request_Amount)>0,"TBD",""))),IF(N(NHTF_Request_Amount)>0,"NHTF",IF(N(TBD_Request_Amount)>0,"TBD","")),IF(N(TBD_Request_Amount)>0,"TBD",""),"") ->  | D8: =CHOOSE(N(A8)+1,"",N(Workforce_Request_Amount),N(SAIL_Request_Amount),N(ELI_Request_Amount),N(HOME_Request_Amount),N(HOME_ARP_Request_Amount),N(Grant_Request_Amount),N(NHTF_Request_Amount),N(TBD_Request_Amount),"") ->  | F8: =CHOOSE(N(A8)+1,"Enter request on Funding Tab","FHFC - Workforce","FHFC - SAIL","FHFC - SAIL ELI","FHFC - HOME","FHFC - HOME-ARP","FHFC - Grant","FHFC - NHTF","FHFC - TBD","") -> Enter request on Funding Tab | G8: =CHOOSE(N(A8)+1,"",N(Max_Workforce),N(Max_SAIL),N(Max_ELI),N(Max_HOME),N(Max_ARP),N(Max_Grant),N(Max_NHTF),N(Max_TBD),"") ->  | I8: =IF(N(DS_FHFC_Source_4_Amt)>N(DS_FHFC_Source_4_Max_Amt),"The "&TEXT(DS_FHFC_Source_4_Name,"0")&" request amount has been adjusted to the Maximum of "&TEXT(N(DS_FHFC_Source_4_Max_Amt),"$#,##0")&".","") ->  | Q8: =IF(N(DS_FHFC_Source_4_Amt)>N(DS_FHFC_Source_4_Max_Amt),DS_FHFC_Source_4_Label,"") -> 
A10: **9% HC | B10: =IF(N(Competitive_HC_Request_Amount)>0,"Competitive HC","") ->  | D10: =IF(B10="Competitive HC",N(Competitive_HC_Request_Amount),"") ->  | F10: =IF(B10="Competitive HC","FHFC - 9% HC","Enter Request on Funding Tab") -> Enter Request on Funding Tab | G10: =IF(B10="Competitive HC",N(Max_Competitive_HC),"") ->  | I10: =IF(N(DS_FHFC_9HC_Amt)>N(DS_FHFC_9HC_Max_Amt),"The Competitve HC request amount has been adjusted to the Maximum of "&TEXT(N(DS_FHFC_9HC_Max_Amt),"$#,##0")&".","") ->  | Q10: =IF(N(DS_FHFC_9HC_Amt)>N(DS_FHFC_9HC_Max_Amt),DS_FHFC_9HC_Label,"") -> 
A19: DS_ZCTAs_2022 | F19: DS_MetroQCTs_2022 | I19: DS_NonMetroQCTs_2022 | M19: DS_GAO_Counties | O19: DS_CountyQCTs | Q19: DS_CountyGAOs | S19: DS_ZCTAs | V19: DS_Metro_QCTs | Y19: DS_NonMetro_QCTs | AB19: DS_GAO_QCTs
G20: DS_Metro_QCT_Counties | J20: DS_NonMetro_QCT_Counties | M20: ↓ | Q20: Geo_Area_of_Opp_boost | AB20: ↓
G21: ↓ | J21: ↓ | O21: =IF(NOT(ISNA(VLOOKUP(County,DS_Metro_QCT_Counties,1,FALSE))),"Metro",IF(NOT(ISNA(VLOOKUP(County,DS_NonMetro_QCT_Counties,1,FALSE))),"Non-Metro",IF(AND(ISNA(VLOOKUP(County,DS_NonMetro_QCT_Counties,1,FALSE)),ISNA(VLOOKUP(County,DS_Metro_QCT_Counties,1,FALSE))),"Neither",""))) -> Neither | Q21: Yes
A22: 2022 ZCTAs | D22: 2022 Non-Metro DDA's | F22: 2022 Metro QCT's | I22: 2022 Non-Metro QCT's | L22: GAO's effective 2/1/21 | O22: ="QCTs in "&County -> QCTs in <select one> | Q22: ="GAOs in "&County -> GAOs in <select one> | S22: 2022 ZCTAs sorted by ZCTA | V22: 2022 Metro QCT's sorted by QCT | Y22: 2022 Non-Metro QCT's sorted by QCT | AB22: All GAOs sorted by QCT | AE22: County | AF22: File # | AG22: Development | AH22: Latitude Coordinates (Decimal Degrees) | AI22: Longitude Coordinates (Decimal Degrees) | AJ22: Demo | AK22: 30 units or less? | AL22: <select one> | AM22: Demographic | AN22: Latitude, Longitude Coordinates | AO22: Less than 31 units?
A23: 32605 | B23: Alachua | D23: Bradford | F23: 2 | G23: Alachua | I23: 1103 | J23: Columbia | L23: 5 | M23: Alachua | O23: =IFERROR(IF($O$21="Metro",INDEX($F$23:$F$748,SMALL(IF((County=$G$23:$G$748),MATCH(ROW($G$23:$G$748),ROW($G$23:$G$748)),""),ROWS($A$23:A23))),INDEX($I$23:$I$52,SMALL(IF((County=$J$23:$J$52),MATCH(ROW($J$23:$J$52),ROW($J$23:$J$52)),""),ROWS($A$23:A23)))),"") ->  | Q23: =IFERROR(IF($Q$21="Yes",INDEX($L$23:$L$2323,SMALL(IF((County=$M$23:$M$2323),MATCH(ROW($M$23:$M$2323),ROW($M$23:$M$2323)),""),ROWS($A$23:A23))),""),"") ->  | S23: 32003 | T23: Clay | V23: 1 | W23: Duval | Y23: 2 | Z23: Hendry | AB23: 1 | AC23: Escambia | AE23: Alachua | AF23: 2020-304C | AG23: Arbours at Merrillwood I | AH23: 29.794628 | AI23: -82.486897 | AJ23: E | AK23: N | AL23: =AE23&" - "&AG23 -> Alachua - Arbours at Merrillwood I | AM23: =IF(AJ23="F","Family",IF(AJ23="E","Elderly, Non-ALF",IF(AJ23="ALF","Elderly, Assisted Living Facility",IF(AJ23="W","Workforce","")))) -> Elderly, Non-ALF | AN23: ="("&AH23&", "&AI23&")" -> (29.794628, -82.486897) | AO23: =IF(AK23="N",">30",IF(AK23="Y","<31","")) -> >30
A24: 32606 | B24: Alachua | D24: Calhoun | F24: 8.06 | G24: Alachua | I24: 1104 | J24: Columbia | L24: 10 | M24: Alachua | O24: =IFERROR(IF($O$21="Metro",INDEX($F$23:$F$748,SMALL(IF((County=$G$23:$G$748),MATCH(ROW($G$23:$G$748),ROW($G$23:$G$748)),""),ROWS($A$23:A24))),INDEX($I$23:$I$52,SMALL(IF((County=$J$23:$J$52),MATCH(ROW($J$23:$J$52),ROW($J$23:$J$52)),""),ROWS($A$23:A24)))),"") ->  | Q24: =IFERROR(IF($Q$21="Yes",INDEX($L$23:$L$2323,SMALL(IF((County=$M$23:$M$2323),MATCH(ROW($M$23:$M$2323),ROW($M$23:$M$2323)),""),ROWS($A$23:A24))),""),"") ->  | S24: 32081 | T24: St. Johns | V24: 1.01 | W24: Hillsborough | Y24: 3 | Z24: Hendry | AB24: 1 | AC24: Glades | AE24: Alachua | AF24: 2022-068C | AG24: Dogwood Village | AH24: 29.643354 | AI24: -82.305537 | AJ24: F | AK24: N | AL24: Alachua - Dogwood Village | AM24: Family | AN24: (29.643354, -82.305537) | AO24: >30
A25: 32403 | B25: Bay | D25: Columbia | F25: 9.01 | G25: Alachua | I25: 102 | J25: DeSoto | L25: 11 | M25: Alachua | O25: =IFERROR(IF($O$21="Metro",INDEX($F$23:$F$748,SMALL(IF((County=$G$23:$G$748),MATCH(ROW($G$23:$G$748),ROW($G$23:$G$748)),""),ROWS($A$23:A25))),INDEX($I$23:$I$52,SMALL(IF((County=$J$23:$J$52),MATCH(ROW($J$23:$J$52),ROW($J$23:$J$52)),""),ROWS($A$23:A25)))),"") ->  | Q25: =IFERROR(IF($Q$21="Yes",INDEX($L$23:$L$2323,SMALL(IF((County=$M$23:$M$2323),MATCH(ROW($M$23:$M$2323),ROW($M$23:$M$2323)),""),ROWS($A$23:A25))),""),"") ->  | S25: 32082 | T25: St. Johns | V25: 1.02 | W25: Hillsborough | Y25: 6 | Z25: Hendry | AB25: 1 | AC25: Hendry | AE25: Alachua | AF25: 2020-411BS | AG25: Royal Park Apartments | AH25: 29.655552 | AI25: -82.381442 | AJ25: F | AK25: N | AL25: Alachua - Royal Park Apartments | AM25: Family | AN25: (29.655552, -82.381442) | AO25: >30
A26: 32407 | B26: Bay | D26: DeSoto | F26: 15.14 | G26: Alachua | I26: 103.01 | J26: DeSoto | L26: 12.01 | M26: Alachua | O26: =IFERROR(IF($O$21="Metro",INDEX($F$23:$F$748,SMALL(IF((County=$G$23:$G$748),MATCH(ROW($G$23:$G$748),ROW($G$23:$G$748)),""),ROWS($A$23:A26))),INDEX($I$23:$I$52,SMALL(IF((County=$J$23:$J$52),MATCH(ROW($J$23:$J$52),ROW($J$23:$J$52)),""),ROWS($A$23:A26)))),"") ->  | Q26: =IFERROR(IF($Q$21="Yes",INDEX($L$23:$L$2323,SMALL(IF((County=$M$23:$M$2323),MATCH(ROW($M$23:$M$2323),ROW($M$23:$M$2323)),""),ROWS($A$23:A26))),""),"") ->  | S26: 32092 | T26: St. Johns | V26: 1.03 | W26: Manatee | Y26: 102 | Z26: DeSoto | AB26: 1 | AC26: Marion | AE26: Baker | AF26: 2022-244H | AG26: Sandcastle Manor | AH26: 30.25507 | AI26: -82.1274 | AJ26: F | AK26: Y | AL26: Baker - Sandcastle Manor | AM26: Family | AN26: (30.25507, -82.1274) | AO26: <31
A27: 32410 | B27: Bay | D27: Dixie | F27: 15.15 | G27: Alachua | I27: 103.02 | J27: DeSoto | L27: 12.02 | M27: Alachua | O27: =IFERROR(IF($O$21="Metro",INDEX($F$23:$F$748,SMALL(IF((County=$G$23:$G$748),MATCH(ROW($G$23:$G$748),ROW($G$23:$G$748)),""),ROWS($A$23:A27))),INDEX($I$23:$I$52,SMALL(IF((County=$J$23:$J$52),MATCH(ROW($J$23:$J$52),ROW($J$23:$J$52)),""),ROWS($A$23:A27)))),"") ->  | Q27: =IFERROR(IF($Q$21="Yes",INDEX($L$23:$L$2323,SMALL(IF((County=$M$23:$M$2323),MATCH(ROW($M$23:$M$2323),ROW($M$23:$M$2323)),""),ROWS($A$23:A27))),""),"") ->  | S27: 32124 | T27: Volusia | V27: 1.05 | W27: Manatee | Y27: 103.01 | Z27: DeSoto | AB27: 1 | AC27: Martin | AE27: Bay | AF27: 2021-127C | AG27: Fletcher Black II | AH27: 30.167531 | AI27: -85.671896 | AJ27: F | AK27: N | AL27: Bay - Fletcher Black II | AM27: Family | AN27: (30.167531, -85.671896) | AO27: >30
A28: 32903 | B28: Brevard | D28: Franklin | F28: 15.16 | G28: Alachua | I28: 9602 | J28: Hamilton | L28: 12.03 | M28: Alachua | O28: =IFERROR(IF($O$21="Metro",INDEX($F$23:$F$748,SMALL(IF((County=$G$23:$G$748),MATCH(ROW($G$23:$G$748),ROW($G$23:$G$748)),""),ROWS($A$23:A28))),INDEX($I$23:$I$52,SMALL(IF((County=$J$23:$J$52),MATCH(ROW($J$23:$J$52),ROW($J$23:$J$52)),""),ROWS($A$23:A28)))),"") ->  | Q28: =IFERROR(IF($Q$21="Yes",INDEX($L$23:$L$2323,SMALL(IF((County=$M$23:$M$2323),MATCH(ROW($M$23:$M$2323),ROW($M$23:$M$2323)),""),ROWS($A$23:A28))),""),"") ->  | S28: 32128 | T28: Volusia | V28: 1.06 | W28: Manatee | Y28: 103.02 | Z28: DeSoto | AB28: 1.01 | AC28: Collier | AE28: Bay | AF28: 2021-099C | AG28: Southview Estates | AH28: 30.163023 | AI28: -85.610294 | AJ28: E | AK28: N | AL28: Bay - Southview Estates | AM28: Elderly, Non-ALF | AN28: (30.163023, -85.610294) | AO28: >30
A29: 32904 | B29: Brevard | D29: Glades | F29: 15.17 | G29: Alachua | I29: 9603 | J29: Hamilton | L29: 15.14 | M29: Alachua | O29: =IFERROR(IF($O$21="Metro",INDEX($F$23:$F$748,SMALL(IF((County=$G$23:$G$748),MATCH(ROW($G$23:$G$748),ROW($G$23:$G$748)),""),ROWS($A$23:A29))),INDEX($I$23:$I$52,SMALL(IF((County=$J$23:$J$52),MATCH(ROW($J$23:$J$52),ROW($J$23:$J$52)),""),ROWS($A$23:A29)))),"") ->  | Q29: =IFERROR(IF($Q$21="Yes",INDEX($L$23:$L$2323,SMALL(IF((County=$M$23:$M$2323),MATCH(ROW($M$23:$M$2323),ROW($M$23:$M$2323)),""),ROWS($A$23:A29))),""),"") ->  | S29: 32129 | T29: Volusia | V29: 1.09 | W29: Miami-Dade | Y29: 1102 | Z29: Madison | AB29: 1.01 | AC29: Manatee | AE29: Bradford | AF29: 2021-284H | AG29: Sandcastle Pines | AH29: 29.949075 | AI29: -82.120084 | AJ29: F | AK29: Y | AL29: Bradford - Sandcastle Pines | AM29: Family | AN29: (29.949075, -82.120084) | AO29: <31
A30: 32908 | B30: Brevard | D30: Hamilton | F30: 15.19 | G30: Alachua | I30: 9701.02 | J30: Hardee | L30: 15.17 | M30: Alachua | O30: =IFERROR(IF($O$21="Metro",INDEX($F$23:$F$748,SMALL(IF((County=$G$23:$G$748),MATCH(ROW($G$23:$G$748),ROW($G$23:$G$748)),""),ROWS($A$23:A30))),INDEX($I$23:$I$52,SMALL(IF((County=$J$23:$J$52),MATCH(ROW($J$23:$J$52),ROW($J$23:$J$52)),""),ROWS($A$23:A30)))),"") ->  | Q30: =IFERROR(IF($Q$21="Yes",INDEX($L$23:$L$2323,SMALL(IF((County=$M$23:$M$2323),MATCH(ROW($M$23:$M$2323),ROW($M$23:$M$2323)),""),ROWS($A$23:A30))),""),"") ->  | S30: 32133 | T30: Marion | V30: 1.26 | W30: Miami-Dade | Y30: 1103 | Z30: Columbia | AB30: 1.01 | AC30: Palm Beach | AE30: Bradford | AF30: 2020-335C | AG30: Weldon Crossings | AH30: 29.953864 | AI30: -82.11935 | AJ30: F | AK30: N | AL30: Bradford - Weldon Crossings | AM30: Family | AN30: (29.953864, -82.11935) | AO30: >30
A31: 32925 | B31: Brevard | D31: Hardee | F31: 15.21 | G31: Alachua | I31: 9702.01 | J31: Hardee | L31: 16.03 | M31: Alachua | O31: =IFERROR(IF($O$21="Metro",INDEX($F$23:$F$748,SMALL(IF((County=$G$23:$G$748),MATCH(ROW($G$23:$G$748),ROW($G$23:$G$748)),""),ROWS($A$23:A31))),INDEX($I$23:$I$52,SMALL(IF((County=$J$23:$J$52),MATCH(ROW($J$23:$J$52),ROW($J$23:$J$52)),""),ROWS($A$23:A31)))),"") ->  | Q31: =IFERROR(IF($Q$21="Yes",INDEX($L$23:$L$2323,SMALL(IF((County=$M$23:$M$2323),MATCH(ROW($M$23:$M$2323),ROW($M$23:$M$2323)),""),ROWS($A$23:A31))),""),"") ->  | S31: 32162 | T31: Sumter | V31: 2 | W31: Alachua | Y31: 1103.02 | Z31: Madison | AB31: 1.02 | AC31: Collier | AE31: Charlotte | AF31: 2022-070C | AG31: The Verandas of Punta Gorda III | AH31: 26.917735 | AI31: -82.042009 | AJ31: F | AK31: N | AL31: Charlotte - The Verandas of Punta Gorda III | AM31: Family | AN31: (26.917735, -82.042009) | AO31: >30
A32: 32934 | B32: Brevard | D32: Hendry | F32: 16.03 | G32: Alachua | I32: 2 | J32: Hendry | L32: 16.04 | M32: Alachua | O32: =IFERROR(IF($O$21="Metro",INDEX($F$23:$F$748,SMALL(IF((County=$G$23:$G$748),MATCH(ROW($G$23:$G$748),ROW($G$23:$G$748)),""),ROWS($A$23:A32))),INDEX($I$23:$I$52,SMALL(IF((County=$J$23:$J$52),MATCH(ROW($J$23:$J$52),ROW($J$23:$J$52)),""),ROWS($A$23:A32)))),"") ->  | Q32: =IFERROR(IF($Q$21="Yes",INDEX($L$23:$L$2323,SMALL(IF((County=$M$23:$M$2323),MATCH(ROW($M$23:$M$2323),ROW($M$23:$M$2323)),""),ROWS($A$23:A32))),""),"") ->  | S32: 32169 | T32: Volusia | V32: 2 | W32: Duval | Y32: 1104 | Z32: Columbia | AB32: 1.02 | AC32: Palm Beach | AE32: Clay | AF32: 2020-239C | AG32: Bryce Landing | AH32: 30.095058 | AI32: -81.826986 | AJ32: F | AK32: N | AL32: Clay - Bryce Landing | AM32: Family | AN32: (30.095058, -81.826986) | AO32: >30
A33: 32937 | B33: Brevard | D33: Holmes | F33: 16.04 | G33: Alachua | I33: 3 | J33: Hendry | L33: 17.01 | M33: Alachua | O33: =IFERROR(IF($O$21="Metro",INDEX($F$23:$F$748,SMALL(IF((County=$G$23:$G$748),MATCH(ROW($G$23:$G$748),ROW($G$23:$G$748)),""),ROWS($A$23:A33))),INDEX($I$23:$I$52,SMALL(IF((County=$J$23:$J$52),MATCH(ROW($J$23:$J$52),ROW($J$23:$J$52)),""),ROWS($A$23:A33)))),"") ->  | Q33: =IFERROR(IF($Q$21="Yes",INDEX($L$23:$L$2323,SMALL(IF((County=$M$23:$M$2323),MATCH(ROW($M$23:$M$2323),ROW($M$23:$M$2323)),""),ROWS($A$23:A33))),""),"") ->  | S33: 32176 | T33: Volusia | V33: 2 | W33: Marion | Y33: 2102 | Z33: Jackson | AB33: 1.07 | AC33: Miami-Dade | AE33: Clay | AF33: 2021-059C | AG33: Molly Crossing | AH33: 30.115016 | AI33: -81.828085 | AJ33: E | AK33: N | AL33: Clay - Molly Crossing | AM33: Elderly, Non-ALF | AN33: (30.115016, -81.828085) | AO33: >30
A34: 32940 | B34: Brevard | D34: Jackson | F34: 18.02 | G34: Alachua | I34: 6 | J34: Hendry | L34: 17.02 | M34: Alachua | O34: =IFERROR(IF($O$21="Metro",INDEX($F$23:$F$748,SMALL(IF((County=$G$23:$G$748),MATCH(ROW($G$23:$G$748),ROW($G$23:$G$748)),""),ROWS($A$23:A34))),INDEX($I$23:$I$52,SMALL(IF((County=$J$23:$J$52),MATCH(ROW($J$23:$J$52),ROW($J$23:$J$52)),""),ROWS($A$23:A34)))),"") ->  | Q34: =IFERROR(IF($Q$21="Yes",INDEX($L$23:$L$2323,SMALL(IF((County=$M$23:$M$2323),MATCH(ROW($M$23:$M$2323),ROW($M$23:$M$2323)),""),ROWS($A$23:A34))),""),"") ->  | S34: 32195 | T34: Marion | V34: 2 | W34: Sarasota | Y34: 2106 | Z34: Jackson | AB34: 1.13 | AC34: Miami-Dade | AE34: Clay | AF34: 2021-258S | AG34: Nathan Ridge | AH34: 30.110381 | AI34: -81.837506 | AJ34: F | AK34: N | AL34: Clay - Nathan Ridge | AM34: Family | AN34: (30.110381, -81.837506) | AO34: >30
A35: 32951 | B35: Brevard | D35: Lafayette | F35: 19.02 | G35: Alachua | I35: 9604 | J35: Holmes | L35: 18.01 | M35: Alachua | O35: =IFERROR(IF($O$21="Metro",INDEX($F$23:$F$748,SMALL(IF((County=$G$23:$G$748),MATCH(ROW($G$23:$G$748),ROW($G$23:$G$748)),""),ROWS($A$23:A35))),INDEX($I$23:$I$52,SMALL(IF((County=$J$23:$J$52),MATCH(ROW($J$23:$J$52),ROW($J$23:$J$52)),""),ROWS($A$23:A35)))),"") ->  | Q35: =IFERROR(IF($Q$21="Yes",INDEX($L$23:$L$2323,SMALL(IF((County=$M$23:$M$2323),MATCH(ROW($M$23:$M$2323),ROW($M$23:$M$2323)),""),ROWS($A$23:A35))),""),"") ->  | S35: 32212 | T35: Duval | V35: 2.01 | W35: Hillsborough | Y35: 9502.01 | Z35: Putnam | AB35: 1.15 | AC35: Miami-Dade | AE35: Collier | AF35: 2020-385BSN | AG35: Allegro at Hacienda Lakes, f/k/a Villa Verde | AH35: 26.107664 | AI35: -81.680556 | AJ35: E | AK35: N | AL35: Collier - Allegro at Hacienda Lakes, f/k/a Villa Verde | AM35: Elderly, Non-ALF | AN35: (26.107664, -81.680556) | AO35: >30
A36: 32955 | B36: Brevard | D36: Levy | F36: 22.18 | G36: Alachua | I36: 2102 | J36: Jackson | L36: 18.05 | M36: Alachua | O36: =IFERROR(IF($O$21="Metro",INDEX($F$23:$F$748,SMALL(IF((County=$G$23:$G$748),MATCH(ROW($G$23:$G$748),ROW($G$23:$G$748)),""),ROWS($A$23:A36))),INDEX($I$23:$I$52,SMALL(IF((County=$J$23:$J$52),MATCH(ROW($J$23:$J$52),ROW($J$23:$J$52)),""),ROWS($A$23:A36)))),"") ->  | Q36: =IFERROR(IF($Q$21="Yes",INDEX($L$23:$L$2323,SMALL(IF((County=$M$23:$M$2323),MATCH(ROW($M$23:$M$2323),ROW($M$23:$M$2323)),""),ROWS($A$23:A36))),""),"") ->  | S36: 32222 | T36: Duval | V36: 2.01 | W36: Manatee | Y36: 9503 | Z36: Taylor | AB36: 1.18 | AC36: Miami-Dade | AE36: Collier | AF36: 2021-246BS | AG36: Cadenza at Hacienda Lakes | AH36: 26.109164 | AI36: -81.680756 | AJ36: E | AK36: N | AL36: Collier - Cadenza at Hacienda Lakes | AM36: Elderly, Non-ALF | AN36: (26.109164, -81.680756) | AO36: >30
A37: 33019 | B37: Broward | D37: Liberty | F37: 8.03 | G37: Bay | I37: 2106 | J37: Jackson | L37: 18.06 | M37: Alachua | O37: =IFERROR(IF($O$21="Metro",INDEX($F$23:$F$748,SMALL(IF((County=$G$23:$G$748),MATCH(ROW($G$23:$G$748),ROW($G$23:$G$748)),""),ROWS($A$23:A37))),INDEX($I$23:$I$52,SMALL(IF((County=$J$23:$J$52),MATCH(ROW($J$23:$J$52),ROW($J$23:$J$52)),""),ROWS($A$23:A37)))),"") ->  | Q37: =IFERROR(IF($Q$21="Yes",INDEX($L$23:$L$2323,SMALL(IF((County=$M$23:$M$2323),MATCH(ROW($M$23:$M$2323),ROW($M$23:$M$2323)),""),ROWS($A$23:A37))),""),"") ->  | S37: 32224 | T37: Duval | V37: 2.02 | W37: Hillsborough | Y37: 9507 | Z37: Putnam | AB37: 1.19 | AC37: Miami-Dade | AE37: DeSoto | AF37: 2022-046C | AG37: Arcadia Landings | AH37: 27.224609 | AI37: -81.844 | AJ37: E | AK37: N | AL37: DeSoto - Arcadia Landings | AM37: Elderly, Non-ALF | AN37: (27.224609, -81.844) | AO37: >30
A38: 33025 | B38: Broward | D38: Madison | F38: 10 | G38: Bay | I38: 9702 | J38: Levy | L38: 18.11 | M38: Alachua | O38: =IFERROR(IF($O$21="Metro",INDEX($F$23:$F$748,SMALL(IF((County=$G$23:$G$748),MATCH(ROW($G$23:$G$748),ROW($G$23:$G$748)),""),ROWS($A$23:A38))),INDEX($I$23:$I$52,SMALL(IF((County=$J$23:$J$52),MATCH(ROW($J$23:$J$52),ROW($J$23:$J$52)),""),ROWS($A$23:A38)))),"") ->  | Q38: =IFERROR(IF($Q$21="Yes",INDEX($L$23:$L$2323,SMALL(IF((County=$M$23:$M$2323),MATCH(ROW($M$23:$M$2323),ROW($M$23:$M$2323)),""),ROWS($A$23:A38))),""),"") ->  | S38: 32226 | T38: Duval | V38: 2.02 | W38: Manatee | Y38: 9508 | Z38: Putnam | AB38: 1.2 | AC38: Miami-Dade | AE38: DeSoto | AF38: 2021-077C | AG38: Cypress Garden Apartments | AH38: 27.214896 | AI38: -81.846673 | AJ38: F | AK38: N | AL38: DeSoto - Cypress Garden Apartments | AM38: Family | AN38: (27.214896, -81.846673) | AO38: >30
A39: 33026 | B39: Broward | D39: Monroe | F39: 11 | G39: Bay | I39: 9703.01 | J39: Levy | L39: 18.13 | M39: Alachua | O39: =IFERROR(IF($O$21="Metro",INDEX($F$23:$F$748,SMALL(IF((County=$G$23:$G$748),MATCH(ROW($G$23:$G$748),ROW($G$23:$G$748)),""),ROWS($A$23:A39))),INDEX($I$23:$I$52,SMALL(IF((County=$J$23:$J$52),MATCH(ROW($J$23:$J$52),ROW($J$23:$J$52)),""),ROWS($A$23:A39)))),"") ->  | Q39: =IFERROR(IF($Q$21="Yes",INDEX($L$23:$L$2323,SMALL(IF((County=$M$23:$M$2323),MATCH(ROW($M$23:$M$2323),ROW($M$23:$M$2323)),""),ROWS($A$23:A39))),""),"") ->  | S39: 32227 | T39: Duval | V39: 2.06 | W39: Miami-Dade | Y39: 9509 | Z39: Putnam | AB39: 1.21 | AC39: Miami-Dade | AE39: DeSoto | AF39: 2021-285H | AG39: Hermosa Arcadia | AH39: 27.223428 | AI39: -81.8415 | AJ39: F | AK39: Y | AL39: DeSoto - Hermosa Arcadia | AM39: Family | AN39: (27.223428, -81.8415) | AO39: <31
A40: 33027 | B40: Broward | D40: Okeechobee | F40: 16 | G40: Bay | I40: 1102 | J40: Madison | L40: 18.14 | M40: Alachua | O40: =IFERROR(IF($O$21="Metro",INDEX($F$23:$F$748,SMALL(IF((County=$G$23:$G$748),MATCH(ROW($G$23:$G$748),ROW($G$23:$G$748)),""),ROWS($A$23:A40))),INDEX($I$23:$I$52,SMALL(IF((County=$J$23:$J$52),MATCH(ROW($J$23:$J$52),ROW($J$23:$J$52)),""),ROWS($A$23:A40)))),"") ->  | Q40: =IFERROR(IF($Q$21="Yes",INDEX($L$23:$L$2323,SMALL(IF((County=$M$23:$M$2323),MATCH(ROW($M$23:$M$2323),ROW($M$23:$M$2323)),""),ROWS($A$23:A40))),""),"") ->  | S40: 32228 | T40: Duval | V40: 2.09 | W40: Miami-Dade | Y40: 9512 | Z40: Putnam | AB40: 1.22 | AC40: Miami-Dade | AE40: DeSoto | AF40: 2021-280H | AG40: Meadow Park | AH40: 27.212144 | AI40: -81.8403 | AJ40: F | AK40: Y | AL40: DeSoto - Meadow Park | AM40: Family | AN40: (27.212144, -81.8403) | AO40: <31
A41: 33028 | B41: Broward | D41: Putnam | F41: 18 | G41: Bay | I41: 1103.02 | J41: Madison | L41: 21.01 | M41: Alachua | O41: =IFERROR(IF($O$21="Metro",INDEX($F$23:$F$748,SMALL(IF((County=$G$23:$G$748),MATCH(ROW($G$23:$G$748),ROW($G$23:$G$748)),""),ROWS($A$23:A41))),INDEX($I$23:$I$52,SMALL(IF((County=$J$23:$J$52),MATCH(ROW($J$23:$J$52),ROW($J$23:$J$52)),""),ROWS($A$23:A41)))),"") ->  | Q41: =IFERROR(IF($Q$21="Yes",INDEX($L$23:$L$2323,SMALL(IF((County=$M$23:$M$2323),MATCH(ROW($M$23:$M$2323),ROW($M$23:$M$2323)),""),ROWS($A$23:A41))),""),"") ->  | S41: 32256 | T41: Duval | V41: 2.12 | W41: Miami-Dade | Y41: 9514.01 | Z41: Putnam | AB41: 1.23 | AC41: Miami-Dade | AE41: Escambia | AF41: 2021-054C | AG41: Tranquility at Ferry Pass | AH41: 30.51326 | AI41: -87.209091 | AJ41: F | AK41: N | AL41: Escambia - Tranquility at Ferry Pass | AM41: Family | AN41: (30.51326, -87.209091) | AO41: >30
A42: 33029 | B42: Broward | D42: Suwannee | F42: 20 | G42: Bay | I42: 9704 | J42: Monroe | L42: 21.02 | M42: Alachua | O42: =IFERROR(IF($O$21="Metro",INDEX($F$23:$F$748,SMALL(IF((County=$G$23:$G$748),MATCH(ROW($G$23:$G$748),ROW($G$23:$G$748)),""),ROWS($A$23:A42))),INDEX($I$23:$I$52,SMALL(IF((County=$J$23:$J$52),MATCH(ROW($J$23:$J$52),ROW($J$23:$J$52)),""),ROWS($A$23:A42)))),"") ->  | Q42: =IFERROR(IF($Q$21="Yes",INDEX($L$23:$L$2323,SMALL(IF((County=$M$23:$M$2323),MATCH(ROW($M$23:$M$2323),ROW($M$23:$M$2323)),""),ROWS($A$23:A42))),""),"") ->  | S42: 32258 | T42: Duval | V42: 2.17 | W42: Miami-Dade | Y42: 9602 | Z42: Hamilton | AB42: 1.25 | AC42: Miami-Dade | AE42: Gadsden | AF42: 2020-419BS | AG42: Arbours at Quincy | AH42: 30.558774 | AI42: -84.593762 | AJ42: F | AK42: N | AL42: Gadsden - Arbours at Quincy | AM42: Family | AN42: (30.558774, -84.593762) | AO42: >30
A43: 33062 | B43: Broward | D43: Taylor | F43: 22 | G43: Bay | I43: 9502.01 | J43: Putnam | L43: 22.01 | M43: Alachua | O43: =IFERROR(IF($O$21="Metro",INDEX($F$23:$F$748,SMALL(IF((County=$G$23:$G$748),MATCH(ROW($G$23:$G$748),ROW($G$23:$G$748)),""),ROWS($A$23:A43))),INDEX($I$23:$I$52,SMALL(IF((County=$J$23:$J$52),MATCH(ROW($J$23:$J$52),ROW($J$23:$J$52)),""),ROWS($A$23:A43)))),"") ->  | Q43: =IFERROR(IF($Q$21="Yes",INDEX($L$23:$L$2323,SMALL(IF((County=$M$23:$M$2323),MATCH(ROW($M$23:$M$2323),ROW($M$23:$M$2323)),""),ROWS($A$23:A43))),""),"") ->  | S43: 32259 | T43: St. Johns | V43: 2.18 | W43: Miami-Dade | Y43: 9603 | Z43: Hamilton | AB43: 1.26 | AC43: Miami-Dade | AE43: Gadsden | AF43: 2022-247H | AG43: Cross Creek Gardens at Quincy | AH43: 30.558462 | AI43: -84.598144 | AJ43: F | AK43: N | AL43: Gadsden - Cross Creek Gardens at Quincy | AM43: Family | AN43: (30.558462, -84.598144) | AO43: >30
A44: 33063 | B44: Broward | D44: Union | F44: 24 | G44: Bay | I44: 9507 | J44: Putnam | L44: 22.02 | M44: Alachua | O44: =IFERROR(IF($O$21="Metro",INDEX($F$23:$F$748,SMALL(IF((County=$G$23:$G$748),MATCH(ROW($G$23:$G$748),ROW($G$23:$G$748)),""),ROWS($A$23:A44))),INDEX($I$23:$I$52,SMALL(IF((County=$J$23:$J$52),MATCH(ROW($J$23:$J$52),ROW($J$23:$J$52)),""),ROWS($A$23:A44)))),"") ->  | Q44: =IFERROR(IF($Q$21="Yes",INDEX($L$23:$L$2323,SMALL(IF((County=$M$23:$M$2323),MATCH(ROW($M$23:$M$2323),ROW($M$23:$M$2323)),""),ROWS($A$23:A44))),""),"") ->  | S44: 32266 | T44: Duval | V44: 2.19 | W44: Miami-Dade | Y44: 9604 | Z44: Holmes | AB44: 1.27 | AC44: Miami-Dade | AE44: Hardee | AF44: 2021-282H | AG44: Casa San Alfonso | AH44: 27.497457 | AI44: -81.786286 | AJ44: F | AK44: Y | AL44: Hardee - Casa San Alfonso | AM44: Family | AN44: (27.497457, -81.786286) | AO44: <31
A45: 33067 | B45: Broward | D45: Washington | F45: 604 | G45: Brevard | I45: 9508 | J45: Putnam | L45: 22.04 | M45: Alachua | O45: =IFERROR(IF($O$21="Metro",INDEX($F$23:$F$748,SMALL(IF((County=$G$23:$G$748),MATCH(ROW($G$23:$G$748),ROW($G$23:$G$748)),""),ROWS($A$23:A45))),INDEX($I$23:$I$52,SMALL(IF((County=$J$23:$J$52),MATCH(ROW($J$23:$J$52),ROW($J$23:$J$52)),""),ROWS($A$23:A45)))),"") ->  | Q45: =IFERROR(IF($Q$21="Yes",INDEX($L$23:$L$2323,SMALL(IF((County=$M$23:$M$2323),MATCH(ROW($M$23:$M$2323),ROW($M$23:$M$2323)),""),ROWS($A$23:A45))),""),"") ->  | S45: 32317 | T45: Leon | V45: 2.2 | W45: Miami-Dade | Y45: 9701.02 | Z45: Hardee | AB45: 1.28 | AC45: Miami-Dade | AE45: Hendry | AF45: 2022-242H | AG45: Pollywog Creek Mews | AH45: 26.749832 | AI45: -81.441801 | AJ45: F | AK45: Y | AL45: Hendry - Pollywog Creek Mews | AM45: Family | AN45: (26.749832, -81.441801) | AO45: <31
A46: 33071 | B46: Broward | F46: 607 | G46: Brevard | I46: 9509 | J46: Putnam | L46: 22.05 | M46: Alachua | O46: =IFERROR(IF($O$21="Metro",INDEX($F$23:$F$748,SMALL(IF((County=$G$23:$G$748),MATCH(ROW($G$23:$G$748),ROW($G$23:$G$748)),""),ROWS($A$23:A46))),INDEX($I$23:$I$52,SMALL(IF((County=$J$23:$J$52),MATCH(ROW($J$23:$J$52),ROW($J$23:$J$52)),""),ROWS($A$23:A46)))),"") ->  | Q46: =IFERROR(IF($Q$21="Yes",INDEX($L$23:$L$2323,SMALL(IF((County=$M$23:$M$2323),MATCH(ROW($M$23:$M$2323),ROW($M$23:$M$2323)),""),ROWS($A$23:A46))),""),"") ->  | S46: 32403 | T46: Bay | V46: 3 | W46: Duval | Y46: 9701.03 | Z46: Washington | AB46: 1.29 | AC46: Miami-Dade | AE46: Hernando | AF46: 2020-301C | AG46: Rochester Park | AH46: 28.544394 | AI46: -82.411113 | AJ46: E | AK46: N | AL46: Hernando - Rochester Park | AM46: Elderly, Non-ALF | AN46: (28.544394, -82.411113) | AO46: >30
A47: 33073 | B47: Broward | D47: Yes/No Dropdown | F47: 610.02 | G47: Brevard | I47: 9512 | J47: Putnam | L47: 22.07 | M47: Alachua | O47: =IFERROR(IF($O$21="Metro",INDEX($F$23:$F$748,SMALL(IF((County=$G$23:$G$748),MATCH(ROW($G$23:$G$748),ROW($G$23:$G$748)),""),ROWS($A$23:A47))),INDEX($I$23:$I$52,SMALL(IF((County=$J$23:$J$52),MATCH(ROW($J$23:$J$52),ROW($J$23:$J$52)),""),ROWS($A$23:A47)))),"") ->  | Q47: =IFERROR(IF($Q$21="Yes",INDEX($L$23:$L$2323,SMALL(IF((County=$M$23:$M$2323),MATCH(ROW($M$23:$M$2323),ROW($M$23:$M$2323)),""),ROWS($A$23:A47))),""),"") ->  | S47: 32407 | T47: Bay | V47: 3 | W47: Escambia | Y47: 9702 | Z47: Levy | AB47: 1.3 | AC47: Miami-Dade | AE47: Indian River | AF47: 2020-404S | AG47: Orange Blossom Village | AH47: 27.6504889 | AI47: -80.3978278 | AJ47: E | AK47: N | AL47: Indian River - Orange Blossom Village | AM47: Elderly, Non-ALF | AN47: (27.6504889, -80.3978278) | AO47: >30
A48: 33076 | B48: Broward | D48: <select from menu> | F48: 623.01 | G48: Brevard | I48: 9514.01 | J48: Putnam | L48: 22.08 | M48: Alachua | O48: =IFERROR(IF($O$21="Metro",INDEX($F$23:$F$748,SMALL(IF((County=$G$23:$G$748),MATCH(ROW($G$23:$G$748),ROW($G$23:$G$748)),""),ROWS($A$23:A48))),INDEX($I$23:$I$52,SMALL(IF((County=$J$23:$J$52),MATCH(ROW($J$23:$J$52),ROW($J$23:$J$52)),""),ROWS($A$23:A48)))),"") ->  | Q48: =IFERROR(IF($Q$21="Yes",INDEX($L$23:$L$2323,SMALL(IF((County=$M$23:$M$2323),MATCH(ROW($M$23:$M$2323),ROW($M$23:$M$2323)),""),ROWS($A$23:A48))),""),"") ->  | S48: 32410 | T48: Bay | V48: 3 | W48: Hillsborough | Y48: 9702 | Z48: Washington | AB48: 1.31 | AC48: Miami-Dade | AE48: Jackson | AF48: 2021-281H | AG48: Thomas Pines | AH48: 30.761482 | AI48: -85.229333 | AJ48: F | AK48: N | AL48: Jackson - Thomas Pines | AM48: Family | AN48: (30.761482, -85.229333) | AO48: >30
A49: 33301 | B49: Broward | D49: Yes | F49: 623.02 | G49: Brevard | I49: 9503 | J49: Taylor | L49: 22.09 | M49: Alachua | O49: =IFERROR(IF($O$21="Metro",INDEX($F$23:$F$748,SMALL(IF((County=$G$23:$G$748),MATCH(ROW($G$23:$G$748),ROW($G$23:$G$748)),""),ROWS($A$23:A49))),INDEX($I$23:$I$52,SMALL(IF((County=$J$23:$J$52),MATCH(ROW($J$23:$J$52),ROW($J$23:$J$52)),""),ROWS($A$23:A49)))),"") ->  | Q49: =IFERROR(IF($Q$21="Yes",INDEX($L$23:$L$2323,SMALL(IF((County=$M$23:$M$2323),MATCH(ROW($M$23:$M$2323),ROW($M$23:$M$2323)),""),ROWS($A$23:A49))),""),"") ->  | S49: 32456 | T49: Gulf | V49: 3 | W49: Sarasota | Y49: 9702.01 | Z49: Hardee | AB49: 1.33 | AC49: Miami-Dade | AE49: Jackson | AF49: 2022-241H | AG49: Tranquility at Hope School Phase II | AH49: 30.709994 | AI49: -85.190461 | AJ49: F | AK49: N | AL49: Jackson - Tranquility at Hope School Phase II | AM49: Family | AN49: (30.709994, -85.190461) | AO49: >30
A50: 33308 | B50: Broward | D50: No | F50: 624 | G50: Brevard | I50: 9701.03 | J50: Washington | L50: 22.1 | M50: Alachua | O50: =IFERROR(IF($O$21="Metro",INDEX($F$23:$F$748,SMALL(IF((County=$G$23:$G$748),MATCH(ROW($G$23:$G$748),ROW($G$23:$G$748)),""),ROWS($A$23:A50))),INDEX($I$23:$I$52,SMALL(IF((County=$J$23:$J$52),MATCH(ROW($J$23:$J$52),ROW($J$23:$J$52)),""),ROWS($A$23:A50)))),"") ->  | Q50: =IFERROR(IF($Q$21="Yes",INDEX($L$23:$L$2323,SMALL(IF((County=$M$23:$M$2323),MATCH(ROW($M$23:$M$2323),ROW($M$23:$M$2323)),""),ROWS($A$23:A50))),""),"") ->  | S50: 32459 | T50: Walton | V50: 3.01 | W50: Lee | Y50: 9703.01 | Z50: Levy | AB50: 1.34 | AC50: Miami-Dade | AE50: Lee | AF50: 2022-023C | AG50: Hibiscus Apartments Phase Two | AH50: 26.649678 | AI50: -81.813449 | AJ50: F | AK50: N | AL50: Lee - Hibiscus Apartments Phase Two | AM50: Family | AN50: (26.649678, -81.813449) | AO50: >30
A51: 33321 | B51: Broward | F51: 625 | G51: Brevard | I51: 9702 | J51: Washington | L51: 22.19 | M51: Alachua | O51: =IFERROR(IF($O$21="Metro",INDEX($F$23:$F$748,SMALL(IF((County=$G$23:$G$748),MATCH(ROW($G$23:$G$748),ROW($G$23:$G$748)),""),ROWS($A$23:A51))),INDEX($I$23:$I$52,SMALL(IF((County=$J$23:$J$52),MATCH(ROW($J$23:$J$52),ROW($J$23:$J$52)),""),ROWS($A$23:A51)))),"") ->  | Q51: =IFERROR(IF($Q$21="Yes",INDEX($L$23:$L$2323,SMALL(IF((County=$M$23:$M$2323),MATCH(ROW($M$23:$M$2323),ROW($M$23:$M$2323)),""),ROWS($A$23:A51))),""),"") ->  | S51: 32508 | T51: Escambia | V51: 3.02 | W51: Lee | Y51: 9703.02 | Z51: Washington | AB51: 1.4 | AC51: Miami-Dade | AE51: Lee | AF51: 2020-227C | AG51: Madison Square | AH51: 26.561 | AI51: -81.956917 | AJ51: E | AK51: N | AL51: Lee - Madison Square | AM51: Elderly, Non-ALF | AN51: (26.561, -81.956917) | AO51: >30
A52: 33322 | B52: Broward | D52: Yes/No/N/A Dropdown | F52: 626 | G52: Brevard | I52: 9703.02 | J52: Washington | L52: 401.01 | M52: Baker | O52: =IFERROR(IF($O$21="Metro",INDEX($F$23:$F$748,SMALL(IF((County=$G$23:$G$748),MATCH(ROW($G$23:$G$748),ROW($G$23:$G$748)),""),ROWS($A$23:A52))),INDEX($I$23:$I$52,SMALL(IF((County=$J$23:$J$52),MATCH(ROW($J$23:$J$52),ROW($J$23:$J$52)),""),ROWS($A$23:A52)))),"") ->  | Q52: =IFERROR(IF($Q$21="Yes",INDEX($L$23:$L$2323,SMALL(IF((County=$M$23:$M$2323),MATCH(ROW($M$23:$M$2323),ROW($M$23:$M$2323)),""),ROWS($A$23:A52))),""),"") ->  | S52: 32541 | T52: Okaloosa | V52: 3.02 | W52: Marion | Y52: 9704 | Z52: Monroe | AB52: 2 | AC52: Bradford | AE52: Lee | AF52: 2021-222BS | AG52: St. Peter Claver Place Phase I | AH52: 26.651801 | AI52: -81.832418 | AJ52: F | AK52: N | AL52: Lee - St. Peter Claver Place Phase I | AM52: Family | AN52: (26.651801, -81.832418) | AO52: >30
A53: 33323 | B53: Broward | D53: <select from menu> | F53: 645 | G53: Brevard | L53: 401.02 | M53: Baker | O53: =IFERROR(IF($O$21="Metro",INDEX($F$23:$F$748,SMALL(IF((County=$G$23:$G$748),MATCH(ROW($G$23:$G$748),ROW($G$23:$G$748)),""),ROWS($A$23:A53))),INDEX($I$23:$I$52,SMALL(IF((County=$J$23:$J$52),MATCH(ROW($J$23:$J$52),ROW($J$23:$J$52)),""),ROWS($A$23:A53)))),"") ->  | Q53: =IFERROR(IF($Q$21="Yes",INDEX($L$23:$L$2323,SMALL(IF((County=$M$23:$M$2323),MATCH(ROW($M$23:$M$2323),ROW($M$23:$M$2323)),""),ROWS($A$23:A53))),""),"") ->  | S53: 32542 | T53: Okaloosa | V53: 3.05 | W53: Manatee | AB53: 2 | AC53: Collier | AE53: Leon | AF53: 2022-006C | AG53: Emery Cove | AH53: 30.422655 | AI53: -84.229338 | AJ53: F | AK53: N | AL53: Leon - Emery Cove | AM53: Family | AN53: (30.422655, -84.229338) | AO53: >30
A54: 33324 | B54: Broward | D54: Yes | F54: 647 | G54: Brevard | I54: Metro/Non-Metro QCT Dropdown | L54: 2.01 | M54: Bay | O54: =IFERROR(IF($O$21="Metro",INDEX($F$23:$F$748,SMALL(IF((County=$G$23:$G$748),MATCH(ROW($G$23:$G$748),ROW($G$23:$G$748)),""),ROWS($A$23:A54))),INDEX($I$23:$I$52,SMALL(IF((County=$J$23:$J$52),MATCH(ROW($J$23:$J$52),ROW($J$23:$J$52)),""),ROWS($A$23:A54)))),"") ->  | Q54: =IFERROR(IF($Q$21="Yes",INDEX($L$23:$L$2323,SMALL(IF((County=$M$23:$M$2323),MATCH(ROW($M$23:$M$2323),ROW($M$23:$M$2323)),""),ROWS($A$23:A54))),""),"") ->  | S54: 32544 | T54: Okaloosa | V54: 3.05 | W54: Miami-Dade | AB54: 2 | AC54: Leon | AE54: Leon | AF54: 2020-390S | AG54: Magnolia Family - sites 1-3 | AH54: 30.413135 | AI54: -84.269935 | AJ54: F | AK54: N | AL54: Leon - Magnolia Family - sites 1-3 | AM54: Family | AN54: (30.413135, -84.269935) | AO54: >30
A55: 33325 | B55: Broward | D55: No | F55: 649.02 | G55: Brevard | I55: <select from menu> | L55: 5 | M55: Bay | O55: =IFERROR(IF($O$21="Metro",INDEX($F$23:$F$748,SMALL(IF((County=$G$23:$G$748),MATCH(ROW($G$23:$G$748),ROW($G$23:$G$748)),""),ROWS($A$23:A55))),INDEX($I$23:$I$52,SMALL(IF((County=$J$23:$J$52),MATCH(ROW($J$23:$J$52),ROW($J$23:$J$52)),""),ROWS($A$23:A55)))),"") ->  | Q55: =IFERROR(IF($Q$21="Yes",INDEX($L$23:$L$2323,SMALL(IF((County=$M$23:$M$2323),MATCH(ROW($M$23:$M$2323),ROW($M$23:$M$2323)),""),ROWS($A$23:A55))),""),"") ->  | S55: 32550 | T55: Walton | V55: 3.06 | W55: Manatee | AB55: 2 | AC55: Martin | AE55: Leon | AF55: 2021-104C | AG55: Magnolia Family II | AH55: 30.414907 | AI55: -84.270418 | AJ55: F | AK55: N | AL55: =AE55&" - "&AG55 -> Leon - Magnolia Family II | AM55: =IF(AJ55="F","Family",IF(AJ55="E","Elderly, Non-ALF",IF(AJ55="ALF","Elderly, Assisted Living Facility",IF(AJ55="W","Workforce","")))) -> Family | AN55: ="("&AH55&", "&AI55&")" -> (30.414907, -84.270418) | AO55: =IF(AK55="N",">30",IF(AK55="Y","<31","")) -> >30
A56: 33326 | B56: Broward | D56: N/A | F56: 651.24 | G56: Brevard | I56: Metro | L56: 6 | M56: Bay | O56: =IFERROR(IF($O$21="Metro",INDEX($F$23:$F$748,SMALL(IF((County=$G$23:$G$748),MATCH(ROW($G$23:$G$748),ROW($G$23:$G$748)),""),ROWS($A$23:A56))),INDEX($I$23:$I$52,SMALL(IF((County=$J$23:$J$52),MATCH(ROW($J$23:$J$52),ROW($J$23:$J$52)),""),ROWS($A$23:A56)))),"") ->  | Q56: =IFERROR(IF($Q$21="Yes",INDEX($L$23:$L$2323,SMALL(IF((County=$M$23:$M$2323),MATCH(ROW($M$23:$M$2323),ROW($M$23:$M$2323)),""),ROWS($A$23:A56))),""),"") ->  | S56: 32561 | T56: Santa Rosa | V56: 3.06 | W56: Miami-Dade | AB56: 2.01 | AC56: Bay | AE56: Leon | AF56: 2022-190S | AG56: Ridge Road | AH56: 30.396963 | AI56: -84.292727 | AJ56: F | AK56: N | AL56: Leon - Ridge Road | AM56: Family | AN56: (30.396963, -84.292727) | AO56: >30
A57: 33327 | B57: Broward | F57: 699.02 | G57: Brevard | I57: Non-Metro | L57: 7 | M57: Bay | O57: =IFERROR(IF($O$21="Metro",INDEX($F$23:$F$748,SMALL(IF((County=$G$23:$G$748),MATCH(ROW($G$23:$G$748),ROW($G$23:$G$748)),""),ROWS($A$23:A57))),INDEX($I$23:$I$52,SMALL(IF((County=$J$23:$J$52),MATCH(ROW($J$23:$J$52),ROW($J$23:$J$52)),""),ROWS($A$23:A57)))),"") ->  | Q57: =IFERROR(IF($Q$21="Yes",INDEX($L$23:$L$2323,SMALL(IF((County=$M$23:$M$2323),MATCH(ROW($M$23:$M$2323),ROW($M$23:$M$2323)),""),ROWS($A$23:A57))),""),"") ->  | S57: 32566 | T57: Santa Rosa | V57: 3.09 | W57: Manatee | AB57: 2.02 | AC57: Palm Beach | AE57: Liberty | AF57: 2021-287H | AG57: Liberty Crossings | AH57: 30.431117 | AI57: -84.981925 | AJ57: F | AK57: N | AL57: Liberty - Liberty Crossings | AM57: Family | AN57: (30.431117, -84.981925) | AO57: >30
A58: 33328 | B58: Broward | D58: Geographic Areas of Opportunity/SADDA Goal - Family Demographic | F58: 103.07 | G58: Broward | L58: 8.04 | M58: Bay | O58: =IFERROR(IF($O$21="Metro",INDEX($F$23:$F$748,SMALL(IF((County=$G$23:$G$748),MATCH(ROW($G$23:$G$748),ROW($G$23:$G$748)),""),ROWS($A$23:A58))),INDEX($I$23:$I$52,SMALL(IF((County=$J$23:$J$52),MATCH(ROW($J$23:$J$52),ROW($J$23:$J$52)),""),ROWS($A$23:A58)))),"") ->  | Q58: =IFERROR(IF($Q$21="Yes",INDEX($L$23:$L$2323,SMALL(IF((County=$M$23:$M$2323),MATCH(ROW($M$23:$M$2323),ROW($M$23:$M$2323)),""),ROWS($A$23:A58))),""),"") ->  | S58: 32605 | T58: Alachua | V58: 3.1 | W58: Manatee | AB58: 2.04 | AC58: Palm Beach | AE58: Manatee | AF58: 2022-137BSN | AG58: Astoria on 9th | AH58: 27.479706 | AI58: -82.571603 | AJ58: E | AK58: N | AL58: Manatee - Astoria on 9th | AM58: Elderly, Non-ALF | AN58: (27.479706, -82.571603) | AO58: >30
A59: 33330 | B59: Broward | D59: <select from menu> | F59: 204.05 | G59: Broward | L59: 13.01 | M59: Bay | O59: =IFERROR(IF($O$21="Metro",INDEX($F$23:$F$748,SMALL(IF((County=$G$23:$G$748),MATCH(ROW($G$23:$G$748),ROW($G$23:$G$748)),""),ROWS($A$23:A59))),INDEX($I$23:$I$52,SMALL(IF((County=$J$23:$J$52),MATCH(ROW($J$23:$J$52),ROW($J$23:$J$52)),""),ROWS($A$23:A59)))),"") ->  | Q59: =IFERROR(IF($Q$21="Yes",INDEX($L$23:$L$2323,SMALL(IF((County=$M$23:$M$2323),MATCH(ROW($M$23:$M$2323),ROW($M$23:$M$2323)),""),ROWS($A$23:A59))),""),"") ->  | S59: 32606 | T59: Alachua | V59: 4 | W59: Escambia | AB59: 2.05 | AC59: Palm Beach | AE59: Manatee | AF59: 2020-384BS | AG59: Parrish Oaks II | AH59: 27.55845 | AI59: -82.440642 | AJ59: F | AK59: N | AL59: Manatee - Parrish Oaks II | AM59: Family | AN59: (27.55845, -82.440642) | AO59: >30
A60: 33331 | B60: Broward | D60: Located entirely in a GAO | F60: 204.12 | G60: Broward | L60: 14.02 | M60: Bay | O60: =IFERROR(IF($O$21="Metro",INDEX($F$23:$F$748,SMALL(IF((County=$G$23:$G$748),MATCH(ROW($G$23:$G$748),ROW($G$23:$G$748)),""),ROWS($A$23:A60))),INDEX($I$23:$I$52,SMALL(IF((County=$J$23:$J$52),MATCH(ROW($J$23:$J$52),ROW($J$23:$J$52)),""),ROWS($A$23:A60)))),"") ->  | Q60: =IFERROR(IF($Q$21="Yes",INDEX($L$23:$L$2323,SMALL(IF((County=$M$23:$M$2323),MATCH(ROW($M$23:$M$2323),ROW($M$23:$M$2323)),""),ROWS($A$23:A60))),""),"") ->  | S60: 32701 | T60: Seminole | V60: 4 | W60: Leon | AB60: 2.06 | AC60: Palm Beach | AE60: Manatee | AF60: 2021-111C | AG60: RIVERVIEW6 | AH60: 27.493717 | AI60: -82.570206 | AJ60: F | AK60: N | AL60: Manatee - RIVERVIEW6 | AM60: Family | AN60: (27.493717, -82.570206) | AO60: >30
A61: 33332 | B61: Broward | D61: Located entirely in a SADDA | F61: 302.02 | G61: Broward | L61: 14.04 | M61: Bay | O61: =IFERROR(IF($O$21="Metro",INDEX($F$23:$F$748,SMALL(IF((County=$G$23:$G$748),MATCH(ROW($G$23:$G$748),ROW($G$23:$G$748)),""),ROWS($A$23:A61))),INDEX($I$23:$I$52,SMALL(IF((County=$J$23:$J$52),MATCH(ROW($J$23:$J$52),ROW($J$23:$J$52)),""),ROWS($A$23:A61)))),"") ->  | Q61: =IFERROR(IF($Q$21="Yes",INDEX($L$23:$L$2323,SMALL(IF((County=$M$23:$M$2323),MATCH(ROW($M$23:$M$2323),ROW($M$23:$M$2323)),""),ROWS($A$23:A61))),""),"") ->  | S61: 32707 | T61: Seminole | V61: 4.01 | W61: Lee | AB61: 2.08 | AC61: Palm Beach | AE61: Marion | AF61: 2022-032C | AG61: Madison Oaks West | AH61: 29.221194 | AI61: -82.162833 | AJ61: F | AK61: N | AL61: Marion - Madison Oaks West | AM61: Family | AN61: (29.221194, -82.162833) | AO61: >30
A62: 33351 | B62: Broward | D62: Located entirely in a GAO & SADDA | F62: 303.01 | G62: Broward | L62: 15.01 | M62: Bay | O62: =IFERROR(IF($O$21="Metro",INDEX($F$23:$F$748,SMALL(IF((County=$G$23:$G$748),MATCH(ROW($G$23:$G$748),ROW($G$23:$G$748)),""),ROWS($A$23:A62))),INDEX($I$23:$I$52,SMALL(IF((County=$J$23:$J$52),MATCH(ROW($J$23:$J$52),ROW($J$23:$J$52)),""),ROWS($A$23:A62)))),"") ->  | Q62: =IFERROR(IF($Q$21="Yes",INDEX($L$23:$L$2323,SMALL(IF((County=$M$23:$M$2323),MATCH(ROW($M$23:$M$2323),ROW($M$23:$M$2323)),""),ROWS($A$23:A62))),""),"") ->  | S62: 32708 | T62: Seminole | V62: 4.01 | W62: Marion | AB62: 2.09 | AC62: Palm Beach | AE62: Monroe | AF62: 2021-320CS | AG62: Coco Vista - sites 1-2 | AH62: 24.726161 | AI62: -81.013914 | AJ62: W | AK62: N | AL62: Monroe - Coco Vista - sites 1-2 | AM62: Workforce | AN62: (24.726161, -81.013914) | AO62: >30
A63: 33442 | B63: Broward | F63: 303.02 | G63: Broward | L63: 19 | M63: Bay | O63: =IFERROR(IF($O$21="Metro",INDEX($F$23:$F$748,SMALL(IF((County=$G$23:$G$748),MATCH(ROW($G$23:$G$748),ROW($G$23:$G$748)),""),ROWS($A$23:A63))),INDEX($I$23:$I$52,SMALL(IF((County=$J$23:$J$52),MATCH(ROW($J$23:$J$52),ROW($J$23:$J$52)),""),ROWS($A$23:A63)))),"") ->  | Q63: =IFERROR(IF($Q$21="Yes",INDEX($L$23:$L$2323,SMALL(IF((County=$M$23:$M$2323),MATCH(ROW($M$23:$M$2323),ROW($M$23:$M$2323)),""),ROWS($A$23:A63))),""),"") ->  | S63: 32712 | T63: Orange | V63: 4.02 | W63: Hillsborough | AB63: 2.1 | AC63: Palm Beach | AE63: Monroe | AF63: 2022-265CS | AG63: Lofts at Bahama Village | AH63: 24.550029 | AI63: -81.805184 | AJ63: W | AK63: N | AL63: Monroe - Lofts at Bahama Village | AM63: Workforce | AN63: (24.550029, -81.805184) | AO63: >30
A64: 33946 | B64: Charlotte | F64: 304.02 | G64: Broward | L64: 25 | M64: Bay | O64: =IFERROR(IF($O$21="Metro",INDEX($F$23:$F$748,SMALL(IF((County=$G$23:$G$748),MATCH(ROW($G$23:$G$748),ROW($G$23:$G$748)),""),ROWS($A$23:A64))),INDEX($I$23:$I$52,SMALL(IF((County=$J$23:$J$52),MATCH(ROW($J$23:$J$52),ROW($J$23:$J$52)),""),ROWS($A$23:A64)))),"") ->  | Q64: =IFERROR(IF($Q$21="Yes",INDEX($L$23:$L$2323,SMALL(IF((County=$M$23:$M$2323),MATCH(ROW($M$23:$M$2323),ROW($M$23:$M$2323)),""),ROWS($A$23:A64))),""),"") ->  | S64: 32714 | T64: Seminole | V64: 4.02 | W64: Marion | AB64: 2.11 | AC64: Miami-Dade | AE64: Okaloosa | AF64: 2021-130C | AG64: Arbours at Crestview | AH64: 30.739277 | AI64: -86.556075 | AJ64: F | AK64: N | AL64: Okaloosa - Arbours at Crestview | AM64: Family | AN64: (30.739277, -86.556075) | AO64: >30
A65: 33947 | B65: Charlotte | F65: 305 | G65: Broward | L65: 26.01 | M65: Bay | O65: =IFERROR(IF($O$21="Metro",INDEX($F$23:$F$748,SMALL(IF((County=$G$23:$G$748),MATCH(ROW($G$23:$G$748),ROW($G$23:$G$748)),""),ROWS($A$23:A65))),INDEX($I$23:$I$52,SMALL(IF((County=$J$23:$J$52),MATCH(ROW($J$23:$J$52),ROW($J$23:$J$52)),""),ROWS($A$23:A65)))),"") ->  | Q65: =IFERROR(IF($Q$21="Yes",INDEX($L$23:$L$2323,SMALL(IF((County=$M$23:$M$2323),MATCH(ROW($M$23:$M$2323),ROW($M$23:$M$2323)),""),ROWS($A$23:A65))),""),"") ->  | S65: 32725 | T65: Volusia | V65: 4.02 | W65: Miami-Dade | AB65: 2.11 | AC65: Palm Beach | AE65: Okaloosa | AF65: 2022-146BSN | AG65: Princeton Grove | AH65: 30.742883 | AI65: -86.556236 | AJ65: E | AK65: N | AL65: Okaloosa - Princeton Grove | AM65: Elderly, Non-ALF | AN65: (30.742883, -86.556236) | AO65: >30
A66: 33954 | B66: Charlotte | F66: 308.01 | G66: Broward | L66: 26.04 | M66: Bay | O66: =IFERROR(IF($O$21="Metro",INDEX($F$23:$F$748,SMALL(IF((County=$G$23:$G$748),MATCH(ROW($G$23:$G$748),ROW($G$23:$G$748)),""),ROWS($A$23:A66))),INDEX($I$23:$I$52,SMALL(IF((County=$J$23:$J$52),MATCH(ROW($J$23:$J$52),ROW($J$23:$J$52)),""),ROWS($A$23:A66)))),"") ->  | Q66: =IFERROR(IF($Q$21="Yes",INDEX($L$23:$L$2323,SMALL(IF((County=$M$23:$M$2323),MATCH(ROW($M$23:$M$2323),ROW($M$23:$M$2323)),""),ROWS($A$23:A66))),""),"") ->  | S66: 32732 | T66: Seminole | V66: 4.03 | W66: Miami-Dade | AB66: 2.13 | AC66: Miami-Dade | AE66: Okaloosa | AF66: 2020-250C | AG66: Shoreline Villas | AH66: 30.427481 | AI66: -86.652214 | AJ66: E | AK66: N | AL66: Okaloosa - Shoreline Villas | AM66: Elderly, Non-ALF | AN66: (30.427481, -86.652214) | AO66: >30
A67: 33955 | B67: Charlotte | F67: 408.01 | G67: Broward | L67: 26.06 | M67: Bay | O67: =IFERROR(IF($O$21="Metro",INDEX($F$23:$F$748,SMALL(IF((County=$G$23:$G$748),MATCH(ROW($G$23:$G$748),ROW($G$23:$G$748)),""),ROWS($A$23:A67))),INDEX($I$23:$I$52,SMALL(IF((County=$J$23:$J$52),MATCH(ROW($J$23:$J$52),ROW($J$23:$J$52)),""),ROWS($A$23:A67)))),"") ->  | Q67: =IFERROR(IF($Q$21="Yes",INDEX($L$23:$L$2323,SMALL(IF((County=$M$23:$M$2323),MATCH(ROW($M$23:$M$2323),ROW($M$23:$M$2323)),""),ROWS($A$23:A67))),""),"") ->  | S67: 32735 | T67: Lake | V67: 4.06 | W67: Sarasota | AB67: 2.14 | AC67: Miami-Dade | AE67: Osceola | AF67: 2022-186S | AG67: Falcon Trace II | AH67: 28.265356 | AI67: -81.485287 | AJ67: F | AK67: N | AL67: Osceola - Falcon Trace II | AM67: Family | AN67: (28.265356, -81.485287) | AO67: >30
A68: 33981 | B68: Charlotte | F68: 409.01 | G68: Broward | L68: 26.07 | M68: Bay | O68: =IFERROR(IF($O$21="Metro",INDEX($F$23:$F$748,SMALL(IF((County=$G$23:$G$748),MATCH(ROW($G$23:$G$748),ROW($G$23:$G$748)),""),ROWS($A$23:A68))),INDEX($I$23:$I$52,SMALL(IF((County=$J$23:$J$52),MATCH(ROW($J$23:$J$52),ROW($J$23:$J$52)),""),ROWS($A$23:A68)))),"") ->  | Q68: =IFERROR(IF($Q$21="Yes",INDEX($L$23:$L$2323,SMALL(IF((County=$M$23:$M$2323),MATCH(ROW($M$23:$M$2323),ROW($M$23:$M$2323)),""),ROWS($A$23:A68))),""),"") ->  | S68: 32746 | T68: Seminole | V68: 4.08 | W68: Miami-Dade | AB68: 2.14 | AC68: Palm Beach | AE68: Osceola | AF68: 2022-060C | AG68: Madison Grove | AH68: 28.229972 | AI68: -81.307528 | AJ68: E | AK68: N | AL68: Osceola - Madison Grove | AM68: Elderly, Non-ALF | AN68: (28.229972, -81.307528) | AO68: >30
A69: 34429 | B69: Citrus | F69: 409.02 | G69: Broward | L69: 26.08 | M69: Bay | O69: =IFERROR(IF($O$21="Metro",INDEX($F$23:$F$748,SMALL(IF((County=$G$23:$G$748),MATCH(ROW($G$23:$G$748),ROW($G$23:$G$748)),""),ROWS($A$23:A69))),INDEX($I$23:$I$52,SMALL(IF((County=$J$23:$J$52),MATCH(ROW($J$23:$J$52),ROW($J$23:$J$52)),""),ROWS($A$23:A69)))),"") ->  | Q69: =IFERROR(IF($Q$21="Yes",INDEX($L$23:$L$2323,SMALL(IF((County=$M$23:$M$2323),MATCH(ROW($M$23:$M$2323),ROW($M$23:$M$2323)),""),ROWS($A$23:A69))),""),"") ->  | S69: 32750 | T69: Seminole | V69: 4.11 | W69: Miami-Dade | AB69: 2.15 | AC69: Palm Beach | AE69: Osceola | AF69: 2021-098C | AG69: Pinnacle at the Wesleyan | AH69: 28.308365 | AI69: -81.448998 | AJ69: F | AK69: N | AL69: Osceola - Pinnacle at the Wesleyan | AM69: Family | AN69: (28.308365, -81.448998) | AO69: >30
A70: 34434 | B70: Citrus | F70: 410 | G70: Broward | L70: 27.01 | M70: Bay | O70: =IFERROR(IF($O$21="Metro",INDEX($F$23:$F$748,SMALL(IF((County=$G$23:$G$748),MATCH(ROW($G$23:$G$748),ROW($G$23:$G$748)),""),ROWS($A$23:A70))),INDEX($I$23:$I$52,SMALL(IF((County=$J$23:$J$52),MATCH(ROW($J$23:$J$52),ROW($J$23:$J$52)),""),ROWS($A$23:A70)))),"") ->  | Q70: =IFERROR(IF($Q$21="Yes",INDEX($L$23:$L$2323,SMALL(IF((County=$M$23:$M$2323),MATCH(ROW($M$23:$M$2323),ROW($M$23:$M$2323)),""),ROWS($A$23:A70))),""),"") ->  | S70: 32751 | T70: Orange | V70: 4.12 | W70: Miami-Dade | AB70: 3 | AC70: Bradford | AE70: Osceola | AF70: 2021-206BS | AG70: Rosewood Pointe | AH70: 28.310184 | AI70: -81.454539 | AJ70: F | AK70: N | AL70: Osceola - Rosewood Pointe | AM70: Family | AN70: (28.310184, -81.454539) | AO70: >30
A71: 34446 | B71: Citrus | F71: 412 | G71: Broward | L71: 27.02 | M71: Bay | O71: =IFERROR(IF($O$21="Metro",INDEX($F$23:$F$748,SMALL(IF((County=$G$23:$G$748),MATCH(ROW($G$23:$G$748),ROW($G$23:$G$748)),""),ROWS($A$23:A71))),INDEX($I$23:$I$52,SMALL(IF((County=$J$23:$J$52),MATCH(ROW($J$23:$J$52),ROW($J$23:$J$52)),""),ROWS($A$23:A71)))),"") ->  | Q71: =IFERROR(IF($Q$21="Yes",INDEX($L$23:$L$2323,SMALL(IF((County=$M$23:$M$2323),MATCH(ROW($M$23:$M$2323),ROW($M$23:$M$2323)),""),ROWS($A$23:A71))),""),"") ->  | S71: 32765 | T71: Seminole | V71: 4.14 | W71: Miami-Dade | AB71: 3.01 | AC71: Collier | AE71: Osceola | AF71: 2021-110B | AG71: The Salix on Vine | AH71: 28.310379 | AI71: -81.460538 | AJ71: F | AK71: N | AL71: Osceola - The Salix on Vine | AM71: Family | AN71: (28.310379, -81.460538) | AO71: >30
A72: 34453 | B72: Citrus | F72: 413 | G72: Broward | L72: 27.03 | M72: Bay | O72: =IFERROR(IF($O$21="Metro",INDEX($F$23:$F$748,SMALL(IF((County=$G$23:$G$748),MATCH(ROW($G$23:$G$748),ROW($G$23:$G$748)),""),ROWS($A$23:A72))),INDEX($I$23:$I$52,SMALL(IF((County=$J$23:$J$52),MATCH(ROW($J$23:$J$52),ROW($J$23:$J$52)),""),ROWS($A$23:A72)))),"") ->  | Q72: =IFERROR(IF($Q$21="Yes",INDEX($L$23:$L$2323,SMALL(IF((County=$M$23:$M$2323),MATCH(ROW($M$23:$M$2323),ROW($M$23:$M$2323)),""),ROWS($A$23:A72))),""),"") ->  | S72: 32766 | T72: Seminole | V72: 5 | W72: Leon | AB72: 3.01 | AC72: Leon | AE72: Pasco | AF72: 2022-030C | AG72: Oaks at Green Key Apartments | AH72: 28.253897 | AI72: -82.730421 | AJ72: F | AK72: N | AL72: Pasco - Oaks at Green Key Apartments | AM72: Family | AN72: (28.253897, -82.730421) | AO72: >30
A73: 32003 | B73: Clay | F73: 414 | G73: Broward | L73: 27.04 | M73: Bay | O73: =IFERROR(IF($O$21="Metro",INDEX($F$23:$F$748,SMALL(IF((County=$G$23:$G$748),MATCH(ROW($G$23:$G$748),ROW($G$23:$G$748)),""),ROWS($A$23:A73))),INDEX($I$23:$I$52,SMALL(IF((County=$J$23:$J$52),MATCH(ROW($J$23:$J$52),ROW($J$23:$J$52)),""),ROWS($A$23:A73)))),"") ->  | Q73: =IFERROR(IF($Q$21="Yes",INDEX($L$23:$L$2323,SMALL(IF((County=$M$23:$M$2323),MATCH(ROW($M$23:$M$2323),ROW($M$23:$M$2323)),""),ROWS($A$23:A73))),""),"") ->  | S73: 32776 | T73: Lake | V73: 5.01 | W73: Miami-Dade | AB73: 3.01 | AC73: Marion | AE73: Pasco | AF73: 2021-081C | AG73: Tanager Square | AH73: 28.215907 | AI73: -82.679583 | AJ73: F | AK73: N | AL73: Pasco - Tanager Square | AM73: Family | AN73: (28.215907, -82.679583) | AO73: >30
A74: 34103 | B74: Collier | F74: 415 | G74: Broward | L74: 27.05 | M74: Bay | O74: =IFERROR(IF($O$21="Metro",INDEX($F$23:$F$748,SMALL(IF((County=$G$23:$G$748),MATCH(ROW($G$23:$G$748),ROW($G$23:$G$748)),""),ROWS($A$23:A74))),INDEX($I$23:$I$52,SMALL(IF((County=$J$23:$J$52),MATCH(ROW($J$23:$J$52),ROW($J$23:$J$52)),""),ROWS($A$23:A74)))),"") ->  | Q74: =IFERROR(IF($Q$21="Yes",INDEX($L$23:$L$2323,SMALL(IF((County=$M$23:$M$2323),MATCH(ROW($M$23:$M$2323),ROW($M$23:$M$2323)),""),ROWS($A$23:A74))),""),"") ->  | S74: 32779 | T74: Seminole | V74: 5.02 | W74: Lee | AB74: 3.01 | AC74: Palm Beach | AE74: Polk | AF74: 2022-029C | AG74: Florence Place | AH74: 28.042382 | AI74: -81.727389 | AJ74: F | AK74: N | AL74: Polk - Florence Place | AM74: Family | AN74: (28.042382, -81.727389) | AO74: >30
A75: 34105 | B75: Collier | F75: 416 | G75: Broward | L75: 2 | M75: Bradford | O75: =IFERROR(IF($O$21="Metro",INDEX($F$23:$F$748,SMALL(IF((County=$G$23:$G$748),MATCH(ROW($G$23:$G$748),ROW($G$23:$G$748)),""),ROWS($A$23:A75))),INDEX($I$23:$I$52,SMALL(IF((County=$J$23:$J$52),MATCH(ROW($J$23:$J$52),ROW($J$23:$J$52)),""),ROWS($A$23:A75)))),"") ->  | Q75: =IFERROR(IF($Q$21="Yes",INDEX($L$23:$L$2323,SMALL(IF((County=$M$23:$M$2323),MATCH(ROW($M$23:$M$2323),ROW($M$23:$M$2323)),""),ROWS($A$23:A75))),""),"") ->  | S75: 32789 | T75: Orange | V75: 5.02 | W75: Marion | AB75: 3.02 | AC75: Collier | AE75: Polk | AF75: 2020-308C | AG75: Park Ridge, f/k/a Oak Park Villas | AH75: 27.933172 | AI75: -81.965697 | AJ75: F | AK75: N | AL75: Polk - Park Ridge, f/k/a Oak Park Villas | AM75: Family | AN75: (27.933172, -81.965697) | AO75: >30
A76: 34108 | B76: Collier | F76: 417 | G76: Broward | L76: 3 | M76: Bradford | O76: =IFERROR(IF($O$21="Metro",INDEX($F$23:$F$748,SMALL(IF((County=$G$23:$G$748),MATCH(ROW($G$23:$G$748),ROW($G$23:$G$748)),""),ROWS($A$23:A76))),INDEX($I$23:$I$52,SMALL(IF((County=$J$23:$J$52),MATCH(ROW($J$23:$J$52),ROW($J$23:$J$52)),""),ROWS($A$23:A76)))),"") ->  | Q76: =IFERROR(IF($Q$21="Yes",INDEX($L$23:$L$2323,SMALL(IF((County=$M$23:$M$2323),MATCH(ROW($M$23:$M$2323),ROW($M$23:$M$2323)),""),ROWS($A$23:A76))),""),"") ->  | S76: 32792 | T76: Orange | V76: 5.03 | W76: Miami-Dade | AB76: 3.02 | AC76: Leon | AE76: Polk | AF76: 2021-108C | AG76: Swan Landing | AH76: 28.08027 | AI76: -81.988982 | AJ76: F | AK76: N | AL76: Polk - Swan Landing | AM76: Family | AN76: (28.08027, -81.988982) | AO76: >30
A77: 34110 | B77: Collier | F77: 428 | G77: Broward | L77: 602 | M77: Brevard | O77: =IFERROR(IF($O$21="Metro",INDEX($F$23:$F$748,SMALL(IF((County=$G$23:$G$748),MATCH(ROW($G$23:$G$748),ROW($G$23:$G$748)),""),ROWS($A$23:A77))),INDEX($I$23:$I$52,SMALL(IF((County=$J$23:$J$52),MATCH(ROW($J$23:$J$52),ROW($J$23:$J$52)),""),ROWS($A$23:A77)))),"") ->  | Q77: =IFERROR(IF($Q$21="Yes",INDEX($L$23:$L$2323,SMALL(IF((County=$M$23:$M$2323),MATCH(ROW($M$23:$M$2323),ROW($M$23:$M$2323)),""),ROWS($A$23:A77))),""),"") ->  | S77: 32801 | T77: Orange | V77: 5.04 | W77: Lee | AB77: 3.03 | AC77: Palm Beach | AE77: Saint Johns | AF77: 2022-043C | AG77: Villages of New Augustine - sites 1-3 | AH77: 29.89136 | AI77: -81.344566 | AJ77: F | AK77: N | AL77: Saint Johns - Villages of New Augustine - sites 1-3 | AM77: Family | AN77: (29.89136, -81.344566) | AO77: >30
A78: 34117 | B78: Collier | F78: 433.02 | G78: Broward | L78: 611 | M78: Brevard | O78: =IFERROR(IF($O$21="Metro",INDEX($F$23:$F$748,SMALL(IF((County=$G$23:$G$748),MATCH(ROW($G$23:$G$748),ROW($G$23:$G$748)),""),ROWS($A$23:A78))),INDEX($I$23:$I$52,SMALL(IF((County=$J$23:$J$52),MATCH(ROW($J$23:$J$52),ROW($J$23:$J$52)),""),ROWS($A$23:A78)))),"") ->  | Q78: =IFERROR(IF($Q$21="Yes",INDEX($L$23:$L$2323,SMALL(IF((County=$M$23:$M$2323),MATCH(ROW($M$23:$M$2323),ROW($M$23:$M$2323)),""),ROWS($A$23:A78))),""),"") ->  | S78: 32803 | T78: Orange | V78: 5.04 | W78: Miami-Dade | AB78: 3.04 | AC78: Palm Beach | AE78: Saint Lucie | AF78: 2021-090C | AG78: Blue Sky Landing II | AH78: 27.423637 | AI78: -80.377466 | AJ78: F | AK78: N | AL78: Saint Lucie - Blue Sky Landing II | AM78: Family | AN78: (27.423637, -80.377466) | AO78: >30
A79: 34119 | B79: Collier | F79: 502.08 | G79: Broward | L79: 612.01 | M79: Brevard | O79: =IFERROR(IF($O$21="Metro",INDEX($F$23:$F$748,SMALL(IF((County=$G$23:$G$748),MATCH(ROW($G$23:$G$748),ROW($G$23:$G$748)),""),ROWS($A$23:A79))),INDEX($I$23:$I$52,SMALL(IF((County=$J$23:$J$52),MATCH(ROW($J$23:$J$52),ROW($J$23:$J$52)),""),ROWS($A$23:A79)))),"") ->  | Q79: =IFERROR(IF($Q$21="Yes",INDEX($L$23:$L$2323,SMALL(IF((County=$M$23:$M$2323),MATCH(ROW($M$23:$M$2323),ROW($M$23:$M$2323)),""),ROWS($A$23:A79))),""),"") ->  | S79: 32804 | T79: Orange | V79: 5.05 | W79: Miami-Dade | AB79: 3.07 | AC79: Miami-Dade | AE79: Santa Rosa | AF79: 2020-173C | AG79: Tranquility at Milton | AH79: 30.615003 | AI79: -87.058692 | AJ79: F | AK79: N | AL79: Santa Rosa - Tranquility at Milton | AM79: Family | AN79: (30.615003, -87.058692) | AO79: >30
A80: 34120 | B80: Collier | F80: 503.07 | G80: Broward | L80: 612.02 | M80: Brevard | O80: =IFERROR(IF($O$21="Metro",INDEX($F$23:$F$748,SMALL(IF((County=$G$23:$G$748),MATCH(ROW($G$23:$G$748),ROW($G$23:$G$748)),""),ROWS($A$23:A80))),INDEX($I$23:$I$52,SMALL(IF((County=$J$23:$J$52),MATCH(ROW($J$23:$J$52),ROW($J$23:$J$52)),""),ROWS($A$23:A80)))),"") ->  | Q80: =IFERROR(IF($Q$21="Yes",INDEX($L$23:$L$2323,SMALL(IF((County=$M$23:$M$2323),MATCH(ROW($M$23:$M$2323),ROW($M$23:$M$2323)),""),ROWS($A$23:A80))),""),"") ->  | S80: 32812 | T80: Orange | V80: 6 | W80: Duval | AB80: 4 | AC80: Martin | AE80: Sarasota | AF80: 2021-253BSN | AG80: Arbor Park | AH80: 27.065444 | AI80: -82.159956 | AJ80: E | AK80: N | AL80: Sarasota - Arbor Park | AM80: Elderly, Non-ALF | AN80: (27.065444, -82.159956) | AO80: >30
A81: 34140 | B81: Collier | F81: 503.08 | G81: Broward | L81: 621.03 | M81: Brevard | O81: =IFERROR(IF($O$21="Metro",INDEX($F$23:$F$748,SMALL(IF((County=$G$23:$G$748),MATCH(ROW($G$23:$G$748),ROW($G$23:$G$748)),""),ROWS($A$23:A81))),INDEX($I$23:$I$52,SMALL(IF((County=$J$23:$J$52),MATCH(ROW($J$23:$J$52),ROW($J$23:$J$52)),""),ROWS($A$23:A81)))),"") ->  | Q81: =IFERROR(IF($Q$21="Yes",INDEX($L$23:$L$2323,SMALL(IF((County=$M$23:$M$2323),MATCH(ROW($M$23:$M$2323),ROW($M$23:$M$2323)),""),ROWS($A$23:A81))),""),"") ->  | S81: 32814 | T81: Orange | V81: 6 | W81: Escambia | AB81: 4.01 | AC81: Collier | AE81: Sarasota | AF81: 2020-313C | AG81: Cypress Square fka Amaryllis Park Place II | AH81: 27.355917 | AI81: -82.537167 | AJ81: F | AK81: N | AL81: Sarasota - Cypress Square fka Amaryllis Park Place II | AM81: Family | AN81: (27.355917, -82.537167) | AO81: >30
A82: 34145 | B82: Collier | F82: 503.09 | G82: Broward | L82: 621.08 | M82: Brevard | O82: =IFERROR(IF($O$21="Metro",INDEX($F$23:$F$748,SMALL(IF((County=$G$23:$G$748),MATCH(ROW($G$23:$G$748),ROW($G$23:$G$748)),""),ROWS($A$23:A82))),INDEX($I$23:$I$52,SMALL(IF((County=$J$23:$J$52),MATCH(ROW($J$23:$J$52),ROW($J$23:$J$52)),""),ROWS($A$23:A82)))),"") ->  | Q82: =IFERROR(IF($Q$21="Yes",INDEX($L$23:$L$2323,SMALL(IF((County=$M$23:$M$2323),MATCH(ROW($M$23:$M$2323),ROW($M$23:$M$2323)),""),ROWS($A$23:A82))),""),"") ->  | S82: 32817 | T82: Orange | V82: 6 | W82: Lee | AB82: 4.01 | AC82: Hendry | AE82: Seminole | AF82: 2022-022C | AG82: Banyan East Town Apartments | AH82: 28.668277 | AI82: -81.357022 | AJ82: F | AK82: N | AL82: Seminole - Banyan East Town Apartments | AM82: Family | AN82: (28.668277, -81.357022) | AO82: >30
A83: 32212 | B83: Duval | F83: 503.11 | G83: Broward | L83: 621.09 | M83: Brevard | O83: =IFERROR(IF($O$21="Metro",INDEX($F$23:$F$748,SMALL(IF((County=$G$23:$G$748),MATCH(ROW($G$23:$G$748),ROW($G$23:$G$748)),""),ROWS($A$23:A83))),INDEX($I$23:$I$52,SMALL(IF((County=$J$23:$J$52),MATCH(ROW($J$23:$J$52),ROW($J$23:$J$52)),""),ROWS($A$23:A83)))),"") ->  | Q83: =IFERROR(IF($Q$21="Yes",INDEX($L$23:$L$2323,SMALL(IF((County=$M$23:$M$2323),MATCH(ROW($M$23:$M$2323),ROW($M$23:$M$2323)),""),ROWS($A$23:A83))),""),"") ->  | S83: 32819 | T83: Orange | V83: 6 | W83: Leon | AB83: 4.02 | AC83: Collier | AE83: Seminole | AF83: 2021-083C | AG83: Monroe Place | AH83: 28.813414 | AI83: -81.292023 | AJ83: E | AK83: N | AL83: Seminole - Monroe Place | AM83: Elderly, Non-ALF | AN83: (28.813414, -81.292023) | AO83: >30
A84: 32222 | B84: Duval | F84: 507.02 | G84: Broward | L84: 628 | M84: Brevard | O84: =IFERROR(IF($O$21="Metro",INDEX($F$23:$F$748,SMALL(IF((County=$G$23:$G$748),MATCH(ROW($G$23:$G$748),ROW($G$23:$G$748)),""),ROWS($A$23:A84))),INDEX($I$23:$I$52,SMALL(IF((County=$J$23:$J$52),MATCH(ROW($J$23:$J$52),ROW($J$23:$J$52)),""),ROWS($A$23:A84)))),"") ->  | Q84: =IFERROR(IF($Q$21="Yes",INDEX($L$23:$L$2323,SMALL(IF((County=$M$23:$M$2323),MATCH(ROW($M$23:$M$2323),ROW($M$23:$M$2323)),""),ROWS($A$23:A84))),""),"") ->  | S84: 32820 | T84: Orange | V84: 6.01 | W84: Hillsborough | AB84: 4.02 | AC84: Hendry | AE84: Seminole | AF84: 2021-255SN | AG84: Somerset Landings | AH84: 28.809565 | AI84: -81.281761 | AJ84: F | AK84: N | AL84: Seminole - Somerset Landings | AM84: Family | AN84: (28.809565, -81.281761) | AO84: >30
A85: 32224 | B85: Duval | F85: 508 | G85: Broward | L85: 630 | M85: Brevard | O85: =IFERROR(IF($O$21="Metro",INDEX($F$23:$F$748,SMALL(IF((County=$G$23:$G$748),MATCH(ROW($G$23:$G$748),ROW($G$23:$G$748)),""),ROWS($A$23:A85))),INDEX($I$23:$I$52,SMALL(IF((County=$J$23:$J$52),MATCH(ROW($J$23:$J$52),ROW($J$23:$J$52)),""),ROWS($A$23:A85)))),"") ->  | Q85: =IFERROR(IF($Q$21="Yes",INDEX($L$23:$L$2323,SMALL(IF((County=$M$23:$M$2323),MATCH(ROW($M$23:$M$2323),ROW($M$23:$M$2323)),""),ROWS($A$23:A85))),""),"") ->  | S85: 32821 | T85: Orange | V85: 6.01 | W85: Miami-Dade | AB85: 4.03 | AC85: Manatee | AE85: Volusia | AF85: 2022-075C | AG85: Bristol Manor | AH85: 28.916706 | AI85: -81.275325 | AJ85: E | AK85: N | AL85: Volusia - Bristol Manor | AM85: Elderly, Non-ALF | AN85: (28.916706, -81.275325) | AO85: >30
A86: 32226 | B86: Duval | F86: 602.03 | G86: Broward | L86: 631.02 | M86: Brevard | O86: =IFERROR(IF($O$21="Metro",INDEX($F$23:$F$748,SMALL(IF((County=$G$23:$G$748),MATCH(ROW($G$23:$G$748),ROW($G$23:$G$748)),""),ROWS($A$23:A86))),INDEX($I$23:$I$52,SMALL(IF((County=$J$23:$J$52),MATCH(ROW($J$23:$J$52),ROW($J$23:$J$52)),""),ROWS($A$23:A86)))),"") ->  | Q86: =IFERROR(IF($Q$21="Yes",INDEX($L$23:$L$2323,SMALL(IF((County=$M$23:$M$2323),MATCH(ROW($M$23:$M$2323),ROW($M$23:$M$2323)),""),ROWS($A$23:A86))),""),"") ->  | S86: 32824 | T86: Orange | V86: 6.02 | W86: Hillsborough | AB86: 4.04 | AC86: Sarasota | AE86: Volusia | AF86: 2020-311C | AG86: Greenlawn Manor, f/k/a Westside Phase I - sites 1-3 | AH86: 29.0287278 | AI86: -80.9377917 | AJ86: E | AK86: N | AL86: Volusia - Greenlawn Manor, f/k/a Westside Phase I - sites 1-3 | AM86: Elderly, Non-ALF | AN86: (29.0287278, -80.9377917) | AO86: >30
A87: 32227 | B87: Duval | F87: 603.02 | G87: Broward | L87: 631.04 | M87: Brevard | O87: =IFERROR(IF($O$21="Metro",INDEX($F$23:$F$748,SMALL(IF((County=$G$23:$G$748),MATCH(ROW($G$23:$G$748),ROW($G$23:$G$748)),""),ROWS($A$23:A87))),INDEX($I$23:$I$52,SMALL(IF((County=$J$23:$J$52),MATCH(ROW($J$23:$J$52),ROW($J$23:$J$52)),""),ROWS($A$23:A87)))),"") ->  | Q87: =IFERROR(IF($Q$21="Yes",INDEX($L$23:$L$2323,SMALL(IF((County=$M$23:$M$2323),MATCH(ROW($M$23:$M$2323),ROW($M$23:$M$2323)),""),ROWS($A$23:A87))),""),"") ->  | S87: 32827 | T87: Orange | V87: 6.02 | W87: Miami-Dade | AB87: 4.05 | AC87: Manatee | AE87: Wakulla | AF87: 2021-288H | AG87: Greyes Place Phase II | AH87: 30.173934 | AI87: -84.379789 | AJ87: F | AK87: Y | AL87: Wakulla - Greyes Place Phase II | AM87: Family | AN87: (30.173934, -84.379789) | AO87: <31
A88: 32228 | B88: Duval | F88: 603.03 | G88: Broward | L88: 631.05 | M88: Brevard | O88: =IFERROR(IF($O$21="Metro",INDEX($F$23:$F$748,SMALL(IF((County=$G$23:$G$748),MATCH(ROW($G$23:$G$748),ROW($G$23:$G$748)),""),ROWS($A$23:A88))),INDEX($I$23:$I$52,SMALL(IF((County=$J$23:$J$52),MATCH(ROW($J$23:$J$52),ROW($J$23:$J$52)),""),ROWS($A$23:A88)))),"") ->  | Q88: =IFERROR(IF($Q$21="Yes",INDEX($L$23:$L$2323,SMALL(IF((County=$M$23:$M$2323),MATCH(ROW($M$23:$M$2323),ROW($M$23:$M$2323)),""),ROWS($A$23:A88))),""),"") ->  | S88: 32828 | T88: Orange | V88: 6.03 | W88: Miami-Dade | AB88: 4.05 | AC88: Palm Beach | AE88: Walton | AF88: 2021-136C | AG88: Rosemary Place | AH88: 30.506656 | AI88: -86.137402 | AJ88: F | AK88: N | AL88: Walton - Rosemary Place | AM88: Family | AN88: (30.506656, -86.137402) | AO88: >30
A89: 32256 | B89: Duval | F89: 603.04 | G89: Broward | L89: 631.06 | M89: Brevard | O89: =IFERROR(IF($O$21="Metro",INDEX($F$23:$F$748,SMALL(IF((County=$G$23:$G$748),MATCH(ROW($G$23:$G$748),ROW($G$23:$G$748)),""),ROWS($A$23:A89))),INDEX($I$23:$I$52,SMALL(IF((County=$J$23:$J$52),MATCH(ROW($J$23:$J$52),ROW($J$23:$J$52)),""),ROWS($A$23:A89)))),"") ->  | Q89: =IFERROR(IF($Q$21="Yes",INDEX($L$23:$L$2323,SMALL(IF((County=$M$23:$M$2323),MATCH(ROW($M$23:$M$2323),ROW($M$23:$M$2323)),""),ROWS($A$23:A89))),""),"") ->  | S89: 32829 | T89: Orange | V89: 6.04 | W89: Manatee | AB89: 4.05 | AC89: Sarasota
A90: 32258 | B90: Duval | F90: 604.01 | G90: Broward | L90: 631.07 | M90: Brevard | O90: =IFERROR(IF($O$21="Metro",INDEX($F$23:$F$748,SMALL(IF((County=$G$23:$G$748),MATCH(ROW($G$23:$G$748),ROW($G$23:$G$748)),""),ROWS($A$23:A90))),INDEX($I$23:$I$52,SMALL(IF((County=$J$23:$J$52),MATCH(ROW($J$23:$J$52),ROW($J$23:$J$52)),""),ROWS($A$23:A90)))),"") ->  | Q90: =IFERROR(IF($Q$21="Yes",INDEX($L$23:$L$2323,SMALL(IF((County=$M$23:$M$2323),MATCH(ROW($M$23:$M$2323),ROW($M$23:$M$2323)),""),ROWS($A$23:A90))),""),"") ->  | S90: 32831 | T90: Orange | V90: 6.04 | W90: Marion | AB90: 4.06 | AC90: Palm Beach
A91: 32266 | B91: Duval | F91: 611 | G91: Broward | L91: 641.02 | M91: Brevard | O91: =IFERROR(IF($O$21="Metro",INDEX($F$23:$F$748,SMALL(IF((County=$G$23:$G$748),MATCH(ROW($G$23:$G$748),ROW($G$23:$G$748)),""),ROWS($A$23:A91))),INDEX($I$23:$I$52,SMALL(IF((County=$J$23:$J$52),MATCH(ROW($J$23:$J$52),ROW($J$23:$J$52)),""),ROWS($A$23:A91)))),"") ->  | Q91: =IFERROR(IF($Q$21="Yes",INDEX($L$23:$L$2323,SMALL(IF((County=$M$23:$M$2323),MATCH(ROW($M$23:$M$2323),ROW($M$23:$M$2323)),""),ROWS($A$23:A91))),""),"") ->  | S91: 32832 | T91: Orange | V91: 6.05 | W91: Marion | AB91: 4.07 | AC91: Manatee
A92: 32508 | B92: Escambia | F92: 805 | G92: Broward | L92: 641.23 | M92: Brevard | O92: =IFERROR(IF($O$21="Metro",INDEX($F$23:$F$748,SMALL(IF((County=$G$23:$G$748),MATCH(ROW($G$23:$G$748),ROW($G$23:$G$748)),""),ROWS($A$23:A92))),INDEX($I$23:$I$52,SMALL(IF((County=$J$23:$J$52),MATCH(ROW($J$23:$J$52),ROW($J$23:$J$52)),""),ROWS($A$23:A92)))),"") ->  | Q92: =IFERROR(IF($Q$21="Yes",INDEX($L$23:$L$2323,SMALL(IF((County=$M$23:$M$2323),MATCH(ROW($M$23:$M$2323),ROW($M$23:$M$2323)),""),ROWS($A$23:A92))),""),"") ->  | S92: 32833 | T92: Orange | V92: 6.05 | W92: Miami-Dade | AB92: 4.07 | AC92: Palm Beach
A93: 32456 | B93: Gulf | F93: 903.01 | G93: Broward | L93: 641.25 | M93: Brevard | O93: =IFERROR(IF($O$21="Metro",INDEX($F$23:$F$748,SMALL(IF((County=$G$23:$G$748),MATCH(ROW($G$23:$G$748),ROW($G$23:$G$748)),""),ROWS($A$23:A93))),INDEX($I$23:$I$52,SMALL(IF((County=$J$23:$J$52),MATCH(ROW($J$23:$J$52),ROW($J$23:$J$52)),""),ROWS($A$23:A93)))),"") ->  | Q93: =IFERROR(IF($Q$21="Yes",INDEX($L$23:$L$2323,SMALL(IF((County=$M$23:$M$2323),MATCH(ROW($M$23:$M$2323),ROW($M$23:$M$2323)),""),ROWS($A$23:A93))),""),"") ->  | S93: 32835 | T93: Orange | V93: 6.08 | W93: Miami-Dade | AB93: 4.08 | AC93: Palm Beach
A94: 34609 | B94: Hernando | F94: 904.03 | G94: Broward | L94: 641.26 | M94: Brevard | O94: =IFERROR(IF($O$21="Metro",INDEX($F$23:$F$748,SMALL(IF((County=$G$23:$G$748),MATCH(ROW($G$23:$G$748),ROW($G$23:$G$748)),""),ROWS($A$23:A94))),INDEX($I$23:$I$52,SMALL(IF((County=$J$23:$J$52),MATCH(ROW($J$23:$J$52),ROW($J$23:$J$52)),""),ROWS($A$23:A94)))),"") ->  | Q94: =IFERROR(IF($Q$21="Yes",INDEX($L$23:$L$2323,SMALL(IF((County=$M$23:$M$2323),MATCH(ROW($M$23:$M$2323),ROW($M$23:$M$2323)),""),ROWS($A$23:A94))),""),"") ->  | S94: 32836 | T94: Orange | V94: 7 | W94: Collier | AB94: 4.09 | AC94: Miami-Dade
A95: 33872 | B95: Highlands | F95: 1004 | G95: Broward | L95: 641.27 | M95: Brevard | O95: =IFERROR(IF($O$21="Metro",INDEX($F$23:$F$748,SMALL(IF((County=$G$23:$G$748),MATCH(ROW($G$23:$G$748),ROW($G$23:$G$748)),""),ROWS($A$23:A95))),INDEX($I$23:$I$52,SMALL(IF((County=$J$23:$J$52),MATCH(ROW($J$23:$J$52),ROW($J$23:$J$52)),""),ROWS($A$23:A95)))),"") ->  | Q95: =IFERROR(IF($Q$21="Yes",INDEX($L$23:$L$2323,SMALL(IF((County=$M$23:$M$2323),MATCH(ROW($M$23:$M$2323),ROW($M$23:$M$2323)),""),ROWS($A$23:A95))),""),"") ->  | S95: 32837 | T95: Orange | V95: 7 | W95: Hillsborough | AB95: 4.1 | AC95: Miami-Dade
A96: 33875 | B96: Highlands | F96: 1005.02 | G96: Broward | L96: 641.28 | M96: Brevard | O96: =IFERROR(IF($O$21="Metro",INDEX($F$23:$F$748,SMALL(IF((County=$G$23:$G$748),MATCH(ROW($G$23:$G$748),ROW($G$23:$G$748)),""),ROWS($A$23:A96))),INDEX($I$23:$I$52,SMALL(IF((County=$J$23:$J$52),MATCH(ROW($J$23:$J$52),ROW($J$23:$J$52)),""),ROWS($A$23:A96)))),"") ->  | Q96: =IFERROR(IF($Q$21="Yes",INDEX($L$23:$L$2323,SMALL(IF((County=$M$23:$M$2323),MATCH(ROW($M$23:$M$2323),ROW($M$23:$M$2323)),""),ROWS($A$23:A96))),""),"") ->  | S96: 32903 | T96: Brevard | V96: 7 | W96: Lee | AB96: 4.1 | AC96: Palm Beach
A97: 33876 | B97: Highlands | F97: 1007 | G97: Broward | L97: 644 | M97: Brevard | O97: =IFERROR(IF($O$21="Metro",INDEX($F$23:$F$748,SMALL(IF((County=$G$23:$G$748),MATCH(ROW($G$23:$G$748),ROW($G$23:$G$748)),""),ROWS($A$23:A97))),INDEX($I$23:$I$52,SMALL(IF((County=$J$23:$J$52),MATCH(ROW($J$23:$J$52),ROW($J$23:$J$52)),""),ROWS($A$23:A97)))),"") ->  | Q97: =IFERROR(IF($Q$21="Yes",INDEX($L$23:$L$2323,SMALL(IF((County=$M$23:$M$2323),MATCH(ROW($M$23:$M$2323),ROW($M$23:$M$2323)),""),ROWS($A$23:A97))),""),"") ->  | S97: 32904 | T97: Brevard | V97: 7.04 | W97: Manatee | AB97: 5 | AC97: Alachua
A98: 33503 | B98: Hillsborough | F98: 1008.01 | G98: Broward | L98: 646.01 | M98: Brevard | O98: =IFERROR(IF($O$21="Metro",INDEX($F$23:$F$748,SMALL(IF((County=$G$23:$G$748),MATCH(ROW($G$23:$G$748),ROW($G$23:$G$748)),""),ROWS($A$23:A98))),INDEX($I$23:$I$52,SMALL(IF((County=$J$23:$J$52),MATCH(ROW($J$23:$J$52),ROW($J$23:$J$52)),""),ROWS($A$23:A98)))),"") ->  | Q98: =IFERROR(IF($Q$21="Yes",INDEX($L$23:$L$2323,SMALL(IF((County=$M$23:$M$2323),MATCH(ROW($M$23:$M$2323),ROW($M$23:$M$2323)),""),ROWS($A$23:A98))),""),"") ->  | S98: 32908 | T98: Brevard | V98: 7.05 | W98: Manatee | AB98: 5 | AC98: Bay
A99: 33510 | B99: Hillsborough | F99: 1103.34 | G99: Broward | L99: 648 | M99: Brevard | O99: =IFERROR(IF($O$21="Metro",INDEX($F$23:$F$748,SMALL(IF((County=$G$23:$G$748),MATCH(ROW($G$23:$G$748),ROW($G$23:$G$748)),""),ROWS($A$23:A99))),INDEX($I$23:$I$52,SMALL(IF((County=$J$23:$J$52),MATCH(ROW($J$23:$J$52),ROW($J$23:$J$52)),""),ROWS($A$23:A99)))),"") ->  | Q99: =IFERROR(IF($Q$21="Yes",INDEX($L$23:$L$2323,SMALL(IF((County=$M$23:$M$2323),MATCH(ROW($M$23:$M$2323),ROW($M$23:$M$2323)),""),ROWS($A$23:A99))),""),"") ->  | S99: 32925 | T99: Brevard | V99: 7.05 | W99: Miami-Dade | AB99: 5 | AC99: Collier
A100: 33511 | B100: Hillsborough | F100: 1103.35 | G100: Broward | L100: 649.01 | M100: Brevard | O100: =IFERROR(IF($O$21="Metro",INDEX($F$23:$F$748,SMALL(IF((County=$G$23:$G$748),MATCH(ROW($G$23:$G$748),ROW($G$23:$G$748)),""),ROWS($A$23:A100))),INDEX($I$23:$I$52,SMALL(IF((County=$J$23:$J$52),MATCH(ROW($J$23:$J$52),ROW($J$23:$J$52)),""),ROWS($A$23:A100)))),"") ->  | Q100: =IFERROR(IF($Q$21="Yes",INDEX($L$23:$L$2323,SMALL(IF((County=$M$23:$M$2323),MATCH(ROW($M$23:$M$2323),ROW($M$23:$M$2323)),""),ROWS($A$23:A100))),""),"") ->  | S100: 32934 | T100: Brevard | V100: 7.06 | W100: Miami-Dade | AB100: 5 | AC100: Escambia
A101: 33547 | B101: Hillsborough | F101: 103.02 | G101: Charlotte | L101: 650.01 | M101: Brevard | O101: =IFERROR(IF($O$21="Metro",INDEX($F$23:$F$748,SMALL(IF((County=$G$23:$G$748),MATCH(ROW($G$23:$G$748),ROW($G$23:$G$748)),""),ROWS($A$23:A101))),INDEX($I$23:$I$52,SMALL(IF((County=$J$23:$J$52),MATCH(ROW($J$23:$J$52),ROW($J$23:$J$52)),""),ROWS($A$23:A101)))),"") ->  | Q101: =IFERROR(IF($Q$21="Yes",INDEX($L$23:$L$2323,SMALL(IF((County=$M$23:$M$2323),MATCH(ROW($M$23:$M$2323),ROW($M$23:$M$2323)),""),ROWS($A$23:A101))),""),"") ->  | S101: 32937 | T101: Brevard | V101: 7.08 | W101: Miami-Dade | AB101: 5 | AC101: Hillsborough
A102: 33548 | B102: Hillsborough | F102: 207 | G102: Charlotte | L102: 650.21 | M102: Brevard | O102: =IFERROR(IF($O$21="Metro",INDEX($F$23:$F$748,SMALL(IF((County=$G$23:$G$748),MATCH(ROW($G$23:$G$748),ROW($G$23:$G$748)),""),ROWS($A$23:A102))),INDEX($I$23:$I$52,SMALL(IF((County=$J$23:$J$52),MATCH(ROW($J$23:$J$52),ROW($J$23:$J$52)),""),ROWS($A$23:A102)))),"") ->  | Q102: =IFERROR(IF($Q$21="Yes",INDEX($L$23:$L$2323,SMALL(IF((County=$M$23:$M$2323),MATCH(ROW($M$23:$M$2323),ROW($M$23:$M$2323)),""),ROWS($A$23:A102))),""),"") ->  | S102: 32940 | T102: Brevard | V102: 7.09 | W102: Miami-Dade | AB102: 5.01 | AC102: Manatee
A103: 33549 | B103: Hillsborough | F103: 4502.02 | G103: Citrus | L103: 652.31 | M103: Brevard | O103: =IFERROR(IF($O$21="Metro",INDEX($F$23:$F$748,SMALL(IF((County=$G$23:$G$748),MATCH(ROW($G$23:$G$748),ROW($G$23:$G$748)),""),ROWS($A$23:A103))),INDEX($I$23:$I$52,SMALL(IF((County=$J$23:$J$52),MATCH(ROW($J$23:$J$52),ROW($J$23:$J$52)),""),ROWS($A$23:A103)))),"") ->  | Q103: =IFERROR(IF($Q$21="Yes",INDEX($L$23:$L$2323,SMALL(IF((County=$M$23:$M$2323),MATCH(ROW($M$23:$M$2323),ROW($M$23:$M$2323)),""),ROWS($A$23:A103))),""),"") ->  | S103: 32951 | T103: Brevard | V103: 7.1 | W103: Miami-Dade | AB103: 5.01 | AC103: Sarasota
A104: 33556 | B104: Hillsborough | F104: 4503.03 | G104: Citrus | L104: 661.01 | M104: Brevard | O104: =IFERROR(IF($O$21="Metro",INDEX($F$23:$F$748,SMALL(IF((County=$G$23:$G$748),MATCH(ROW($G$23:$G$748),ROW($G$23:$G$748)),""),ROWS($A$23:A104))),INDEX($I$23:$I$52,SMALL(IF((County=$J$23:$J$52),MATCH(ROW($J$23:$J$52),ROW($J$23:$J$52)),""),ROWS($A$23:A104)))),"") ->  | Q104: =IFERROR(IF($Q$21="Yes",INDEX($L$23:$L$2323,SMALL(IF((County=$M$23:$M$2323),MATCH(ROW($M$23:$M$2323),ROW($M$23:$M$2323)),""),ROWS($A$23:A104))),""),"") ->  | S104: 32955 | T104: Brevard | V104: 7.11 | W104: Miami-Dade | AB104: 5.02 | AC104: Martin
A105: 33559 | B105: Hillsborough | F105: 4508 | G105: Citrus | L105: 661.03 | M105: Brevard | O105: =IFERROR(IF($O$21="Metro",INDEX($F$23:$F$748,SMALL(IF((County=$G$23:$G$748),MATCH(ROW($G$23:$G$748),ROW($G$23:$G$748)),""),ROWS($A$23:A105))),INDEX($I$23:$I$52,SMALL(IF((County=$J$23:$J$52),MATCH(ROW($J$23:$J$52),ROW($J$23:$J$52)),""),ROWS($A$23:A105)))),"") ->  | Q105: =IFERROR(IF($Q$21="Yes",INDEX($L$23:$L$2323,SMALL(IF((County=$M$23:$M$2323),MATCH(ROW($M$23:$M$2323),ROW($M$23:$M$2323)),""),ROWS($A$23:A105))),""),"") ->  | S105: 32963 | T105: Indian River | V105: 7.12 | W105: Miami-Dade | AB105: 5.02 | AC105: Sarasota
A106: 33569 | B106: Hillsborough | F106: 4514 | G106: Citrus | L106: 661.04 | M106: Brevard | O106: =IFERROR(IF($O$21="Metro",INDEX($F$23:$F$748,SMALL(IF((County=$G$23:$G$748),MATCH(ROW($G$23:$G$748),ROW($G$23:$G$748)),""),ROWS($A$23:A106))),INDEX($I$23:$I$52,SMALL(IF((County=$J$23:$J$52),MATCH(ROW($J$23:$J$52),ROW($J$23:$J$52)),""),ROWS($A$23:A106)))),"") ->  | Q106: =IFERROR(IF($Q$21="Yes",INDEX($L$23:$L$2323,SMALL(IF((County=$M$23:$M$2323),MATCH(ROW($M$23:$M$2323),ROW($M$23:$M$2323)),""),ROWS($A$23:A106))),""),"") ->  | S106: 32968 | T106: Indian River | V106: 8 | W106: Hillsborough | AB106: 5.03 | AC106: Manatee
A107: 33572 | B107: Hillsborough | F107: 304 | G107: Clay | L107: 662 | M107: Brevard | O107: =IFERROR(IF($O$21="Metro",INDEX($F$23:$F$748,SMALL(IF((County=$G$23:$G$748),MATCH(ROW($G$23:$G$748),ROW($G$23:$G$748)),""),ROWS($A$23:A107))),INDEX($I$23:$I$52,SMALL(IF((County=$J$23:$J$52),MATCH(ROW($J$23:$J$52),ROW($J$23:$J$52)),""),ROWS($A$23:A107)))),"") ->  | Q107: =IFERROR(IF($Q$21="Yes",INDEX($L$23:$L$2323,SMALL(IF((County=$M$23:$M$2323),MATCH(ROW($M$23:$M$2323),ROW($M$23:$M$2323)),""),ROWS($A$23:A107))),""),"") ->  | S107: 33014 | T107: Miami-Dade | V107: 8 | W107: Martin | AB107: 5.05 | AC107: Palm Beach
A108: 33573 | B108: Hillsborough | F108: 7 | G108: Collier | L108: 663.01 | M108: Brevard | O108: =IFERROR(IF($O$21="Metro",INDEX($F$23:$F$748,SMALL(IF((County=$G$23:$G$748),MATCH(ROW($G$23:$G$748),ROW($G$23:$G$748)),""),ROWS($A$23:A108))),INDEX($I$23:$I$52,SMALL(IF((County=$J$23:$J$52),MATCH(ROW($J$23:$J$52),ROW($J$23:$J$52)),""),ROWS($A$23:A108)))),"") ->  | Q108: =IFERROR(IF($Q$21="Yes",INDEX($L$23:$L$2323,SMALL(IF((County=$M$23:$M$2323),MATCH(ROW($M$23:$M$2323),ROW($M$23:$M$2323)),""),ROWS($A$23:A108))),""),"") ->  | S108: 33015 | T108: Miami-Dade | V108: 8.03 | W108: Bay | AB108: 5.07 | AC108: Palm Beach
A109: 33578 | B109: Hillsborough | F109: 104.1 | G109: Collier | L109: 663.02 | M109: Brevard | O109: =IFERROR(IF($O$21="Metro",INDEX($F$23:$F$748,SMALL(IF((County=$G$23:$G$748),MATCH(ROW($G$23:$G$748),ROW($G$23:$G$748)),""),ROWS($A$23:A109))),INDEX($I$23:$I$52,SMALL(IF((County=$J$23:$J$52),MATCH(ROW($J$23:$J$52),ROW($J$23:$J$52)),""),ROWS($A$23:A109)))),"") ->  | Q109: =IFERROR(IF($Q$21="Yes",INDEX($L$23:$L$2323,SMALL(IF((County=$M$23:$M$2323),MATCH(ROW($M$23:$M$2323),ROW($M$23:$M$2323)),""),ROWS($A$23:A109))),""),"") ->  | S109: 33018 | T109: Miami-Dade | V109: 8.04 | W109: Miami-Dade | AB109: 5.09 | AC109: Palm Beach
A110: 33579 | B110: Hillsborough | F110: 104.2 | G110: Collier | L110: 664 | M110: Brevard | O110: =IFERROR(IF($O$21="Metro",INDEX($F$23:$F$748,SMALL(IF((County=$G$23:$G$748),MATCH(ROW($G$23:$G$748),ROW($G$23:$G$748)),""),ROWS($A$23:A110))),INDEX($I$23:$I$52,SMALL(IF((County=$J$23:$J$52),MATCH(ROW($J$23:$J$52),ROW($J$23:$J$52)),""),ROWS($A$23:A110)))),"") ->  | Q110: =IFERROR(IF($Q$21="Yes",INDEX($L$23:$L$2323,SMALL(IF((County=$M$23:$M$2323),MATCH(ROW($M$23:$M$2323),ROW($M$23:$M$2323)),""),ROWS($A$23:A110))),""),"") ->  | S110: 33019 | T110: Broward | V110: 8.05 | W110: Miami-Dade | AB110: 5.11 | AC110: Palm Beach
A111: 33584 | B111: Hillsborough | F111: 106.01 | G111: Collier | L111: 665 | M111: Brevard | O111: =IFERROR(IF($O$21="Metro",INDEX($F$23:$F$748,SMALL(IF((County=$G$23:$G$748),MATCH(ROW($G$23:$G$748),ROW($G$23:$G$748)),""),ROWS($A$23:A111))),INDEX($I$23:$I$52,SMALL(IF((County=$J$23:$J$52),MATCH(ROW($J$23:$J$52),ROW($J$23:$J$52)),""),ROWS($A$23:A111)))),"") ->  | Q111: =IFERROR(IF($Q$21="Yes",INDEX($L$23:$L$2323,SMALL(IF((County=$M$23:$M$2323),MATCH(ROW($M$23:$M$2323),ROW($M$23:$M$2323)),""),ROWS($A$23:A111))),""),"") ->  | S111: 33025 | T111: Broward | V111: 8.06 | W111: Alachua | AB111: 6 | AC111: Bay | AE111: List all cells with pop-ups
A112: 33594 | B112: Hillsborough | F112: 107.01 | G112: Collier | L112: 666 | M112: Brevard | O112: =IFERROR(IF($O$21="Metro",INDEX($F$23:$F$748,SMALL(IF((County=$G$23:$G$748),MATCH(ROW($G$23:$G$748),ROW($G$23:$G$748)),""),ROWS($A$23:A112))),INDEX($I$23:$I$52,SMALL(IF((County=$J$23:$J$52),MATCH(ROW($J$23:$J$52),ROW($J$23:$J$52)),""),ROWS($A$23:A112)))),"") ->  | Q112: =IFERROR(IF($Q$21="Yes",INDEX($L$23:$L$2323,SMALL(IF((County=$M$23:$M$2323),MATCH(ROW($M$23:$M$2323),ROW($M$23:$M$2323)),""),ROWS($A$23:A112))),""),"") ->  | S112: 33026 | T112: Broward | V112: 8.06 | W112: Miami-Dade | AB112: 6 | AC112: Collier
A113: 33596 | B113: Hillsborough | F113: 111.03 | G113: Collier | L113: 667 | M113: Brevard | O113: =IFERROR(IF($O$21="Metro",INDEX($F$23:$F$748,SMALL(IF((County=$G$23:$G$748),MATCH(ROW($G$23:$G$748),ROW($G$23:$G$748)),""),ROWS($A$23:A113))),INDEX($I$23:$I$52,SMALL(IF((County=$J$23:$J$52),MATCH(ROW($J$23:$J$52),ROW($J$23:$J$52)),""),ROWS($A$23:A113)))),"") ->  | Q113: =IFERROR(IF($Q$21="Yes",INDEX($L$23:$L$2323,SMALL(IF((County=$M$23:$M$2323),MATCH(ROW($M$23:$M$2323),ROW($M$23:$M$2323)),""),ROWS($A$23:A113))),""),"") ->  | S113: 33027 | T113: Broward | V113: 8.07 | W113: Miami-Dade | AB113: 6.01 | AC113: Sarasota | AE113: Pop-Up Messages
A114: 33602 | B114: Hillsborough | F114: 112.04 | G114: Collier | L114: 668 | M114: Brevard | O114: =IFERROR(IF($O$21="Metro",INDEX($F$23:$F$748,SMALL(IF((County=$G$23:$G$748),MATCH(ROW($G$23:$G$748),ROW($G$23:$G$748)),""),ROWS($A$23:A114))),INDEX($I$23:$I$52,SMALL(IF((County=$J$23:$J$52),MATCH(ROW($J$23:$J$52),ROW($J$23:$J$52)),""),ROWS($A$23:A114)))),"") ->  | Q114: =IFERROR(IF($Q$21="Yes",INDEX($L$23:$L$2323,SMALL(IF((County=$M$23:$M$2323),MATCH(ROW($M$23:$M$2323),ROW($M$23:$M$2323)),""),ROWS($A$23:A114))),""),"") ->  | S114: 33028 | T114: Broward | V114: 8.08 | W114: Miami-Dade | AB114: 6.02 | AC114: Sarasota | AG114: Tab | AH114: Cells | AI114: Data Dependent Cells
A115: 33606 | B115: Hillsborough | F115: 112.05 | G115: Collier | L115: 669 | M115: Brevard | O115: =IFERROR(IF($O$21="Metro",INDEX($F$23:$F$748,SMALL(IF((County=$G$23:$G$748),MATCH(ROW($G$23:$G$748),ROW($G$23:$G$748)),""),ROWS($A$23:A115))),INDEX($I$23:$I$52,SMALL(IF((County=$J$23:$J$52),MATCH(ROW($J$23:$J$52),ROW($J$23:$J$52)),""),ROWS($A$23:A115)))),"") ->  | Q115: =IFERROR(IF($Q$21="Yes",INDEX($L$23:$L$2323,SMALL(IF((County=$M$23:$M$2323),MATCH(ROW($M$23:$M$2323),ROW($M$23:$M$2323)),""),ROWS($A$23:A115))),""),"") ->  | S115: 33029 | T115: Broward | V115: 9.01 | W115: Alachua | AB115: 6.03 | AC115: Martin | AG115: General Information | AH115: G70:H70 | AI115: Total_Units
A116: 33607 | B116: Hillsborough | F116: 113.01 | G116: Collier | L116: 671 | M116: Brevard | O116: =IFERROR(IF($O$21="Metro",INDEX($F$23:$F$748,SMALL(IF((County=$G$23:$G$748),MATCH(ROW($G$23:$G$748),ROW($G$23:$G$748)),""),ROWS($A$23:A116))),INDEX($I$23:$I$52,SMALL(IF((County=$J$23:$J$52),MATCH(ROW($J$23:$J$52),ROW($J$23:$J$52)),""),ROWS($A$23:A116)))),"") ->  | Q116: =IFERROR(IF($Q$21="Yes",INDEX($L$23:$L$2323,SMALL(IF((County=$M$23:$M$2323),MATCH(ROW($M$23:$M$2323),ROW($M$23:$M$2323)),""),ROWS($A$23:A116))),""),"") ->  | S116: 33031 | T116: Miami-Dade | V116: 9.01 | W116: Hillsborough | AB116: 6.04 | AC116: Martin | AG116: General Information | AH116: G79:H79 | AI116: Total_Units
A117: 33609 | B117: Hillsborough | F117: 113.02 | G117: Collier | L117: 681.02 | M117: Brevard | O117: =IFERROR(IF($O$21="Metro",INDEX($F$23:$F$748,SMALL(IF((County=$G$23:$G$748),MATCH(ROW($G$23:$G$748),ROW($G$23:$G$748)),""),ROWS($A$23:A117))),INDEX($I$23:$I$52,SMALL(IF((County=$J$23:$J$52),MATCH(ROW($J$23:$J$52),ROW($J$23:$J$52)),""),ROWS($A$23:A117)))),"") ->  | Q117: =IFERROR(IF($Q$21="Yes",INDEX($L$23:$L$2323,SMALL(IF((County=$M$23:$M$2323),MATCH(ROW($M$23:$M$2323),ROW($M$23:$M$2323)),""),ROWS($A$23:A117))),""),"") ->  | S117: 33035 | T117: Miami-Dade | V117: 9.02 | W117: Hillsborough | AB117: 6.04 | AC117: Miami-Dade | AG117: General Information | AH117: G88:H88 | AI117: Total_Units
A118: 33611 | B118: Hillsborough | F118: 114 | G118: Collier | L118: 682 | M118: Brevard | O118: =IFERROR(IF($O$21="Metro",INDEX($F$23:$F$748,SMALL(IF((County=$G$23:$G$748),MATCH(ROW($G$23:$G$748),ROW($G$23:$G$748)),""),ROWS($A$23:A118))),INDEX($I$23:$I$52,SMALL(IF((County=$J$23:$J$52),MATCH(ROW($J$23:$J$52),ROW($J$23:$J$52)),""),ROWS($A$23:A118)))),"") ->  | Q118: =IFERROR(IF($Q$21="Yes",INDEX($L$23:$L$2323,SMALL(IF((County=$M$23:$M$2323),MATCH(ROW($M$23:$M$2323),ROW($M$23:$M$2323)),""),ROWS($A$23:A118))),""),"") ->  | S118: 33055 | T118: Miami-Dade | V118: 9.02 | W118: Miami-Dade | AB118: 6.06 | AC118: Martin | AF118: Not 109 | AG118: Proposed Development Info | AH118: G20:G22 | AI118: Total_Units, Unit Characteristics Table
A119: 33615 | B119: Hillsborough | F119: 1 | G119: Duval | L119: 683 | M119: Brevard | O119: =IFERROR(IF($O$21="Metro",INDEX($F$23:$F$748,SMALL(IF((County=$G$23:$G$748),MATCH(ROW($G$23:$G$748),ROW($G$23:$G$748)),""),ROWS($A$23:A119))),INDEX($I$23:$I$52,SMALL(IF((County=$J$23:$J$52),MATCH(ROW($J$23:$J$52),ROW($J$23:$J$52)),""),ROWS($A$23:A119)))),"") ->  | Q119: =IFERROR(IF($Q$21="Yes",INDEX($L$23:$L$2323,SMALL(IF((County=$M$23:$M$2323),MATCH(ROW($M$23:$M$2323),ROW($M$23:$M$2323)),""),ROWS($A$23:A119))),""),"") ->  | S119: 33062 | T119: Broward | V119: 9.03 | W119: Miami-Dade | AB119: 6.07 | AC119: Martin | AF119: Not 109 | AG119: Proposed Development Info | AH119: H20:H22 | AI119: Total_Units, Unit Characteristics Table
A120: 33616 | B120: Hillsborough | F120: 2 | G120: Duval | L120: 684 | M120: Brevard | O120: =IFERROR(IF($O$21="Metro",INDEX($F$23:$F$748,SMALL(IF((County=$G$23:$G$748),MATCH(ROW($G$23:$G$748),ROW($G$23:$G$748)),""),ROWS($A$23:A120))),INDEX($I$23:$I$52,SMALL(IF((County=$J$23:$J$52),MATCH(ROW($J$23:$J$52),ROW($J$23:$J$52)),""),ROWS($A$23:A120)))),"") ->  | Q120: =IFERROR(IF($Q$21="Yes",INDEX($L$23:$L$2323,SMALL(IF((County=$M$23:$M$2323),MATCH(ROW($M$23:$M$2323),ROW($M$23:$M$2323)),""),ROWS($A$23:A120))),""),"") ->  | S120: 33063 | T120: Broward | V120: 10 | W120: Bay | AB120: 6.1 | AC120: Martin | AF120: Not 109 | AG120: Proposed Development Info | AH120: G45:I45 | AI120: Total_Units
A121: 33618 | B121: Hillsborough | F121: 3 | G121: Duval | L121: 685.01 | M121: Brevard | O121: =IFERROR(IF($O$21="Metro",INDEX($F$23:$F$748,SMALL(IF((County=$G$23:$G$748),MATCH(ROW($G$23:$G$748),ROW($G$23:$G$748)),""),ROWS($A$23:A121))),INDEX($I$23:$I$52,SMALL(IF((County=$J$23:$J$52),MATCH(ROW($J$23:$J$52),ROW($J$23:$J$52)),""),ROWS($A$23:A121)))),"") ->  | Q121: =IFERROR(IF($Q$21="Yes",INDEX($L$23:$L$2323,SMALL(IF((County=$M$23:$M$2323),MATCH(ROW($M$23:$M$2323),ROW($M$23:$M$2323)),""),ROWS($A$23:A121))),""),"") ->  | S121: 33067 | T121: Broward | V121: 10 | W121: Duval | AB121: 7 | AC121: Bay | AF121: Not 109 | AG121: Proposed Development Info | AH121: H26 | AI121: DevCat, EligDevCosts, EligAcq, EligNonAcqDF, EligAcqDF
A122: 33621 | B122: Hillsborough | F122: 6 | G122: Duval | L122: 685.02 | M122: Brevard | O122: =IFERROR(IF($O$21="Metro",INDEX($F$23:$F$748,SMALL(IF((County=$G$23:$G$748),MATCH(ROW($G$23:$G$748),ROW($G$23:$G$748)),""),ROWS($A$23:A122))),INDEX($I$23:$I$52,SMALL(IF((County=$J$23:$J$52),MATCH(ROW($J$23:$J$52),ROW($J$23:$J$52)),""),ROWS($A$23:A122)))),"") ->  | Q122: =IFERROR(IF($Q$21="Yes",INDEX($L$23:$L$2323,SMALL(IF((County=$M$23:$M$2323),MATCH(ROW($M$23:$M$2323),ROW($M$23:$M$2323)),""),ROWS($A$23:A122))),""),"") ->  | S122: 33071 | T122: Broward | V122: 10 | W122: Sarasota | AB122: 7 | AC122: Duval | AF122: Not 109 | AG122: Proposed Development Info | AH122: H27 | AI122: DevCat, EligDevCosts, EligAcq, EligNonAcqDF, EligAcqDF
A123: 33624 | B123: Hillsborough | F123: 10 | G123: Duval | L123: 686.01 | M123: Brevard | O123: =IFERROR(IF($O$21="Metro",INDEX($F$23:$F$748,SMALL(IF((County=$G$23:$G$748),MATCH(ROW($G$23:$G$748),ROW($G$23:$G$748)),""),ROWS($A$23:A123))),INDEX($I$23:$I$52,SMALL(IF((County=$J$23:$J$52),MATCH(ROW($J$23:$J$52),ROW($J$23:$J$52)),""),ROWS($A$23:A123)))),"") ->  | Q123: =IFERROR(IF($Q$21="Yes",INDEX($L$23:$L$2323,SMALL(IF((County=$M$23:$M$2323),MATCH(ROW($M$23:$M$2323),ROW($M$23:$M$2323)),""),ROWS($A$23:A123))),""),"") ->  | S123: 33073 | T123: Broward | V123: 10.01 | W123: Hillsborough | AB123: 7 | AC123: Leon | AF123: Not 109 | AG123: Proposed Development Info | AH123: H35 | AI123: DevCat, EligDevCosts, EligAcq, EligNonAcqDF, EligAcqDF, basis boost, Set-Aside Commitment, SA%, SA#
A124: 33625 | B124: Hillsborough | F124: 12 | G124: Duval | L124: 686.02 | M124: Brevard | O124: =IFERROR(IF($O$21="Metro",INDEX($F$23:$F$748,SMALL(IF((County=$G$23:$G$748),MATCH(ROW($G$23:$G$748),ROW($G$23:$G$748)),""),ROWS($A$23:A124))),INDEX($I$23:$I$52,SMALL(IF((County=$J$23:$J$52),MATCH(ROW($J$23:$J$52),ROW($J$23:$J$52)),""),ROWS($A$23:A124)))),"") ->  | Q124: =IFERROR(IF($Q$21="Yes",INDEX($L$23:$L$2323,SMALL(IF((County=$M$23:$M$2323),MATCH(ROW($M$23:$M$2323),ROW($M$23:$M$2323)),""),ROWS($A$23:A124))),""),"") ->  | S124: 33076 | T124: Broward | V124: 10.01 | W124: Leon | AB124: 7 | AC124: Sarasota | AF124: Not 109 | AG124: Proposed Development Info | AH124: I28 | AI124: Details for H35
A125: 33626 | B125: Hillsborough | F125: 13 | G125: Duval | L125: 691 | M125: Brevard | O125: =IFERROR(IF($O$21="Metro",INDEX($F$23:$F$748,SMALL(IF((County=$G$23:$G$748),MATCH(ROW($G$23:$G$748),ROW($G$23:$G$748)),""),ROWS($A$23:A125))),INDEX($I$23:$I$52,SMALL(IF((County=$J$23:$J$52),MATCH(ROW($J$23:$J$52),ROW($J$23:$J$52)),""),ROWS($A$23:A125)))),"") ->  | Q125: =IFERROR(IF($Q$21="Yes",INDEX($L$23:$L$2323,SMALL(IF((County=$M$23:$M$2323),MATCH(ROW($M$23:$M$2323),ROW($M$23:$M$2323)),""),ROWS($A$23:A125))),""),"") ->  | S125: 33109 | T125: Miami-Dade | V125: 10.02 | W125: Hillsborough | AB125: 7.02 | AC125: Marion | AF125: Not 109 | AG125: Proposed Development Info | AH125: I18 | AI125: Details for G&H20
A126: 33629 | B126: Hillsborough | F126: 14 | G126: Duval | L126: 692 | M126: Brevard | O126: =IFERROR(IF($O$21="Metro",INDEX($F$23:$F$748,SMALL(IF((County=$G$23:$G$748),MATCH(ROW($G$23:$G$748),ROW($G$23:$G$748)),""),ROWS($A$23:A126))),INDEX($I$23:$I$52,SMALL(IF((County=$J$23:$J$52),MATCH(ROW($J$23:$J$52),ROW($J$23:$J$52)),""),ROWS($A$23:A126)))),"") ->  | Q126: =IFERROR(IF($Q$21="Yes",INDEX($L$23:$L$2323,SMALL(IF((County=$M$23:$M$2323),MATCH(ROW($M$23:$M$2323),ROW($M$23:$M$2323)),""),ROWS($A$23:A126))),""),"") ->  | S126: 33126 | T126: Miami-Dade | V126: 10.02 | W126: Leon | AB126: 7.02 | AC126: Palm Beach | AG126: Development Location | AH126: H5 | AI126: County
A127: 33634 | B127: Hillsborough | F127: 15 | G127: Duval | L127: 693 | M127: Brevard | O127: =IFERROR(IF($O$21="Metro",INDEX($F$23:$F$748,SMALL(IF((County=$G$23:$G$748),MATCH(ROW($G$23:$G$748),ROW($G$23:$G$748)),""),ROWS($A$23:A127))),INDEX($I$23:$I$52,SMALL(IF((County=$J$23:$J$52),MATCH(ROW($J$23:$J$52),ROW($J$23:$J$52)),""),ROWS($A$23:A127)))),"") ->  | Q127: =IFERROR(IF($Q$21="Yes",INDEX($L$23:$L$2323,SMALL(IF((County=$M$23:$M$2323),MATCH(ROW($M$23:$M$2323),ROW($M$23:$M$2323)),""),ROWS($A$23:A127))),""),"") ->  | S127: 33129 | T127: Miami-Dade | V127: 10.02 | W127: Miami-Dade | AB127: 7.03 | AC127: Palm Beach | AF127: Not 109 | AG127: Development Location | AH127: H7 | AI127: County
A128: 33635 | B128: Hillsborough | F128: 16 | G128: Duval | L128: 694 | M128: Brevard | O128: =IFERROR(IF($O$21="Metro",INDEX($F$23:$F$748,SMALL(IF((County=$G$23:$G$748),MATCH(ROW($G$23:$G$748),ROW($G$23:$G$748)),""),ROWS($A$23:A128))),INDEX($I$23:$I$52,SMALL(IF((County=$J$23:$J$52),MATCH(ROW($J$23:$J$52),ROW($J$23:$J$52)),""),ROWS($A$23:A128)))),"") ->  | Q128: =IFERROR(IF($Q$21="Yes",INDEX($L$23:$L$2323,SMALL(IF((County=$M$23:$M$2323),MATCH(ROW($M$23:$M$2323),ROW($M$23:$M$2323)),""),ROWS($A$23:A128))),""),"") ->  | S128: 33131 | T128: Miami-Dade | V128: 10.03 | W128: Miami-Dade | AB128: 8 | AC128: Duval | AG128: Units, Set-Asides, Bldgs | AH128: L3 | AI128: Total Units, County
A129: 33637 | B129: Hillsborough | F129: 25.01 | G129: Duval | L129: 698.01 | M129: Brevard | O129: =IFERROR(IF($O$21="Metro",INDEX($F$23:$F$748,SMALL(IF((County=$G$23:$G$748),MATCH(ROW($G$23:$G$748),ROW($G$23:$G$748)),""),ROWS($A$23:A129))),INDEX($I$23:$I$52,SMALL(IF((County=$J$23:$J$52),MATCH(ROW($J$23:$J$52),ROW($J$23:$J$52)),""),ROWS($A$23:A129)))),"") ->  | Q129: =IFERROR(IF($Q$21="Yes",INDEX($L$23:$L$2323,SMALL(IF((County=$M$23:$M$2323),MATCH(ROW($M$23:$M$2323),ROW($M$23:$M$2323)),""),ROWS($A$23:A129))),""),"") ->  | S129: 33132 | T129: Miami-Dade | V129: 10.04 | W129: Miami-Dade | AB129: 8 | AC129: Escambia | AF129: Not 109 | AG129: Units, Set-Asides, Bldgs | AH129: L6 | AI129: DevCat
A130: 33647 | B130: Hillsborough | F130: 26 | G130: Duval | L130: 699.01 | M130: Brevard | O130: =IFERROR(IF($O$21="Metro",INDEX($F$23:$F$748,SMALL(IF((County=$G$23:$G$748),MATCH(ROW($G$23:$G$748),ROW($G$23:$G$748)),""),ROWS($A$23:A130))),INDEX($I$23:$I$52,SMALL(IF((County=$J$23:$J$52),MATCH(ROW($J$23:$J$52),ROW($J$23:$J$52)),""),ROWS($A$23:A130)))),"") ->  | Q130: =IFERROR(IF($Q$21="Yes",INDEX($L$23:$L$2323,SMALL(IF((County=$M$23:$M$2323),MATCH(ROW($M$23:$M$2323),ROW($M$23:$M$2323)),""),ROWS($A$23:A130))),""),"") ->  | S130: 33133 | T130: Miami-Dade | V130: 10.05 | W130: Miami-Dade | AB130: 8 | AC130: Lee | AF130: Not 109 | AG130: Units, Set-Asides, Bldgs | AH130: L12 | AI130: Minimum SA Commitment | AL130: DS_Comment_Total_Units_a, DS_Comment_Min_IRS_and_Loan_SA_a, DS_Comment_Min_IRS_NonProfit_SA_a, DS_Comment_Min_Max_Workforce_SA_a, DS_Comment_Min_ElderlyALF_SA_a, DS_Comment_Min_RFA_SA_a, DS_Comment_Min_ELI_SA_a
A131: 32963 | B131: Indian River | F131: 27.01 | G131: Duval | L131: 712 | M131: Brevard | O131: =IFERROR(IF($O$21="Metro",INDEX($F$23:$F$748,SMALL(IF((County=$G$23:$G$748),MATCH(ROW($G$23:$G$748),ROW($G$23:$G$748)),""),ROWS($A$23:A131))),INDEX($I$23:$I$52,SMALL(IF((County=$J$23:$J$52),MATCH(ROW($J$23:$J$52),ROW($J$23:$J$52)),""),ROWS($A$23:A131)))),"") ->  | Q131: =IFERROR(IF($Q$21="Yes",INDEX($L$23:$L$2323,SMALL(IF((County=$M$23:$M$2323),MATCH(ROW($M$23:$M$2323),ROW($M$23:$M$2323)),""),ROWS($A$23:A131))),""),"") ->  | S131: 33134 | T131: Miami-Dade | V131: 10.06 | W131: Miami-Dade | AB131: 8 | AC131: Leon | AF131: Not 109 | AG131: Units, Set-Asides, Bldgs | AH131: L20
A132: 32968 | B132: Indian River | F132: 27.02 | G132: Duval | L132: 713.01 | M132: Brevard | O132: =IFERROR(IF($O$21="Metro",INDEX($F$23:$F$748,SMALL(IF((County=$G$23:$G$748),MATCH(ROW($G$23:$G$748),ROW($G$23:$G$748)),""),ROWS($A$23:A132))),INDEX($I$23:$I$52,SMALL(IF((County=$J$23:$J$52),MATCH(ROW($J$23:$J$52),ROW($J$23:$J$52)),""),ROWS($A$23:A132)))),"") ->  | Q132: =IFERROR(IF($Q$21="Yes",INDEX($L$23:$L$2323,SMALL(IF((County=$M$23:$M$2323),MATCH(ROW($M$23:$M$2323),ROW($M$23:$M$2323)),""),ROWS($A$23:A132))),""),"") ->  | S132: 33137 | T132: Miami-Dade | V132: 11 | W132: Bay | AB132: 8.01 | AC132: Marion | AF132: Not 109 | AG132: Units, Set-Asides, Bldgs | AH132: G21:G30 | AI132: Minimum SA Commitment
A133: 32735 | B133: Lake | F133: 28.01 | G133: Duval | L133: 713.34 | M133: Brevard | O133: =IFERROR(IF($O$21="Metro",INDEX($F$23:$F$748,SMALL(IF((County=$G$23:$G$748),MATCH(ROW($G$23:$G$748),ROW($G$23:$G$748)),""),ROWS($A$23:A133))),INDEX($I$23:$I$52,SMALL(IF((County=$J$23:$J$52),MATCH(ROW($J$23:$J$52),ROW($J$23:$J$52)),""),ROWS($A$23:A133)))),"") ->  | Q133: =IFERROR(IF($Q$21="Yes",INDEX($L$23:$L$2323,SMALL(IF((County=$M$23:$M$2323),MATCH(ROW($M$23:$M$2323),ROW($M$23:$M$2323)),""),ROWS($A$23:A133))),""),"") ->  | S133: 33139 | T133: Miami-Dade | V133: 11.01 | W133: Lee | AB133: 8.01 | AC133: Sarasota | AF133: Not 109 | AG133: Units, Set-Asides, Bldgs | AH133: L32
A134: 32776 | B134: Lake | F134: 28.02 | G134: Duval | L134: 713.35 | M134: Brevard | O134: =IFERROR(IF($O$21="Metro",INDEX($F$23:$F$748,SMALL(IF((County=$G$23:$G$748),MATCH(ROW($G$23:$G$748),ROW($G$23:$G$748)),""),ROWS($A$23:A134))),INDEX($I$23:$I$52,SMALL(IF((County=$J$23:$J$52),MATCH(ROW($J$23:$J$52),ROW($J$23:$J$52)),""),ROWS($A$23:A134)))),"") ->  | Q134: =IFERROR(IF($Q$21="Yes",INDEX($L$23:$L$2323,SMALL(IF((County=$M$23:$M$2323),MATCH(ROW($M$23:$M$2323),ROW($M$23:$M$2323)),""),ROWS($A$23:A134))),""),"") ->  | S134: 33140 | T134: Miami-Dade | V134: 11.01 | W134: Leon | AB134: 8.02 | AC134: Marion | AF134: Not 109 | AG134: Units, Set-Asides, Bldgs | AH134: L37
A135: 34711 | B135: Lake | F135: 29.01 | G135: Duval | L135: 713.38 | M135: Brevard | O135: =IFERROR(IF($O$21="Metro",INDEX($F$23:$F$748,SMALL(IF((County=$G$23:$G$748),MATCH(ROW($G$23:$G$748),ROW($G$23:$G$748)),""),ROWS($A$23:A135))),INDEX($I$23:$I$52,SMALL(IF((County=$J$23:$J$52),MATCH(ROW($J$23:$J$52),ROW($J$23:$J$52)),""),ROWS($A$23:A135)))),"") ->  | Q135: =IFERROR(IF($Q$21="Yes",INDEX($L$23:$L$2323,SMALL(IF((County=$M$23:$M$2323),MATCH(ROW($M$23:$M$2323),ROW($M$23:$M$2323)),""),ROWS($A$23:A135))),""),"") ->  | S135: 33141 | T135: Miami-Dade | V135: 11.02 | W135: Lee | AB135: 8.02 | AC135: Palm Beach | AF135: Not 109 | AG135: Units, Set-Asides, Bldgs | AH135: F38:F44 | AI135: Minimum SA Commitment
A136: 34714 | B136: Lake | F136: 29.02 | G136: Duval | L136: 713.39 | M136: Brevard | O136: =IFERROR(IF($O$21="Metro",INDEX($F$23:$F$748,SMALL(IF((County=$G$23:$G$748),MATCH(ROW($G$23:$G$748),ROW($G$23:$G$748)),""),ROWS($A$23:A136))),INDEX($I$23:$I$52,SMALL(IF((County=$J$23:$J$52),MATCH(ROW($J$23:$J$52),ROW($J$23:$J$52)),""),ROWS($A$23:A136)))),"") ->  | Q136: =IFERROR(IF($Q$21="Yes",INDEX($L$23:$L$2323,SMALL(IF((County=$M$23:$M$2323),MATCH(ROW($M$23:$M$2323),ROW($M$23:$M$2323)),""),ROWS($A$23:A136))),""),"") ->  | S136: 33143 | T136: Miami-Dade | V136: 11.02 | W136: Sarasota | AB136: 8.02 | AC136: Sarasota | AF136: Not 109 | AG136: Units, Set-Asides, Bldgs | AH136: L38 | AI136: Total Units,…
A137: 34715 | B137: Lake | F137: 104.02 | G137: Duval | L137: 713.4 | M137: Brevard | O137: =IFERROR(IF($O$21="Metro",INDEX($F$23:$F$748,SMALL(IF((County=$G$23:$G$748),MATCH(ROW($G$23:$G$748),ROW($G$23:$G$748)),""),ROWS($A$23:A137))),INDEX($I$23:$I$52,SMALL(IF((County=$J$23:$J$52),MATCH(ROW($J$23:$J$52),ROW($J$23:$J$52)),""),ROWS($A$23:A137)))),"") ->  | Q137: =IFERROR(IF($Q$21="Yes",INDEX($L$23:$L$2323,SMALL(IF((County=$M$23:$M$2323),MATCH(ROW($M$23:$M$2323),ROW($M$23:$M$2323)),""),ROWS($A$23:A137))),""),"") ->  | S137: 33145 | T137: Miami-Dade | V137: 11.03 | W137: Miami-Dade | AB137: 8.03 | AC137: Palm Beach | AF137: Not 109 | AG137: Units, Set-Asides, Bldgs | AH137: F47 | AI137: Total Unit, Minimum SA Commitment
A138: 34736 | B138: Lake | F138: 108 | G138: Duval | L138: 715 | M138: Brevard | O138: =IFERROR(IF($O$21="Metro",INDEX($F$23:$F$748,SMALL(IF((County=$G$23:$G$748),MATCH(ROW($G$23:$G$748),ROW($G$23:$G$748)),""),ROWS($A$23:A138))),INDEX($I$23:$I$52,SMALL(IF((County=$J$23:$J$52),MATCH(ROW($J$23:$J$52),ROW($J$23:$J$52)),""),ROWS($A$23:A138)))),"") ->  | Q138: =IFERROR(IF($Q$21="Yes",INDEX($L$23:$L$2323,SMALL(IF((County=$M$23:$M$2323),MATCH(ROW($M$23:$M$2323),ROW($M$23:$M$2323)),""),ROWS($A$23:A138))),""),"") ->  | S138: 33146 | T138: Miami-Dade | V138: 12 | W138: Duval | AB138: 8.04 | AC138: Bay | AF138: Not 109 | AG138: Units, Set-Asides, Bldgs | AH138: I48 | AI138: Minimum SA Commitment
A139: 33908 | B139: Lee | F139: 110 | G139: Duval | L139: 101.02 | M139: Broward | O139: =IFERROR(IF($O$21="Metro",INDEX($F$23:$F$748,SMALL(IF((County=$G$23:$G$748),MATCH(ROW($G$23:$G$748),ROW($G$23:$G$748)),""),ROWS($A$23:A139))),INDEX($I$23:$I$52,SMALL(IF((County=$J$23:$J$52),MATCH(ROW($J$23:$J$52),ROW($J$23:$J$52)),""),ROWS($A$23:A139)))),"") ->  | Q139: =IFERROR(IF($Q$21="Yes",INDEX($L$23:$L$2323,SMALL(IF((County=$M$23:$M$2323),MATCH(ROW($M$23:$M$2323),ROW($M$23:$M$2323)),""),ROWS($A$23:A139))),""),"") ->  | S139: 33149 | T139: Miami-Dade | V139: 12 | W139: Hillsborough | AB139: 8.04 | AC139: Manatee | AF139: Not 109 | AG139: Units, Set-Asides, Bldgs | AH139: L48 | AI139: Minimum SA Commitment, Total Units
A140: 33909 | B140: Lee | F140: 111 | G140: Duval | L140: 101.03 | M140: Broward | O140: =IFERROR(IF($O$21="Metro",INDEX($F$23:$F$748,SMALL(IF((County=$G$23:$G$748),MATCH(ROW($G$23:$G$748),ROW($G$23:$G$748)),""),ROWS($A$23:A140))),INDEX($I$23:$I$52,SMALL(IF((County=$J$23:$J$52),MATCH(ROW($J$23:$J$52),ROW($J$23:$J$52)),""),ROWS($A$23:A140)))),"") ->  | Q140: =IFERROR(IF($Q$21="Yes",INDEX($L$23:$L$2323,SMALL(IF((County=$M$23:$M$2323),MATCH(ROW($M$23:$M$2323),ROW($M$23:$M$2323)),""),ROWS($A$23:A140))),""),"") ->  | S140: 33154 | T140: Miami-Dade | V140: 12 | W140: Leon | AB140: 8.04 | AC140: Palm Beach | AF140: Not 109 | AG140: Units, Set-Asides, Bldgs | AH140: L68
A141: 33912 | B141: Lee | F141: 112 | G141: Duval | L141: 101.04 | M141: Broward | O141: =IFERROR(IF($O$21="Metro",INDEX($F$23:$F$748,SMALL(IF((County=$G$23:$G$748),MATCH(ROW($G$23:$G$748),ROW($G$23:$G$748)),""),ROWS($A$23:A141))),INDEX($I$23:$I$52,SMALL(IF((County=$J$23:$J$52),MATCH(ROW($J$23:$J$52),ROW($J$23:$J$52)),""),ROWS($A$23:A141)))),"") ->  | Q141: =IFERROR(IF($Q$21="Yes",INDEX($L$23:$L$2323,SMALL(IF((County=$M$23:$M$2323),MATCH(ROW($M$23:$M$2323),ROW($M$23:$M$2323)),""),ROWS($A$23:A141))),""),"") ->  | S141: 33155 | T141: Miami-Dade | V141: 12 | W141: Martin | AB141: 8.05 | AC141: Manatee | AF141: Not 109 | AG141: Units, Set-Asides, Bldgs | AH141: G73:G84 | AI141: Minimum SA Commitment
A142: 33913 | B142: Lee | F142: 113 | G142: Duval | L142: 103.08 | M142: Broward | O142: =IFERROR(IF($O$21="Metro",INDEX($F$23:$F$748,SMALL(IF((County=$G$23:$G$748),MATCH(ROW($G$23:$G$748),ROW($G$23:$G$748)),""),ROWS($A$23:A142))),INDEX($I$23:$I$52,SMALL(IF((County=$J$23:$J$52),MATCH(ROW($J$23:$J$52),ROW($J$23:$J$52)),""),ROWS($A$23:A142)))),"") ->  | Q142: =IFERROR(IF($Q$21="Yes",INDEX($L$23:$L$2323,SMALL(IF((County=$M$23:$M$2323),MATCH(ROW($M$23:$M$2323),ROW($M$23:$M$2323)),""),ROWS($A$23:A142))),""),"") ->  | S142: 33156 | T142: Miami-Dade | V142: 12.03 | W142: Miami-Dade | AB142: 8.07 | AC142: Manatee
A143: 33914 | B143: Lee | F143: 114 | G143: Duval | L143: 104.01 | M143: Broward | O143: =IFERROR(IF($O$21="Metro",INDEX($F$23:$F$748,SMALL(IF((County=$G$23:$G$748),MATCH(ROW($G$23:$G$748),ROW($G$23:$G$748)),""),ROWS($A$23:A143))),INDEX($I$23:$I$52,SMALL(IF((County=$J$23:$J$52),MATCH(ROW($J$23:$J$52),ROW($J$23:$J$52)),""),ROWS($A$23:A143)))),"") ->  | Q143: =IFERROR(IF($Q$21="Yes",INDEX($L$23:$L$2323,SMALL(IF((County=$M$23:$M$2323),MATCH(ROW($M$23:$M$2323),ROW($M$23:$M$2323)),""),ROWS($A$23:A143))),""),"") ->  | S143: 33158 | T143: Miami-Dade | V143: 13 | W143: Duval | AB143: 8.08 | AC143: Manatee
A144: 33919 | B144: Lee | F144: 115 | G144: Duval | L144: 104.06 | M144: Broward | O144: =IFERROR(IF($O$21="Metro",INDEX($F$23:$F$748,SMALL(IF((County=$G$23:$G$748),MATCH(ROW($G$23:$G$748),ROW($G$23:$G$748)),""),ROWS($A$23:A144))),INDEX($I$23:$I$52,SMALL(IF((County=$J$23:$J$52),MATCH(ROW($J$23:$J$52),ROW($J$23:$J$52)),""),ROWS($A$23:A144)))),"") ->  | Q144: =IFERROR(IF($Q$21="Yes",INDEX($L$23:$L$2323,SMALL(IF((County=$M$23:$M$2323),MATCH(ROW($M$23:$M$2323),ROW($M$23:$M$2323)),""),ROWS($A$23:A144))),""),"") ->  | S144: 33160 | T144: Miami-Dade | V144: 13 | W144: Escambia | AB144: 8.09 | AC144: Manatee
A145: 33921 | B145: Lee | F145: 116 | G145: Duval | L145: 105.02 | M145: Broward | O145: =IFERROR(IF($O$21="Metro",INDEX($F$23:$F$748,SMALL(IF((County=$G$23:$G$748),MATCH(ROW($G$23:$G$748),ROW($G$23:$G$748)),""),ROWS($A$23:A145))),INDEX($I$23:$I$52,SMALL(IF((County=$J$23:$J$52),MATCH(ROW($J$23:$J$52),ROW($J$23:$J$52)),""),ROWS($A$23:A145)))),"") ->  | Q145: =IFERROR(IF($Q$21="Yes",INDEX($L$23:$L$2323,SMALL(IF((County=$M$23:$M$2323),MATCH(ROW($M$23:$M$2323),ROW($M$23:$M$2323)),""),ROWS($A$23:A145))),""),"") ->  | S145: 33165 | T145: Miami-Dade | V145: 13.01 | W145: Miami-Dade | AB145: 8.1 | AC145: Manatee
A146: 33924 | B146: Lee | F146: 118 | G146: Duval | L146: 105.03 | M146: Broward | O146: =IFERROR(IF($O$21="Metro",INDEX($F$23:$F$748,SMALL(IF((County=$G$23:$G$748),MATCH(ROW($G$23:$G$748),ROW($G$23:$G$748)),""),ROWS($A$23:A146))),INDEX($I$23:$I$52,SMALL(IF((County=$J$23:$J$52),MATCH(ROW($J$23:$J$52),ROW($J$23:$J$52)),""),ROWS($A$23:A146)))),"") ->  | Q146: =IFERROR(IF($Q$21="Yes",INDEX($L$23:$L$2323,SMALL(IF((County=$M$23:$M$2323),MATCH(ROW($M$23:$M$2323),ROW($M$23:$M$2323)),""),ROWS($A$23:A146))),""),"") ->  | S146: 33172 | T146: Miami-Dade | V146: 13.01 | W146: Palm Beach | AB146: 9 | AC146: Escambia
A147: 33928 | B147: Lee | F147: 121 | G147: Duval | L147: 105.04 | M147: Broward | O147: =IFERROR(IF($O$21="Metro",INDEX($F$23:$F$748,SMALL(IF((County=$G$23:$G$748),MATCH(ROW($G$23:$G$748),ROW($G$23:$G$748)),""),ROWS($A$23:A147))),INDEX($I$23:$I$52,SMALL(IF((County=$J$23:$J$52),MATCH(ROW($J$23:$J$52),ROW($J$23:$J$52)),""),ROWS($A$23:A147)))),"") ->  | Q147: =IFERROR(IF($Q$21="Yes",INDEX($L$23:$L$2323,SMALL(IF((County=$M$23:$M$2323),MATCH(ROW($M$23:$M$2323),ROW($M$23:$M$2323)),""),ROWS($A$23:A147))),""),"") ->  | S147: 33173 | T147: Miami-Dade | V147: 13.02 | W147: Palm Beach | AB147: 9 | AC147: Lee
A148: 33957 | B148: Lee | F148: 122 | G148: Duval | L148: 106.01 | M148: Broward | O148: =IFERROR(IF($O$21="Metro",INDEX($F$23:$F$748,SMALL(IF((County=$G$23:$G$748),MATCH(ROW($G$23:$G$748),ROW($G$23:$G$748)),""),ROWS($A$23:A148))),INDEX($I$23:$I$52,SMALL(IF((County=$J$23:$J$52),MATCH(ROW($J$23:$J$52),ROW($J$23:$J$52)),""),ROWS($A$23:A148)))),"") ->  | Q148: =IFERROR(IF($Q$21="Yes",INDEX($L$23:$L$2323,SMALL(IF((County=$M$23:$M$2323),MATCH(ROW($M$23:$M$2323),ROW($M$23:$M$2323)),""),ROWS($A$23:A148))),""),"") ->  | S148: 33175 | T148: Miami-Dade | V148: 14 | W148: Duval | AB148: 9 | AC148: Sarasota
A149: 33965 | B149: Lee | F149: 125 | G149: Duval | L149: 106.03 | M149: Broward | O149: =IFERROR(IF($O$21="Metro",INDEX($F$23:$F$748,SMALL(IF((County=$G$23:$G$748),MATCH(ROW($G$23:$G$748),ROW($G$23:$G$748)),""),ROWS($A$23:A149))),INDEX($I$23:$I$52,SMALL(IF((County=$J$23:$J$52),MATCH(ROW($J$23:$J$52),ROW($J$23:$J$52)),""),ROWS($A$23:A149)))),"") ->  | Q149: =IFERROR(IF($Q$21="Yes",INDEX($L$23:$L$2323,SMALL(IF((County=$M$23:$M$2323),MATCH(ROW($M$23:$M$2323),ROW($M$23:$M$2323)),""),ROWS($A$23:A149))),""),"") ->  | S149: 33176 | T149: Miami-Dade | V149: 14 | W149: Hillsborough | AB149: 9.01 | AC149: Leon
A150: 33967 | B150: Lee | F150: 126.01 | G150: Duval | L150: 106.04 | M150: Broward | O150: =IFERROR(IF($O$21="Metro",INDEX($F$23:$F$748,SMALL(IF((County=$G$23:$G$748),MATCH(ROW($G$23:$G$748),ROW($G$23:$G$748)),""),ROWS($A$23:A150))),INDEX($I$23:$I$52,SMALL(IF((County=$J$23:$J$52),MATCH(ROW($J$23:$J$52),ROW($J$23:$J$52)),""),ROWS($A$23:A150)))),"") ->  | Q150: =IFERROR(IF($Q$21="Yes",INDEX($L$23:$L$2323,SMALL(IF((County=$M$23:$M$2323),MATCH(ROW($M$23:$M$2323),ROW($M$23:$M$2323)),""),ROWS($A$23:A150))),""),"") ->  | S150: 33178 | T150: Miami-Dade | V150: 14.01 | W150: Leon | AB150: 9.01 | AC150: Manatee
A151: 33991 | B151: Lee | F151: 134.02 | G151: Duval | L151: 106.05 | M151: Broward | O151: =IFERROR(IF($O$21="Metro",INDEX($F$23:$F$748,SMALL(IF((County=$G$23:$G$748),MATCH(ROW($G$23:$G$748),ROW($G$23:$G$748)),""),ROWS($A$23:A151))),INDEX($I$23:$I$52,SMALL(IF((County=$J$23:$J$52),MATCH(ROW($J$23:$J$52),ROW($J$23:$J$52)),""),ROWS($A$23:A151)))),"") ->  | Q151: =IFERROR(IF($Q$21="Yes",INDEX($L$23:$L$2323,SMALL(IF((County=$M$23:$M$2323),MATCH(ROW($M$23:$M$2323),ROW($M$23:$M$2323)),""),ROWS($A$23:A151))),""),"") ->  | S151: 33180 | T151: Miami-Dade | V151: 14.01 | W151: Marion | AB151: 9.01 | AC151: Martin
A152: 33993 | B152: Lee | F152: 148 | G152: Duval | L152: 106.06 | M152: Broward | O152: =IFERROR(IF($O$21="Metro",INDEX($F$23:$F$748,SMALL(IF((County=$G$23:$G$748),MATCH(ROW($G$23:$G$748),ROW($G$23:$G$748)),""),ROWS($A$23:A152))),INDEX($I$23:$I$52,SMALL(IF((County=$J$23:$J$52),MATCH(ROW($J$23:$J$52),ROW($J$23:$J$52)),""),ROWS($A$23:A152)))),"") ->  | Q152: =IFERROR(IF($Q$21="Yes",INDEX($L$23:$L$2323,SMALL(IF((County=$M$23:$M$2323),MATCH(ROW($M$23:$M$2323),ROW($M$23:$M$2323)),""),ROWS($A$23:A152))),""),"") ->  | S152: 33182 | T152: Miami-Dade | V152: 14.01 | W152: Miami-Dade | AB152: 9.02 | AC152: Manatee
A153: 34134 | B153: Lee | F153: 155.01 | G153: Duval | L153: 106.07 | M153: Broward | O153: =IFERROR(IF($O$21="Metro",INDEX($F$23:$F$748,SMALL(IF((County=$G$23:$G$748),MATCH(ROW($G$23:$G$748),ROW($G$23:$G$748)),""),ROWS($A$23:A153))),INDEX($I$23:$I$52,SMALL(IF((County=$J$23:$J$52),MATCH(ROW($J$23:$J$52),ROW($J$23:$J$52)),""),ROWS($A$23:A153)))),"") ->  | Q153: =IFERROR(IF($Q$21="Yes",INDEX($L$23:$L$2323,SMALL(IF((County=$M$23:$M$2323),MATCH(ROW($M$23:$M$2323),ROW($M$23:$M$2323)),""),ROWS($A$23:A153))),""),"") ->  | S153: 33183 | T153: Miami-Dade | V153: 14.02 | W153: Leon | AB153: 9.02 | AC153: Marion
A154: 34135 | B154: Lee | F154: 155.02 | G154: Duval | L154: 106.09 | M154: Broward | O154: =IFERROR(IF($O$21="Metro",INDEX($F$23:$F$748,SMALL(IF((County=$G$23:$G$748),MATCH(ROW($G$23:$G$748),ROW($G$23:$G$748)),""),ROWS($A$23:A154))),INDEX($I$23:$I$52,SMALL(IF((County=$J$23:$J$52),MATCH(ROW($J$23:$J$52),ROW($J$23:$J$52)),""),ROWS($A$23:A154)))),"") ->  | Q154: =IFERROR(IF($Q$21="Yes",INDEX($L$23:$L$2323,SMALL(IF((County=$M$23:$M$2323),MATCH(ROW($M$23:$M$2323),ROW($M$23:$M$2323)),""),ROWS($A$23:A154))),""),"") ->  | S154: 33184 | T154: Miami-Dade | V154: 14.02 | W154: Miami-Dade | AB154: 9.02 | AC154: Palm Beach
A155: 32317 | B155: Leon | F155: 159.25 | G155: Duval | L155: 106.1 | M155: Broward | O155: =IFERROR(IF($O$21="Metro",INDEX($F$23:$F$748,SMALL(IF((County=$G$23:$G$748),MATCH(ROW($G$23:$G$748),ROW($G$23:$G$748)),""),ROWS($A$23:A155))),INDEX($I$23:$I$52,SMALL(IF((County=$J$23:$J$52),MATCH(ROW($J$23:$J$52),ROW($J$23:$J$52)),""),ROWS($A$23:A155)))),"") ->  | Q155: =IFERROR(IF($Q$21="Yes",INDEX($L$23:$L$2323,SMALL(IF((County=$M$23:$M$2323),MATCH(ROW($M$23:$M$2323),ROW($M$23:$M$2323)),""),ROWS($A$23:A155))),""),"") ->  | S155: 33185 | T155: Miami-Dade | V155: 14.02 | W155: Palm Beach | AB155: 9.03 | AC155: Leon
A156: 34201 | B156: Manatee | F156: 160 | G156: Duval | L156: 106.11 | M156: Broward | O156: =IFERROR(IF($O$21="Metro",INDEX($F$23:$F$748,SMALL(IF((County=$G$23:$G$748),MATCH(ROW($G$23:$G$748),ROW($G$23:$G$748)),""),ROWS($A$23:A156))),INDEX($I$23:$I$52,SMALL(IF((County=$J$23:$J$52),MATCH(ROW($J$23:$J$52),ROW($J$23:$J$52)),""),ROWS($A$23:A156)))),"") ->  | Q156: =IFERROR(IF($Q$21="Yes",INDEX($L$23:$L$2323,SMALL(IF((County=$M$23:$M$2323),MATCH(ROW($M$23:$M$2323),ROW($M$23:$M$2323)),""),ROWS($A$23:A156))),""),"") ->  | S156: 33186 | T156: Miami-Dade | V156: 14.03 | W156: Palm Beach | AB156: 9.03 | AC156: Palm Beach
A157: 34202 | B157: Manatee | F157: 163 | G157: Duval | L157: 106.12 | M157: Broward | O157: =IFERROR(IF($O$21="Metro",INDEX($F$23:$F$748,SMALL(IF((County=$G$23:$G$748),MATCH(ROW($G$23:$G$748),ROW($G$23:$G$748)),""),ROWS($A$23:A157))),INDEX($I$23:$I$52,SMALL(IF((County=$J$23:$J$52),MATCH(ROW($J$23:$J$52),ROW($J$23:$J$52)),""),ROWS($A$23:A157)))),"") ->  | Q157: =IFERROR(IF($Q$21="Yes",INDEX($L$23:$L$2323,SMALL(IF((County=$M$23:$M$2323),MATCH(ROW($M$23:$M$2323),ROW($M$23:$M$2323)),""),ROWS($A$23:A157))),""),"") ->  | S157: 33187 | T157: Miami-Dade | V157: 14.04 | W157: Palm Beach | AB157: 9.04 | AC157: Leon
A158: 34211 | B158: Manatee | F158: 166.01 | G158: Duval | L158: 109.01 | M158: Broward | O158: =IFERROR(IF($O$21="Metro",INDEX($F$23:$F$748,SMALL(IF((County=$G$23:$G$748),MATCH(ROW($G$23:$G$748),ROW($G$23:$G$748)),""),ROWS($A$23:A158))),INDEX($I$23:$I$52,SMALL(IF((County=$J$23:$J$52),MATCH(ROW($J$23:$J$52),ROW($J$23:$J$52)),""),ROWS($A$23:A158)))),"") ->  | Q158: =IFERROR(IF($Q$21="Yes",INDEX($L$23:$L$2323,SMALL(IF((County=$M$23:$M$2323),MATCH(ROW($M$23:$M$2323),ROW($M$23:$M$2323)),""),ROWS($A$23:A158))),""),"") ->  | S158: 33193 | T158: Miami-Dade | V158: 14.07 | W158: Martin | AB158: 9.04 | AC158: Palm Beach
A159: 34212 | B159: Manatee | F159: 172 | G159: Duval | L159: 109.02 | M159: Broward | O159: =IFERROR(IF($O$21="Metro",INDEX($F$23:$F$748,SMALL(IF((County=$G$23:$G$748),MATCH(ROW($G$23:$G$748),ROW($G$23:$G$748)),""),ROWS($A$23:A159))),INDEX($I$23:$I$52,SMALL(IF((County=$J$23:$J$52),MATCH(ROW($J$23:$J$52),ROW($J$23:$J$52)),""),ROWS($A$23:A159)))),"") ->  | Q159: =IFERROR(IF($Q$21="Yes",INDEX($L$23:$L$2323,SMALL(IF((County=$M$23:$M$2323),MATCH(ROW($M$23:$M$2323),ROW($M$23:$M$2323)),""),ROWS($A$23:A159))),""),"") ->  | S159: 33194 | T159: Miami-Dade | V159: 15 | W159: Duval | AB159: 9.05 | AC159: Leon
A160: 34216 | B160: Manatee | F160: 174 | G160: Duval | L160: 110 | M160: Broward | O160: =IFERROR(IF($O$21="Metro",INDEX($F$23:$F$748,SMALL(IF((County=$G$23:$G$748),MATCH(ROW($G$23:$G$748),ROW($G$23:$G$748)),""),ROWS($A$23:A160))),INDEX($I$23:$I$52,SMALL(IF((County=$J$23:$J$52),MATCH(ROW($J$23:$J$52),ROW($J$23:$J$52)),""),ROWS($A$23:A160)))),"") ->  | Q160: =IFERROR(IF($Q$21="Yes",INDEX($L$23:$L$2323,SMALL(IF((County=$M$23:$M$2323),MATCH(ROW($M$23:$M$2323),ROW($M$23:$M$2323)),""),ROWS($A$23:A160))),""),"") ->  | S160: 33196 | T160: Miami-Dade | V160: 15 | W160: Escambia | AB160: 9.05 | AC160: Palm Beach
A161: 34217 | B161: Manatee | F161: 3 | G161: Escambia | L161: 202.04 | M161: Broward | O161: =IFERROR(IF($O$21="Metro",INDEX($F$23:$F$748,SMALL(IF((County=$G$23:$G$748),MATCH(ROW($G$23:$G$748),ROW($G$23:$G$748)),""),ROWS($A$23:A161))),INDEX($I$23:$I$52,SMALL(IF((County=$J$23:$J$52),MATCH(ROW($J$23:$J$52),ROW($J$23:$J$52)),""),ROWS($A$23:A161)))),"") ->  | Q161: =IFERROR(IF($Q$21="Yes",INDEX($L$23:$L$2323,SMALL(IF((County=$M$23:$M$2323),MATCH(ROW($M$23:$M$2323),ROW($M$23:$M$2323)),""),ROWS($A$23:A161))),""),"") ->  | S161: 33301 | T161: Broward | V161: 15 | W161: Marion | AB161: 10 | AC161: Alachua
A162: 34219 | B162: Manatee | F162: 4 | G162: Escambia | L162: 202.05 | M162: Broward | O162: =IFERROR(IF($O$21="Metro",INDEX($F$23:$F$748,SMALL(IF((County=$G$23:$G$748),MATCH(ROW($G$23:$G$748),ROW($G$23:$G$748)),""),ROWS($A$23:A162))),INDEX($I$23:$I$52,SMALL(IF((County=$J$23:$J$52),MATCH(ROW($J$23:$J$52),ROW($J$23:$J$52)),""),ROWS($A$23:A162)))),"") ->  | Q162: =IFERROR(IF($Q$21="Yes",INDEX($L$23:$L$2323,SMALL(IF((County=$M$23:$M$2323),MATCH(ROW($M$23:$M$2323),ROW($M$23:$M$2323)),""),ROWS($A$23:A162))),""),"") ->  | S162: 33308 | T162: Broward | V162: 15.01 | W162: Miami-Dade | AB162: 10 | AC162: Lee
A163: 34243 | B163: Manatee | F163: 6 | G163: Escambia | L163: 203.09 | M163: Broward | O163: =IFERROR(IF($O$21="Metro",INDEX($F$23:$F$748,SMALL(IF((County=$G$23:$G$748),MATCH(ROW($G$23:$G$748),ROW($G$23:$G$748)),""),ROWS($A$23:A163))),INDEX($I$23:$I$52,SMALL(IF((County=$J$23:$J$52),MATCH(ROW($J$23:$J$52),ROW($J$23:$J$52)),""),ROWS($A$23:A163)))),"") ->  | Q163: =IFERROR(IF($Q$21="Yes",INDEX($L$23:$L$2323,SMALL(IF((County=$M$23:$M$2323),MATCH(ROW($M$23:$M$2323),ROW($M$23:$M$2323)),""),ROWS($A$23:A163))),""),"") ->  | S163: 33321 | T163: Broward | V163: 15.02 | W163: Lee | AB163: 10.01 | AC163: Escambia
A164: 34251 | B164: Manatee | F164: 13 | G164: Escambia | L164: 203.12 | M164: Broward | O164: =IFERROR(IF($O$21="Metro",INDEX($F$23:$F$748,SMALL(IF((County=$G$23:$G$748),MATCH(ROW($G$23:$G$748),ROW($G$23:$G$748)),""),ROWS($A$23:A164))),INDEX($I$23:$I$52,SMALL(IF((County=$J$23:$J$52),MATCH(ROW($J$23:$J$52),ROW($J$23:$J$52)),""),ROWS($A$23:A164)))),"") ->  | Q164: =IFERROR(IF($Q$21="Yes",INDEX($L$23:$L$2323,SMALL(IF((County=$M$23:$M$2323),MATCH(ROW($M$23:$M$2323),ROW($M$23:$M$2323)),""),ROWS($A$23:A164))),""),"") ->  | S164: 33322 | T164: Broward | V164: 15.02 | W164: Manatee | AB164: 10.02 | AC164: Escambia
A165: 32133 | B165: Marion | F165: 15 | G165: Escambia | L165: 203.13 | M165: Broward | O165: =IFERROR(IF($O$21="Metro",INDEX($F$23:$F$748,SMALL(IF((County=$G$23:$G$748),MATCH(ROW($G$23:$G$748),ROW($G$23:$G$748)),""),ROWS($A$23:A165))),INDEX($I$23:$I$52,SMALL(IF((County=$J$23:$J$52),MATCH(ROW($J$23:$J$52),ROW($J$23:$J$52)),""),ROWS($A$23:A165)))),"") ->  | Q165: =IFERROR(IF($Q$21="Yes",INDEX($L$23:$L$2323,SMALL(IF((County=$M$23:$M$2323),MATCH(ROW($M$23:$M$2323),ROW($M$23:$M$2323)),""),ROWS($A$23:A165))),""),"") ->  | S165: 33323 | T165: Broward | V165: 15.02 | W165: Miami-Dade | AB165: 10.03 | AC165: Palm Beach
A166: 32195 | B166: Marion | F166: 16 | G166: Escambia | L166: 203.15 | M166: Broward | O166: =IFERROR(IF($O$21="Metro",INDEX($F$23:$F$748,SMALL(IF((County=$G$23:$G$748),MATCH(ROW($G$23:$G$748),ROW($G$23:$G$748)),""),ROWS($A$23:A166))),INDEX($I$23:$I$52,SMALL(IF((County=$J$23:$J$52),MATCH(ROW($J$23:$J$52),ROW($J$23:$J$52)),""),ROWS($A$23:A166)))),"") ->  | Q166: =IFERROR(IF($Q$21="Yes",INDEX($L$23:$L$2323,SMALL(IF((County=$M$23:$M$2323),MATCH(ROW($M$23:$M$2323),ROW($M$23:$M$2323)),""),ROWS($A$23:A166))),""),"") ->  | S166: 33324 | T166: Broward | V166: 15.14 | W166: Alachua | AB166: 10.04 | AC166: Marion
A167: 34472 | B167: Marion | F167: 17 | G167: Escambia | L167: 203.16 | M167: Broward | O167: =IFERROR(IF($O$21="Metro",INDEX($F$23:$F$748,SMALL(IF((County=$G$23:$G$748),MATCH(ROW($G$23:$G$748),ROW($G$23:$G$748)),""),ROWS($A$23:A167))),INDEX($I$23:$I$52,SMALL(IF((County=$J$23:$J$52),MATCH(ROW($J$23:$J$52),ROW($J$23:$J$52)),""),ROWS($A$23:A167)))),"") ->  | Q167: =IFERROR(IF($Q$21="Yes",INDEX($L$23:$L$2323,SMALL(IF((County=$M$23:$M$2323),MATCH(ROW($M$23:$M$2323),ROW($M$23:$M$2323)),""),ROWS($A$23:A167))),""),"") ->  | S167: 33325 | T167: Broward | V167: 15.15 | W167: Alachua | AB167: 10.05 | AC167: Marion
A168: 34473 | B168: Marion | F168: 18 | G168: Escambia | L168: 203.17 | M168: Broward | O168: =IFERROR(IF($O$21="Metro",INDEX($F$23:$F$748,SMALL(IF((County=$G$23:$G$748),MATCH(ROW($G$23:$G$748),ROW($G$23:$G$748)),""),ROWS($A$23:A168))),INDEX($I$23:$I$52,SMALL(IF((County=$J$23:$J$52),MATCH(ROW($J$23:$J$52),ROW($J$23:$J$52)),""),ROWS($A$23:A168)))),"") ->  | Q168: =IFERROR(IF($Q$21="Yes",INDEX($L$23:$L$2323,SMALL(IF((County=$M$23:$M$2323),MATCH(ROW($M$23:$M$2323),ROW($M$23:$M$2323)),""),ROWS($A$23:A168))),""),"") ->  | S168: 33326 | T168: Broward | V168: 15.16 | W168: Alachua | AB168: 10.06 | AC168: Marion
A169: 34474 | B169: Marion | F169: 19 | G169: Escambia | L169: 203.18 | M169: Broward | O169: =IFERROR(IF($O$21="Metro",INDEX($F$23:$F$748,SMALL(IF((County=$G$23:$G$748),MATCH(ROW($G$23:$G$748),ROW($G$23:$G$748)),""),ROWS($A$23:A169))),INDEX($I$23:$I$52,SMALL(IF((County=$J$23:$J$52),MATCH(ROW($J$23:$J$52),ROW($J$23:$J$52)),""),ROWS($A$23:A169)))),"") ->  | Q169: =IFERROR(IF($Q$21="Yes",INDEX($L$23:$L$2323,SMALL(IF((County=$M$23:$M$2323),MATCH(ROW($M$23:$M$2323),ROW($M$23:$M$2323)),""),ROWS($A$23:A169))),""),"") ->  | S169: 33327 | T169: Broward | V169: 15.17 | W169: Alachua | AB169: 10.07 | AC169: Marion
A170: 34481 | B170: Marion | F170: 20 | G170: Escambia | L170: 203.19 | M170: Broward | O170: =IFERROR(IF($O$21="Metro",INDEX($F$23:$F$748,SMALL(IF((County=$G$23:$G$748),MATCH(ROW($G$23:$G$748),ROW($G$23:$G$748)),""),ROWS($A$23:A170))),INDEX($I$23:$I$52,SMALL(IF((County=$J$23:$J$52),MATCH(ROW($J$23:$J$52),ROW($J$23:$J$52)),""),ROWS($A$23:A170)))),"") ->  | Q170: =IFERROR(IF($Q$21="Yes",INDEX($L$23:$L$2323,SMALL(IF((County=$M$23:$M$2323),MATCH(ROW($M$23:$M$2323),ROW($M$23:$M$2323)),""),ROWS($A$23:A170))),""),"") ->  | S170: 33328 | T170: Broward | V170: 15.19 | W170: Alachua | AB170: 10.08 | AC170: Marion
A171: 34491 | B171: Marion | F171: 21 | G171: Escambia | L171: 203.2 | M171: Broward | O171: =IFERROR(IF($O$21="Metro",INDEX($F$23:$F$748,SMALL(IF((County=$G$23:$G$748),MATCH(ROW($G$23:$G$748),ROW($G$23:$G$748)),""),ROWS($A$23:A171))),INDEX($I$23:$I$52,SMALL(IF((County=$J$23:$J$52),MATCH(ROW($J$23:$J$52),ROW($J$23:$J$52)),""),ROWS($A$23:A171)))),"") ->  | Q171: =IFERROR(IF($Q$21="Yes",INDEX($L$23:$L$2323,SMALL(IF((County=$M$23:$M$2323),MATCH(ROW($M$23:$M$2323),ROW($M$23:$M$2323)),""),ROWS($A$23:A171))),""),"") ->  | S171: 33330 | T171: Broward | V171: 15.21 | W171: Alachua | AB171: 11 | AC171: Alachua
A172: 34990 | B172: Martin | F172: 22 | G172: Escambia | L172: 203.21 | M172: Broward | O172: =IFERROR(IF($O$21="Metro",INDEX($F$23:$F$748,SMALL(IF((County=$G$23:$G$748),MATCH(ROW($G$23:$G$748),ROW($G$23:$G$748)),""),ROWS($A$23:A172))),INDEX($I$23:$I$52,SMALL(IF((County=$J$23:$J$52),MATCH(ROW($J$23:$J$52),ROW($J$23:$J$52)),""),ROWS($A$23:A172)))),"") ->  | Q172: =IFERROR(IF($Q$21="Yes",INDEX($L$23:$L$2323,SMALL(IF((County=$M$23:$M$2323),MATCH(ROW($M$23:$M$2323),ROW($M$23:$M$2323)),""),ROWS($A$23:A172))),""),"") ->  | S172: 33331 | T172: Broward | V172: 16 | W172: Bay | AB172: 11 | AC172: Hillsborough
A173: 33014 | B173: Miami-Dade | F173: 27.03 | G173: Escambia | L173: 203.22 | M173: Broward | O173: =IFERROR(IF($O$21="Metro",INDEX($F$23:$F$748,SMALL(IF((County=$G$23:$G$748),MATCH(ROW($G$23:$G$748),ROW($G$23:$G$748)),""),ROWS($A$23:A173))),INDEX($I$23:$I$52,SMALL(IF((County=$J$23:$J$52),MATCH(ROW($J$23:$J$52),ROW($J$23:$J$52)),""),ROWS($A$23:A173)))),"") ->  | Q173: =IFERROR(IF($Q$21="Yes",INDEX($L$23:$L$2323,SMALL(IF((County=$M$23:$M$2323),MATCH(ROW($M$23:$M$2323),ROW($M$23:$M$2323)),""),ROWS($A$23:A173))),""),"") ->  | S173: 33332 | T173: Broward | V173: 16 | W173: Duval | AB173: 11.01 | AC173: Escambia
A174: 33015 | B174: Miami-Dade | F174: 29 | G174: Escambia | L174: 203.25 | M174: Broward | O174: =IFERROR(IF($O$21="Metro",INDEX($F$23:$F$748,SMALL(IF((County=$G$23:$G$748),MATCH(ROW($G$23:$G$748),ROW($G$23:$G$748)),""),ROWS($A$23:A174))),INDEX($I$23:$I$52,SMALL(IF((County=$J$23:$J$52),MATCH(ROW($J$23:$J$52),ROW($J$23:$J$52)),""),ROWS($A$23:A174)))),"") ->  | Q174: =IFERROR(IF($Q$21="Yes",INDEX($L$23:$L$2323,SMALL(IF((County=$M$23:$M$2323),MATCH(ROW($M$23:$M$2323),ROW($M$23:$M$2323)),""),ROWS($A$23:A174))),""),"") ->  | S174: 33351 | T174: Broward | V174: 16 | W174: Escambia | AB174: 11.01 | AC174: Palm Beach
A175: 33018 | B175: Miami-Dade | F175: 35.06 | G175: Escambia | L175: 203.26 | M175: Broward | O175: =IFERROR(IF($O$21="Metro",INDEX($F$23:$F$748,SMALL(IF((County=$G$23:$G$748),MATCH(ROW($G$23:$G$748),ROW($G$23:$G$748)),""),ROWS($A$23:A175))),INDEX($I$23:$I$52,SMALL(IF((County=$J$23:$J$52),MATCH(ROW($J$23:$J$52),ROW($J$23:$J$52)),""),ROWS($A$23:A175)))),"") ->  | Q175: =IFERROR(IF($Q$21="Yes",INDEX($L$23:$L$2323,SMALL(IF((County=$M$23:$M$2323),MATCH(ROW($M$23:$M$2323),ROW($M$23:$M$2323)),""),ROWS($A$23:A175))),""),"") ->  | S175: 33410 | T175: Palm Beach | V175: 16 | W175: Marion | AB175: 11.02 | AC175: Martin
A176: 33031 | B176: Miami-Dade | F176: 36.07 | G176: Escambia | L176: 204.06 | M176: Broward | O176: =IFERROR(IF($O$21="Metro",INDEX($F$23:$F$748,SMALL(IF((County=$G$23:$G$748),MATCH(ROW($G$23:$G$748),ROW($G$23:$G$748)),""),ROWS($A$23:A176))),INDEX($I$23:$I$52,SMALL(IF((County=$J$23:$J$52),MATCH(ROW($J$23:$J$52),ROW($J$23:$J$52)),""),ROWS($A$23:A176)))),"") ->  | Q176: =IFERROR(IF($Q$21="Yes",INDEX($L$23:$L$2323,SMALL(IF((County=$M$23:$M$2323),MATCH(ROW($M$23:$M$2323),ROW($M$23:$M$2323)),""),ROWS($A$23:A176))),""),"") ->  | S176: 33412 | T176: Palm Beach | V176: 16 | W176: Palm Beach | AB176: 11.02 | AC176: Palm Beach
A177: 33035 | B177: Miami-Dade | F177: 207.01 | G177: Gadsden | L177: 204.11 | M177: Broward | O177: =IFERROR(IF($O$21="Metro",INDEX($F$23:$F$748,SMALL(IF((County=$G$23:$G$748),MATCH(ROW($G$23:$G$748),ROW($G$23:$G$748)),""),ROWS($A$23:A177))),INDEX($I$23:$I$52,SMALL(IF((County=$J$23:$J$52),MATCH(ROW($J$23:$J$52),ROW($J$23:$J$52)),""),ROWS($A$23:A177)))),"") ->  | Q177: =IFERROR(IF($Q$21="Yes",INDEX($L$23:$L$2323,SMALL(IF((County=$M$23:$M$2323),MATCH(ROW($M$23:$M$2323),ROW($M$23:$M$2323)),""),ROWS($A$23:A177))),""),"") ->  | S177: 33413 | T177: Palm Beach | V177: 16.03 | W177: Alachua | AB177: 11.03 | AC177: Escambia
A178: 33055 | B178: Miami-Dade | F178: 207.02 | G178: Gadsden | L178: 204.14 | M178: Broward | O178: =IFERROR(IF($O$21="Metro",INDEX($F$23:$F$748,SMALL(IF((County=$G$23:$G$748),MATCH(ROW($G$23:$G$748),ROW($G$23:$G$748)),""),ROWS($A$23:A178))),INDEX($I$23:$I$52,SMALL(IF((County=$J$23:$J$52),MATCH(ROW($J$23:$J$52),ROW($J$23:$J$52)),""),ROWS($A$23:A178)))),"") ->  | Q178: =IFERROR(IF($Q$21="Yes",INDEX($L$23:$L$2323,SMALL(IF((County=$M$23:$M$2323),MATCH(ROW($M$23:$M$2323),ROW($M$23:$M$2323)),""),ROWS($A$23:A178))),""),"") ->  | S178: 33414 | T178: Palm Beach | V178: 16.04 | W178: Alachua | AB178: 11.03 | AC178: Marion
A179: 33109 | B179: Miami-Dade | F179: 404 | G179: Hernando | L179: 205.01 | M179: Broward | O179: =IFERROR(IF($O$21="Metro",INDEX($F$23:$F$748,SMALL(IF((County=$G$23:$G$748),MATCH(ROW($G$23:$G$748),ROW($G$23:$G$748)),""),ROWS($A$23:A179))),INDEX($I$23:$I$52,SMALL(IF((County=$J$23:$J$52),MATCH(ROW($J$23:$J$52),ROW($J$23:$J$52)),""),ROWS($A$23:A179)))),"") ->  | Q179: =IFERROR(IF($Q$21="Yes",INDEX($L$23:$L$2323,SMALL(IF((County=$M$23:$M$2323),MATCH(ROW($M$23:$M$2323),ROW($M$23:$M$2323)),""),ROWS($A$23:A179))),""),"") ->  | S179: 33418 | T179: Palm Beach | V179: 16.05 | W179: Miami-Dade | AB179: 11.03 | AC179: Martin
A180: 33126 | B180: Miami-Dade | F180: 405.01 | G180: Hernando | L180: 301 | M180: Broward | O180: =IFERROR(IF($O$21="Metro",INDEX($F$23:$F$748,SMALL(IF((County=$G$23:$G$748),MATCH(ROW($G$23:$G$748),ROW($G$23:$G$748)),""),ROWS($A$23:A180))),INDEX($I$23:$I$52,SMALL(IF((County=$J$23:$J$52),MATCH(ROW($J$23:$J$52),ROW($J$23:$J$52)),""),ROWS($A$23:A180)))),"") ->  | Q180: =IFERROR(IF($Q$21="Yes",INDEX($L$23:$L$2323,SMALL(IF((County=$M$23:$M$2323),MATCH(ROW($M$23:$M$2323),ROW($M$23:$M$2323)),""),ROWS($A$23:A180))),""),"") ->  | S180: 33426 | T180: Palm Beach | V180: 16.06 | W180: Miami-Dade | AB180: 11.04 | AC180: Escambia
A181: 33129 | B181: Miami-Dade | F181: 405.02 | G181: Hernando | L181: 307.02 | M181: Broward | O181: =IFERROR(IF($O$21="Metro",INDEX($F$23:$F$748,SMALL(IF((County=$G$23:$G$748),MATCH(ROW($G$23:$G$748),ROW($G$23:$G$748)),""),ROWS($A$23:A181))),INDEX($I$23:$I$52,SMALL(IF((County=$J$23:$J$52),MATCH(ROW($J$23:$J$52),ROW($J$23:$J$52)),""),ROWS($A$23:A181)))),"") ->  | Q181: =IFERROR(IF($Q$21="Yes",INDEX($L$23:$L$2323,SMALL(IF((County=$M$23:$M$2323),MATCH(ROW($M$23:$M$2323),ROW($M$23:$M$2323)),""),ROWS($A$23:A181))),""),"") ->  | S181: 33428 | T181: Palm Beach | V181: 17 | W181: Escambia | AB181: 11.04 | AC181: Manatee
A182: 33131 | B182: Miami-Dade | F182: 412.04 | G182: Hernando | L182: 307.04 | M182: Broward | Q182: =IFERROR(IF($Q$21="Yes",INDEX($L$23:$L$2323,SMALL(IF((County=$M$23:$M$2323),MATCH(ROW($M$23:$M$2323),ROW($M$23:$M$2323)),""),ROWS($A$23:A182))),""),"") ->  | S182: 33431 | T182: Palm Beach | V182: 17 | W182: Marion | AB182: 11.04 | AC182: Martin
A183: 33132 | B183: Miami-Dade | F183: 414.01 | G183: Hernando | L183: 309.02 | M183: Broward | Q183: =IFERROR(IF($Q$21="Yes",INDEX($L$23:$L$2323,SMALL(IF((County=$M$23:$M$2323),MATCH(ROW($M$23:$M$2323),ROW($M$23:$M$2323)),""),ROWS($A$23:A183))),""),"") ->  | S183: 33432 | T183: Palm Beach | V183: 17.01 | W183: Miami-Dade | AB183: 11.04 | AC183: Miami-Dade
A184: 33133 | B184: Miami-Dade | F184: 9603 | G184: Highlands | L184: 309.04 | M184: Broward | Q184: =IFERROR(IF($Q$21="Yes",INDEX($L$23:$L$2323,SMALL(IF((County=$M$23:$M$2323),MATCH(ROW($M$23:$M$2323),ROW($M$23:$M$2323)),""),ROWS($A$23:A184))),""),"") ->  | S184: 33433 | T184: Palm Beach | V184: 17.02 | W184: Miami-Dade | AB184: 11.05 | AC184: Manatee
A185: 33134 | B185: Miami-Dade | F185: 9608 | G185: Highlands | L185: 310.02 | M185: Broward | Q185: =IFERROR(IF($Q$21="Yes",INDEX($L$23:$L$2323,SMALL(IF((County=$M$23:$M$2323),MATCH(ROW($M$23:$M$2323),ROW($M$23:$M$2323)),""),ROWS($A$23:A185))),""),"") ->  | S185: 33435 | T185: Palm Beach | V185: 17.03 | W185: Miami-Dade | AB185: 11.08 | AC185: Manatee
A186: 33137 | B186: Miami-Dade | F186: 9609 | G186: Highlands | L186: 311.01 | M186: Broward | Q186: =IFERROR(IF($Q$21="Yes",INDEX($L$23:$L$2323,SMALL(IF((County=$M$23:$M$2323),MATCH(ROW($M$23:$M$2323),ROW($M$23:$M$2323)),""),ROWS($A$23:A186))),""),"") ->  | S186: 33436 | T186: Palm Beach | V186: 18 | W186: Bay | AB186: 12.01 | AC186: Alachua
A187: 33139 | B187: Miami-Dade | F187: 9611 | G187: Highlands | L187: 311.02 | M187: Broward | Q187: =IFERROR(IF($Q$21="Yes",INDEX($L$23:$L$2323,SMALL(IF((County=$M$23:$M$2323),MATCH(ROW($M$23:$M$2323),ROW($M$23:$M$2323)),""),ROWS($A$23:A187))),""),"") ->  | S187: 33437 | T187: Palm Beach | V187: 18 | W187: Escambia | AB187: 12.01 | AC187: Sarasota
A188: 33140 | B188: Miami-Dade | F188: 9616.03 | G188: Highlands | L188: 312.02 | M188: Broward | Q188: =IFERROR(IF($Q$21="Yes",INDEX($L$23:$L$2323,SMALL(IF((County=$M$23:$M$2323),MATCH(ROW($M$23:$M$2323),ROW($M$23:$M$2323)),""),ROWS($A$23:A188))),""),"") ->  | S188: 33442 | T188: Broward | V188: 18 | W188: Hillsborough | AB188: 12.02 | AC188: Alachua
A189: 33141 | B189: Miami-Dade | F189: 1.01 | G189: Hillsborough | L189: 312.03 | M189: Broward | Q189: =IFERROR(IF($Q$21="Yes",INDEX($L$23:$L$2323,SMALL(IF((County=$M$23:$M$2323),MATCH(ROW($M$23:$M$2323),ROW($M$23:$M$2323)),""),ROWS($A$23:A189))),""),"") ->  | S189: 33445 | T189: Palm Beach | V189: 18 | W189: Marion | AB189: 12.02 | AC189: Lee
A190: 33143 | B190: Miami-Dade | F190: 1.02 | G190: Hillsborough | L190: 312.05 | M190: Broward | Q190: =IFERROR(IF($Q$21="Yes",INDEX($L$23:$L$2323,SMALL(IF((County=$M$23:$M$2323),MATCH(ROW($M$23:$M$2323),ROW($M$23:$M$2323)),""),ROWS($A$23:A190))),""),"") ->  | S190: 33449 | T190: Palm Beach | V190: 18.01 | W190: Leon | AB190: 12.02 | AC190: Manatee
A191: 33145 | B191: Miami-Dade | F191: 2.01 | G191: Hillsborough | L191: 401.01 | M191: Broward | Q191: =IFERROR(IF($Q$21="Yes",INDEX($L$23:$L$2323,SMALL(IF((County=$M$23:$M$2323),MATCH(ROW($M$23:$M$2323),ROW($M$23:$M$2323)),""),ROWS($A$23:A191))),""),"") ->  | S191: 33458 | T191: Palm Beach | V191: 18.01 | W191: Martin | AB191: 12.03 | AC191: Alachua
A192: 33146 | B192: Miami-Dade | F192: 2.02 | G192: Hillsborough | L192: 401.02 | M192: Broward | Q192: =IFERROR(IF($Q$21="Yes",INDEX($L$23:$L$2323,SMALL(IF((County=$M$23:$M$2323),MATCH(ROW($M$23:$M$2323),ROW($M$23:$M$2323)),""),ROWS($A$23:A192))),""),"") ->  | S192: 33467 | T192: Palm Beach | V192: 18.01 | W192: Miami-Dade | AB192: 12.03 | AC192: Manatee
A193: 33149 | B193: Miami-Dade | F193: 3 | G193: Hillsborough | L193: 402.03 | M193: Broward | Q193: =IFERROR(IF($Q$21="Yes",INDEX($L$23:$L$2323,SMALL(IF((County=$M$23:$M$2323),MATCH(ROW($M$23:$M$2323),ROW($M$23:$M$2323)),""),ROWS($A$23:A193))),""),"") ->  | S193: 33469 | T193: Palm Beach | V193: 18.02 | W193: Alachua | AB193: 12.03 | AC193: Sarasota
A194: 33154 | B194: Miami-Dade | F194: 4.02 | G194: Hillsborough | L194: 402.04 | M194: Broward | Q194: =IFERROR(IF($Q$21="Yes",INDEX($L$23:$L$2323,SMALL(IF((County=$M$23:$M$2323),MATCH(ROW($M$23:$M$2323),ROW($M$23:$M$2323)),""),ROWS($A$23:A194))),""),"") ->  | S194: 33470 | T194: Palm Beach | V194: 18.02 | W194: Miami-Dade | AB194: 12.04 | AC194: Manatee
A195: 33155 | B195: Miami-Dade | F195: 6.01 | G195: Hillsborough | L195: 402.05 | M195: Broward | Q195: =IFERROR(IF($Q$21="Yes",INDEX($L$23:$L$2323,SMALL(IF((County=$M$23:$M$2323),MATCH(ROW($M$23:$M$2323),ROW($M$23:$M$2323)),""),ROWS($A$23:A195))),""),"") ->  | S195: 33472 | T195: Palm Beach | V195: 18.03 | W195: Miami-Dade | AB195: 12.04 | AC195: Miami-Dade
A196: 33156 | B196: Miami-Dade | F196: 6.02 | G196: Hillsborough | L196: 402.06 | M196: Broward | Q196: =IFERROR(IF($Q$21="Yes",INDEX($L$23:$L$2323,SMALL(IF((County=$M$23:$M$2323),MATCH(ROW($M$23:$M$2323),ROW($M$23:$M$2323)),""),ROWS($A$23:A196))),""),"") ->  | S196: 33473 | T196: Palm Beach | V196: 19 | W196: Escambia | AB196: 12.04 | AC196: Sarasota
A197: 33158 | B197: Miami-Dade | F197: 7 | G197: Hillsborough | L197: 404.01 | M197: Broward | Q197: =IFERROR(IF($Q$21="Yes",INDEX($L$23:$L$2323,SMALL(IF((County=$M$23:$M$2323),MATCH(ROW($M$23:$M$2323),ROW($M$23:$M$2323)),""),ROWS($A$23:A197))),""),"") ->  | S197: 33477 | T197: Palm Beach | V197: 19 | W197: Hillsborough | AB197: 12.05 | AC197: Miami-Dade
A198: 33160 | B198: Miami-Dade | F198: 8 | G198: Hillsborough | L198: 404.02 | M198: Broward | Q198: =IFERROR(IF($Q$21="Yes",INDEX($L$23:$L$2323,SMALL(IF((County=$M$23:$M$2323),MATCH(ROW($M$23:$M$2323),ROW($M$23:$M$2323)),""),ROWS($A$23:A198))),""),"") ->  | S198: 33478 | T198: Palm Beach | V198: 19 | W198: Marion | AB198: 12.06 | AC198: Marion
A199: 33165 | B199: Miami-Dade | F199: 9.01 | G199: Hillsborough | L199: 405.02 | M199: Broward | Q199: =IFERROR(IF($Q$21="Yes",INDEX($L$23:$L$2323,SMALL(IF((County=$M$23:$M$2323),MATCH(ROW($M$23:$M$2323),ROW($M$23:$M$2323)),""),ROWS($A$23:A199))),""),"") ->  | S199: 33480 | T199: Palm Beach | V199: 19.01 | W199: Leon | AB199: 12.06 | AC199: Miami-Dade
A200: 33172 | B200: Miami-Dade | F200: 9.02 | G200: Hillsborough | L200: 405.03 | M200: Broward | Q200: =IFERROR(IF($Q$21="Yes",INDEX($L$23:$L$2323,SMALL(IF((County=$M$23:$M$2323),MATCH(ROW($M$23:$M$2323),ROW($M$23:$M$2323)),""),ROWS($A$23:A200))),""),"") ->  | S200: 33483 | T200: Palm Beach | V200: 19.01 | W200: Miami-Dade | AB200: 12.08 | AC200: Marion
A201: 33173 | B201: Miami-Dade | F201: 10.01 | G201: Hillsborough | L201: 405.04 | M201: Broward | Q201: =IFERROR(IF($Q$21="Yes",INDEX($L$23:$L$2323,SMALL(IF((County=$M$23:$M$2323),MATCH(ROW($M$23:$M$2323),ROW($M$23:$M$2323)),""),ROWS($A$23:A201))),""),"") ->  | S201: 33486 | T201: Palm Beach | V201: 19.02 | W201: Alachua | AB201: 13.01 | AC201: Bay
A202: 33175 | B202: Miami-Dade | F202: 10.02 | G202: Hillsborough | L202: 406.01 | M202: Broward | Q202: =IFERROR(IF($Q$21="Yes",INDEX($L$23:$L$2323,SMALL(IF((County=$M$23:$M$2323),MATCH(ROW($M$23:$M$2323),ROW($M$23:$M$2323)),""),ROWS($A$23:A202))),""),"") ->  | S202: 33487 | T202: Palm Beach | V202: 19.02 | W202: Leon | AB202: 13.01 | AC202: Sarasota
A203: 33176 | B203: Miami-Dade | F203: 12 | G203: Hillsborough | L203: 406.02 | M203: Broward | Q203: =IFERROR(IF($Q$21="Yes",INDEX($L$23:$L$2323,SMALL(IF((County=$M$23:$M$2323),MATCH(ROW($M$23:$M$2323),ROW($M$23:$M$2323)),""),ROWS($A$23:A203))),""),"") ->  | S203: 33496 | T203: Palm Beach | V203: 19.03 | W203: Miami-Dade | AB203: 13.02 | AC203: Marion
A204: 33178 | B204: Miami-Dade | F204: 14 | G204: Hillsborough | L204: 407.01 | M204: Broward | Q204: =IFERROR(IF($Q$21="Yes",INDEX($L$23:$L$2323,SMALL(IF((County=$M$23:$M$2323),MATCH(ROW($M$23:$M$2323),ROW($M$23:$M$2323)),""),ROWS($A$23:A204))),""),"") ->  | S204: 33498 | T204: Palm Beach | V204: 19.04 | W204: Miami-Dade | AB204: 13.02 | AC204: Martin
A205: 33180 | B205: Miami-Dade | F205: 18 | G205: Hillsborough | L205: 407.02 | M205: Broward | Q205: =IFERROR(IF($Q$21="Yes",INDEX($L$23:$L$2323,SMALL(IF((County=$M$23:$M$2323),MATCH(ROW($M$23:$M$2323),ROW($M$23:$M$2323)),""),ROWS($A$23:A205))),""),"") ->  | S205: 33503 | T205: Hillsborough | V205: 19.09 | W205: Palm Beach | AB205: 13.02 | AC205: Miami-Dade
A206: 33182 | B206: Miami-Dade | F206: 19 | G206: Hillsborough | L206: 418.01 | M206: Broward | Q206: =IFERROR(IF($Q$21="Yes",INDEX($L$23:$L$2323,SMALL(IF((County=$M$23:$M$2323),MATCH(ROW($M$23:$M$2323),ROW($M$23:$M$2323)),""),ROWS($A$23:A206))),""),"") ->  | S206: 33510 | T206: Hillsborough | V206: 19.1 | W206: Palm Beach | AB206: 13.02 | AC206: Sarasota
A207: 33183 | B207: Miami-Dade | F207: 20 | G207: Hillsborough | L207: 418.02 | M207: Broward | Q207: =IFERROR(IF($Q$21="Yes",INDEX($L$23:$L$2323,SMALL(IF((County=$M$23:$M$2323),MATCH(ROW($M$23:$M$2323),ROW($M$23:$M$2323)),""),ROWS($A$23:A207))),""),"") ->  | S207: 33511 | T207: Hillsborough | V207: 19.11 | W207: Palm Beach | AB207: 13.03 | AC207: Sarasota
A208: 33184 | B208: Miami-Dade | F208: 25 | G208: Hillsborough | L208: 419 | M208: Broward | Q208: =IFERROR(IF($Q$21="Yes",INDEX($L$23:$L$2323,SMALL(IF((County=$M$23:$M$2323),MATCH(ROW($M$23:$M$2323),ROW($M$23:$M$2323)),""),ROWS($A$23:A208))),""),"") ->  | S208: 33543 | T208: Pasco | V208: 20 | W208: Bay | AB208: 13.04 | AC208: Sarasota
A209: 33185 | B209: Miami-Dade | F209: 26 | G209: Hillsborough | L209: 420 | M209: Broward | Q209: =IFERROR(IF($Q$21="Yes",INDEX($L$23:$L$2323,SMALL(IF((County=$M$23:$M$2323),MATCH(ROW($M$23:$M$2323),ROW($M$23:$M$2323)),""),ROWS($A$23:A209))),""),"") ->  | S209: 33544 | T209: Pasco | V209: 20 | W209: Escambia | AB209: 14.01 | AC209: Escambia
A210: 33186 | B210: Miami-Dade | F210: 30 | G210: Hillsborough | L210: 421 | M210: Broward | Q210: =IFERROR(IF($Q$21="Yes",INDEX($L$23:$L$2323,SMALL(IF((County=$M$23:$M$2323),MATCH(ROW($M$23:$M$2323),ROW($M$23:$M$2323)),""),ROWS($A$23:A210))),""),"") ->  | S210: 33545 | T210: Pasco | V210: 20 | W210: Hillsborough | AB210: 14.01 | AC210: Sarasota
... 2113 more rows

Sheet Data3 (hidden)
E2: 2021 Non-Metro DDA
A3: CountyData is a named range for A10: P76
F6: Small #? | G6: 2022 ELI Funding Per Unit | L6: 2022 Min. NHTF Funding PU
A7: 1 | B7: 2 | C7: 3 | D7: 4 | F7: 6 | G7: 7 | H7: 8 | I7: 9 | J7: 10 | K7: 11 | L7: 12 | M7: 13 | N7: 14 | O7: 15 | P7: 16
A8: County | B8: Size | C8: LGC | D8: LG AofO | F8: Max HC Request Limits | G8: 0 Bd Units | H8: 1 Bd Units | I8: 2 Bd Units | J8: 3 Bd Units | K8: 4 Bd Units | L8: 22% AMI | M8: 30% AMI | N8: 2022 ELI %
A9: <select one> | C9: NA | D9: NA
A10: Alachua | B10: Medium | C10: 37500 | D10: 460000 | E10: N | F10: =IF(B10="Medium",2040000,IF(OR(A10="Broward",A10="Miami-Dade"),3458400,IF(OR(A10="Hillsborough",A10="Orange",A10="Palm Beach"),2856000,IF(OR(A10="Duval",A10="Pinellas"),2241600,"")))) -> 2040000 | G10: 79300 | H10: 79300 | I10: 93200 | J10: 105000 | K10: 105000 | L10: 223000 | M10: 176000 | N10: 0.33
A11: Baker | B11: Small | C11: 2500 | D11: NA | E11: N | F11: =IF(B11="Medium",2040000,IF(OR(A11="Broward",A11="Miami-Dade"),3458400,IF(OR(A11="Hillsborough",A11="Orange",A11="Palm Beach"),2856000,IF(OR(A11="Duval",A11="Pinellas"),2241600,"")))) ->  | G11: 78800 | H11: 78800 | I11: 92100 | J11: 103900 | K11: 103900 | L11: 221100 | M11: 174500 | N11: 0.33
A12: Bay | B12: Medium | C12: 20000 | D12: 340000 | E12: N | F12: 2040000 | G12: 67300 | H12: 67300 | I12: 79000 | J12: 89100 | K12: 89100 | L12: 204700 | M12: 161500 | N12: 0.35
A13: Bradford | B13: Small | C13: 5000 | D13: NA | E13: Y | G13: 43600 | H13: 43600 | I13: 51000 | J13: 57600 | K13: 57600 | L13: 165300 | M13: 130600 | N13: 0.4
A14: Brevard | B14: Medium | C14: 50000 | D14: 460000 | E14: N | F14: 2040000 | G14: 78800 | H14: 78800 | I14: 92100 | J14: 103900 | K14: 103900 | L14: 221100 | M14: 174500 | N14: 0.33
A15: Broward | B15: Large | C15: 100000 | D15: 640000 | E15: N | F15: 3458400 | G15: 97500 | H15: 97500 | I15: 114500 | J15: 129100 | K15: 129100 | L15: 246700 | M15: 194700 | N15: 0.3
A16: Calhoun | B16: Small | C16: 2500 | D16: NA | E16: Y | G16: 44400 | H16: 44400 | I16: 52100 | J16: 58700 | K16: 58700 | L16: 168800 | M16: 133300 | N16: 0.4
A17: Charlotte | B17: Medium | C17: 20000 | D17: 340000 | E17: N | F17: 2040000 | G17: 52000 | H17: 52000 | I17: 60900 | J17: 68700 | K17: 68700 | L17: 197400 | M17: 155800 | N17: 0.4
A18: Citrus | B18: Medium | C18: 20000 | D18: 340000 | E18: N | F18: 2040000 | G18: 44400 | H18: 44400 | I18: 52100 | J18: 58700 | K18: 58700 | L18: 168800 | M18: 133300 | N18: 0.4
A19: Clay | B19: Medium | C19: 20000 | D19: 340000 | E19: N | F19: 2040000 | G19: 81100 | H19: 81100 | I19: 94900 | J19: 107000 | K19: 107000 | L19: 227600 | M19: 179800 | N19: 0.33
A20: Collier | B20: Medium | C20: 37500 | D20: 460000 | E20: N | F20: 2040000 | G20: 108400 | H20: 108400 | I20: 126800 | J20: 143100 | K20: 143100 | L20: 257000 | M20: 202800 | N20: 0.28
A21: Columbia | B21: Small | C21: 10000 | D21: NA | E21: Y | G21: 47000 | H21: 47000 | I21: 55100 | J21: 62200 | K21: 62200 | L21: 178300 | M21: 140900 | N21: 0.4
A22: DeSoto | B22: Small | C22: 5000 | D22: NA | E22: Y | G22: 43600 | H22: 43600 | I22: 51000 | J22: 57600 | K22: 57600 | L22: 165300 | M22: 130600 | N22: 0.4
A23: Dixie | B23: Small | C23: 2500 | D23: NA | E23: Y | G23: 43600 | H23: 43600 | I23: 51000 | J23: 57600 | K23: 57600 | L23: 165300 | M23: 130600 | N23: 0.4
A24: Duval | B24: Large | C24: 75000 | D24: 610000 | E24: N | F24: 2241600 | G24: 81100 | H24: 81100 | I24: 94900 | J24: 107000 | K24: 107000 | L24: 227600 | M24: 179800 | N24: 0.33
A25: Escambia | B25: Medium | C25: 37500 | D25: 460000 | E25: N | F25: 2040000 | G25: 69400 | H25: 69400 | I25: 81200 | J25: 91700 | K25: 91700 | L25: 210400 | M25: 166100 | N25: 0.35
A26: Flagler | B26: Medium | C26: 20000 | D26: 340000 | E26: N | F26: 2040000 | G26: 66900 | H26: 66900 | I26: 78400 | J26: 88400 | K26: 88400 | L26: 203100 | M26: 160400 | N26: 0.35
A27: Franklin | B27: Small | C27: 2500 | D27: NA | E27: Y | G27: 44400 | H27: 44400 | I27: 51900 | J27: 58500 | K27: 58500 | L27: 168400 | M27: 132900 | N27: 0.4
A28: Gadsden | B28: Small | C28: 5000 | D28: NA | E28: N | G28: 78800 | H28: 78800 | I28: 92100 | J28: 103900 | K28: 103900 | L28: 221100 | M28: 174500 | N28: 0.33
A29: Gilchrist | B29: Small | C29: 2500 | D29: NA | E29: N | G29: 79300 | H29: 79300 | I29: 93200 | J29: 105000 | K29: 105000 | L29: 223000 | M29: 176000 | N29: 0.33
A30: Glades | B30: Small | C30: 2500 | D30: NA | E30: Y | G30: 43600 | H30: 43600 | I30: 51000 | J30: 57600 | K30: 57600 | L30: 165300 | M30: 130600 | N30: 0.4
A31: Gulf | B31: Small | C31: 2500 | D31: NA | E31: N | G31: 44200 | H31: 44200 | I31: 51700 | J31: 58300 | K31: 58300 | L31: 167600 | M31: 132500 | N31: 0.4
A32: Hamilton | B32: Small | C32: 2500 | D32: NA | E32: Y | G32: 43600 | H32: 43600 | I32: 51000 | J32: 57600 | K32: 57600 | L32: 165300 | M32: 130600 | N32: 0.4
A33: Hardee | B33: Small | C33: 5000 | D33: NA | E33: Y | G33: 43600 | H33: 43600 | I33: 51000 | J33: 57600 | K33: 57600 | L33: 165300 | M33: 130600 | N33: 0.4
A34: Hendry | B34: Small | C34: 5000 | D34: NA | E34: Y | G34: 43600 | H34: 43600 | I34: 51000 | J34: 57600 | K34: 57600 | L34: 165300 | M34: 130600 | N34: 0.4
A35: Hernando | B35: Medium | C35: 20000 | D35: 340000 | E35: N | F35: 2040000 | G35: 79500 | H35: 79500 | I35: 93200 | J35: 105200 | K35: 105200 | L35: 223800 | M35: 176400 | N35: 0.33
A36: Highlands | B36: Medium | C36: 20000 | D36: 340000 | E36: N | F36: 2040000 | G36: 44400 | H36: 44400 | I36: 52100 | J36: 58700 | K36: 58700 | L36: 168800 | M36: 133300 | N36: 0.4
A37: Hillsborough | B37: Large | C37: 75000 | D37: 610000 | E37: N | F37: 2856000 | G37: 79500 | H37: 79500 | I37: 93200 | J37: 105200 | K37: 105200 | L37: 223800 | M37: 176400 | N37: 0.33
A38: Holmes | B38: Small | C38: 2500 | D38: NA | E38: Y | G38: 43600 | H38: 43600 | I38: 51000 | J38: 57600 | K38: 57600 | L38: 165300 | M38: 130600 | N38: 0.4
A39: Indian River | B39: Medium | C39: 20000 | D39: 340000 | E39: N | F39: 2040000 | G39: 77400 | H39: 77400 | I39: 90800 | J39: 102300 | K39: 102300 | L39: 217600 | M39: 171800 | N39: 0.33
A40: Jackson | B40: Small | C40: 5000 | D40: NA | E40: Y | G40: 43600 | H40: 43600 | I40: 51000 | J40: 57600 | K40: 57600 | L40: 165300 | M40: 130600 | N40: 0.4
A41: Jefferson | B41: Small | C41: 2500 | D41: NA | E41: N | G41: 78800 | H41: 78800 | I41: 92100 | J41: 103900 | K41: 103900 | L41: 221100 | M41: 174500 | N41: 0.33
A42: Lafayette | B42: Small | C42: 2500 | D42: NA | E42: Y | G42: 45700 | H42: 45700 | I42: 53600 | J42: 60500 | K42: 60500 | L42: 173700 | M42: 137100 | N42: 0.4
A43: Lake | B43: Medium | C43: 37500 | D43: 460000 | E43: N | F43: 2040000 | G43: 80300 | H43: 80300 | I43: 94100 | J43: 106100 | K43: 106100 | L43: 225700 | M43: 178300 | N43: 0.33
A44: Lee | B44: Medium | C44: 50000 | D44: 460000 | E44: N | F44: 2040000 | G44: 78000 | H44: 78000 | I44: 91300 | J44: 102800 | K44: 102800 | L44: 219200 | M44: 173000 | N44: 0.33
A45: Leon | B45: Medium | C45: 37500 | D45: 460000 | E45: N | F45: 2040000 | G45: 78800 | H45: 78800 | I45: 92100 | J45: 103900 | K45: 103900 | L45: 221100 | M45: 174500 | N45: 0.33
A46: Levy | B46: Small | C46: 5000 | D46: NA | E46: Y | G46: 43600 | H46: 43600 | I46: 51000 | J46: 57600 | K46: 57600 | L46: 165300 | M46: 130600 | N46: 0.4
A47: Liberty | B47: Small | C47: 2500 | D47: NA | E47: Y | G47: 43600 | H47: 43600 | I47: 51000 | J47: 57600 | K47: 57600 | L47: 165300 | M47: 130600 | N47: 0.4
A48: Madison | B48: Small | C48: 2500 | D48: NA | E48: Y | G48: 43600 | H48: 43600 | I48: 51000 | J48: 57600 | K48: 57600 | L48: 165300 | M48: 130600 | N48: 0.4
A49: Manatee | B49: Medium | C49: 37500 | D49: 460000 | E49: N | F49: 2040000 | G49: 83700 | H49: 83700 | I49: 97800 | J49: 110600 | K49: 110600 | L49: 235200 | M49: 185600 | N49: 0.33
A50: Marion | B50: Medium | C50: 37500 | D50: 460000 | E50: N | F50: 2040000 | G50: 44500 | H50: 44500 | I50: 52300 | J50: 58900 | K50: 58900 | L50: 169500 | M50: 133600 | N50: 0.4
A51: Martin | B51: Medium | C51: 20000 | D51: 340000 | E51: N | F51: 2040000 | G51: 77400 | H51: 77400 | I51: 90800 | J51: 102400 | K51: 102400 | L51: 217600 | M51: 171800 | N51: 0.33
A52: Miami-Dade | B52: Large | C52: 250000 | D52: NA | E52: N | F52: 3458400 | G52: 111800 | H52: 111800 | I52: 131300 | J52: 148000 | K52: 148000 | L52: 265400 | M52: 209600 | N52: 0.28
A53: Monroe | B53: Small | C53: 10000 | D53: NA | E53: Y | G53: 117600 | H53: 117600 | I53: 137800 | J53: 155500 | K53: 155500 | L53: 279100 | M53: 220300 | N53: 0.28
A54: Nassau | B54: Small | C54: 10000 | D54: NA | E54: N | G54: 81100 | H54: 81100 | I54: 94900 | J54: 107000 | K54: 107000 | L54: 227600 | M54: 179800 | N54: 0.33
A55: Okaloosa | B55: Medium | C55: 20000 | D55: 340000 | E55: N | F55: 2040000 | G55: 94600 | H55: 94600 | I55: 110900 | J55: 125000 | K55: 125000 | L55: 239400 | M55: 189000 | N55: 0.3
A56: Okeechobee | B56: Small | C56: 5000 | D56: NA | E56: Y | G56: 43600 | H56: 43600 | I56: 51000 | J56: 57600 | K56: 57600 | L56: 165300 | M56: 130600 | N56: 0.4
A57: Orange | B57: Large | C57: 75000 | D57: 610000 | E57: N | F57: 2856000 | G57: 80300 | H57: 80300 | I57: 94100 | J57: 106100 | K57: 106100 | L57: 225700 | M57: 178300 | N57: 0.33
A58: Osceola | B58: Medium | C58: 20000 | D58: 460000 | E58: N | F58: 2040000 | G58: 80300 | H58: 80300 | I58: 94100 | J58: 106100 | K58: 106100 | L58: 225700 | M58: 178300 | N58: 0.33
A59: Palm Beach | B59: Large | C59: 75000 | D59: 640000 | E59: N | F59: 2856000 | G59: 99000 | H59: 99000 | I59: 116000 | J59: 130900 | K59: 130900 | L59: 250500 | M59: 197800 | N59: 0.3
A60: Pasco | B60: Medium | C60: 50000 | D60: 460000 | E60: N | F60: 2040000 | G60: 79500 | H60: 79500 | I60: 93200 | J60: 105200 | K60: 105200 | L60: 223800 | M60: 176400 | N60: 0.33
A61: Pinellas | B61: Large | C61: 75000 | D61: 610000 | E61: N | F61: 2241600 | G61: 79500 | H61: 79500 | I61: 93200 | J61: 105200 | K61: 105200 | L61: 223800 | M61: 176400 | N61: 0.33
A62: Polk | B62: Medium | C62: 50000 | D62: 460000 | E62: N | F62: 2040000 | G62: 48400 | H62: 48400 | I62: 56800 | J62: 64000 | K62: 64000 | L62: 183700 | M62: 145100 | N62: 0.4
A63: Putnam | B63: Small | C63: 10000 | D63: NA | E63: Y | G63: 43600 | H63: 43600 | I63: 51000 | J63: 57600 | K63: 57600 | L63: 165300 | M63: 130600 | N63: 0.4
A64: Santa Rosa | B64: Medium | C64: 20000 | D64: 340000 | E64: N | F64: 2040000 | G64: 81100 | H64: 81100 | I64: 94900 | J64: 107000 | K64: 107000 | L64: 227600 | M64: 179800 | N64: 0.33
A65: Sarasota | B65: Medium | C65: 50000 | D65: 460000 | E65: N | F65: 2040000 | G65: 77400 | H65: 77400 | I65: 90800 | J65: 102400 | K65: 102400 | L65: 217600 | M65: 171800 | N65: 0.33
A66: Seminole | B66: Medium | C66: 50000 | D66: 460000 | E66: N | F66: 2040000 | G66: 69400 | H66: 69400 | I66: 81200 | J66: 91700 | K66: 91700 | L66: 210400 | M66: 166100 | N66: 0.35
A67: St. Johns | B67: Medium | C67: 20000 | D67: 460000 | E67: N | F67: 2040000 | G67: 83700 | H67: 83700 | I67: 97800 | J67: 110600 | K67: 110600 | L67: 235200 | M67: 185600 | N67: 0.33
A68: St. Lucie | B68: Medium | C68: 20000 | D68: 460000 | E68: N | F68: 2040000 | G68: 80300 | H68: 80300 | I68: 94100 | J68: 106100 | K68: 106100 | L68: 225700 | M68: 178300 | N68: 0.33
A69: Sumter | B69: Medium | C69: 10000 | D69: 340000 | E69: N | F69: 2040000 | G69: 67700 | H69: 67700 | I69: 79200 | J69: 89300 | K69: 89300 | L69: 205000 | M69: 161900 | N69: 0.35
A70: Suwannee | B70: Small | C70: 5000 | D70: NA | E70: Y | G70: 43600 | H70: 43600 | I70: 51000 | J70: 57600 | K70: 57600 | L70: 165300 | M70: 130600 | N70: 0.4
A71: Taylor | B71: Small | C71: 2500 | D71: NA | E71: Y | G71: 43600 | H71: 43600 | I71: 51000 | J71: 57600 | K71: 57600 | L71: 165300 | M71: 130600 | N71: 0.4
A72: Union | B72: Small | C72: 2500 | D72: NA | E72: Y | G72: 43600 | H72: 43600 | I72: 51000 | J72: 57600 | K72: 57600 | L72: 165300 | M72: 130600 | N72: 0.4
A73: Volusia | B73: Medium | C73: 50000 | D73: 460000 | E73: N | F73: 2040000 | G73: 52400 | H73: 52400 | I73: 61400 | J73: 69300 | K73: 69300 | L73: 198900 | M73: 156900 | N73: 0.4
A74: Wakulla | B74: Small | C74: 2500 | D74: NA | E74: N | G74: 76500 | H74: 76500 | I74: 89600 | J74: 101000 | K74: 101000 | L74: 214600 | M74: 169500 | N74: 0.33
A75: Walton | B75: Small | C75: 5000 | D75: NA | E75: N | F75: =IF(B75="Medium",2040000,IF(OR(A75="Broward",A75="Miami-Dade"),3458400,IF(OR(A75="Hillsborough",A75="Orange",A75="Palm Beach"),2856000,IF(OR(A75="Duval",A75="Pinellas"),2241600,"")))) ->  | G75: 69800 | H75: 69800 | I75: 81800 | J75: 92200 | K75: 92200 | L75: 211900 | M75: 167200 | N75: 0.35
A76: Washington | B76: Small | C76: 2500 | D76: NA | E76: Y | G76: 43600 | H76: 43600 | I76: 51000 | J76: 57600 | K76: 57600 | L76: 165300 | M76: 130600 | N76: 0.4
A78: Funding Limits Per Program
I79: Applicable RFAs | J79: Limited Dev Cat | M79: Limited Dev Cat Menu
A80: Workforce SAIL | C80: 5520000 | D80: Per Development - Florida Keys | M80: None
A81: Workforce SAIL | C81: 80000 | D81: Per WF Only/HC Only Unit - Florida Keys | M81: NC or Redev
A82: Workforce SAIL | C82: 125000 | D82: Per HC Unit when no units above 80% AMI- Florida Keys
A83: Workforce SAIL | C83: 6500000 | D83: Per Development - NOT in Florida Keys
A84: Workforce SAIL | C84: 80000 | D84: Per Unit @ 80% AMI - NOT in Florida Keys
A85: SAIL | C85: 8400000 | D85: Per Development - Large County | I85: 205 | J85: NC or Redev
A86: SAIL | C86: 7200000 | D86: Per Development - Small or Medium County | I86: 205 | J86: NC or Redev
A87: SAIL | C87: 3000000 | D87: Per Development - Minimum Miami-Dade | I87: 205
A88: SAIL | C88: =IF(RIGHT(Excel_RFA_Number,3)="101",2071500,IF(RIGHT(Excel_RFA_Number,3)="205",6000000,6000000)) -> 6000000 | D88: Per Development - Preservation/Rehab w or w/o Acq | I88: 205
A89: SAIL | C89: =IF(RIGHT(Excel_RFA_Number,3)="106",4800000,4000000) -> 4000000 | D89: Per Development - Demographic, RFA Dependent | I89: 103, 106
A90: SAIL | C90: 100000 | D90: Per Unit for New Construction
A91: SAIL | C91: 50000 | D91: Per Unit for Substantial Rehabilitation
A92: SAIL | C92: 36000 | D92: Per Unit - Self-Sourced | I92: 205
A93: SAIL | C93: 84000 | D93: Per Unit - Not Self-Sourced | I93: 101, 103, 205
A94: ELI | C94: 750000 | D94: Per Development | I94: 101, 103, 106, 205
A95: ELI | C95: See Above Table | D95: Per Unit | I95: 101, 103, 106, 205
A96: SAIL + ELI | C96: 0.25 | D96: Percent of TDC when ELI Units <5% of total units | I96: 205
A97: SAIL + ELI | C97: 0.35 | D97: Percent of TDC when ELI Units >=5% of total units | I97: 101, 103, 106, 205
A98: SAIL + ELI | C98: <select one> | D98: Is the ELI funding part of the SAIL Per Development Limit?
A99: HOME | C99: 6000000 | D99: Per Development
A100: =A99 -> HOME | C100: 137983 | D100: Per 0 Bd Unit
A101: =A100 -> HOME | C101: 158177 | D101: Per 1 Bd Unit
A102: =A101 -> HOME | C102: 192346 | D102: Per 2 Bd Unit
A103: =A102 -> HOME | C103: 248834 | D103: Per 3 Bd Unit
A104: =A103 -> HOME | C104: 273141 | D104: Per 4 Bd Unit
A105: HOME-ARP | C105: 2950000 | D105: Per Development | G105: HOME-ARP 22% | H105: HOME-ARP 30% | I105: HOME-ARP Max | K105: TDC Max | L105: 2021-2022
A106: =A105 -> HOME-ARP | C106: =IF(K$105=K$110,G106,IF(K$105=K$111,H106,I106)) -> 0 | D106: Per Unit | G106: =VLOOKUP(County,DS_CountyData,12) -> 0 | H106: =VLOOKUP(County,DS_CountyData,13) -> 0 | I106: =Data1!W247 -> 0
A107: =A106 -> HOME-ARP
A108: NHTF | C108: 2500000 | D108: Per Development | G108: NHTF 22% | H108: NHTF 30% | I108: NHTF Max | K108: TDC Max | L108: 2021-2022
A109: =A108 -> NHTF | C109: =IF(K$108=K$110,G109,IF(K$108=K$111,H109,I109)) -> 0 | D109: Per Unit | G109: =VLOOKUP(County,DS_CountyData,12) -> 0 | H109: =VLOOKUP(County,DS_CountyData,13) -> 0 | I109: =IF(COUNTIF('Proposed Development Info'!H$57:H$71,MAX('Proposed Development Info'!H$57:H$71))=1,VLOOKUP(IF(OR(County="Broward",County="Miami-Dade",County="Palm Beach"),CHOOSE(IFERROR(MATCH(MAX('Proposed Development Info'!H$57:H$71),'Proposed Development Info'!H$57:H$71,0),0)+1," ","SFNCGAE","SFNCGAW","SFNCMRE","SFNCMRW","SFNCHRE","SFNCGAE","SFNCGAW","SFNCGAE","SFNCGAW","SFRCGA","SFRCGA","SFRCNGA","SFRCNGA","SFRCGA","SFRCGA"),CHOOSE(IFERROR(MATCH(MAX('Proposed Development Info'!H$57:H$71),'Proposed Development Info'!H$57:H$71,0),0)+1," ","PFNCGAE","PFNCGAW","PFNCMRE","PFNCMRW","PFNCHRE","PFNCGAE","PFNCGAW","PFNCGAE","PFNCGAW","PFRCGA","PFRCGA","PFRCNGA","PFRCNGA","PFRCGA","PFRCGA")),DS_Max_NHTF,IF(Data3!L$108=Data3!J$185,8,9)),MAX(VLOOKUP(IF(OR(County="Broward",County="Miami-Dade",County="Palm Beach"),CHOOSE(IFERROR(MATCH(MAX('Proposed Development Info'!H$57:H$71),'Proposed Development Info'!H$57:H$71,0),0)+1," ","SFNCGAE","SFNCGAW","SFNCMRE","SFNCMRW","SFNCHRE","SFNCGAE","SFNCGAW","SFNCGAE","SFNCGAW","SFRCGA","SFRCGA","SFRCNGA","SFRCNGA","SFRCGA","SFRCGA"),CHOOSE(IFERROR(MATCH(MAX('Proposed Development Info'!H$57:H$71),'Proposed Development Info'!H$57:H$71,0),0)+1," ","PFNCGAE","PFNCGAW","PFNCMRE","PFNCMRW","PFNCHRE","PFNCGAE","PFNCGAW","PFNCGAE","PFNCGAW","PFRCGA","PFRCGA","PFRCNGA","PFRCNGA","PFRCGA","PFRCGA")),DS_Max_NHTF,IF(Data3!L$108=Data3!J$185,8,9)),VLOOKUP(IF(OR(County="Broward",County="Miami-Dade",County="Palm Beach"),CHOOSE(IFERROR(MAX('Proposed Development Info'!A$57:A$71),0)+1," ","SFNCGAE","SFNCGAW","SFNCMRE","SFNCMRW","SFNCHRE","SFNCGAE","SFNCGAW","SFNCGAE","SFNCGAW","SFRCGA","SFRCGA","SFRCNGA","SFRCNGA","SFRCGA","SFRCGA"),CHOOSE(IFERROR(MAX('Proposed Development Info'!A$57:A$71),0)+1," ","PFNCGAE","PFNCGAW","PFNCMRE","PFNCMRW","PFNCHRE","PFNCGAE","PFNCGAW","PFNCGAE","PFNCGAW","PFRCGA","PFRCGA","PFRCNGA","PFRCNGA","PFRCGA","PFRCGA")),DS_Max_NHTF,IF(Data3!L$108=Data3!J$185,8,9)))) -> 0 | K109: <select one> | L109: <select one>
A110: =A109 -> NHTF | G110: 103, 106 | K110: Min - 22% | L110: 2022-2023
A111: =A110 -> NHTF | C111: 4 | D111: Minimum Large County Units | G111: Applicable: | H111: Yes | K111: Min - 30% | L111: 2021-2022
A112: NHTF | C112: 3 | D112: Minimum Medium County Units | G112: Applicable: | H112: Yes | K112: TDC Max
A113: NHTF | C113: 0.1 | D113: Maximum % of Units to commit | G113: Applicable: | H113: Both
A114: NHTF | C114: 10 | D114: Maximum # of Units to commit | G114: Applicable: | H114: =IF(H113="Yes","No",IF(H113="No","Yes",H113)) -> Both
A115: Grant | C115: 4600000 | D115: Per Development | I115: 106 | J115: Destination Conditional Formatting
A116: 9% HCs | C116: 3458400 | D116: Per Development - Broward | I116: 202, 203 | J116: Broward, Miami-Dade
A117: 9% HCs | C117: 2850000 | D117: Per Development - Hillsborough, Orange, Palm Beach | I117: 202 | J117: Hillsborough, Orange, Palm Beach
A118: 9% HCs | C118: 2241600 | D118: Per Development - Duval, Pinellas | I118: 202 | J118: Duval
A119: 9% HCs | C119: 1007820 | D119: Per Development - Small Counties | I119: 201 | J119: Small Counties that are not Monroe
A120: 9% HCs | C120: 2040000 | D120: Per Development - Medium Counties | I120: 103, 106, 201 | J120: Medium Counties
A121: 9% HCs | C121: 2850000 | D121: Per Development - Large Counties | J121: Large Counties & Preservation w/ or w/o Acquisition
A122: 9% HCs | C122: 2850000 | D122: Per Development - Edit for Specific Demographic | I122: 103, 106 | J122: Homeless & PDD or PDC Demographics
A123: 9% HCs | C123: 1490000 | D123: Per Development - Keys Workforce (<61 units) | J123: Monroe, any # of units
A124: 9% HCs | C124: 2980000 | D124: Per Development - Keys Workforce (>60 units) | J124: Monroe, units > 60
A125: 9% HCs | C125: 36000 | D125: Per Unit - Keys Workforce (<61 units) | J125: Monroe, any # of units
A126: 9% HCs | C126: 25000 | D126: Per Unit - Keys Workforce (>60 units) | J126: Monroe, units > 60
A129: Leveraging Classification variables | H129: DON’T MESS WITH THIS SECTION
A131: Eligible Housing Credit Request Amount multiplier | G131: 9
A132: Loan multiplier for have a Housing Credit basis boost | G132: 1.15
A133: Broward County multiplier | G133: 0.88
A134: PHA as a Principal multiplier | G134: 0.93
A135: ESS Construction multiplier | G135: 0.87
A136: New Construction High-Rise Buildings multiplier | G136: 0.82
A137: New Construction Mid-Rise Buildings multiplier | G137: 0.85
A138: New Construction Garden Buildings multiplier | G138: 0.92
A139: All Other New Construction Buildings multiplier | G139: 1
A141: Florida Job Creation Funding Preference (2022-2023 RFA Cycle) | H141: DON’T MESS WITH THIS SECTION
A143: Minimum Florida Job Creation Score 1 | G143: 2.6
A144: Minimum Florida Job Creation Score 2 | G144: 11 | H144: Need to incorporate into template when needed
A145: Rate of Florida Jobs per unit for Multifamily new construction units | G145: 3.171
A146: Rate of Florida Jobs per unit for Multifamily units with Acq & Rehab | G146: 1.602
A147: Rate of Florida Jobs per unit for Single Family new construction units | G147: 2.513
A148: Rate of Florida Jobs per unit for Multifamily Rehab Only units | G148: 2.926
A149: Eligible Housing Credit Request Amount multiplier | G149: =G131 -> 9
A150: Is implied eligible housing credit equity a factor? | G150: =IF(Funding!L153=0,"No","Yes") -> Yes | H150: =IF(DS_FLJobs_HC="Yes",1,0) -> 1
A151: Is Workforce funding a factor? | G151: =IF(Funding!L15=0,"No","Yes") -> No | H151: =IF(DS_FLJobs_Workforce="Yes",1,0) -> 0
A152: Is SAIL funding a factor? | G152: =IF(Funding!L39=0,"No","Yes") -> No | H152: =IF(DS_FLJobs_SAIL="Yes",1,0) -> 0
A153: Is HOME funding a factor? | G153: =IF(Funding!L70=0,"No","Yes") -> No | H153: =IF(DS_FLJobs_HOME="Yes",1,0) -> 0
A154: Is HOME-ARP funding a factor? | G154: =IF(Funding!L85=0,"No","Yes") -> No | H154: =IF(DS_FLJobs_HOME_ARP="Yes",1,0) -> 0
A155: Is Grant funding a factor? | G155: =IF(Funding!L93=0,"No","Yes") -> No | H155: =IF(DS_FLJobs_Grant="Yes",1,0) -> 0 | I155: Only recognized when SAIL & Grant are "Yes" and Demographic is PDD.
A156: Florida Job Creation Preference score | G156: =ROUND(IF(MIN(Competitive_HC_Request_Amount,N(Max_Competitive_HC))*DS_FLJobs_MP_HC*H150+MIN(Workforce_Request_Amount,N(Max_Workforce))*H151+MIN(SAIL_Request_Amount,N(Max_SAIL))*H152+MIN(HOME_Request_Amount,N(Max_HOME))*H153+MIN(HOME_ARP_Request_Amount,N(Max_ARP))*H154+MIN(Grant_Request_Amount,N(Max_Grant))*H155=0,0,((SUM('Proposed Development Info'!H57:H65)-SUM('Proposed Development Info'!H62:H63))*DS_FLJobs_MFNC+SUM('Proposed Development Info'!H62:H63)*DS_FLJobs_SFNC+SUM('Proposed Development Info'!H66:H71)*IF(Development_Category="Rehabilitation",DS_FLJobs_MFRO,DS_FLJobs_MFAR))*1000000/(MIN(Competitive_HC_Request_Amount,N(Max_Competitive_HC))*DS_FLJobs_MP_HC*H150+MIN(Workforce_Request_Amount,N(Max_Workforce))*H151+MIN(SAIL_Request_Amount,N(Max_SAIL))*H152+MIN(HOME_Request_Amount,N(Max_HOME))*H153+MIN(HOME_ARP_Request_Amount,N(Max_ARP))*H154+MIN(Grant_Request_Amount,N(Max_Grant))*H155)),2) -> 0 | H156: Score is rounded to two decimals to allow a visual pass
A158: Pro Forma Max Fees & Contingencies | H158: DON’T MESS WITH THIS SECTION
A160: Maximum % General Contractor Fee | G160: 0.14
A161: Maximum % Hard Cost Contingency New Construction (MaxHCCNC) | G161: 0.05
A162: Maximum % Hard Cost Contingency Rehab (MaxHCCR) | G162: 0.15
A163: Maximum % Soft Cost Contingency (MaxSCC) | G163: 0.05
A164: Maximum % Developer Fee on Acquisition Costs | G164: 0.16
A165: Maximum % Developer Fee on non-Acquisition Costs | G165: =DS_MaxDevFeeAcq_Percent -> 0.16
A166: Maximum % Developer Fee in Operating Deficit Reserves | G166: 0 | H166: Only 5% on select RFA's
A168: Pro Forma Sources: MMRB + Non-Corp Programs (ProAppSources) | F168: In RFA? | G168: Sequence | H168: Sort | J168: <select from menu>
A169: FHFC - MMRB | F169: 0 | G169: =IF(F169<>1,"",SUM(F$169:F169)) ->  | H169: 1 | J169: =IF(COUNTA($A169:$A$169)<=MAX(DS_ProAppSource_Sequence)=TRUE,LOOKUP(COUNTA($A169:$A$169),DS_ProAppSource_Sequence,DS_ProAppSource_Name),"") -> Regulated Mortgage Lender
A170: Local HFA Bonds | F170: 0 | G170: =IF(F170<>1,"",SUM(F$169:F170)) ->  | H170: 2 | J170: =IF(COUNTA($A$169:$A170)<=MAX(DS_ProAppSource_Sequence)=TRUE,LOOKUP(COUNTA($A$169:$A170),DS_ProAppSource_Sequence,DS_ProAppSource_Name),"") -> Local Government Subsidy
A171: Regulated Mortgage Lender | F171: 1 | G171: =IF(F171<>1,"",SUM(F$169:F171)) -> 1 | H171: 3 | J171: =IF(COUNTA($A$169:$A171)<=MAX(DS_ProAppSource_Sequence)=TRUE,LOOKUP(COUNTA($A$169:$A171),DS_ProAppSource_Sequence,DS_ProAppSource_Name),"") -> Seller Financing
A172: Local Government Subsidy | F172: 1 | G172: =IF(F172<>1,"",SUM(F$169:F172)) -> 2 | H172: 4 | J172: =IF(COUNTA($A$169:$A172)<=MAX(DS_ProAppSource_Sequence)=TRUE,LOOKUP(COUNTA($A$169:$A172),DS_ProAppSource_Sequence,DS_ProAppSource_Name),"") -> State Legislation
A173: Grant | F173: 0 | G173: =IF(F173<>1,"",SUM(F$169:F173)) ->  | H173: 5 | J173: =IF(COUNTA($A$169:$A173)<=MAX(DS_ProAppSource_Sequence)=TRUE,LOOKUP(COUNTA($A$169:$A173),DS_ProAppSource_Sequence,DS_ProAppSource_Name),"") -> USDA RD 514/516
A174: Self-Sourced: Bond-Financing | F174: 0 | G174: =IF(F174<>1,"",SUM(F$169:F174)) ->  | H174: 6 | J174: =IF(COUNTA($A$169:$A174)<=MAX(DS_ProAppSource_Sequence)=TRUE,LOOKUP(COUNTA($A$169:$A174),DS_ProAppSource_Sequence,DS_ProAppSource_Name),"") -> USDA RD 515
A175: Self-Sourced: Non-Bond-Financing | F175: 0 | G175: =IF(F175<>1,"",SUM(F$169:F175)) ->  | H175: 7 | J175: =IF(COUNTA($A$169:$A175)<=MAX(DS_ProAppSource_Sequence)=TRUE,LOOKUP(COUNTA($A$169:$A175),DS_ProAppSource_Sequence,DS_ProAppSource_Name),"") -> USDA RD 538
A176: Seller Financing | F176: 1 | G176: =IF(F176<>1,"",SUM(F$169:F176)) -> 3 | H176: 8 | J176: =IF(COUNTA($A$169:$A176)<=MAX(DS_ProAppSource_Sequence)=TRUE,LOOKUP(COUNTA($A$169:$A176),DS_ProAppSource_Sequence,DS_ProAppSource_Name),"") -> Deferred Development Costs
A177: State Legislation | F177: 1 | G177: =IF(F177<>1,"",SUM(F$169:F177)) -> 4 | H177: 9 | J177: =IF(COUNTA($A$169:$A177)<=MAX(DS_ProAppSource_Sequence)=TRUE,LOOKUP(COUNTA($A$169:$A177),DS_ProAppSource_Sequence,DS_ProAppSource_Name),"") -> Other
A178: USDA RD 514/516 | F178: 1 | G178: =IF(F178<>1,"",SUM(F$169:F178)) -> 5 | H178: 10 | J178: =IF(COUNTA($A$169:$A178)<=MAX(DS_ProAppSource_Sequence)=TRUE,LOOKUP(COUNTA($A$169:$A178),DS_ProAppSource_Sequence,DS_ProAppSource_Name),"") -> 
A179: USDA RD 515 | F179: 1 | G179: =IF(F179<>1,"",SUM(F$169:F179)) -> 6 | H179: 11 | J179: =IF(COUNTA($A$169:$A179)<=MAX(DS_ProAppSource_Sequence)=TRUE,LOOKUP(COUNTA($A$169:$A179),DS_ProAppSource_Sequence,DS_ProAppSource_Name),"") -> 
A180: USDA RD 538 | F180: 1 | G180: =IF(F180<>1,"",SUM(F$169:F180)) -> 7 | H180: 12 | J180: =IF(COUNTA($A$169:$A180)<=MAX(DS_ProAppSource_Sequence)=TRUE,LOOKUP(COUNTA($A$169:$A180),DS_ProAppSource_Sequence,DS_ProAppSource_Name),"") -> 
A181: Deferred Development Costs | F181: 1 | G181: =IF(F181<>1,"",SUM(F$169:F181)) -> 8 | H181: 13 | J181: =IF(COUNTA($A$169:$A181)<=MAX(DS_ProAppSource_Sequence)=TRUE,LOOKUP(COUNTA($A$169:$A181),DS_ProAppSource_Sequence,DS_ProAppSource_Name),"") -> 
A182: Other | F182: 1 | G182: =IF(F182<>1,"",SUM(F$169:F182)) -> 9 | H182: 14 | J182: =IF(COUNTA($A$169:$A182)<=MAX(DS_ProAppSource_Sequence)=TRUE,LOOKUP(COUNTA($A$169:$A182),DS_ProAppSource_Sequence,DS_ProAppSource_Name),"") -> 
A184: TDC PU Base Limitations | J184: Max NHTF PU
G185: 2022-2023 | H185: 2021-2022 | J185: 2022-2023 | K185: 2021-2022
G186: 0 | H186: 0 | K186: 0
A187: PF-NC-GA-ESSC | C187: PFNCGAE | G187: 370000 | H187: 311900 | K187: =275000+IF(K$201="Yes",5000,0) -> 275000
A188: PF-NC-GA-W | C188: PFNCGAW | G188: 320000 | H188: 270100 | K188: =260000+IF(K$201="Yes",5000,0) -> 260000
A189: PF-NC-HR-ESSC | C189: PFNCHRE | G189: 420000 | H189: 358000 | K189: =335000+IF(K$201="Yes",5000,0) -> 335000
A190: PF-NC-MR-ESSC | C190: PFNCMRE | G190: 410000 | H190: 344700 | K190: =290000+IF(K$201="Yes",5000,0) -> 290000
A191: PF-NC-MR-W | C191: PFNCMRW | G191: 370000 | H191: 311900 | K191: =275000+IF(K$201="Yes",5000,0) -> 275000
A192: PF-RC-GA- | C192: PFRCGA | G192: 170000 | H192: 146900
A193: PF-RC-NG- | C193: PFRCNGA | G193: 260000 | H193: 221600
A194: SF-NC-GA-ESSC | C194: SFNCGAE | G194: 390000 | H194: 327100 | K194: =295000+IF(K$201="Yes",5000,0) -> 295000
A195: SF-NC-GA-W | C195: SFNCGAW | G195: 340000 | H195: 284500
A196: SF-NC-HR-ESSC | C196: SFNCHRE | G196: 440000 | H196: 374700 | K196: =370000+IF(K$201="Yes",5000,0) -> 370000
A197: SF-NC-MR-ESSC | C197: SFNCMRE | G197: 430000 | H197: 361000 | K197: =315000+IF(K$201="Yes",5000,0) -> 315000
A198: SF-NC-MR-W | C198: SFNCMRW | G198: 390000 | H198: 327100
A199: SF-RC-GA- | C199: SFRCGA | G199: 180000 | H199: 153600
A200: SF-RC-NG- | C200: SFRCNGA | G200: 270000 | H200: 232600
J201: Is Davis-Bacon Applicable? | K201: =IF(Total_Units>11,"Yes","No") -> No
A204: TDC PU Base Add-Ons and Multipliers | H204: DON’T MESS WITH THIS SECTION
F205: In RFA?
A206: w/ PHA/Federal Add-On | F206: 1 | G206: 7500
A207: w/ Bond Add-On | F207: 0 | G207: 7500
A208: Elderly ALF Multiplier | F208: 1 | G208: 0.95
A209: Demographic Multiplier (Non Eld-ALF) | F209: 0 | G209: 0.9
A210: PDD/PDC Unit Multiplier (1)(<51 Units) | F210: 0 | G210: 0.9
A211: PDD/PDC Unit Multiplier (2)(>50,<81 Units) | F211: 0 | G211: 0.95
A212: Constr Features Multiplier | F212: 0 | G212: 0.6
A213: North FL Keys Multiplier | D213: Geo | F213: 0 | G213: 0.65
A214: South FL Keys Multiplier | D214: Geo | F214: 0 | G214: 0.5
A215: Other Multiplier 1 | F215: 0 | G215: 1
... 20 more rows

Sheet General Information
A1: Unless stated otherwise, all information requested pertains to the Development proposed in this Application upon completion.
K2: Tab Pop-Ups: G11, C29, E52, G71:G72, G79:G80, G88:G89, E152
K3: Hidden Tracking: A14:A15, A19:A23
A4: Section 4.A.1. Review of Attachments
A6: Provide all attachments as required pursuant to the RFA. If it is determined that the attachments do not meet the RFA requirements, the Application may be deemed ineligible, and/or the Corporation may rescind the award, and all Principals of the Application may be subject to material misrepresentation, even if the Application was not selected for funding, was deemed ineligible, or was withdrawn.
A8: Section 4.A.2 Demographic Commitment | J8: ="There are "&TEXT(COUNTIF($K$10:$K$164,"=1"),"0")&" required input fields and "&TEXT(COUNTIF($K$10:$K$164,"=2")+IF($K$108<>0,1,0)+IF($K$115<>0,1,0)+IF($K$143<>0,1,0)+IF($K$150<>0,1,0)+IF($K$156<>0,1,0)+IF($K$163<>0,1,0),"0")&" optional input fields tracked on this tab."&CHAR(10)&"There "&IF(COUNTIFS($K$10:$K$164,"=1",$L$10:$L$164,"=1")=1,"is 1 required input field with an entry","are "&TEXT(COUNTIFS($K$10:$K$164,"=1",$L$10:$L$164,"=1"),"0")&" required input fields")&" and "&TEXT(COUNTIFS($K$10:$K$164,"=2",$L$10:$L$164,"=2")+IF(AND($K$108<>0,$H$108<>""),1,0)+IF(AND($K$115<>0,$H$115<>""),1,0)+IF(AND($K$143<>0,$H$143<>""),1,0)+IF(AND($K$150<>0,$H$150<>""),1,0)+IF(AND($K$156<>0,$H$156<>""),1,0)+IF(AND($K$163<>0,$H$163<>""),1,0),"0")&" optional input field"&IF(COUNTIFS($K$10:$K$164,"=2",$L$10:$L$164,"=2")+IF(AND($K$108<>0,$H$108<>""),1,0)+IF(AND($K$115<>0,$H$115<>""),1,0)+IF(AND($K$143<>0,$H$143<>""),1,0)+IF(AND($K$150<>0,$H$150<>""),1,0)+IF(AND($K$156<>0,$H$156<>""),1,0)+IF(AND($K$163<>0,$H$163<>""),1,0)=1," with an entry","s with entries")&" tracked on this tab."&CHAR(10)&"There "&IF(Data1!G595=1,"is ","are ")&TEXT(Data1!G595,"0")&" required input field"&IF(Data1!G595=1," that need an entry","s that need entries")&" and "&TEXT(Data1!H595,"0")&" optional input field"&IF(Data1!H595=1," that may or may not need an entry","s that may or may not need entries")&" tracked on this tab." -> There are 51 required input fields and 19 optional input fields tracked on this tab. There is 1 required input field with an entry and 0 optional input fields with entries tracked on this tab. There are 50 required input fields that need entries and 19 optional input fields that may or may not need entries tracked on this tab.
A10: Demographic Commitment: | F10: <select one> | K10: 1 | L10: =IF(AND(K10<>0,AND(F10<>"<select one>",F10<>"")),K10,0) -> 0 | M10: =CHOOSE(K10+1,"Not to be included in this RFA","A REQUIRED input field for this RFA","An OPTIONAL input field for this RFA") -> A REQUIRED input field for this RFA
G11: =IF(AND(K30<>0,Self_Sourced_Applicant="Yes"),IF(Demographic<>"Family","Self-Sourced Applicants must select Family",""),"") ->  | K11: HIDE THESE COLUMNS PRIOR TO ISSUANCE
A12: a. | B12: Select the Minimum Set-Aside Commitment for Permanent Supportive Housing for Persons with Special Needs | M12: 0
A14: =IF(Data1!$B25=TRUE,"Yes","No") -> No | C14: (1) | D14: At least 70%, but less than 80% of total units; and at least 20 percent of the total units must consist of Permanent Supportive Housing for individuals and families that meet the definition of Homeless as defined in Section 420.621, F.S., (which may be the same units set aside for Persons with Special Needs) | K14: =IF(M$12=0,0,1) -> 0 | L14: =IF(AND(K14<>0,DS_ExcelCheckBox_LessThan80=TRUE),K14,0) -> 0 | M14: =CHOOSE(K14+1,"Not to be included in this RFA","A REQUIRED input field for this RFA","An OPTIONAL input field for this RFA") -> Not to be included in this RFA
A15: =IF(Data1!$B26=TRUE,"Yes","No") -> No | C15: (2) | D15: At least 80% of total units; and at least 20 percent of the total units must consist of Permanent Supportive Housing for individuals and families that meet the definition of Homeless as defined in Section 420.621, F.S., (which may be the same units set aside for Persons with Special Needs) | K15: =IF(M$12=0,0,2) -> 0 | L15: =IF(AND(K15<>0,DS_ExcelCheckBox_AtLeast80=TRUE),K15,0) -> 0 | M15: =CHOOSE(K15+1,"Not to be included in this RFA","A REQUIRED input field for this RFA","An OPTIONAL input field for this RFA") -> Not to be included in this RFA
A17: b. | B17: Select at least one box from options (1) through (5) below that specifies the defined Persons with Special Needs population(s) that the Applicant proposes to serve. The Applicant may serve more than one of the populations below. | M17: 0
A19: =IF(Data1!$B28=TRUE,"Yes","No") -> No | C19: (1) | D19: Adult persons requiring independent living services in order to maintain housing or develop independent living skills and who have a Disabling Condition that currently impairs or is likely to impair their physical mobility; | K19: =IF(M$17=0,0,2) -> 0 | L19: =IF(AND(K19<>0,DS_ExcelCheckBox_DC_Impaired=TRUE),K19,0) -> 0 | M19: =CHOOSE(K19+1,"Not to be included in this RFA","A REQUIRED input field for this RFA","An OPTIONAL input field for this RFA") -> Not to be included in this RFA
A20: =IF(Data1!$B29=TRUE,"Yes","No") -> No | C20: (2) | D20: Persons receiving benefits under the Social Security Disability Insurance (SSDI) program or the Supplemental Security Income (SSI) program or from veterans’ disability benefits; | K20: =IF(M$17=0,0,2) -> 0 | L20: =IF(AND(K20<>0,DS_ExcelCheckBox_SSI=TRUE),K20,0) -> 0 | M20: =CHOOSE(K20+1,"Not to be included in this RFA","A REQUIRED input field for this RFA","An OPTIONAL input field for this RFA") -> Not to be included in this RFA
A21: =IF(Data1!$B30=TRUE,"Yes","No") -> No | C21: (3) | D21: Adult persons requiring independent living services in order to maintain housing or develop independent living skills and who have a Disabling Condition that neither currently impairs nor is likely to impair their physical mobility, such as persons with a mental illness; | K21: =IF(M$17=0,0,2) -> 0 | L21: =IF(AND(K21<>0,DS_ExcelCheckBox_DC_Not_Impaired=TRUE),K21,0) -> 0 | M21: =CHOOSE(K21+1,"Not to be included in this RFA","A REQUIRED input field for this RFA","An OPTIONAL input field for this RFA") -> Not to be included in this RFA
A22: =IF(Data1!$B31=TRUE,"Yes","No") -> No | C22: (4) | D22: Young adults formerly in foster care who are eligible for services under Section 409.1451, F.S.; and/or | K22: =IF(M$17=0,0,2) -> 0 | L22: =IF(AND(K22<>0,DS_ExcelCheckBox_YouthAgingOut=TRUE),K22,0) -> 0 | M22: =CHOOSE(K22+1,"Not to be included in this RFA","A REQUIRED input field for this RFA","An OPTIONAL input field for this RFA") -> Not to be included in this RFA
A23: =IF(Data1!$B32=TRUE,"Yes","No") -> No | C23: (5) | D23: Survivors of domestic violence as defined in Section 741.28, F.S. | K23: =IF(M$17=0,0,2) -> 0 | L23: =IF(AND(K23<>0,DS_ExcelCheckBox_Survivors=TRUE),K23,0) -> 0 | M23: =CHOOSE(K23+1,"Not to be included in this RFA","A REQUIRED input field for this RFA","An OPTIONAL input field for this RFA") -> Not to be included in this RFA
A25: Section 4.A.3 Applicant, Developer, Management Company and Contact Person
A27: a. | B27: Applicant
B28: =IF(K28=0,"",1) -> 1 | C28: (a) | D28: Name of Applicant: | K28: 1 | L28: =IF(AND(K28<>0,F28<>""),K28,0) -> 0 | M28: =CHOOSE(K28+1,"Not to be included in this RFA","A REQUIRED input field for this RFA","An OPTIONAL input field for this RFA") -> A REQUIRED input field for this RFA
C29: =IF(F28="","(The Name of the Applicant must have an entry to turn on some of the validation formulas in Exhibit A)","") -> (The Name of the Applicant must have an entry to turn on some of the validation formulas in Exhibit A)
C30: (b) | D30: Does the Applicant qualify as a Self-Sourced Applicant? | G30: <select one> | K30: 0 | L30: =IF(AND(K30<>0,AND(G30<>"<select one>",G30<>"")),K30,0) -> 0 | M30: =CHOOSE(K30+1,"Not to be included in this RFA","A REQUIRED input field for this RFA","An OPTIONAL input field for this RFA") -> Not to be included in this RFA
B32: =IF($K$36=0,"",MAX(B$28:B31)+1) -> 2 | C32: Provide the required documentation to demonstrate that the Applicant is a legally formed entity qualified to do business in the state of Florida as of the Application Deadline as Attachment 1.
B34: =IF($K$36=0,"",MAX(B$28:B33)+1) -> 3 | C34: Non-Profit Applicant Qualifications
D35: Does the Applicant or the General Partner or managing member of the Applicant meet the definition of Non-Profit as set forth in Rule Chapter 67-48, F.A.C.?
D36: <select one> | K36: 1 | L36: =IF(AND(K36<>0,AND(D36<>"<select one>",D36<>"")),K36,0) -> 0 | M36: =CHOOSE(K36+1,"Not to be included in this RFA","A REQUIRED input field for this RFA","An OPTIONAL input field for this RFA") -> A REQUIRED input field for this RFA
C38: To demonstrate that this definition is met, Applicants must meet the requirements in both (a) and (b) below.
C39: (a) | D39: Material Participation
D40: Provide all of the following documents as Attachment 2 for each non-profit entity that makes up the Applicant:
D41: The Executive Director Certification of Non-Profit Entity Material Participation form (Rev. 09-22)
C43: (b) | D43: Demonstration of Non-Profit entity qualifications | M43: 1
D44: ="Provide the following documents for the Non-Profit entity:"&CHAR(10)&IF($M$44=0,"(i) The IRS determination letter demonstrating that the Non-Profit is organized under section 501(c)(3)"&CHAR(10)&" or 501(c)(4) of the Internal Revenue Code; and"&" (ii) The articles of incorporation demonstrating that one of the purposes of the Non-Profit entity is to"&CHAR(10)&" foster low-income housing.","(i) The Executive Director Certification of Non-Profit Entity Qualifications form (Rev. 10-2021); (ii) The IRS determination letter demonstrating that the Non-Profit is organized under section 501(c)(3)"&CHAR(10)&" or 501(c)(4) of the Internal Revenue Code and has been in existence for at least 3 years; and (iii) The Non-Profit Bylaws and/or Articles of Incorporation demonstrating all of the following"&" requirements"&CHAR(10)&" are met: (A) The role and responsibilities of the Board of directors; (B) The number of members that are part of the Board; and (C) The bylaws or articles of incorporation must state"&" one of the purposes of the Non-Profit is to foster"&CHAR(10)&" low-income housing. This requirement may be met with the most recent IRS form 990, if the form"&CHAR(10)&" 990 states that one of the purposes of the Non-Profit is to foster low-income housing.") -> Provide the following documents for the Non-Profit entity: (i) The IRS determination letter demonstrating that the Non-Profit is organized under section 501(c)(3) or 501(c)(4) of the Internal Revenue Code; and (ii) The articles of incorporation demonstrating that one of the purposes of the Non-Profit entity is to foster low-income housing. | M44: 0 | N44: Row Height for 0=78; 1=170 (PSH)
B45: =IF($M$45=0,"",MAX(B$28:B44)+1) ->  | C45: Non-Profit Advance Review Process (10 Points) | M45: 0
D46: Applications will receive 10 points if the Executive Director Certification of Non-Profit Entity Qualifications Form (Rev. 10-2021) is submitted for each non-profit entity as Attachment 2, and if the form(s) is stamped “Received” by the Corporation at least 14 Calendar Days prior to the Application Deadline AND stamped “Approved” prior to the Application Deadline.
C47: Pre-Application Meeting or Experience (10 points) | M47: 0
D48: To receive 10 points, submit the Corporation-approved Pre-Application Meeting or Experience for Proposed Permanent Supportive Housing Developments Form (Rev. 09-2022) as Attachment 2.
B49: =IF($M$49=0,"",MAX(B$28:B46)+1) ->  | C49: Homeless Assistance Continuum of Care Requirements for All Applicants | M49: 0
D50: Provide documentation that the Applicant informed the jurisdiction’s Local Continuum of Care lead agency head of its intent to apply for funding to develop housing pursuant to this RFA must be submitted as Attachment 3.
A52: =IF(SUM($K54:$K$90)=0,"",CHAR(CODE(LOOKUP(2,1/(COUNTIF(A$27:A51,">"&A$27:A51&"*")=0),A$27:A51))+1)) -> b | B52: Developer Information
B53: (1) | C53: Name of each Developer (including all co-Developers, one per line)
K54: 1 | L54: =IF(AND(K54<>0,D54<>""),K54,0) -> 0 | M54: =CHOOSE(K54+1,"Not to be included in this RFA","A REQUIRED input field for this RFA","An OPTIONAL input field for this RFA") -> A REQUIRED input field for this RFA
K55: 2 | L55: =IF(AND(K55<>0,D55<>""),K55,0) -> 0 | M55: =CHOOSE(K55+1,"Not to be included in this RFA","A REQUIRED input field for this RFA","An OPTIONAL input field for this RFA") -> An OPTIONAL input field for this RFA
K56: 2 | L56: =IF(AND(K56<>0,D56<>""),K56,0) -> 0 | M56: =CHOOSE(K56+1,"Not to be included in this RFA","A REQUIRED input field for this RFA","An OPTIONAL input field for this RFA") -> An OPTIONAL input field for this RFA
B58: (2) | C58: For each Developer entity listed in question (1) above (that is not a natural person, Local Government, or Public Housing Authority), provide, as Attachment 3, the required documentation demonstrating that the Developer is a legally formed entity qualified to do business in the state of Florida as of the Application Deadline.
B60: (3) | C60: Developer Experience
C61: (a) | D61: Required Developer Experience: At least one Developer entity named in (1) above must meet the Developer experience outlined in Section Four of the RFA.
D62: Name of the natural person Principal with the required experience: | K62: 1 | L62: =IF(AND(K62<>0,G62<>""),K62,0) -> 0 | M62: =CHOOSE(K62+1,"Not to be included in this RFA","A REQUIRED input field for this RFA","An OPTIONAL input field for this RFA") -> A REQUIRED input field for this RFA
D63: Name of Developer entity (for the proposed Development) for which the above individual is a Principal: | K63: 1 | L63: =IF(AND(K63<>0,G63<>""),K63,0) -> 0 | M63: =CHOOSE(K63+1,"Not to be included in this RFA","A REQUIRED input field for this RFA","An OPTIONAL input field for this RFA") -> A REQUIRED input field for this RFA
D65: (i) | E65: First completed affordable rental housing development that meets the experience requirement outlined in Section Four, A.3.b.(3)(a) of the RFA:
C66: Name of Development: | K66: 1 | L66: =IF(AND(K66<>0,F66<>""),K66,0) -> 0 | M66: =CHOOSE(K66+1,"Not to be included in this RFA","A REQUIRED input field for this RFA","An OPTIONAL input field for this RFA") -> A REQUIRED input field for this RFA
C67: Location (city and state): | K67: 1 | L67: =IF(AND(K67<>0,F67<>""),K67,0) -> 0 | M67: =CHOOSE(K67+1,"Not to be included in this RFA","A REQUIRED input field for this RFA","An OPTIONAL input field for this RFA") -> A REQUIRED input field for this RFA
C69: Affordable Housing Program(s) that Provided Financing | F69: Housing Credits | G69: This program will be used for eligibility requirements. | K69: 1 | L69: =IF(AND(K69<>0,F69<>"<select one>",F69<>""),K69,0) -> 1 | M69: =CHOOSE(K69+1,"Not to be included in this RFA","A REQUIRED input field for this RFA","An OPTIONAL input field for this RFA") -> A REQUIRED input field for this RFA
K70: 0 | L70: =IF(AND(K70<>0,F70<>""),K70,0) -> 0 | M70: =CHOOSE(K70+1,"Not to be included in this RFA","A REQUIRED input field for this RFA","An OPTIONAL input field for this RFA") -> Not to be included in this RFA
C71: Total Number of Units: | G71: =IF(F71="","",IF(Data1!E$77="Percentage",IF(N(Total_Units)=0,"Please enter Total Units at Section 4.A.6.(a)",IF(Total_Units*Data1!E$75>F71,"Units do not meet the minimum percentage requirement","")),IF(F71<Data1!E$76,"Units do not meet the minimum # of units requirement",""))) ->  | K71: 1 | L71: =IF(AND(K71<>0,F71<>""),K71,0) -> 0 | M71: =CHOOSE(K71+1,"Not to be included in this RFA","A REQUIRED input field for this RFA","An OPTIONAL input field for this RFA") -> A REQUIRED input field for this RFA
C72: ="Year Completed: (can be no ealier than "&TEXT(IF(DevExp_first_Dev_program=DS_DevExpPrgm,DS_DevExpPrgm_Date,DS_DevExpDate),"yyyy")&")" -> Year Completed: (can be no ealier than 2012) | G72: =IF(F72="","",IF(N(F72)>44790,"Please enter only the year the development was completed.",IF(N(F72)>YEAR(NOW()),"Please enter an appropriate year.",IF(DevExp_first_Dev_program=DS_DevExpPrgm,IF(N(F72)<YEAR(DS_DevExpPrgm_Date),"This "&DS_DevExpPrgm&" Development must have been completed since "&TEXT(DS_DevExpPrgm_Date,"mmmm d, yyyy"),""),IF(N(F81)<YEAR(DS_DevExpDate),"The year is prior to "&TEXT(DS_DevExpDate,"mmmm d, yyyy"),""))))) ->  | K72: 1 | L72: =IF(AND(K72<>0,F72<>""),K72,0) -> 0 | M72: =CHOOSE(K72+1,"Not to be included in this RFA","A REQUIRED input field for this RFA","An OPTIONAL input field for this RFA") -> A REQUIRED input field for this RFA
D74: (ii) | E74: Second completed affordable rental housing development that meets the experience requirement outlined in Section Four, A.3.b.(3)(a) of the RFA: | M74: 1
C75: Name of Development: | K75: =IF(M$74=0,0,N75) -> 1 | L75: =IF(AND(K75<>0,F75<>""),K75,0) -> 0 | M75: =CHOOSE(K75+1,"Not to be included in this RFA","A REQUIRED input field for this RFA","An OPTIONAL input field for this RFA") -> A REQUIRED input field for this RFA | N75: 1
C76: Location (city and state): | K76: =IF(M$74=0,0,N76) -> 1 | L76: =IF(AND(K76<>0,F76<>""),K76,0) -> 0 | M76: =CHOOSE(K76+1,"Not to be included in this RFA","A REQUIRED input field for this RFA","An OPTIONAL input field for this RFA") -> A REQUIRED input field for this RFA | N76: 1
C78: Affordable Housing Program(s) that Provided Financing | F78: <select one> | G78: If 'Other' is selected, enter the name of the program in the row below. | K78: =IF(M$74=0,0,IF(AND(F78="<select one>",F79<>""),2,N78)) -> 1 | L78: =IF(AND(K78<>0,F78<>"<select one>",F78<>""),K78,0) -> 0 | M78: =CHOOSE(K78+1,"Not to be included in this RFA","A REQUIRED input field for this RFA","An OPTIONAL input field for this RFA") -> A REQUIRED input field for this RFA | N78: 1
C79: If 'Other' is selected above, enter the name of the program here. | K79: =IF(M$74=0,0,IF(AND(F78<>"<select one>",F79=""),2,IF(AND(F78="<select one>",F79<>""),N78,N79))) -> 2 | L79: =IF(AND(K79<>0,F79<>""),K79,0) -> 0 | M79: =CHOOSE(K79+1,"Not to be included in this RFA","A REQUIRED input field for this RFA","An OPTIONAL input field for this RFA") -> An OPTIONAL input field for this RFA | N79: 2
C80: Total Number of Units: | G80: =IF(F80="","",IF(Data1!E$77="Percentage",IF(N(Total_Units)=0,"Please enter Total Units at Section 4.A.6.(a)",IF(Total_Units*Data1!E$75>F80,"Units do not meet the minimum percentage requirement","")),IF(F80<Data1!E$76,"Units do not meet the minimum # of units requirement",""))) ->  | K80: =IF(M$74=0,0,N80) -> 1 | L80: =IF(AND(K80<>0,F80<>""),K80,0) -> 0 | M80: =CHOOSE(K80+1,"Not to be included in this RFA","A REQUIRED input field for this RFA","An OPTIONAL input field for this RFA") -> A REQUIRED input field for this RFA | N80: 1
C81: ="Year Completed: (can be no ealier than "&TEXT(DS_DevExpDate,"yyyy")&")" -> Year Completed: (can be no ealier than 2002) | G81: =IF(F81="","",IF(N(F81)>44790,"Please enter only the year the development was completed.",IF(N(F81)>YEAR(NOW()),"Please enter an appropriate year.",IF(N(F81)<YEAR(DS_DevExpDate),"The year is prior to "&TEXT(DS_DevExpDate,"mmmm d, yyyy"),"")))) ->  | K81: =IF(M$74=0,0,N81) -> 1 | L81: =IF(AND(K81<>0,F81<>""),K81,0) -> 0 | M81: =CHOOSE(K81+1,"Not to be included in this RFA","A REQUIRED input field for this RFA","An OPTIONAL input field for this RFA") -> A REQUIRED input field for this RFA | N81: 1
D83: (iii) | E83: Third completed affordable rental housing development that meets the experience requirement outlined in Section Four, A.3.b.(3)(a) of the RFA: | M83: 1
C84: Name of Development: | K84: =IF(M$83=0,0,N84) -> 1 | L84: =IF(AND(K84<>0,F84<>""),K84,0) -> 0 | M84: =CHOOSE(K84+1,"Not to be included in this RFA","A REQUIRED input field for this RFA","An OPTIONAL input field for this RFA") -> A REQUIRED input field for this RFA | N84: 1
C85: Location (city and state): | K85: =IF(M$83=0,0,N85) -> 1 | L85: =IF(AND(K85<>0,F85<>""),K85,0) -> 0 | M85: =CHOOSE(K85+1,"Not to be included in this RFA","A REQUIRED input field for this RFA","An OPTIONAL input field for this RFA") -> A REQUIRED input field for this RFA | N85: 1
C87: Affordable Housing Program(s) that Provided Financing | F87: <select one> | G87: If 'Other' is selected, enter the name of the program in the row below. | K87: =IF(M$83=0,0,IF(AND(F87="<select one>",F88<>""),2,N87)) -> 1 | L87: =IF(AND(K87<>0,F87<>"<select one>",F87<>""),K87,0) -> 0 | M87: =CHOOSE(K87+1,"Not to be included in this RFA","A REQUIRED input field for this RFA","An OPTIONAL input field for this RFA") -> A REQUIRED input field for this RFA | N87: 1
C88: If 'Other' is selected above, enter the name of the program here. | K88: =IF(M$83=0,0,IF(AND(F87<>"<select one>",F88=""),2,IF(AND(F87="<select one>",F88<>""),N87,N88))) -> 2 | L88: =IF(AND(K88<>0,F88<>""),K88,0) -> 0 | M88: =CHOOSE(K88+1,"Not to be included in this RFA","A REQUIRED input field for this RFA","An OPTIONAL input field for this RFA") -> An OPTIONAL input field for this RFA | N88: 2
C89: Total Number of Units: | G89: =IF(F89="","",IF(Data1!E$77="Percentage",IF(N(Total_Units)=0,"Please enter Total Units at Section 4.A.6.(a)",IF(Total_Units*Data1!E$75>F89,"Units do not meet the minimum percentage requirement","")),IF(F89<Data1!E$76,"Units do not meet the minimum # of units requirement",""))) ->  | K89: =IF(M$83=0,0,N89) -> 1 | L89: =IF(AND(K89<>0,F89<>""),K89,0) -> 0 | M89: =CHOOSE(K89+1,"Not to be included in this RFA","A REQUIRED input field for this RFA","An OPTIONAL input field for this RFA") -> A REQUIRED input field for this RFA | N89: 1
C90: ="Year Completed: (can be no ealier than "&TEXT(DS_DevExpDate,"yyyy")&")" -> Year Completed: (can be no ealier than 2002) | G90: =IF(F90="","",IF(N(F90)>44790,"Please enter only the year the development was completed.",IF(N(F90)>YEAR(NOW()),"Please enter an appropriate year.",IF(N(F90)<YEAR(DS_DevExpDate),"The year is prior to "&TEXT(DS_DevExpDate,"mmmm d, yyyy"),"")))) ->  | K90: =IF(M$83=0,0,N90) -> 1 | L90: =IF(AND(K90<>0,F90<>""),K90,0) -> 0 | M90: =CHOOSE(K90+1,"Not to be included in this RFA","A REQUIRED input field for this RFA","An OPTIONAL input field for this RFA") -> A REQUIRED input field for this RFA | N90: 1
C92: =IF(SUM(K62:K90)=0,"(a)","(b)") -> (b) | D92: Developer Experience Withdrawal Disincentive (5 points) | M92: 0
E93: To receive five points, the Developer Experience Withdrawal Disincentive criteria outlined in Section Four A.3.b.(3)(b) of the RFA must be met.
A95: =CHAR(CODE(LOOKUP(2,1/(COUNTIF(A$27:A94,">"&A$27:A94&"*")=0),A$27:A94))+1) -> c | B95: Principals Disclosure for the Applicant and for each Developer (5 points)
B96: (1) | C96: Eligibility Requirements
D97: The Principals of the Applicant and Developer(s) Disclosure Form (Form Rev. 05-2019) (“Principals Disclosure Form”) must be uploaded with the Application and Development Cost Pro Forma, as outlined in Section Three of the RFA, and meet the requirements of Section Four of the RFA.
B99: (2) | C99: Advance Review of Principals Disclosure Form (5 points)
D100: Applicants will receive 5 points if the uploaded Principal Disclosure Form is either (a) stamped “Approved” at least 14 Calendar Days prior to the Application Deadline; or (b) stamped “Received” by the Corporation at least 14 Calendar Days prior to the Application Deadline AND stamped “Approved” prior to the Application Deadline.
B102: (3) | C102: Priority Designation of Applications
D103: Indicate whether this Application is designated as Priority I or Priority II. If no selection is made, the Application will be considered a Priority II Application.
D104: <select one> | K104: 1 | L104: =IF(AND(K104<>0,AND(D104<>"<select one>",D104<>"")),K104,0) -> 0 | M104: =CHOOSE(K104+1,"Not to be included in this RFA","A REQUIRED input field for this RFA","An OPTIONAL input field for this RFA") -> A REQUIRED input field for this RFA
A106: =IF(SUM($K$110:$K$119)=0,"",CHAR(CODE(LOOKUP(2,1/(COUNTIF(A$27:A105,">"&A$27:A105&"*")=0),A$27:A105))+1)) -> d | B106: Management Company
B107: (1) | C107: Contact Information
C108: First Name: | G108: Middle Initial: | K108: 1 | L108: =IF(AND(K108<>0,F108<>""),K108,0) -> 0 | M108: =CHOOSE(K108+1,"Not to be included in this RFA","A REQUIRED input field for this RFA","An OPTIONAL input field for this RFA") -> A REQUIRED input field for this RFA
C109: Last Name: | K109: 1 | L109: =IF(AND(K109<>0,F109<>""),K109,0) -> 0 | M109: A REQUIRED input field for this RFA
C110: Name of Management Company: | K110: 1 | L110: =IF(AND(K110<>0,F110<>""),K110,0) -> 0 | M110: =CHOOSE(K110+1,"Not to be included in this RFA","A REQUIRED input field for this RFA","An OPTIONAL input field for this RFA") -> A REQUIRED input field for this RFA | N110: =IF(L110<>0,1,0) -> 0
C111: Street Address: | K111: 1 | L111: =IF(AND(K111<>0,F111<>""),K111,0) -> 0 | M111: A REQUIRED input field for this RFA | N111: =IF(L111<>0,1,0) -> 0
C112: City: | K112: 1 | L112: =IF(AND(K112<>0,F112<>""),K112,0) -> 0 | M112: A REQUIRED input field for this RFA | N112: 0
C113: State: | F113: <select one> | K113: 1 | L113: =IF(AND(K113<>0,AND(F113<>"<select one>",F113<>"")),K113,0) -> 0 | M113: A REQUIRED input field for this RFA | N113: 0
C114: Zip Code: | K114: 1 | L114: =IF(AND(K114<>0,F114<>""),K114,0) -> 0 | M114: A REQUIRED input field for this RFA | N114: 0
C115: Telephone (xxx)xxx-xxxx: | G115: Telephone Extension: | K115: 1 | L115: =IF(AND(K115<>0,F115<>""),K115,0) -> 0 | M115: A REQUIRED input field for this RFA | N115: 0
C116: Email Address: | K116: 1 | L116: =IF(AND(K116<>0,F116<>""),K116,0) -> 0 | M116: A REQUIRED input field for this RFA | N116: 0
B118: =IF(SUM($K$110:$K$116)=0,"(1)","(2)") -> (2) | C118: The Management Company named in (1) above must meet the experience outlined in Section Four of the RFA. | M118: 1
C119: Name of the Management Company or a Principal of the Management Company with the required experience: | K119: =IF(M$118=0,0,N119) -> 1 | L119: =IF(AND(K119<>0,G119<>""),K119,0) -> 0 | M119: =CHOOSE(K119+1,"Not to be included in this RFA","A REQUIRED input field for this RFA","An OPTIONAL input field for this RFA") -> A REQUIRED input field for this RFA | N119: 1
C121: (a) | D121: First completed affordable rental housing development that meets the management experience requirement outlined in Section Four of the RFA | M121: 1
D122: Name of Development: | K122: =IF(M$121=0,0,N122) -> 1 | L122: =IF(AND(K122<>0,F122<>""),K122,0) -> 0 | M122: =CHOOSE(K122+1,"Not to be included in this RFA","A REQUIRED input field for this RFA","An OPTIONAL input field for this RFA") -> A REQUIRED input field for this RFA | N122: 1
D123: Location (city and state): | K123: =IF(M$121=0,0,N123) -> 1 | L123: =IF(AND(K123<>0,F123<>""),K123,0) -> 0 | M123: =CHOOSE(K123+1,"Not to be included in this RFA","A REQUIRED input field for this RFA","An OPTIONAL input field for this RFA") -> A REQUIRED input field for this RFA | N123: 1
D125: Currently Managing or Formerly Managed? | F125: <select one> | K125: =IF(M$121=0,0,N125) -> 1 | L125: =IF(AND(K125<>0,AND(F125<>"<select one>",F125<>"")),K125,0) -> 0 | M125: A REQUIRED input field for this RFA | N125: 1
D126: Length of Time (number of years): | K126: =IF(M$121=0,0,N126) -> 1 | L126: =IF(AND(K126<>0,F126<>""),K126,0) -> 0 | M126: A REQUIRED input field for this RFA | N126: 1
D127: Total Number of Units: | K127: =IF(M$121=0,0,N127) -> 1 | L127: =IF(AND(K127<>0,F127<>""),K127,0) -> 0 | M127: A REQUIRED input field for this RFA | N127: 1
C129: =IF(SUM($K$122:$K$127)=0,"(a)","(b)") -> (b) | D129: Second completed affordable rental housing development that meets the management experience requirement outlined in Section Four of the RFA | M129: 1
D130: Name of Development: | K130: =IF(M$129=0,0,N130) -> 1 | L130: =IF(AND(K130<>0,F130<>""),K130,0) -> 0 | M130: =CHOOSE(K130+1,"Not to be included in this RFA","A REQUIRED input field for this RFA","An OPTIONAL input field for this RFA") -> A REQUIRED input field for this RFA | N130: 1
D131: Location (city and state): | K131: =IF(M$129=0,0,N131) -> 1 | L131: =IF(AND(K131<>0,F131<>""),K131,0) -> 0 | M131: =CHOOSE(K131+1,"Not to be included in this RFA","A REQUIRED input field for this RFA","An OPTIONAL input field for this RFA") -> A REQUIRED input field for this RFA | N131: 1
D133: Currently Managing or Formerly Managed? | F133: <select one> | K133: =IF(M$129=0,0,N133) -> 1 | L133: =IF(AND(K133<>0,AND(F133<>"<select one>",F133<>"")),K133,0) -> 0 | M133: A REQUIRED input field for this RFA | N133: 1
D134: Length of Time (number of years): | K134: =IF(M$129=0,0,N134) -> 1 | L134: =IF(AND(K134<>0,F134<>""),K134,0) -> 0 | M134: A REQUIRED input field for this RFA | N134: 1
D135: Total Number of Units: | K135: =IF(M$129=0,0,N135) -> 1 | L135: =IF(AND(K135<>0,F135<>""),K135,0) -> 0 | M135: A REQUIRED input field for this RFA | N135: 1
A137: =IF($K$139=0,"",CHAR(CODE(LOOKUP(2,1/(COUNTIF(A$27:A136,">"&A$27:A136&"*")=0),A$27:A136))+1)) ->  | B137: Community-Based Board of Directors Requirement
C138: Does the Applicant commit to structuring the Board of Directors affiliated with the Non-Profit Entity that is part of the Applicant Entity with a majority (at least 50 percent, plus one) of individuals that are Non-Related Board Members to: 1) Any tenants or applicants for tenancy; 2) Any compensated management or staff of the Non-Profit; or 3) Any other members of the Board, as required?
C139: <select one> | K139: 0 | L139: =IF(AND(K139<>0,AND(C139<>"<select one>",C139<>"")),K139,0) -> 0 | M139: =CHOOSE(K139+1,"Not to be included in this RFA","A REQUIRED input field for this RFA","An OPTIONAL input field for this RFA") -> Not to be included in this RFA
A141: =IF(SUM($K$142:$K$164)=0,"",CHAR(CODE(LOOKUP(2,1/(COUNTIF(A$27:A140,">"&A$27:A140&"*")=0),A$27:A140))+1)) -> e | B141: Contact Person
B142: (1) | C142: Authorized Principal Representative contact information (required)
C143: First Name: | G143: Middle Initial: | K143: 1 | L143: =IF(AND(K143<>0,F143<>""),K143,0) -> 0 | M143: =CHOOSE(K143+1,"Not to be included in this RFA","A REQUIRED input field for this RFA","An OPTIONAL input field for this RFA") -> A REQUIRED input field for this RFA
C144: Last Name: | K144: 1 | L144: =IF(AND(K144<>0,F144<>""),K144,0) -> 0 | M144: A REQUIRED input field for this RFA
C145: Organization: | K145: 1 | L145: =IF(AND(K145<>0,F145<>""),K145,0) -> 0 | M145: A REQUIRED input field for this RFA
C146: Street Address: | K146: 1 | L146: =IF(AND(K146<>0,F146<>""),K146,0) -> 0 | M146: A REQUIRED input field for this RFA
C147: City: | K147: 1 | L147: =IF(AND(K147<>0,F147<>""),K147,0) -> 0 | M147: A REQUIRED input field for this RFA
C148: State: | F148: <select one> | K148: 1 | L148: =IF(AND(K148<>0,AND(F148<>"<select one>",F148<>"")),K148,0) -> 0 | M148: A REQUIRED input field for this RFA
C149: Zip Code: | K149: 1 | L149: =IF(AND(K149<>0,F149<>""),K149,0) -> 0 | M149: A REQUIRED input field for this RFA
C150: Telephone (xxx)xxx-xxxx: | G150: Telephone Extension: | K150: 1 | L150: =IF(AND(K150<>0,F150<>""),K150,0) -> 0 | M150: A REQUIRED input field for this RFA
C151: Email Address: | K151: 1 | L151: =IF(AND(K151<>0,F151<>""),K151,0) -> 0 | M151: A REQUIRED input field for this RFA
E153: =IF(Name_Of_Applicant="","This area intentionally left blank.",IF(OR(Cert_Signature="",Data1!F144=" ",Cert_Signature=Data1!F144),"This area intentionally left blank.","The Authorized Principal above of "&""""&Data1!F144&""" does not match exactly the indicated name given for the signature of the Authorized Principal Representative on the Certification tab of """&Cert_Signature&"""")) -> This area intentionally left blank. | M153: 1
B155: =IF(SUM($K$143:$K$151)=0,"(1)","(2)") -> (2) | C155: Operational Contact Person Information (optional) | M155: 1
C156: First Name: | G156: Middle Initial: | K156: =IF(M$155=0,0,N156) -> 2 | L156: =IF(AND(K156<>0,F156<>""),K156,0) -> 0 | M156: =CHOOSE(K156+1,"Not to be included in this RFA","A REQUIRED input field for this RFA","An OPTIONAL input field for this RFA") -> An OPTIONAL input field for this RFA | N156: 2
C157: Last Name: | K157: 2 | L157: =IF(AND(K157<>0,F157<>""),K157,0) -> 0 | M157: An OPTIONAL input field for this RFA | N157: 2
C158: Organization: | K158: 2 | L158: =IF(AND(K158<>0,F158<>""),K158,0) -> 0 | M158: An OPTIONAL input field for this RFA | N158: 2
C159: Street Address: | K159: 2 | L159: =IF(AND(K159<>0,F159<>""),K159,0) -> 0 | M159: An OPTIONAL input field for this RFA | N159: 2
C160: City: | K160: 2 | L160: =IF(AND(K160<>0,F160<>""),K160,0) -> 0 | M160: An OPTIONAL input field for this RFA | N160: 2
C161: State: | F161: <select one> | K161: 2 | L161: =IF(AND(K161<>0,AND(F161<>"<select one>",F161<>"")),K161,0) -> 0 | M161: An OPTIONAL input field for this RFA | N161: 2
C162: Zip Code: | K162: 2 | L162: =IF(AND(K162<>0,F162<>""),K162,0) -> 0 | M162: An OPTIONAL input field for this RFA | N162: 2
C163: Telephone (xxx)xxx-xxxx: | G163: Telephone Extension: | K163: 2 | L163: =IF(AND(K163<>0,F163<>""),K163,0) -> 0 | M163: An OPTIONAL input field for this RFA | N163: 2
C164: Email Address: | K164: 2 | L164: =IF(AND(K164<>0,F164<>""),K164,0) -> 0 | M164: An OPTIONAL input field for this RFA | N164: 2
A166: =IF(SUM($K$168:$K$176)=0,"",CHAR(CODE(LOOKUP(2,1/(COUNTIF(A$27:A165,">"&A$27:A165&"*")=0),A$27:A165))+1)) ->  | B166: RFA 2022-102 Submission Goal
B167: =IF(AND(SUM($K$168:$K$176)>1,$K168=1),1,"") ->  | C167: Does the Application meet the eligibility described in Section Four A.3.g. to qualify for the RFA 2022-102 Submission Goal?
C168: <select one> | K168: 0 | L168: =IF(AND(K168<>0,AND(C168<>"<select one>",C168<>"")),K168,0) -> 0 | M168: =CHOOSE(K168+1,"Not to be included in this RFA","A REQUIRED input field for this RFA","An OPTIONAL input field for this RFA") -> Not to be included in this RFA
D169: If "Yes", the Exhibit A of the Application submitted in RFA 2022-102 must be submitted as Attachment 5 in this RFA.
B171: =IF(AND(SUM($K$168:$K$176)>1,$K172=1),MAX(B$167:B170)+1,"") ->  | C171: Does the Application meet the eligibility described in Section Four A.3.g. to qualify for the RFA 2022-TBD Submission Goal?
C172: <select one> | K172: 0 | L172: =IF(AND(K172<>0,AND(C172<>"<select one>",C172<>"")),K172,0) -> 0 | M172: =CHOOSE(K172+1,"Not to be included in this RFA","A REQUIRED input field for this RFA","An OPTIONAL input field for this RFA") -> Not to be included in this RFA
D173: If "Yes", the Exhibit A of the Application submitted in RFA 2022-TBD must be submitted as Attachment 5 in this RFA.
B175: =IF(AND(SUM($K$168:$K$176)>1,$K176=1),MAX(B$167:B174)+1,"") ->  | C175: Does the Application meet the eligibility described in Section Four A.3.g. to qualify for the RFA 2022-TBD Submission Goal?
C176: <select one> | K176: 0 | L176: =IF(AND(K176<>0,AND(C176<>"<select one>",C176<>"")),K176,0) -> 0 | M176: =CHOOSE(K176+1,"Not to be included in this RFA","A REQUIRED input field for this RFA","An OPTIONAL input field for this RFA") -> Not to be included in this RFA
D177: If "Yes", the Exhibit A of the Application submitted in RFA 2022-TBD must be submitted as Attachment 5 in this RFA.

Sheet Proposed Development Info
A1: Section 4.A.4 General Proposed Development Information | K1: ="There are "&TEXT(COUNTIF($L$3:$L$71,"=1"),"0")&" required input fields and "&TEXT(COUNTIF($L$3:$L$71,"=2"),"0")&" optional input fields tracked on this tab."&CHAR(10)&"There "&IF(COUNTIFS($L$3:$L$71,"=1",$M$3:$M$71,"=1")=1,"is 1 required input field ","are "&TEXT(COUNTIFS($L$3:$L$71,"=1",$M$3:$M$71,"=1"),"0")&" required input fields")&" and "&TEXT(COUNTIFS($L$3:$L$71,"=2",$M$3:$M$71,"=2"),"0")&" optional input field"&IF(COUNTIFS($L$3:$L$71,"=2",$M$3:$M$71,"=2")=1," with an entry","s with entries")&" tracked on this tab."&CHAR(10)&"There "&IF(Data1!G596=1,"is ","are ")&TEXT(Data1!G596,"0")&" required input field"&IF(Data1!G596=1," that need an entry","s that need entries")&" and "&TEXT(Data1!H596,"0")&" optional input field"&IF(Data1!H596=1," that may or may not need an entry","s that may or may not need entries")&" tracked on this tab." -> There are 5 required input fields and 16 optional input fields tracked on this tab. There are 0 required input fields and 0 optional input fields with entries tracked on this tab. There are 5 required input fields that need entries and 16 optional input fields that may or may not need entries tracked on this tab.
A3: a. | B3: Name of the proposed Development: | L3: 1 | M3: =IF(AND(L3<>0,G3<>""),L3,0) -> 0 | N3: =CHOOSE(L3+1,"Not to be included in this RFA","A REQUIRED input field for this RFA","An OPTIONAL input field for this RFA") -> A REQUIRED input field for this RFA
C4: =IF(G3="","(The Name of the Proposed Development must have an entry to turn on some of the validation formulas in Exhibit A)","") -> (The Name of the Proposed Development must have an entry to turn on some of the validation formulas in Exhibit A) | L4: HIDE THESE COLUMNS PRIOR TO ISSUANCE
A5: b. | B5: Development Category
B6: 1 | C6: Select the Development Category: | G6: <select one> | L6: 1 | M6: =IF(AND(L6<>0,AND(G6<>"<select one>",G6<>"")),L6,0) -> 0 | N6: =CHOOSE(L6+1,"Not to be included in this RFA","A REQUIRED input field for this RFA","An OPTIONAL input field for this RFA") -> A REQUIRED input field for this RFA
F7: =IF(AND('General Information'!$K$30<>0,Self_Sourced_Applicant="Yes"),IF(Development_Category<>"New Construction","Self-Sourced Applicants must select New Construction",""),"") -> 
B8: =IF($N$8=0,"",MAX(B$6:B6)+1) -> 2 | C8: The Development Category requirements are outlined in Section Four. | N8: 1
C10: =IF(OR(Development_Category="Redevelopment",Development_Category="Acquisition and Redevelopment",Development_Category="Preservation",Development_Category="Acquisition and Preservation"),"Provide the Development Category Qualification Letter as Attachment 6 and using the criteria described in Section Four.","This area intentionally left blank.") -> This area intentionally left blank. | N10: 1
C12: ="Does the Unit Characteristics Chart below demonstrate that "&IF(OR(Development_Category="Rehabilitation",Development_Category="Acquisition and Rehabilitation"),"less than "&TEXT(Data1!B197*100,"0"),IF(OR(Development_Category="Preservation",Development_Category="Acquisition and Preservation"),"less than "&TEXT(Data1!B174*100,"0"),IF(OR(Development_Category="Redevelopment",Development_Category="Acquisition and Redevelopment"),"at least "&TEXT(Data1!B165*100,"0"),"at least "&TEXT(Data1!B158*100,"0"))))&" percent of the total units consist of new construction?" -> Does the Unit Characteristics Chart below demonstrate that at least 50 percent of the total units consist of new construction? | I12: =IF(OR(Development_Category="Rehabilitation",Development_Category="Acquisition and Rehabilitation"),Data1!B200,IF(OR(Development_Category="Preservation",Development_Category="Acquisition and Preservation"),Data1!B177,IF(OR(Development_Category="Redevelopment",Development_Category="Acquisition and Redevelopment"),Data1!B168,Data1!B161))) -> NA | N12: 1
C14: =IF(OR(Development_Category="Rehabilitation",Development_Category="Acquisition and Rehabilitation",Development_Category="Preservation",Development_Category="Acquisition and Preservation"),"Does the Development Cost Pro Forma demonstrate that the estimated total amount of rehabilitation expenses is equal to or greater than "&TEXT(IF(OR(Development_Category="Rehabilitation",Development_Category="Acquisition and Rehabilitation"),Data1!B202,Data1!B179)*100,"0")&" percent of the adjusted basis of the acquired building?","This area intentionally left blank.") -> This area intentionally left blank. | I14: =IF(OR(Development_Category="Rehabilitation",Development_Category="Acquisition and Rehabilitation"),Data1!B207,IF(OR(Development_Category="Preservation",Development_Category="Acquisition and Preservation"),Data1!B184,"")) ->  | N14: 1
C15: =IF(OR(Development_Category="Rehabilitation",Development_Category="Acquisition and Rehabilitation",Development_Category="Preservation",Development_Category="Acquisition and Preservation"),"The stated rehabilitation expenditures of "&TEXT(IF(OR(Development_Category="Rehabilitation",Development_Category="Acquisition and Rehabilitation"),IF(LEFT(Data1!B203,1)="(",0,Data1!B203),IF(LEFT(Data1!B180,1)="(",0,Data1!B180)),"$#,##0")&" is "&IF(OR(Development_Category="Rehabilitation",Development_Category="Acquisition and Rehabilitation"),IF(IF(LEFT(Data1!B203,1)="(",0,Data1!B203)>Data1!B205,"more than",IF(IF(LEFT(Data1!B203,1)="(",0,Data1!B203)=Data1!B205,"equal to",IF(IF(LEFT(Data1!B203,1)="(",0,Data1!B203)<Data1!B205,"less than","TBD"))),IF(IF(LEFT(Data1!B180,1)="(",0,Data1!B180)>Data1!B182,"more than",IF(IF(LEFT(Data1!B180,1)="(",0,Data1!B180)=Data1!B182,"equal to",IF(IF(LEFT(Data1!B180,1)="(",0,Data1!B180)<Data1!B182,"less than","TBD"))))&" "&TEXT(IF(OR(Development_Category="Rehabilitation",Development_Category="Acquisition and Rehabilitation"),Data1!B205,Data1!B182),"$#,##0")&", which is "&TEXT(IF(OR(Development_Category="Rehabilitation",Development_Category="Acquisition and Rehabilitation"),Data1!B202,Data1!B179),"0%")&" of the adjusted basis amount of "&TEXT(IF(OR(Development_Category="Rehabilitation",Development_Category="Acquisition and Rehabilitation"),IF(LEFT(Data1!B204,1)="(",0,Data1!B204),IF(LEFT(Data1!B181,1)="(",0,Data1!B181)),"$#,##0")&".","") -> 
C17: =IF(OR(Development_Category="Rehabilitation",Development_Category="Acquisition and Rehabilitation",Development_Category="Preservation",Development_Category="Acquisition and Preservation"),"Does the Development Cost Pro Forma demonstrate that the qualified basis of the estimated total amount of rehabilitation expenses per low-income unit must be greater than or equal to "&TEXT(IF(OR(Development_Category="Rehabilitation",Development_Category="Acquisition and Rehabilitation"),Data1!B208,Data1!B185),"$#,##0")&"?","") ->  | I17: =IF(OR(Development_Category="Rehabilitation",Development_Category="Acquisition and Rehabilitation"),Data1!B214,IF(OR(Development_Category="Preservation",Development_Category="Acquisition and Preservation"),Data1!B191,"")) ->  | L17: Tab Pop-Ups: C4, F7:H7, C10:I10, C14:I15, C17:I18, C22:I22, G30:I30, E35:I35, F43:I45, D46:I46, C74:I74
C18: =IF(OR(Development_Category="Rehabilitation",Development_Category="Acquisition and Rehabilitation",Development_Category="Preservation",Development_Category="Acquisition and Preservation"),"Because the Applicant indicated the Development does "&IF(OR(Development_Category="Rehabilitation",Development_Category="Acquisition and Rehabilitation"),IF(Data1!B209=1,"not ",""),IF(Data1!B186=1,"not ",""))&"qualify for the basis boost, the adjusted basis of the rehabilitation expenditures is "&TEXT(IF(OR(Development_Category="Rehabilitation",Development_Category="Acquisition and Rehabilitation"),IF(LEFT(Data1!B212,1)="(",0,Data1!B212),IF(LEFT(Data1!B189,1)="(",0,Data1!B189)),"$#,##0.00")&" ("&TEXT(IF(OR(Development_Category="Rehabilitation",Development_Category="Acquisition and Rehabilitation"),IF(LEFT(Data1!B203,1)="(",0,Data1!B203),IF(LEFT(Data1!B180,1)="(",0,Data1!B180)),"$#,##0.00")&" x "&TEXT(IF(OR(Development_Category="Rehabilitation",Development_Category="Acquisition and Rehabilitation"),Data1!B209,Data1!B186),"0.00")&"). The qualified basis per housing credit unit is "&TEXT(IF(OR(Development_Category="Rehabilitation",Development_Category="Acquisition and Rehabilitation"),IF(LEFT(Data1!B213,1)="(",0,Data1!B213),IF(LEFT(Data1!B190,1)="(",0,Data1!B190)),"$#,##0.00")&", which is "&IF(OR(Development_Category="Rehabilitation",Development_Category="Acquisition and Rehabilitation"),IF(IF(LEFT(Data1!B213,1)="(",0,Data1!B213)>Data1!B208,"greater than ",IF(IF(LEFT(Data1!B213,1)="(",0,Data1!B213)=Data1!B208,"equal to ","less than ")),IF(IF(LEFT(Data1!B190,1)="(",0,Data1!B190)>Data1!B185,"greater than ",IF(IF(LEFT(Data1!B190,1)="(",0,Data1!B190)=Data1!B185,"equal to ","less than ")))&TEXT(IF(OR(Development_Category="Rehabilitation",Development_Category="Acquisition and Rehabilitation"),Data1!B208,Data1!B185),"$#,##0")&".","") ->  | L18: Hidden Tracking: A57:B71
C20: Does the proposed Development's criteria qualify it for the Development Category selected above? | I20: =IF(OR(Development_Category="Rehabilitation",Development_Category="Acquisition and Rehabilitation",Development_Category="Preservation",Development_Category="Acquisition and Preservation"),IF(AND(DevCat_Test_Units="Yes",DevCat_Test_RehabExps="Yes",DevCat_Test_QualBasis="Yes"),"Yes","No"),IF(OR(Development_Category="New Construction",Development_Category="Redevelopment",Development_Category="Acquisition and Redevelopment"),DevCat_Test_Units,"NA")) -> NA
C22: =IF(G3="","This area intentionally left blank.",IF(Development_Category="New Construction",Data1!G162,IF(OR(Development_Category="Redevelopment",Development_Category="Acquisition and Redevelopment"),Data1!G171,IF(OR(Development_Category="Preservation",Development_Category="Acquisition and Preservation"),Data1!G194,IF(OR(Development_Category="Rehabilitation",Development_Category="Acquisition and Rehabilitation"),Data1!G215,"This area intentionally left blank."))))) -> This area intentionally left blank.
B23: =IF($N$23=0,"",MAX(B$6:B22)+1) -> 3 | C23: Rental Assistance (RA) Level | N23: 1
C24: (a) | D24: Development Category Qualification Letter
E25: If applicable, provide the Development Category Qualification Letter provided as Attachment 4 and using the criteria described in Section Four.
C26: (b) | D26: Calculating the RA Level
E27: Using the information provided in the Development Category Qualification Letter, complete the following information which will be used by the Corporation to calculate the Rental Assistance (RA Level):
E28: State the Year Built: | L28: =IF(N$23=0,0,O28) -> 2 | M28: =IF(AND(L28<>0,F28<>""),L28,0) -> 0 | N28: =CHOOSE(L28+1,"Not to be included in this RFA","A REQUIRED input field for this RFA","An OPTIONAL input field for this RFA") -> An OPTIONAL input field for this RFA | O28: 2
E30: PBRA: | G30: =IF(F30+F31+IF(OR(Development_Category="New Construction",Development_Category="Rehabilitation",Development_Category="Acquisition and Rehabilitation"),F32,0)>Total_Units," The number of Rental Assistance Units entered exceeds Total Units.","") ->  | L30: =IF(N$23=0,0,O30) -> 2 | M30: =IF(AND(L30<>0,F30<>""),L30,0) -> 0 | N30: =CHOOSE(L30+1,"Not to be included in this RFA","A REQUIRED input field for this RFA","An OPTIONAL input field for this RFA") -> An OPTIONAL input field for this RFA | O30: 2
E31: ACC: | L31: =IF(N$23=0,0,O31) -> 2 | M31: =IF(AND(L31<>0,F31<>""),L31,0) -> 0 | N31: =CHOOSE(L31+1,"Not to be included in this RFA","A REQUIRED input field for this RFA","An OPTIONAL input field for this RFA") -> An OPTIONAL input field for this RFA | O31: 2
D32: Other form of federal long-term rental assistance*: | G32: Identify Other: | H32: <select one> | L32: =IF(N$23=0,0,O32) -> 2 | M32: =IF(AND(L32<>0,F32<>""),L32,0) -> 0 | N32: =CHOOSE(L32+1,"Not to be included in this RFA","A REQUIRED input field for this RFA","An OPTIONAL input field for this RFA") -> An OPTIONAL input field for this RFA | O32: 2
E33: *Effective only for New Construction and Rehabilitation (with or without Acquisition) Development Categories
E35: =IF(Data1!D227=0,"This area intentionally left blank.","The "&TEXT(Data1!D227,"0")&" unit"&IF(Data1!D227>1,"s","")&" entered to receive Rental Assistance represents "&TEXT(Data1!D226,"0.00%")&" of Total Units. This data indicates the proposed Development qualifies for a Rental Assistance Level of "&TEXT(Data1!F228,"0")&" via the "&IF(Data1!D228="Percent","Percentage of Total Units method",IF(Data1!D228="Num","Number of RA Units method",IF(Data1!D228="Both","either method","neither method")))&".") -> This area intentionally left blank.
B37: =IF($L$39=0,"",MAX(B$6:B35)+1) -> 4 | C37: Development Category Funding Preference
D38: If the Applicant selected the Development Category of Rehabilitation, with or without Acquisition, does the proposed Development meet the definition of Preservation as defined in Rule Chapter 67-48.002(92), F.A.C.?
D39: <select one> | L39: 1 | M39: =IF(AND(L39<>0,AND(D39<>"<select one>",D39<>"")),L39,0) -> 0 | N39: =CHOOSE(L39+1,"Not to be included in this RFA","A REQUIRED input field for this RFA","An OPTIONAL input field for this RFA") -> A REQUIRED input field for this RFA
E41: Note: If an Applicant selects the Development Category of Rehabilitation, with or without Acquisition, and either (i) does not answer this question or (ii) selects “Yes” as the answer to this question, the Application will NOT qualify for the Development Category Funding Preference.
A43: =IF($L44=0,"",CHAR(CODE(LOOKUP(2,1/(COUNTIF(A$3:A42,">"&A$3:A42&"*")=0),A$3:A42))+1)) -> c | B43: Select the Development Type: | F43: =IF(C44="<select one>","",IF(H$72<Total_Units,"(Please complete the Unit Characteristics table in "&A52&". below)",IF(DS_UnitTypeMatch=1,"(Your selection for Development Type is confirmed by the Unit Characteristics table below)","(Your selection for Development Type is NOT confirmed by the Unit Characteristics table below"&IF(Other_ESS_NC_units+Other_Non_ESS_NC_units+Other_ESS_Rehab_units>Data1!B247,", unless the 'Other Dev Type*' unit description is comprised of more than 1 eligible Development Type and one of those Types has at least "&TEXT(Data1!D247,"0")&" units","")&")"))) -> 
C44: <select one> | L44: 1 | M44: =IF(AND(L44<>0,AND(C44<>"<select one>",C44<>"")),L44,0) -> 0 | N44: =CHOOSE(L44+1,"Not to be included in this RFA","A REQUIRED input field for this RFA","An OPTIONAL input field for this RFA") -> A REQUIRED input field for this RFA
D46: ="Based on the input in the Unit Characteristics Table below, "&IF(OR(N(Total_Units)=0,N(total_units_in_unit_desc_chart)<>N(Total_Units)),"the predominant unit type is yet to be determined as the table input is not complete.","there "&IF(Data1!O239>1,"are ","is ")&Data1!O239&" predominant unit type"&IF(Data1!O239>1,"s and they are "," and it is ")&Data1!O247&".") -> Based on the input in the Unit Characteristics Table below, the predominant unit type is yet to be determined as the table input is not complete.
A48: =IF($L50=0,"",CHAR(CODE(LOOKUP(2,1/(COUNTIF(A$3:A45,">"&A$3:A45&"*")=0),A$3:A45))+1)) ->  | B48: ESS Construction Funding Preference
B49: Does the proposed Development meet the requirements to be considered Enhanced Structural Systems Construction as outlined in Section Four A.4.d. of the RFA?
C50: =IF(L50=0,"",IF(H72=0,"Units must be entered in the Unit Characteristics table below to evaluate the Funding Preference.",IF(AND(H72>0,H72<>N(Total_Units)),"Total Units in the Unit Characteristics table below does not match Total Units entered in Section 4.A.6.a.",IF(SUMIF(F57:G71,"ESS Construction",B57:B71)>=ROUNDUP(50%*Total_Units,0),"Yes, at least 50% of Total Units ("&TEXT(SUMIF(F57:G71,"ESS Construction",B57:B71),"0")&" of "&TEXT(Total_Units,"0")&", or "&TEXT(SUMIF(F57:G71,"ESS Construction",B57:B71)/Total_Units,"0%")&") indicate they meet the Funding Preference requirement.","No, less than 50% of Total Units ("&TEXT(SUMIF(F57:G71,"ESS Construction",B57:B71),"0")&" of "&TEXT(Total_Units,"0")&", or "&TEXT(SUMIF(F57:G71,"ESS Construction",B57:B71)/Total_Units,"0%")&") indicate they meet the Funding Preference requirement.")))) ->  | L50: 0 | M50: =IF(AND(L50<>0,AND(C50<>"<select one>",C50<>"")),L50,0) -> 0 | N50: =CHOOSE(L50+1,"Not to be included in this RFA","A REQUIRED input field for this RFA","An OPTIONAL input field for this RFA") -> Not to be included in this RFA
A52: =IF(SUM($L57:$L71)=0,"",CHAR(CODE(LOOKUP(2,1/(COUNTIF(A$3:A51,">"&A$3:A51&"*")=0),A$3:A51))+1)) -> d | B52: Breakdown of number of units
B53: Complete the chart below reflecting the number of units for each of the Development Categories, Development Types, or ESS/non-ESS Construction, for purposes of the Total Development Cost Per Unit Limitation calculation and the Leveraging Calculation. The last row of the far right column is the Leveraging Factor.
C55: Unit Characteristics | H55: Enter the applicable number of units | I55: Leveraging Classification Development Type Multipliers
A57: =IF(H$72=0,"",IF(COUNTIF(H$57:H$71,MAX(H$57:H$71))=1,"",IF(COUNTA(F$57:F57)=IFERROR(MATCH(MAX(H$57:H$71),H$57:H$71,0),""),"",IF(N(H57)=MAX(H$57:H$71),COUNTA(F$57:F57),"")))) ->  | B57: =N(H57) -> 0 | C57: New Construction | E57: Garden | F57: ESS Construction | I57: =DS_Lev_MP_GA*DS_Lev_MP_ESS -> 0.8004 | L57: =IF(O57=1,IF(OR(H$72=0,H$72<N(Total_Units),AND(H$72=N(Total_Units),H57>0)),1,2),O57) -> 1 | M57: =IF(AND(L57<>0,H57<>""),L57,0) -> 0 | N57: =CHOOSE(L57+1,"Not to be included in this RFA","A REQUIRED input field for this RFA","An OPTIONAL input field for this RFA") -> A REQUIRED input field for this RFA | O57: 1
A58: =IF(H$72=0,"",IF(COUNTIF(H$57:H$71,MAX(H$57:H$71))=1,"",IF(COUNTA(F$57:F58)=IFERROR(MATCH(MAX(H$57:H$71),H$57:H$71,0),""),"",IF(N(H58)=MAX(H$57:H$71),COUNTA(F$57:F58),"")))) ->  | B58: =N(H58) -> 0 | E58: Garden | F58: Non-ESS Construction | I58: =DS_Lev_MP_GA*1 -> 0.92 | L58: =IF(O58=1,IF(OR(AND(H$72<Total_Units,COUNTIF(O$57:O58,1)=COUNTIF(H$57:H58,">0")+1,H58=0),AND(H$72<Total_Units,COUNTIF(L$57:L57,1)=COUNTIF(H$57:H57,">0"),H58=0),AND(H$72=Total_Units,H58>0)),1,2),O58) -> 2 | M58: =IF(AND(L58<>0,H58<>""),L58,0) -> 0 | N58: An OPTIONAL input field for this RFA | O58: 1
A59: =IF(H$72=0,"",IF(COUNTIF(H$57:H$71,MAX(H$57:H$71))=1,"",IF(COUNTA(F$57:F59)=IFERROR(MATCH(MAX(H$57:H$71),H$57:H$71,0),""),"",IF(N(H59)=MAX(H$57:H$71),COUNTA(F$57:F59),"")))) ->  | B59: 0 | E59: Mid-Rise | F59: ESS Construction | I59: =DS_Lev_MP_MR*DS_Lev_MP_ESS -> 0.7395 | L59: =IF(O59=1,IF(OR(AND(H$72<Total_Units,COUNTIF(O$57:O59,1)=COUNTIF(H$57:H59,">0")+1,H59=0),AND(H$72<Total_Units,COUNTIF(L$57:L58,1)=COUNTIF(H$57:H58,">0"),H59=0),AND(H$72=Total_Units,H59>0)),1,2),O59) -> 2 | M59: 0 | N59: An OPTIONAL input field for this RFA | O59: 1
A60: =IF(H$72=0,"",IF(COUNTIF(H$57:H$71,MAX(H$57:H$71))=1,"",IF(COUNTA(F$57:F60)=IFERROR(MATCH(MAX(H$57:H$71),H$57:H$71,0),""),"",IF(N(H60)=MAX(H$57:H$71),COUNTA(F$57:F60),"")))) ->  | B60: 0 | E60: Mid-Rise | F60: Non-ESS Construction | I60: =DS_Lev_MP_MR*1 -> 0.85 | L60: =IF(O60=1,IF(OR(AND(H$72<Total_Units,COUNTIF(O$57:O60,1)=COUNTIF(H$57:H60,">0")+1,H60=0),AND(H$72<Total_Units,COUNTIF(L$57:L59,1)=COUNTIF(H$57:H59,">0"),H60=0),AND(H$72=Total_Units,H60>0)),1,2),O60) -> 2 | M60: 0 | N60: An OPTIONAL input field for this RFA | O60: 1
A61: =IF(H$72=0,"",IF(COUNTIF(H$57:H$71,MAX(H$57:H$71))=1,"",IF(COUNTA(F$57:F61)=IFERROR(MATCH(MAX(H$57:H$71),H$57:H$71,0),""),"",IF(N(H61)=MAX(H$57:H$71),COUNTA(F$57:F61),"")))) ->  | B61: 0 | E61: High-Rise | F61: ESS Construction | I61: =DS_Lev_MP_HR*DS_Lev_MP_ESS -> 0.7134 | L61: =IF(O61=1,IF(OR(AND(H$72<Total_Units,COUNTIF(O$57:O61,1)=COUNTIF(H$57:H61,">0")+1,H61=0),AND(H$72<Total_Units,COUNTIF(L$57:L60,1)=COUNTIF(H$57:H60,">0"),H61=0),AND(H$72=Total_Units,H61>0)),1,2),O61) -> 2 | M61: 0 | N61: An OPTIONAL input field for this RFA | O61: 1
A62: =IF(H$72=0,"",IF(COUNTIF(H$57:H$71,MAX(H$57:H$71))=1,"",IF(COUNTA(F$57:F62)=IFERROR(MATCH(MAX(H$57:H$71),H$57:H$71,0),""),"",IF(N(H62)=MAX(H$57:H$71),COUNTA(F$57:F62),"")))) ->  | B62: 0 | E62: Single Family | F62: ESS Construction | I62: =DS_Lev_MP_Oth*DS_Lev_MP_ESS -> 0.87 | L62: =IF(O62=1,IF(OR(AND(H$72<Total_Units,COUNTIF(O$57:O62,1)=COUNTIF(H$57:H62,">0")+1,H62=0),AND(H$72<Total_Units,COUNTIF(L$57:L61,1)=COUNTIF(H$57:H61,">0"),H62=0),AND(H$72=Total_Units,H62>0)),1,2),O62) -> 0 | M62: =IF(AND(L62<>0,H62<>""),L62,0) -> 0 | N62: =CHOOSE(L62+1,"Not to be included in this RFA","A REQUIRED input field for this RFA","An OPTIONAL input field for this RFA") -> Not to be included in this RFA | O62: 0
A63: =IF(H$72=0,"",IF(COUNTIF(H$57:H$71,MAX(H$57:H$71))=1,"",IF(COUNTA(F$57:F63)=IFERROR(MATCH(MAX(H$57:H$71),H$57:H$71,0),""),"",IF(N(H63)=MAX(H$57:H$71),COUNTA(F$57:F63),"")))) ->  | B63: 0 | E63: Single Family | F63: Non-ESS Construction | I63: =DS_Lev_MP_Oth*1 -> 1 | L63: =IF(O63=1,IF(OR(AND(H$72<Total_Units,COUNTIF(O$57:O63,1)=COUNTIF(H$57:H63,">0")+1,H63=0),AND(H$72<Total_Units,COUNTIF(L$57:L62,1)=COUNTIF(H$57:H62,">0"),H63=0),AND(H$72=Total_Units,H63>0)),1,2),O63) -> 0 | M63: 0 | N63: Not to be included in this RFA | O63: 0
A64: =IF(H$72=0,"",IF(COUNTIF(H$57:H$71,MAX(H$57:H$71))=1,"",IF(COUNTA(F$57:F64)=IFERROR(MATCH(MAX(H$57:H$71),H$57:H$71,0),""),"",IF(N(H64)=MAX(H$57:H$71),COUNTA(F$57:F64),"")))) ->  | B64: 0 | E64: Other Dev Type* | F64: ESS Construction | I64: =DS_Lev_MP_Oth*DS_Lev_MP_ESS -> 0.87 | L64: =IF(O64=1,IF(OR(AND(H$72<Total_Units,COUNTIF(O$57:O64,1)=COUNTIF(H$57:H64,">0")+1,H64=0),AND(H$72<Total_Units,COUNTIF(L$57:L63,1)=COUNTIF(H$57:H63,">0"),H64=0),AND(H$72=Total_Units,H64>0)),1,2),O64) -> 2 | M64: 0 | N64: An OPTIONAL input field for this RFA | O64: 1
A65: =IF(H$72=0,"",IF(COUNTIF(H$57:H$71,MAX(H$57:H$71))=1,"",IF(COUNTA(F$57:F65)=IFERROR(MATCH(MAX(H$57:H$71),H$57:H$71,0),""),"",IF(N(H65)=MAX(H$57:H$71),COUNTA(F$57:F65),"")))) ->  | B65: 0 | E65: Other Dev Type* | F65: Non-ESS Construction | I65: =DS_Lev_MP_Oth*1 -> 1 | L65: =IF(O65=1,IF(OR(AND(H$72<Total_Units,COUNTIF(O$57:O65,1)=COUNTIF(H$57:H65,">0")+1,H65=0),AND(H$72<Total_Units,COUNTIF(L$57:L64,1)=COUNTIF(H$57:H64,">0"),H65=0),AND(H$72=Total_Units,H65>0)),1,2),O65) -> 2 | M65: 0 | N65: An OPTIONAL input field for this RFA | O65: 1
A66: =IF(H$72=0,"",IF(COUNTIF(H$57:H$71,MAX(H$57:H$71))=1,"",IF(COUNTA(F$57:F66)=IFERROR(MATCH(MAX(H$57:H$71),H$57:H$71,0),""),"",IF(N(H66)=MAX(H$57:H$71),COUNTA(F$57:F66),"")))) ->  | B66: 0 | C66: Rehab | E66: Garden | F66: ESS Construction | I66: 1 | L66: =IF(O66=1,IF(OR(AND(H$72<Total_Units,COUNTIF(O$57:O66,1)=COUNTIF(H$57:H66,">0")+1,H66=0),AND(H$72<Total_Units,COUNTIF(L$57:L65,1)=COUNTIF(H$57:H65,">0"),H66=0),AND(H$72=Total_Units,H66>0)),1,2),O66) -> 2 | M66: 0 | N66: An OPTIONAL input field for this RFA | O66: 1
A67: =IF(H$72=0,"",IF(COUNTIF(H$57:H$71,MAX(H$57:H$71))=1,"",IF(COUNTA(F$57:F67)=IFERROR(MATCH(MAX(H$57:H$71),H$57:H$71,0),""),"",IF(N(H67)=MAX(H$57:H$71),COUNTA(F$57:F67),"")))) ->  | B67: 0 | E67: Garden | F67: Non-ESS Construction | I67: 1 | L67: =IF(O67=1,IF(OR(AND(H$72<Total_Units,COUNTIF(O$57:O67,1)=COUNTIF(H$57:H67,">0")+1,H67=0),AND(H$72<Total_Units,COUNTIF(L$57:L66,1)=COUNTIF(H$57:H66,">0"),H67=0),AND(H$72=Total_Units,H67>0)),1,2),O67) -> 2 | M67: 0 | N67: An OPTIONAL input field for this RFA | O67: 1
A68: =IF(H$72=0,"",IF(COUNTIF(H$57:H$71,MAX(H$57:H$71))=1,"",IF(COUNTA(F$57:F68)=IFERROR(MATCH(MAX(H$57:H$71),H$57:H$71,0),""),"",IF(N(H68)=MAX(H$57:H$71),COUNTA(F$57:F68),"")))) ->  | B68: 0 | E68: Mid-Rise, High-Rise | F68: ESS Construction | I68: 1 | L68: =IF(O68=1,IF(OR(AND(H$72<Total_Units,COUNTIF(O$57:O68,1)=COUNTIF(H$57:H68,">0")+1,H68=0),AND(H$72<Total_Units,COUNTIF(L$57:L67,1)=COUNTIF(H$57:H67,">0"),H68=0),AND(H$72=Total_Units,H68>0)),1,2),O68) -> 2 | M68: =IF(AND(L68<>0,H68<>""),L68,0) -> 0 | N68: =CHOOSE(L68+1,"Not to be included in this RFA","A REQUIRED input field for this RFA","An OPTIONAL input field for this RFA") -> An OPTIONAL input field for this RFA | O68: 1
A69: =IF(H$72=0,"",IF(COUNTIF(H$57:H$71,MAX(H$57:H$71))=1,"",IF(COUNTA(F$57:F69)=IFERROR(MATCH(MAX(H$57:H$71),H$57:H$71,0),""),"",IF(N(H69)=MAX(H$57:H$71),COUNTA(F$57:F69),"")))) ->  | B69: 0 | E69: Mid-Rise, High-Rise | F69: Non-ESS Construction | I69: 1 | L69: =IF(O69=1,IF(OR(AND(H$72<Total_Units,COUNTIF(O$57:O69,1)=COUNTIF(H$57:H69,">0")+1,H69=0),AND(H$72<Total_Units,COUNTIF(L$57:L68,1)=COUNTIF(H$57:H68,">0"),H69=0),AND(H$72=Total_Units,H69>0)),1,2),O69) -> 2 | M69: =IF(AND(L69<>0,H69<>""),L69,0) -> 0 | N69: =CHOOSE(L69+1,"Not to be included in this RFA","A REQUIRED input field for this RFA","An OPTIONAL input field for this RFA") -> An OPTIONAL input field for this RFA | O69: 1
A70: =IF(H$72=0,"",IF(COUNTIF(H$57:H$71,MAX(H$57:H$71))=1,"",IF(COUNTA(F$57:F70)=IFERROR(MATCH(MAX(H$57:H$71),H$57:H$71,0),""),"",IF(N(H70)=MAX(H$57:H$71),COUNTA(F$57:F70),"")))) ->  | B70: 0 | E70: Other Dev Type* | F70: ESS Construction | I70: 1 | L70: =IF(O70=1,IF(OR(AND(H$72<Total_Units,COUNTIF(O$57:O70,1)=COUNTIF(H$57:H70,">0")+1,H70=0),AND(H$72<Total_Units,COUNTIF(L$57:L69,1)=COUNTIF(H$57:H69,">0"),H70=0),AND(H$72=Total_Units,H70>0)),1,2),O70) -> 2 | M70: =IF(AND(L70<>0,H70<>""),L70,0) -> 0 | N70: =CHOOSE(L70+1,"Not to be included in this RFA","A REQUIRED input field for this RFA","An OPTIONAL input field for this RFA") -> An OPTIONAL input field for this RFA | O70: 1
A71: =IF(H$72=0,"",IF(COUNTIF(H$57:H$71,MAX(H$57:H$71))=1,"",IF(COUNTA(F$57:F71)=IFERROR(MATCH(MAX(H$57:H$71),H$57:H$71,0),""),"",IF(N(H71)=MAX(H$57:H$71),COUNTA(F$57:F71),"")))) ->  | B71: 0 | E71: Other Dev Type* | F71: Non-ESS Construction | I71: 1 | L71: =IF(O71=1,IF(OR(AND(H$72<Total_Units,COUNTIF(O$57:O71,1)=COUNTIF(H$57:H71,">0")+1,H71=0),AND(H$72<Total_Units,COUNTIF(L$57:L70,1)=COUNTIF(H$57:H70,">0"),H71=0),AND(H$72=Total_Units,H71>0)),1,2),O71) -> 2 | M71: 0 | N71: An OPTIONAL input field for this RFA | O71: 1
G72: Total Units: | H72: =SUM(H57:H71) -> 0 | I72: =IF(H72=0,0,SUMPRODUCT(H57:H71,I57:I71)/H72) -> 0
C74: =IF(total_units_in_unit_desc_chart='Units, Set-Asides, Bldgs'!K3,"The number of units calculated here matches the number of units in stated at 6.a.","Attention: The number of units calculated here does not match the number of units stated at 6.a.") -> The number of units calculated here matches the number of units in stated at 6.a.
B76: * Other Dev(elopment) Type means any Development Type that is not specifically identified in the chart but could be selected in drop-down menu in A.4.A.c.
B77: ="** Not all decimal places of the actual number for the overall Leveraging Classification Development Type Multiplier may be displaying. Nonetheless, "&"the full actual number will be used to calculate the Applicant's overall Corporation's funding amount in the '"&MID(CELL("filename",Funding!A1),FIND("]",CELL("filename",Funding!A1))+1,255)&"' tab. The final Leveraging Multiplier is calculated by summing together the products of multiplying the number of units for each applicable Development Type by their "&"Leveraging Classification Development Type Multiplier and dividing the resuslt by the amount of Total Units." -> ** Not all decimal places of the actual number for the overall Leveraging Classification Development Type Multiplier may be displaying. Nonetheless, the full actual number will be used to calculate the Applicant's overall Corporation's funding amount in the 'Funding' tab. The final Leveraging Multiplier is calculated by summing together the products of multiplying the number of units for each applicable Development Type by their Leveraging Classification Development Type Multiplier and dividing the resuslt by the amount of Total Units.

Sheet Development Location
A1: Section 4.A.5 Location of Proposed Development | L1: ="There are "&TEXT(COUNTIF($M$3:$M$31,"=1"),"0")&" required input fields and "&TEXT(COUNTIF($M$3:$M$31,"=2"),"0")&" optional input fields tracked on this tab."&CHAR(10)&"There "&IF(COUNTIFS($M$3:$M$31,"=1",$N$3:$N$31,"=1")=1,"is 1 required input field","are "&TEXT(COUNTIFS($M$3:$M$31,"=1",$N$3:$N$31,"=1"),"0")&" required input fields")&" and "&TEXT(COUNTIFS($M$3:$M$31,"=2",$N$3:$N$31,"=2"),"0")&" optional input field"&IF(COUNTIFS($M$3:$M$31,"=2",$N$3:$N$31,"=2")=1," with an entry","s with entries")&" tracked on this tab."&CHAR(10)&"There "&IF(Data1!G597=1,"is ","are ")&TEXT(Data1!G597,"0")&" required input field"&IF(Data1!G597=1," that need an entry","s that need entries")&" and "&TEXT(Data1!H597,"0")&" optional input field"&IF(Data1!H597=1," that may or may not need an entry","s that may or may not need entries")&" tracked on this tab." -> There are 6 required input fields and 1 optional input fields tracked on this tab. There are 0 required input fields and 0 optional input fields with entries tracked on this tab. There are 6 required input fields that need entries and 1 optional input field that may or may not need an entry tracked on this tab.
A3: a | B3: County: | F3: <select one> | G3: County Size: | H3: =IF(County="<select one>","",LOOKUP(County,Data1!A250:A316,Data1!H250:H316)) ->  | M3: 1 | N3: =IF(AND(M3<>0,AND(F3<>"<select one>",F3<>"")),M3,0) -> 0 | O3: =CHOOSE(M3+1,"Not to be included in this RFA","A REQUIRED input field for this RFA","An OPTIONAL input field for this RFA") -> A REQUIRED input field for this RFA
C4: =IF(F3="<select one>","(The proposed Development's County must have an entry to turn on some of the validation formulas in Exhibit A)","") -> (The proposed Development's County must have an entry to turn on some of the validation formulas in Exhibit A) | M4: HIDE THESE COLUMNS PRIOR TO ISSUANCE
B5: =IF(M5<>0,"(1)","(-)") -> (-) | C5: If Monroe County, is the proposed Development located in the North Florida Keys Area or the South Florida Keys Area for TDC PU Limitation purposes? | H5: <select one> | M5: =IF(P5=0,0,IF(County="Monroe",1,2)) -> 0 | N5: =IF(AND(M5<>0,AND(H5<>"<select one>",H5<>"")),M5,0) -> 0 | O5: =CHOOSE(M5+1,"Not to be included in this RFA","A REQUIRED input field for this RFA","An OPTIONAL input field for this RFA") -> Not to be included in this RFA | P5: 0
B7: =IF(AND(M7<>0,M5<>0),"(2)",IF(AND(M7<>0,M5=0),"(1)","(-)")) -> (-) | C7: If Miami-Dade County, is the proposed Development located north or south of SW 224th Street for minimum total unit and Set-Aside Unit requirements? | H7: <select one> | M7: =IF(P7=0,0,IF(County="Miami-Dade",1,2)) -> 0 | N7: =IF(AND(M7<>0,AND(H7<>"<select one>",H7<>"")),M7,0) -> 0 | O7: =CHOOSE(M7+1,"Not to be included in this RFA","A REQUIRED input field for this RFA","An OPTIONAL input field for this RFA") -> Not to be included in this RFA | P7: 0
A9: =IF($M11=0,"",CHAR(CODE(LOOKUP(2,1/(COUNTIF(A$3:A8,">"&A$3:A8&"*")=0),A$3:A8))+1)) -> b | B9: Address of Development Site | M9: Tab Pop-ups: C4, J22
B10: Street Address or closest designated intersection: | M10: Hidden Tracking: None
M11: 1 | N11: =IF(AND(M11<>0,E11<>""),M11,0) -> 0 | O11: =CHOOSE(M11+1,"Not to be included in this RFA","A REQUIRED input field for this RFA","An OPTIONAL input field for this RFA") -> A REQUIRED input field for this RFA
E13: City of Development Site*: | M13: 1 | N13: =IF(AND(M13<>0,G13<>""),M13,0) -> 0 | O13: =CHOOSE(M13+1,"Not to be included in this RFA","A REQUIRED input field for this RFA","An OPTIONAL input field for this RFA") -> A REQUIRED input field for this RFA
E14: *If the proposed Development is located in the unincorporated area of a county, provide that information.
A16: =IF($M18=0,"",CHAR(CODE(LOOKUP(2,1/(COUNTIF(A$3:A15,">"&A$3:A15&"*")=0),A$3:A15))+1)) -> c | B16: State whether the Development consists of Scattered Sites
B18: (1) | C18: Does the proposed Development consist of Scattered Sites? | G18: <select one> | M18: 1 | N18: =IF(AND(M18<>0,AND(G18<>"<select one>",G18<>"")),M18,0) -> 0 | O18: =CHOOSE(M18+1,"Not to be included in this RFA","A REQUIRED input field for this RFA","An OPTIONAL input field for this RFA") -> A REQUIRED input field for this RFA
A20: =IF($M23=0,"",CHAR(CODE(LOOKUP(2,1/(COUNTIF(A$3:A19,">"&A$3:A19&"*")=0),A$3:A19))+1)) -> d | B20: Latitude and Longitude Coordinates
B21: (1) | C21: Development Location Point | O21: =J22 -> 
J22: =IF(AND(DLP_latitude="",DLP_longitude=""),"",IF(DLP_latitude=""," Latitude point not provided",IF(AND(VALUE(DLP_latitude)>0,OR(LEN(DLP_latitude)<IFERROR(FIND(".",DLP_latitude)+6,0),IFERROR(FIND(".",DLP_latitude)+6,0)=0))," Latitude is not 6 decimals",IF(AND(VALUE(DLP_latitude)<0,LEN(DLP_latitude)>IFERROR(FIND(".",DLP_latitude)+5,0),IFERROR(FIND(".",DLP_latitude)+5,0)<>0)," Latitude not listed as a positive #",IF(AND(VALUE(DLP_latitude)<0,OR(LEN(DLP_latitude)<IFERROR(FIND(".",DLP_latitude)+6,0),IFERROR(FIND(".",DLP_latitude)+6,0)=0))," Latitude not listed as a positive # & it is not 6 decimals",""))))&IF(AND(OR(AND(VALUE(DLP_latitude)>0,OR(LEN(DLP_latitude)<IFERROR(FIND(".",DLP_latitude)+6,0),IFERROR(FIND(".",DLP_latitude)+6,0)=0)),VALUE(DLP_latitude)<0,AND(VALUE(DLP_latitude)<0,OR(LEN(DLP_latitude)<IFERROR(FIND(".",DLP_latitude)+6,0),IFERROR(FIND(".",DLP_latitude)+6,0)=0))),OR(AND(VALUE(DLP_longitude)<0,OR(LEN(DLP_longitude)<IFERROR(FIND(".",DLP_longitude)+6,0),IFERROR(FIND(".",DLP_longitude)+6,0)=0)),VALUE(DLP_longitude)>0)),";","")&IF(DLP_longitude=""," Longitude point not provided",IF(AND(VALUE(DLP_longitude)<0,OR(LEN(DLP_longitude)<IFERROR(FIND(".",DLP_longitude)+6,0),IFERROR(FIND(".",DLP_longitude)+6,0)=0))," Longitude is not 6 decimals",IF(AND(VALUE(DLP_longitude)>0,OR(LEN(DLP_longitude)<IFERROR(FIND(".",DLP_longitude)+6,0),IFERROR(FIND(".",DLP_longitude)+6,0)=0))," Longitude not listed as a negative # & it is not 6 decimals",IF(VALUE(DLP_longitude)>0," Longitude not listed as a negative #",""))))) -> 
D23: Latitude in decimal degrees, rounded to at least the sixth decimal place: | M23: 1 | N23: =IF(AND(M23<>0,H23<>""),M23,0) -> 0 | O23: =CHOOSE(M23+1,"Not to be included in this RFA","A REQUIRED input field for this RFA","An OPTIONAL input field for this RFA") -> A REQUIRED input field for this RFA
D24: Longitude in decimal degrees, rounded to at least the sixth decimal place: | M24: 1 | N24: =IF(AND(M24<>0,H24<>""),M24,0) -> 0 | O24: =CHOOSE(M24+1,"Not to be included in this RFA","A REQUIRED input field for this RFA","An OPTIONAL input field for this RFA") -> A REQUIRED input field for this RFA
B26: (2) | C26: If the proposed Development consists of Scattered Sites, for each Scattered Site that is in addition to the Development Location Point information provided in (1) above, identify the latitude and longitude coordinate, rounded to at least the sixth decimal place:
M28: =IF(G18="No",0,IF(G18="Yes",1,2)) -> 2 | N28: =IF(AND(M28<>0,E28<>""),M28,0) -> 0 | O28: =CHOOSE(M28+1,"Not to be included in this RFA","A REQUIRED input field for this RFA","An OPTIONAL input field for this RFA") -> An OPTIONAL input field for this RFA
A33: =IF($O33=0,"",CHAR(CODE(LOOKUP(2,1/(COUNTIF(A$3:A32,">"&A$3:A32&"*")=0),A$3:A32))+1)) ->  | B33: Confirmation that the proposed Development meets the HUD environmental requirements for the NHTF Program | O33: 0
B35: All successful Applicants will be awarded NHTF Funding for the required NHTF Units, and therefore will be required to comply with the HUD environmental requirements as provided in 24 CFR 93.301(f)(1) and (2).
B36: The Development’s location within a flood zone or wetland area is subject to further verification in credit underwriting.

Sheet Proximity, Mand.Dist., RECAP
A1: Section 4.A.5 Proximity, Mandatory Distance, and RECAP | K1: ="There are "&TEXT(COUNTIF($L$7:$L$69,"=1"),"0")&" required input fields and "&TEXT(COUNTIF($L$7:$L$69,"=2"),"0")&" optional input fields tracked on this tab."&CHAR(10)&"There "&IF(COUNTIFS($L$7:$L$69,"=1",$M$7:$M$69,"=1")=1,"is 1 required input field","are "&TEXT(COUNTIFS($L$7:$L$69,"=1",$M$7:$M$69,"=1"),"0")&" required input fields")&" and "&TEXT(COUNTIFS($L$7:$L$69,"=2",$M$7:$M$69,"=2"),"0")&" optional input field"&IF(COUNTIFS($L$7:$L$69,"=2",$M$7:$M$69,"=2")=1," with an entry","s with entries")&" tracked on this tab."&CHAR(10)&"There "&IF(Data1!G598=1,"is ","are ")&TEXT(Data1!G598,"0")&" required input field"&IF(Data1!G598=1," that need an entry","s that need entries")&" and "&TEXT(Data1!H598,"0")&" optional input field"&IF(Data1!H598=1," that may or may not need an entry","s that may or may not need entries")&" tracked on this tab." -> There are 7 required input fields and 7 optional input fields tracked on this tab. There are 0 required input fields and 0 optional input fields with entries tracked on this tab. There are 7 required input fields that need entries and 7 optional input fields that may or may not need entries tracked on this tab.
A3: =IF($L7+$L11+$N23+$N45=0,"",CHAR(CODE(LOOKUP(2,1/(COUNTIF('Development Location'!A$3:A32,">"&'Development Location'!A$3:A32&"*")=0),'Development Location'!A$3:A32))+1)) -> e | B3: Proximity | L3: HIDE THESE COLUMNS PRIOR TO ISSUANCE
B4: (1) | C4: =IF(L7=0,"","PHA")&IF(AND(L7>0,L11>0)," or","")&IF(L11=0,""," RD 515")&" Proximity Point Boost" -> PHA or RD 515 Proximity Point Boost | L4: Tab Pop-ups: F19:I20, G21:I21, E31:I31, E33:I33, E50
C6: (a) | D6: Does the proposed Development qualify for the PHA Proximity Point Boost? | L6: Hidden Tracking: None
D7: <select one> | L7: 1 | M7: =IF(AND(L7<>0,AND(D7<>"<select one>",B7<>"")),L7,0) -> 0 | N7: =CHOOSE(L7+1,"Not to be included in this RFA","A REQUIRED input field for this RFA","An OPTIONAL input field for this RFA") -> A REQUIRED input field for this RFA
D8: If "Yes", provide the required letter as Attachment 5.
C10: =IF(L7=0,"(a)","(b)") -> (b) | D10: Does the proposed Development qualify for the RD 515 Proximity Point Boost?
D11: <select one> | L11: 1 | M11: =IF(AND(L11<>0,AND(D11<>"<select one>",B11<>"")),L11,0) -> 0 | N11: =CHOOSE(L11+1,"Not to be included in this RFA","A REQUIRED input field for this RFA","An OPTIONAL input field for this RFA") -> A REQUIRED input field for this RFA
D12: If "Yes", provide the required letter as Attachment 14.
B14: (2) | C14: Transit Services
C16: ="Applicants may select Private Transportation or provide the location information and distance for one of the remaining "&IF(L29=0,"three","four")&" Transit Services on which to base the Application’s Transit Score." -> Applicants may select Private Transportation or provide the location information and distance for one of the remaining four Transit Services on which to base the Application’s Transit Score.
C18: (a) | D18: If the proposed Development will serve the Elderly (ALF or Non-ALF) Demographic Commitment, does the Applicant commit to provide Private Transportation?
D19: <select one> | F19: =IF(OR(Demographic="Elderly ALF",Demographic="Elderly Non-ALF"),"(The proposed Development's Demographic Commitment is "&Demographic&", which qualifies to select this option for "&TEXT(Data1!$B$345,"0")&" transit points.)",IF(OR(Demographic="<select one>",Demographic=""),"","(The proposed Development does not qualify to select this option with a Demographic Commitment of "&Demographic&".)")) ->  | L19: 2 | M19: =IF(AND(L19<>0,AND(D19<>"<select one>",B19<>"")),L19,0) -> 0 | N19: =CHOOSE(L19+1,"Not to be included in this RFA","A REQUIRED input field for this RFA","An OPTIONAL input field for this RFA") -> An OPTIONAL input field for this RFA
C21: =IF(L19=0,"(a)","(b)") -> (b) | D21: Other Transit Services | G21: =IF(AND(County="<select one>",OR(Transit_PBS_points<>"",Transit_BTS_points<>"",Transit_PBRTS_points<>"",Transit_Rail_points<>"")),"Please select a County in the Development Location tab.","") -> 
E23: Service | F23: Latitude Coordinates | G23: Longitude Coordinates | H23: Distance* | I23: Points awarded for Transit Type | N23: 1
E24: Public Bus Stop 1 | I24: =IF(number_of_PBS=0,"",IF(AND(County_Size="Small",number_of_PBS=1,Greatest_distance_for_PBS<=0.3),2,IF(AND(County_Size="Small",number_of_PBS=1,Greatest_distance_for_PBS<=0.75),1.5,IF(AND(County_Size="Small",number_of_PBS=1,Greatest_distance_for_PBS<=1),1,IF(AND(County_Size="Small",number_of_PBS=2,Greatest_distance_for_PBS<=0.3),4,IF(AND(County_Size="Small",number_of_PBS=2,Greatest_distance_for_PBS<=0.75),3,IF(AND(County_Size="Small",number_of_PBS=2,Greatest_distance_for_PBS<=1),2,IF(AND(County_Size="Small",number_of_PBS=2,Greatest_distance_for_PBS<=1.25),1,IF(AND(County_Size="Small",number_of_PBS=3,Greatest_distance_for_PBS<=0.3),6,IF(AND(County_Size="Small",number_of_PBS=3,Greatest_distance_for_PBS<=0.75),5.5,IF(AND(County_Size="Small",number_of_PBS=3,Greatest_distance_for_PBS<=1),5,IF(AND(County_Size="Small",number_of_PBS=3,Greatest_distance_for_PBS<=1.25),4.5,IF(AND(OR(County_Size="Medium",County_Size="Large"),number_of_PBS=1,Greatest_distance_for_PBS<=0.3),2,IF(AND(OR(County_Size="Medium",County_Size="Large"),number_of_PBS=1,Greatest_distance_for_PBS<=0.4),1.5,IF(AND(OR(County_Size="Medium",County_Size="Large"),number_of_PBS=1,Greatest_distance_for_PBS<=0.5),1,IF(AND(OR(County_Size="Medium",County_Size="Large"),number_of_PBS=2,Greatest_distance_for_PBS<=0.3),4,IF(AND(OR(County_Size="Medium",County_Size="Large"),number_of_PBS=2,Greatest_distance_for_PBS<=0.4),3,IF(AND(OR(County_Size="Medium",County_Size="Large"),number_of_PBS=2,Greatest_distance_for_PBS<=0.5),2,IF(AND(OR(County_Size="Medium",County_Size="Large"),number_of_PBS=2,Greatest_distance_for_PBS<=0.75),1,IF(AND(OR(County_Size="Medium",County_Size="Large"),number_of_PBS=3,Greatest_distance_for_PBS<=0.3),6,IF(AND(OR(County_Size="Medium",County_Size="Large"),number_of_PBS=3,Greatest_distance_for_PBS<=0.5),5.5,IF(AND(OR(County_Size="Medium",County_Size="Large"),number_of_PBS=3,Greatest_distance_for_PBS<=0.75),5,IF(AND(OR(County_Size="Medium",County_Size="Large"),number_of_PBS=3,Greatest_distance_for_PBS<=1),4.5,0))))))))))))))))))))))) ->  | L24: =IF($N$23=0,0,IF(D$19="Yes",2,IF($N$23=2,2,IF(AND(N(I$24)>0,N(H24)>0),1,IF(N(I$27)+N(I$28)+N(I$29)>0,2,IF(AND(N(I$24)>0,N(H24)=0),2,1)))))) -> 1 | M24: =IF(AND(L24<>0,AND(F24<>"",G24<>"",H24<>"")),L24,0) -> 0 | N24: =CHOOSE(L24+1,"Not to be included in this RFA","A REQUIRED input field for this RFA","An OPTIONAL input field for this RFA") -> A REQUIRED input field for this RFA
E25: Public Bus Stop 2 | L25: =IF($N$23=0,0,IF(D$19="Yes",2,IF($N$23=2,2,IF(L$24=1,2,IF(N(I$27)+N(I$28)+N(I$29)>0,IF(AND(N(I$24)>0,N(H25)>0),1,2),IF(N(I$24)>0,IF(N(H25)>0,1,2))))))) -> 2 | M25: 0 | N25: An OPTIONAL input field for this RFA
E26: Public Bus Stop 3 | L26: =IF($N$23=0,0,IF(D$19="Yes",2,IF($N$23=2,2,IF(OR(L$24=1,L$25=1),2,IF(N(I$27)+N(I$28)+N(I$29)>0,IF(AND(N(I$24)>0,N(H26)>0),1,2),IF(N(I$24)>0,IF(N(H26)>0,1,2))))))) -> 2 | M26: 0 | N26: An OPTIONAL input field for this RFA
E27: Public Bus Transfer Stop | I27: =IF(OR(Transit_BTS_lat="",Transit_BTS_long="",Transit_BTS_distance=""),"",IF(AND(County_Size="Small",Transit_BTS_distance<=0.3),6,IF(AND(County_Size="Small",Transit_BTS_distance<=0.75),5.5,IF(AND(County_Size="Small",Transit_BTS_distance<=1),5,IF(AND(County_Size="Small",Transit_BTS_distance<=1.25),4.5,IF(AND(County_Size="Small",Transit_BTS_distance<=1.5),4,IF(AND(County_Size="Small",Transit_BTS_distance<=1.75),3.5,IF(AND(County_Size="Small",Transit_BTS_distance<=2),3,IF(AND(County_Size="Small",Transit_BTS_distance<=2.5),2.5,IF(AND(OR(County_Size="Medium",County_Size="Large"),Transit_BTS_distance<=0.3),6,IF(AND(OR(County_Size="Medium",County_Size="Large"),Transit_BTS_distance<=0.75),5,IF(AND(OR(County_Size="Medium",County_Size="Large"),Transit_BTS_distance<=1),4.5,IF(AND(OR(County_Size="Medium",County_Size="Large"),Transit_BTS_distance<=1.25),4,IF(AND(OR(County_Size="Medium",County_Size="Large"),Transit_BTS_distance<=1.5),3.5,IF(AND(OR(County_Size="Medium",County_Size="Large"),Transit_BTS_distance<=1.75),3,IF(AND(OR(County_Size="Medium",County_Size="Large"),Transit_BTS_distance<=2),2.5,0)))))))))))))))) ->  | L27: =IF($N$23=0,0,IF(D$19="Yes",2,IF($N$23=2,2,IF(IFERROR(COUNTIF(L$24:L26,1),0)>0,2,IF(N(I$24)+N(I$28)+N(I$29)>0,IF(N(I27)>0,1,2),2))))) -> 2 | M27: 0 | N27: An OPTIONAL input field for this RFA
E28: Public Bus Rapid Transit Stop | I28: =IF(OR(Transit_PBRTS_lat="",Transit_PBRTS_long="",Transit_PBRTS_distance=""),"",IF(AND(County_Size="Small",Transit_PBRTS_distance<=0.3),6,IF(AND(County_Size="Small",Transit_PBRTS_distance<=0.75),5.5,IF(AND(County_Size="Small",Transit_PBRTS_distance<=1),5,IF(AND(County_Size="Small",Transit_PBRTS_distance<=1.25),4.5,IF(AND(County_Size="Small",Transit_PBRTS_distance<=1.5),4,IF(AND(County_Size="Small",Transit_PBRTS_distance<=1.75),3.5,IF(AND(County_Size="Small",Transit_PBRTS_distance<=2),3,IF(AND(County_Size="Small",Transit_PBRTS_distance<=2.5),2.5,IF(AND(OR(County_Size="Medium",County_Size="Large"),Transit_PBRTS_distance<=0.3),6,IF(AND(OR(County_Size="Medium",County_Size="Large"),Transit_PBRTS_distance<=0.75),5,IF(AND(OR(County_Size="Medium",County_Size="Large"),Transit_PBRTS_distance<=1),4.5,IF(AND(OR(County_Size="Medium",County_Size="Large"),Transit_PBRTS_distance<=1.25),4,IF(AND(OR(County_Size="Medium",County_Size="Large"),Transit_PBRTS_distance<=1.5),3.5,IF(AND(OR(County_Size="Medium",County_Size="Large"),Transit_PBRTS_distance<=1.75),3,IF(AND(OR(County_Size="Medium",County_Size="Large"),Transit_PBRTS_distance<=2),2.5,0)))))))))))))))) ->  | L28: =IF($N$23=0,0,IF(D$19="Yes",2,IF($N$23=2,2,IF(IFERROR(COUNTIF(L$24:L27,1),0)>0,2,IF(N(I28)>0,1,2))))) -> 2 | M28: 0 | N28: An OPTIONAL input field for this RFA
